Workbook

Sheet Calibration
B8: Zero curve | G8: Short rate | H8: DF | I8: Fwd Rate | J8: beta(t) | K8: B(.) | L8: Fwd Start Swap | N8: A(.) | O8: 0 | P8: =O8+1 -> 1 | Q8: =P8+1 -> 2 | R8: 3 | S8: 4 | T8: 5 | U8: 6 | V8: 7 | W8: 8 | X8: 9 | Y8: 10 | Z8: 11 | AA8: 12 | AB8: 13 | AC8: 14 | AD8: 15 | AE8: 16 | AF8: 17 | AG8: 18 | AH8: 19 | AI8: 20 | AJ8: 21 | AK8: 22 | AL8: 23 | AM8: 24 | AN8: 25 | AO8: 26 | AP8: 27 | AQ8: 28 | AR8: 29 | AS8: 30 | AT8: 31 | AU8: 32 | AV8: 33 | AW8: 34 | AX8: 35 | AY8: 36 | AZ8: 37 | BA8: 38 | BB8: 39 | BC8: 40
B9: =3/12 -> 0.25 | C9: 0.008 | F9: 0 | G9: =Cubic_Spline($B$9:$B$17,$C$9:$C$17,F9) -> 0.007500000298 | H9: =EXP(-G9*F9) -> 1 | I9: =G9 -> 0.007500000298 | J9: =I9+(IRVol*(1-EXP(-MeanRvs*F9))/MeanRvs/SQRT(2))^2 -> 0.007500000298 | K9: =(1-EXP(-MeanRvs*F9))/MeanRvs -> 0 | L9: =(SUM(H10:$H$49)*0.25*'17.1'!$C$10-(H9-$H$49)) -> 0.000239663758 | N9: 0 | O9: =IF(O$8>=$N9,OFFSET(DFcts,O$8,0,1,1)/OFFSET(DFcts,$N9,0,1,1)*EXP(OFFSET(BFactors,O$8-$N9,0,1,1)*OFFSET(FwdRates,$N9,0,1,1)-(IRVol^2)*(1-EXP(-2*MeanRvs*$N9*0.25))*OFFSET(BFactors,(O$8-$N9),0,1,1)^2/(4*MeanRvs)),"") -> 1 | P9: 0.9998517676 | Q9: 0.9994079684 | R9: 0.9987481028 | S9: 0.9979393198 | T9: 0.9970064266 | U9: 0.9959685391 | V9: 0.9948378128 | W9: 0.9936156616 | X9: 0.9922957102 | Y9: =IF(Y$8>=$N9,OFFSET(DFcts,Y$8,0,1,1)/OFFSET(DFcts,$N9,0,1,1)*EXP(OFFSET(BFactors,Y$8-$N9,0,1,1)*OFFSET(FwdRates,$N9,0,1,1)-(IRVol^2)*(1-EXP(-2*MeanRvs*$N9*0.25))*OFFSET(BFactors,(Y$8-$N9),0,1,1)^2/(4*MeanRvs)),"") -> 0.9908750895 | Z9: 0.9893502484 | AA9: 0.987714723 | AB9: 0.9859611249 | AC9: 0.9840882182 | AD9: 0.9820971192 | AE9: 0.9799896349 | AF9: 0.9777682454 | AG9: 0.9754361002 | AH9: 0.9729970103 | AI9: =IF(AI$8>=$N9,OFFSET(DFcts,AI$8,0,1,1)/OFFSET(DFcts,$N9,0,1,1)*EXP(OFFSET(BFactors,AI$8-$N9,0,1,1)*OFFSET(FwdRates,$N9,0,1,1)-(IRVol^2)*(1-EXP(-2*MeanRvs*$N9*0.25))*OFFSET(BFactors,(AI$8-$N9),0,1,1)^2/(4*MeanRvs)),"") -> 0.9704554325 | AJ9: 0.9678159368 | AK9: 0.9650814364 | AL9: 0.9622544217 | AM9: 0.9593374344 | AN9: 0.9563330652 | AO9: 0.953243951 | AP9: 0.9500727733 | AQ9: 0.9468222553 | AR9: 0.9434950856 | AS9: =IF(AS$8>=$N9,OFFSET(DFcts,AS$8,0,1,1)/OFFSET(DFcts,$N9,0,1,1)*EXP(OFFSET(BFactors,AS$8-$N9,0,1,1)*OFFSET(FwdRates,$N9,0,1,1)-(IRVol^2)*(1-EXP(-2*MeanRvs*$N9*0.25))*OFFSET(BFactors,(AS$8-$N9),0,1,1)^2/(4*MeanRvs)),"") -> 0.9400936739 | AT9: 0.9366203407 | AU9: 0.9330773864 | AV9: 0.9294670934 | AW9: 0.9257917079 | AX9: 0.9220534749 | AY9: 0.9182546015 | AZ9: 0.9143972744 | BA9: 0.9104836553 | BB9: 0.9065158808 | BC9: 0.9024960614
B10: =6/12 -> 0.5 | C10: 0.0085 | F10: =F9+0.25 -> 0.25 | G10: 0.00800000038 | H10: 0.9980019986 | I10: =-(LN(H10)-LN(H9))/(F10-F9) -> 0.00800000038 | J10: =I10+(IRVol*(1-EXP(-MeanRvs*F10))/MeanRvs/SQRT(2))^2 -> 0.008003048382 | K10: =(1-EXP(-MeanRvs*F10))/MeanRvs -> 0.2469008797 | L10: =(SUM(H11:$H$49)*0.25*'17.1'!$C$10-(H10-$H$49)) -> -0.001479892259 | N10: =N9+1 -> 1 | P10: 1 | Q10: 0.9997245017 | R10: 0.9992271248 | S10: 0.9985751715 | T10: 0.9977936074 | U10: 0.9969017123 | V10: 0.9959118043 | W10: 0.9948254485 | X10: 0.993636406 | Y10: 0.9923419406 | Z10: 0.9909386272 | AA10: 0.9894201167 | AB10: 0.9877791265 | AC10: 0.9860145311 | AD10: 0.9841275581 | AE10: 0.9821201243 | AF10: 0.9799948182 | AG10: 0.9777548973 | AH10: 0.97540428 | AI10: 0.9729475305 | AJ10: 0.970389325 | AK10: 0.9677326766 | AL10: 0.9649801725 | AM10: 0.9621344492 | AN10: 0.9591981901 | AO10: 0.9561741229 | AP10: 0.953065018 | AQ10: 0.9498736859 | AR10: 0.9466029001 | AS10: 0.9432551527 | AT10: 0.9398328444 | AU10: 0.9363383535 | AV10: 0.9327740389 | AW10: 0.929142221 | AX10: 0.9254452174 | AY10: 0.921685306 | AZ10: 0.9178647424 | BA10: 0.9139857556 | BB10: 0.9100505479 | BC10: 0.9060612937
B11: 1 | C11: 0.0092 | F11: =F10+0.25 -> 0.5 | G11: 0.008500000462 | H11: 0.9957590182 | I11: =-(LN(H11)-LN(H10))/(F11-F10) -> 0.009000000544 | J11: 0.009011893389 | K11: =(1-EXP(-MeanRvs*F11))/MeanRvs -> 0.487705755 | L11: =(SUM(H12:$H$49)*0.25*'17.1'!$C$10-(H11-$H$49)) -> -0.002946114269 | N11: =N10+1 -> 2 | Q11: 1 | R11: 0.999798758 | S11: 0.9994338536 | T11: 0.9989304424 | U11: 0.9983080102 | V11: 0.9975790859 | W11: 0.9967454319 | X11: 0.9958009864 | Y11: 0.9947431871 | Z11: 0.9935687737 | AA11: 0.9922715457 | AB11: 0.9908443562 | AC11: 0.9892862259 | AD11: 0.987598532 | AE11: 0.985783341 | AF11: 0.9838433919 | AG11: 0.9817820941 | AH11: 0.9796035195 | AI11: 0.9773123882 | AJ11: 0.9749135326 | AK11: 0.9724101136 | AL11: 0.9698048625 | AM11: 0.9671005583 | AN11: 0.9643000252 | AO11: 0.9614061303 | AP11: 0.9584217818 | AQ11: 0.9553499263 | AR11: 0.9521934714 | AS11: 0.9489550399 | AT11: 0.9456371606 | AU11: 0.942242338 | AV11: 0.9387730545 | AW11: 0.9352317526 | AX11: 0.9316208693 | AY11: 0.9279428001 | AZ11: 0.9241999158 | BA11: 0.9203945588 | BB11: 0.9165290423 | BC11: 0.91260565
B12: 2 | C12: 0.01 | F12: 0.75 | G12: 0.008895893624 | H12: 0.9933502876 | I12: 0.009687679948 | J12: 0.009713784967 | K12: =(1-EXP(-MeanRvs*F12))/MeanRvs -> 0.7225651367 | L12: =(SUM(H13:$H$49)*0.25*'17.1'!$C$10-(H12-$H$49)) -> -0.004237613476 | N12: 3 | R12: 1 | S12: 0.9998617035 | T12: 0.9995776681 | U12: 0.9991675542 | V12: 0.99864407 | W12: 0.998009149 | X12: 0.9972568851 | Y12: 0.9963848682 | Z12: 0.9953899827 | AA12: 0.9942661601 | AB12: 0.9930063751 | AC12: 0.9916097757 | AD12: 0.9900778685 | AE12: 0.9884128488 | AF12: 0.986617584 | AG12: 0.9846956124 | AH12: 0.9826511354 | AI12: 0.980489004 | AJ12: 0.9782141809 | AK12: 0.9758299507 | AL12: 0.9733391655 | AM12: 0.9707447229 | AN12: 0.9680495644 | AO12: 0.9652566725 | AP12: 0.9623690692 | AQ12: 0.9593898131 | AR12: 0.9563219224 | AS12: 0.953168127 | AT12: 0.9499310606 | AU12: 0.9466133305 | AV12: 0.9432175203 | AW12: 0.9397461712 | AX12: 0.9362018175 | AY12: 0.9325869495 | AZ12: 0.9289040314 | BA12: 0.9251554968 | BB12: 0.9213437482 | BC12: 0.9174711569
B13: 3 | C13: 0.0106 | F13: 1 | G13: 0.009200000204 | H13: 0.9908421903 | I13: 0.01011231994 | J13: 0.01015759953 | K13: =(1-EXP(-MeanRvs*F13))/MeanRvs -> 0.9516258196 | L13: =(SUM(H14:$H$49)*0.25*'17.1'!$C$10-(H13-$H$49)) -> -0.005420403324 | N13: 4 | S13: 1 | T13: 0.9998831894 | U13: 0.9996346132 | V13: 0.9992671373 | W13: 0.9987828478 | X13: 0.9981759801 | Y13: 0.9974442615 | Z13: 0.9965847067 | AA13: 0.995591368 | AB13: 0.994457332 | AC13: 0.9931818615 | AD13: 0.9917665777 | AE13: 0.9902137892 | AF13: 0.9885264758 | AG13: 0.9867082871 | AH13: 0.9847635361 | AI13: 0.982697185 | AJ13: 0.9805143067 | AK13: 0.9782182908 | AL13: 0.9758120913 | AM13: 0.9732987058 | AN13: 0.9706811737 | AO13: 0.9679625739 | AP13: 0.9651460226 | AQ13: 0.9622346712 | AR13: 0.9592316281 | AS13: 0.9561397113 | AT13: 0.9529616402 | AU13: 0.9497001056 | AV13: 0.9463577732 | AW13: 0.9429372637 | AX13: 0.9394411895 | AY13: 0.935872117 | AZ13: 0.9322325848 | BA13: 0.928525099 | BB13: 0.9247521329 | BC13: 0.9209161269
B14: 5 | C14: 0.0119 | F14: 1.25 | G14: 0.009448636587 | H14: 0.9882586779 | I14: 0.01044318212 | J14: 0.01051221701 | K14: =(1-EXP(-MeanRvs*F14))/MeanRvs -> 1.175030974 | L14: =(SUM(H15:$H$49)*0.25*'17.1'!$C$10-(H14-$H$49)) -> -0.006518154518 | N14: 5 | T14: 1 | U14: 0.9998993492 | V14: 0.999674614 | W14: 0.9993280293 | X14: 0.9988539703 | Y14: 0.998250299 | Z14: 0.9975141585 | AA14: 0.9966397208 | AB14: 0.9956201842 | AC14: 0.994454924 | AD14: 0.9931456735 | AE14: 0.9916948515 | AF14: 0.9901055468 | AG14: 0.988381517 | AH14: 0.9865271821 | AI14: 0.9845476113 | AJ14: 0.9824479829 | AK14: 0.9802317875 | AL14: 0.9779020764 | AM14: 0.9754619432 | AN14: 0.9729145206 | AO14: 0.9702629795 | AP14: 0.9675105256 | AQ14: 0.9646603982 | AR14: 0.9617157917 | AS14: 0.9586796071 | AT14: 0.9555546448 | AU14: 0.9523436746 | AV14: 0.9490494391 | AW14: 0.9456746342 | AX14: 0.9422219454 | AY14: 0.9386940106 | AZ14: 0.9350934378 | BA14: 0.9314228007 | BB14: 0.927684639 | BC14: 0.9238814569
B15: 7 | C15: 0.0132 | F15: 1.5 | G15: 0.009657674228 | H15: 0.9856179133 | I15: 0.01070286244 | J15: 0.01079987378 | K15: 1.392920236 | L15: =(SUM(H16:$H$49)*0.25*'17.1'!$C$10-(H15-$H$49)) -> -0.007548816617 | N15: 6 | U15: 1 | V15: 0.9999088305 | W15: 0.9996909951 | X15: 0.9993410088 | Y15: 0.9988568679 | Z15: 0.9982358437 | AA15: 0.9974722283 | AB15: 0.9965593326 | AC15: 0.9954966443 | AD15: 0.9942860077 | AE15: 0.9929299507 | AF15: 0.9914316697 | AG15: 0.9897950283 | AH15: 0.9880245519 | AI15: 0.9861254138 | AJ15: 0.9841028957 | AK15: 0.9819605861 | AL15: 0.9797016322 | AM15: 0.9773292205 | AN15: 0.9748465752 | AO15: 0.972256956 | AP15: 0.9695636558 | AQ15: 0.966769999 | AR15: 0.9638792629 | AS15: 0.9608944289 | AT15: 0.9578183755 | AU15: 0.9546539486 | AV15: 0.9514039648 | AW15: 0.948071192 | AX15: 0.944658386 | AY15: 0.9411682529 | AZ15: 0.9376034672 | BA15: 0.9339666673 | BB15: 0.9302604555 | BC15: 0.9264873976
B16: 10 | C16: 0.015 | F16: 1.75 | G16: 0.009837874984 | H16: 0.9829310721 | I16: 0.01091907952 | J16: 0.01104794976 | K16: 1.605429792 | L16: =(SUM(H17:$H$49)*0.25*'17.1'!$C$10-(H16-$H$49)) -> -0.008523393666 | N16: 7 | V16: 1 | W16: 0.9999077157 | X16: 0.999678665 | Y16: 0.9993109799 | Z16: 0.9988020617 | AA16: 0.9981463249 | AB16: 0.997337195 | AC16: 0.9963742736 | AD16: 0.9952595171 | AE16: 0.9939955632 | AF16: 0.9925857164 | AG16: 0.991033947 | AH16: 0.9893448858 | AI16: 0.9875238104 | AJ16: 0.9855761052 | AK16: 0.9835054575 | AL16: 0.9813151097 | AM16: 0.9790083418 | AN16: 0.9765884689 | AO16: 0.9740588396 | AP16: 0.9714228338 | AQ16: 0.9686838603 | AR16: 0.9658452792 | AS16: 0.9629101517 | AT16: 0.9598814339 | AU16: 0.9567620473 | AV16: 0.9535548818 | AW16: 0.9502627769 | AX16: 0.9468885578 | AY16: 0.9434349982 | AZ16: 0.9399048381 | BA16: 0.9363007799 | BB16: 0.9326254878 | BC16: 0.9288815878
B17: 20 | C17: 0.02 | F17: 2 | G17: 0.009999999776 | H17: 0.9801986737 | I17: 0.01113487332 | J17: 0.01129916602 | K17: 1.812692469 | L17: =(SUM(H18:$H$49)*0.25*'17.1'!$C$10-(H17-$H$49)) -> -0.009442235361 | N17: 8 | W17: 1 | X17: 0.9998987851 | Y17: 0.9996542576 | Z17: 0.9992639528 | AA17: 0.9987224114 | AB17: 0.9980231785 | AC17: 0.9971659725 | AD17: 0.9961528654 | AE17: 0.9949866082 | AF17: 0.993670617 | AG17: 0.9922089718 | AH17: 0.9906064123 | AI17: 0.9888683239 | AJ17: 0.9870001973 | AK17: 0.9850058217 | AL17: 0.9828885387 | AM17: 0.9806517252 | AN17: 0.9782987908 | AO17: 0.9758331766 | AP17: 0.9732583526 | AQ17: 0.9705778161 | AR17: 0.967795013 | AS17: 0.9649130879 | AT17: 0.9619350777 | AU17: 0.9588639829 | AV17: 0.95570277 | AW17: 0.9524543532 | AX17: 0.9491216303 | AY17: 0.9457074456 | AZ17: 0.9422146078 | BA17: 0.938645886 | BB17: 0.9350040095 | BC17: 0.9312916673
F18: 2.25 | G18: =Cubic_Spline($B$9:$B$17,$C$9:$C$17,F18) -> 0.01015351347 | H18: 0.977413575 | I18: 0.01138162301 | J18: 0.01158460158 | K18: 2.014837812 | L18: =(SUM(H19:$H$49)*0.25*'17.1'!$C$10-(H18-$H$49)) -> -0.01029800223 | N18: 9 | X18: 1 | Y18: 0.9998932818 | Z18: 0.9996358489 | AA18: 0.9992223741 | AB18: 0.9986465266 | AC18: 0.9979081469 | AD18: 0.997009427 | AE18: 0.995953236 | AF18: 0.9947431064 | AG18: 0.9933832335 | AH18: 0.991878471 | AI18: 0.9902343178 | AJ18: 0.9884563766 | AK18: 0.9865485447 | AL18: 0.9845142689 | AM18: 0.9823570288 | AN18: 0.980080335 | AO18: 0.9776877271 | AP18: 0.9751827717 | AQ18: 0.9725690605 | AR18: 0.9698501318 | AS18: 0.9670292196 | AT18: 0.9641094482 | AU18: 0.9610939029 | AV18: 0.9579856333 | AW18: 0.9547876342 | AX18: 0.9515028821 | AY18: 0.948134298 | AZ18: 0.9446847653 | BA18: 0.9411571256 | BB18: 0.9375541791 | BC18: 0.9338786836
B19: Parameters | F19: 2.5 | G19: 0.01030269575 | H19: 0.9745721358 | I19: 0.01164533631 | J19: 0.01188998177 | K19: 2.211992169 | L19: =(SUM(H20:$H$49)*0.25*'17.1'!$C$10-(H19-$H$49)) -> -0.01108684418 | N19: 10 | O19: =IF(O$8>=$N19,OFFSET(DFcts,O$8,0,1,1)/OFFSET(DFcts,$N19,0,1,1)*EXP(OFFSET(BFactors,O$8-$N19,0,1,1)*OFFSET(FwdRates,$N19,0,1,1)-(IRVol^2)*(1-EXP(-2*MeanRvs*$N19*0.25))*OFFSET(BFactors,(O$8-$N19),0,1,1)^2/(4*MeanRvs)),"") ->  | Y19: =IF(Y$8>=$N19,OFFSET(DFcts,Y$8,0,1,1)/OFFSET(DFcts,$N19,0,1,1)*EXP(OFFSET(BFactors,Y$8-$N19,0,1,1)*OFFSET(FwdRates,$N19,0,1,1)-(IRVol^2)*(1-EXP(-2*MeanRvs*$N19*0.25))*OFFSET(BFactors,(Y$8-$N19),0,1,1)^2/(4*MeanRvs)),"") -> 1 | Z19: 0.9998870355 | AA19: 0.9996129154 | AB19: 0.9991714377 | AC19: 0.9985625681 | AD19: 0.9977886222 | AE19: 0.9968525911 | AF19: 0.995758127 | AG19: 0.9945095447 | AH19: 0.9931118158 | AI19: =IF(AI$8>=$N19,OFFSET(DFcts,AI$8,0,1,1)/OFFSET(DFcts,$N19,0,1,1)*EXP(OFFSET(BFactors,AI$8-$N19,0,1,1)*OFFSET(FwdRates,$N19,0,1,1)-(IRVol^2)*(1-EXP(-2*MeanRvs*$N19*0.25))*OFFSET(BFactors,(AI$8-$N19),0,1,1)^2/(4*MeanRvs)),"") -> 0.991570557 | AJ19: 0.9898914876 | AK19: 0.9880786176 | AL19: 0.9861355036 | AM19: 0.984065733 | AN19: 0.9818729221 | AO19: 0.979560714 | AP19: 0.9771327769 | AQ19: 0.974592802 | AR19: 0.9719444248 | AS19: =IF(AS$8>=$N19,OFFSET(DFcts,AS$8,0,1,1)/OFFSET(DFcts,$N19,0,1,1)*EXP(OFFSET(BFactors,AS$8-$N19,0,1,1)*OFFSET(FwdRates,$N19,0,1,1)-(IRVol^2)*(1-EXP(-2*MeanRvs*$N19*0.25))*OFFSET(BFactors,(AS$8-$N19),0,1,1)^2/(4*MeanRvs)),"") -> 0.9691909739 | AT19: 0.9663356658 | AU19: 0.9633816759 | AV19: 0.9603321416 | AW19: 0.9571901434 | AX19: 0.9539587415 | AY19: 0.9506409382 | AZ19: 0.9472396964 | BA19: 0.9437579353 | BB19: 0.9401985304 | BC19: 0.9365643132
B20: a | C20: 0.1 | F20: 2.75 | G20: 0.01045053003 | H20: 0.9716700785 | I20: 0.01192887276 | J20: 0.01221790058 | K20: 2.404278768 | L20: =(SUM(H21:$H$49)*0.25*'17.1'!$C$10-(H20-$H$49)) -> -0.01180425791 | N20: 11 | Z20: 1 | AA20: 0.9998777679 | AB20: 0.9995828666 | AC20: 0.9991153905 | AD20: 0.9984777818 | AE20: 0.9976731563 | AF20: 0.99670529 | AG20: 0.9955786202 | AH20: 0.9942982408 | AI20: 0.9928698902 | AJ20: 0.9912994087 | AK20: 0.9895909234 | AL20: 0.9877481057 | AM20: 0.9857746556 | AN20: 0.9836743 | AO20: 0.9814507908 | AP20: 0.9791079028 | AQ20: 0.9766494317 | AR20: 0.9740791157 | AS20: 0.9714003833 | AT20: 0.9686165485 | AU20: 0.9657308818 | AV20: 0.9627466137 | AW20: 0.9596669159 | AX20: 0.9564949371 | AY20: 0.9532337666 | AZ20: 0.9498864517 | BA20: 0.9464559943 | BB20: 0.9429453503 | BC20: 0.9393574297
B21: vol | C21: 0.01 | F21: 3 | G21: =Cubic_Spline($B$9:$B$17,$C$9:$C$17,F21) -> 0.01059999969 | H21: =EXP(-G21*F21) -> 0.9687003037 | I21: 0.01224416597 | J21: 0.01258004195 | K21: 2.591817793 | L21: =(SUM(H22:$H$49)*0.25*'17.1'!$C$10-(H21-$H$49)) -> -0.01244289173 | N21: 12 | AA21: 1 | AB21: 0.9998674255 | AC21: 0.9995566905 | AD21: 0.9990703664 | AE21: 0.9984116966 | AF21: 0.9975845844 | AG21: 0.9965935933 | AH21: 0.9954439432 | AI21: 0.9941414987 | AJ21: 0.9926922258 | AK21: 0.9911003739 | AL21: 0.9893697345 | AM21: 0.9875041257 | AN21: 0.9855073909 | AO21: 0.9833833963 | AP21: 0.9811360293 | AQ21: 0.9787691965 | AR21: 0.9762867449 | AS21: 0.9736922089 | AT21: 0.9709890063 | AU21: 0.9681805093 | AV21: 0.965270048 | AW21: 0.9622608911 | AX21: 0.9591562827 | AY21: 0.955959405 | AZ21: 0.9526733965 | BA21: 0.9493013477 | BB21: 0.9458463015 | BC21: 0.9423112526
F22: 3.25 | G22: =Cubic_Spline($B$9:$B$17,$C$9:$C$17,F22) -> 0.0107534774 | H22: 0.965654855 | I22: 0.0125952099 | J22: 0.01298016525 | K22: 2.774726464 | L22: =(SUM(H23:$H$49)*0.25*'17.1'!$C$10-(H22-$H$49)) -> -0.01299450743 | N22: 13 | AB22: 1 | AC22: 0.9998631678 | AD22: 0.9995448592 | AE22: 0.9990484476 | AF22: 0.9983779655 | AG22: 0.9975381058 | AH22: 0.9965342177 | AI22: 0.995372296 | AJ22: 0.9940584364 | AK22: 0.9925970158 | AL22: 0.9909919505 | AM22: 0.9892471824 | AN22: 0.9873666766 | AO22: 0.9853544198 | AP22: 0.983214418 | AQ22: 0.9809506948 | AR22: 0.9785672121 | AS22: 0.976067617 | AT22: 0.9734554375 | AU22: 0.9707341542 | AV22: 0.9679072032 | AW22: 0.9649779572 | AX22: 0.9619497623 | AY22: 0.9588259005 | AZ22: 0.9556096078 | BA22: 0.9523040706 | BB22: 0.9489124252 | BC22: 0.9454377579
B23: Par Swap Rate | C23: =(1-H49)/SUM(H10:H49)/0.25 -> 0.01487440732 | F23: 3.5 | G23: =Cubic_Spline($B$9:$B$17,$C$9:$C$17,F23) -> 0.01091089356 | H23: 0.9625318452 | I23: 0.01295730366 | J23: 0.01339334929 | K23: 2.953119103 | L23: =(SUM(H24:$H$49)*0.25*'17.1'!$C$10-(H23-$H$49)) -> -0.01345692871 | N23: 14 | AC23: 1 | AD23: 0.9998612536 | AE23: 0.999538369 | AF23: 0.9990355085 | AG23: 0.9983574951 | AH23: 0.997509809 | AI23: 0.9964985762 | AJ23: 0.9953300247 | AK23: 0.9940086608 | AL23: 0.9925385291 | AM23: 0.9909236978 | AN23: 0.9891682574 | AO23: 0.9872763183 | AP23: 0.985252009 | AQ23: 0.9830994737 | AR23: 0.9808227935 | AS23: 0.9784257319 | AT23: 0.9759119317 | AU23: 0.9732849857 | AV23: 0.9705484404 | AW23: 0.9677057771 | AX23: 0.9647604482 | AY23: 0.9617158398 | AZ23: 0.9585752902 | BA23: 0.9553420858 | BB23: 0.952019461 | BC23: 0.9486105979
F24: 3.75 | G24: =Cubic_Spline($B$9:$B$17,$C$9:$C$17,F24) -> 0.01107156831 | H24: 0.9593317016 | I24: 0.01332101476 | J24: 0.01380995473 | K24: 3.127107212 | L24: =(SUM(H25:$H$49)*0.25*'17.1'!$C$10-(H24-$H$49)) -> -0.01383029567 | N24: 15 | AD24: 1 | AE24: 0.9998600386 | AF24: 0.999533978 | AG24: 0.9990267711 | AH24: 0.9983440289 | AI24: 0.9974920094 | AJ24: 0.9964770735 | AK24: 0.9953038587 | AL24: 0.9939765391 | AM24: 0.9924993117 | AN24: 0.9908763945 | AO24: 0.9891120241 | AP24: 0.9872104538 | AQ24: 0.9851759515 | AR24: 0.9830127202 | AS24: 0.9807246432 | AT24: 0.9783154807 | AU24: 0.9757889415 | AV24: 0.9731486859 | AW24: 0.9703983068 | AX24: 0.9675413664 | AY24: 0.9645813587 | AZ24: 0.9615217276 | BA24: 0.9583658632 | BB24: 0.9551171014 | BC24: 0.9517787238
B25: CDS Curves | F25: 4 | G25: 0.01123482037 | H25: 0.9560555303 | I25: 0.01368360136 | J25: 0.01422704572 | K25: 3.29679954 | L25: =(SUM(H26:$H$49)*0.25*'17.1'!$C$10-(H25-$H$49)) -> -0.0141154313 | N25: 16 | AE25: 1 | AF25: 0.9998595203 | AG25: 0.9995317017 | AH25: 0.9990222853 | AI25: 0.9983376609 | AJ25: 0.9974843224 | AK25: 0.996467039 | AL25: 0.9952901159 | AM25: 0.9939578801 | AN25: 0.9924746786 | AO25: 0.9908448763 | AP25: 0.9890728535 | AQ25: 0.9871630038 | AR25: 0.9851196548 | AS25: 0.982946812 | AT25: 0.980648356 | AU25: 0.9782281143 | AV25: 0.9756898638 | AW25: 0.9730373123 | AX25: 0.970274135 | AY25: 0.9674039367 | AZ25: 0.9644302701 | BA25: 0.9613566323 | BB25: 0.9581864639 | BC25: 0.9549231494
B26: Tenor | C26: Spread | D26: Spread | F26: 4.25 | G26: 0.01139996989 | H26: 0.9527050953 | I26: 0.01404236217 | J26: 0.01464173897 | K26: 3.462302149 | L26: =(SUM(H27:$H$49)*0.25*'17.1'!$C$10-(H26-$H$49)) -> -0.01431382272 | N26: 17 | AF26: 1 | AG26: 0.9998597118 | AH26: 0.9995315829 | AI26: 0.9990221337 | AJ26: 0.9983379904 | AK26: 0.9974840544 | AL26: 0.9964647621 | AM26: 0.9952845715 | AN26: 0.9939479599 | AO26: 0.9924594216 | AP26: 0.9908234654 | AQ26: 0.9890446128 | AR26: 0.9871273175 | AS26: 0.9850757096 | AT26: 0.9828937925 | AU26: 0.9805855145 | AV26: 0.9781547722 | AW26: 0.9756053906 | AX26: 0.9729411605 | AY26: 0.9701658004 | AZ26: 0.967282975 | BA26: 0.9642962909 | BB26: 0.9612092965 | BC26: 0.9580254821
B27: 1 | C27: 0.0018 | D27: 0.00075 | F27: 4.5 | G27: 0.01156633676 | H27: 0.9492828109 | I27: 0.0143945735 | J27: 0.01505114028 | K27: 3.623718484 | L27: =(SUM(H28:$H$49)*0.25*'17.1'!$C$10-(H27-$H$49)) -> -0.0144276168 | N27: 18 | AG27: 1 | AH27: 0.9998606227 | AI27: 0.9995336513 | AJ27: 0.999025843 | AK27: 0.9983422308 | AL27: 0.9974873822 | AM27: 0.9964658866 | AN27: 0.9952823519 | AO27: 0.9939414027 | AP27: 0.9924476776 | AQ27: 0.9908058268 | AR27: 0.989020432 | AS27: 0.9870957495 | AT27: 0.9850359073 | AU27: 0.9828449768 | AV27: 0.980526976 | AW27: 0.9780858495 | AX27: 0.9755255064 | AY27: 0.972849781 | AZ27: 0.9700624524 | BA27: 0.9671672394 | BB27: 0.9641678009 | BC27: 0.9610677355
B28: 3 | C28: 0.005 | D28: 0.00135 | F28: 4.75 | G28: 0.01173324029 | H28: 0.9457917313 | I28: 0.01473750391 | J28: 0.01545235846 | K28: 3.781149435 | L28: =(SUM(H29:$H$49)*0.25*'17.1'!$C$10-(H28-$H$49)) -> -0.01445961139 | N28: 19 | AH28: 1 | AI28: 0.9998622561 | AJ28: 0.9995373903 | AK28: 0.9990305657 | AL28: 0.9983464808 | AM28: 0.9974898554 | AN28: 0.9964654285 | AO28: 0.995277955 | AP28: 0.993932204 | AQ28: 0.9924329552 | AR28: 0.9907849192 | AS28: 0.9889924798 | AT28: 0.9870598911 | AU28: 0.9849913491 | AV28: 0.982790995 | AW28: 0.9804628951 | AX28: 0.9780110781 | AY28: 0.9754394968 | AZ28: 0.9727520465 | BA28: 0.9699525606 | BB28: 0.9670448106 | BC28: 0.9640325057
B29: 5 | C29: 0.0092 | D29: 0.0033 | F29: 5 | G29: 0.01190000027 | H29: 0.9422355323 | I29: 0.01506843996 | J29: 0.01584253057 | K29: 3.934693403 | L29: =(SUM(H30:$H$49)*0.25*'17.1'!$C$10-(H29-$H$49)) -> -0.01441323977 | N29: 20 | O29: =IF(O$8>=$N29,OFFSET(DFcts,O$8,0,1,1)/OFFSET(DFcts,$N29,0,1,1)*EXP(OFFSET(BFactors,O$8-$N29,0,1,1)*OFFSET(FwdRates,$N29,0,1,1)-(IRVol^2)*(1-EXP(-2*MeanRvs*$N29*0.25))*OFFSET(BFactors,(O$8-$N29),0,1,1)^2/(4*MeanRvs)),"") ->  | Y29: =IF(Y$8>=$N29,OFFSET(DFcts,Y$8,0,1,1)/OFFSET(DFcts,$N29,0,1,1)*EXP(OFFSET(BFactors,Y$8-$N29,0,1,1)*OFFSET(FwdRates,$N29,0,1,1)-(IRVol^2)*(1-EXP(-2*MeanRvs*$N29*0.25))*OFFSET(BFactors,(Y$8-$N29),0,1,1)^2/(4*MeanRvs)),"") ->  | AI29: =IF(AI$8>=$N29,OFFSET(DFcts,AI$8,0,1,1)/OFFSET(DFcts,$N29,0,1,1)*EXP(OFFSET(BFactors,AI$8-$N29,0,1,1)*OFFSET(FwdRates,$N29,0,1,1)-(IRVol^2)*(1-EXP(-2*MeanRvs*$N29*0.25))*OFFSET(BFactors,(AI$8-$N29),0,1,1)^2/(4*MeanRvs)),"") -> 1 | AJ29: 0.9998640815 | AK29: 0.9995399269 | AL29: 0.9990323638 | AM29: 0.9983462422 | AN29: 0.9974864312 | AO29: 0.9964578163 | AP29: 0.9952652966 | AQ29: 0.9939137821 | AR29: 0.9924081127 | AS29: =IF(AS$8>=$N29,OFFSET(DFcts,AS$8,0,1,1)/OFFSET(DFcts,$N29,0,1,1)*EXP(OFFSET(BFactors,AS$8-$N29,0,1,1)*OFFSET(FwdRates,$N29,0,1,1)-(IRVol^2)*(1-EXP(-2*MeanRvs*$N29*0.25))*OFFSET(BFactors,(AS$8-$N29),0,1,1)^2/(4*MeanRvs)),"") -> 0.9907528004 | AT29: 0.9889522265 | AU29: 0.9870107128 | AV29: 0.984932525 | AW29: 0.9827218525 | AX29: 0.9803828455 | AY29: 0.9779195766 | AZ29: 0.9753360592 | BA29: 0.9726362432 | BB29: 0.9698240146 | BC29: 0.9669031952
B30: 7 | C30: 0.012 | D30: 0.00525 | F30: 5.25 | G30: 0.01206603936 | H30: 0.9386179922 | I30: 0.01538682101 | J30: 0.01622095611 | K30: 4.084446356 | L30: =(SUM(H31:$H$49)*0.25*'17.1'!$C$10-(H30-$H$49)) -> -0.01429205168 | N30: 21 | AJ30: 1 | AK30: 0.9998642718 | AL30: 0.9995388709 | AM30: 0.9990287757 | AN30: 0.9983389847 | AO30: 0.9974745133 | AP30: 0.9964403906 | AQ30: 0.9952416565 | AR30: 0.9938832808 | AS30: 0.9923699042 | AT30: 0.9907060358 | AU30: 0.9888961242 | AV30: 0.9869445607 | AW30: 0.9848556591 | AX30: 0.9826336923 | AY30: 0.9802828545 | AZ30: 0.9778072787 | BA30: 0.9752110328 | BB30: 0.9724981191 | BC30: 0.9696724739
B31: 10 | C31: 0.0135 | D31: 0.00675 | F31: 5.5 | G31: 0.01223119212 | H31: 0.9349412773 | I31: 0.01569940022 | J31: 0.01659425753 | K31: 4.230501896 | L31: =(SUM(H32:$H$49)*0.25*'17.1'!$C$10-(H31-$H$49)) -> -0.01409799306 | N31: 22 | AK31: 1 | AL31: 0.9998640668 | AM31: 0.9995371475 | AN31: 0.9990243688 | AO31: 0.9983308751 | AP31: 0.9974618252 | AQ31: 0.996422389 | AR31: 0.9952176664 | AS31: 0.9938524275 | AT31: 0.9923313102 | AU31: 0.9906588912 | AV31: 0.9888396885 | AW31: 0.9868781419 | AX31: 0.984778649 | AY31: 0.9825455272 | AZ31: 0.9801830311 | BA31: 0.977695349 | BB31: 0.9750866016 | BC31: 0.9723608421
B32: 20 | C32: 0.0142 | D32: 0.00735 | F32: 5.75 | G32: 0.01239539614 | H32: 0.9312071462 | I32: 0.01600788456 | J32: 0.01696401972 | K32: 4.372951312 | L32: =(SUM(H33:$H$49)*0.25*'17.1'!$C$10-(H32-$H$49)) -> -0.0138326086 | N32: 23 | AL32: 1 | AM32: 0.9998639495 | AN32: 0.9995357111 | AO32: 0.9990205569 | AP32: 0.9983237747 | AQ32: 0.9974506641 | AR32: 0.9964064548 | AS32: 0.995196047 | AT32: 0.9938242079 | AU32: 0.992295643 | AV32: 0.9906149989 | AW32: 0.9887868423 | AX32: 0.9868156973 | AY32: 0.9847060061 | AZ32: 0.9824621473 | BA32: 0.9800884313 | BB32: 0.9775890997 | BC32: 0.9749683246
B33: LGD | C33: 0.6 | D33: 0.6 | F33: 6 | G33: 0.01255858898 | H33: 0.9274174104 | I33: 0.01631202431 | J33: 0.01732987901 | K33: 4.511883639 | L33: =(SUM(H34:$H$49)*0.25*'17.1'!$C$10-(H33-$H$49)) -> -0.01349750258 | N33: 24 | AM33: 1 | AN33: 0.9998639202 | AO33: 0.9995345623 | AP33: 0.9990173416 | AQ33: 0.9983176864 | AR33: 0.997440956 | AS33: 0.9963921803 | AT33: 0.9951762563 | AU33: 0.9937980189 | AV33: 0.9922622438 | AW33: 0.9905736261 | AX33: 0.9887368175 | AY33: 0.9867563867 | AZ33: 0.9846368378 | BA33: 0.9823826054 | BB33: 0.9799980539 | BC33: 0.9774874766
F34: 6.25 | G34: 0.01272070821 | H34: 0.9235739319 | I34: 0.01661156974 | J34: 0.01769147944 | K34: 4.647385715 | L34: =(SUM(H35:$H$49)*0.25*'17.1'!$C$10-(H34-$H$49)) -> -0.01309433703 | N34: 25 | AN34: 1 | AO34: 0.999863979 | AP34: 0.999533702 | AQ34: 0.9990147247 | AR34: 0.9983125348 | AS34: 0.9974322914 | AT34: 0.9963790211 | AU34: 0.9951576885 | AV34: 0.9937731986 | AW34: 0.9922303758 | AX34: 0.9905340004 | AY34: 0.988688769 | AZ34: 0.9866993126 | BA34: 0.9845701915 | BB34: 0.9823058945 | BC34: 0.9799108386
F35: 6.5 | G35: 0.0128816914 | H35: 0.9196786218 | I35: 0.01690627112 | J35: 0.01804847232 | K35: 4.779542232 | L35: =(SUM(H36:$H$49)*0.25*'17.1'!$C$10-(H35-$H$49)) -> -0.01262482977 | N35: 26 | AO35: 1 | AP35: 0.9998641261 | AQ35: 0.999533131 | AR35: 0.9990126294 | AS35: 0.9983079084 | AT35: 0.9974241233 | AU35: 0.9963663683 | AV35: 0.995139678 | AW35: 0.9937490062 | AX35: 0.9921992625 | AY35: 0.9904952722 | AZ35: 0.9886417945 | BA35: 0.9866435167 | BB35: 0.9845050539 | BC35: 0.982230948
F36: 6.75 | G36: 0.01304147612 | H36: 0.9157334375 | I36: 0.01719587873 | J36: 0.01840051582 | K36: 4.908435794 | L36: =(SUM(H37:$H$49)*0.25*'17.1'!$C$10-(H36-$H$49)) -> -0.0120907525 | N36: 27 | AP36: 1 | AQ36: 0.9998643619 | AR36: 0.9995327715 | AS36: 0.9990106425 | AT36: 0.9983032577 | AU36: 0.99741584 | AV36: 0.9963535531 | AW36: 0.9951214803 | AX36: 0.9937246607 | AY36: 0.9921680491 | AZ36: 0.9904565334 | BA36: 0.9885949292 | BB36: 0.9865879793 | BC36: 0.9844403516
F37: 7 | G37: 0.01319999993 | H37: 0.9117403809 | I37: 0.01748014284 | J37: 0.01874727462 | K37: 5.034146962 | L37: =(SUM(H38:$H$49)*0.25*'17.1'!$C$10-(H37-$H$49)) -> -0.01149392886 | N37: 28 | AQ37: 1 | AR37: 0.9998646077 | AS37: 0.9995322089 | AT37: 0.9990082126 | AU37: 0.9982979687 | AV37: 0.9974067693 | AW37: 0.9963398269 | AX37: 0.9951023099 | AY37: 0.9936993025 | AZ37: 0.992135822 | BA37: 0.9904168132 | BB37: 0.9885471471 | BC37: 0.9865316195
F38: 7.25 | G38: 0.01335721128 | H38: 0.9077014248 | I38: 0.01775912903 | J38: 0.01908873478 | K38: 5.15675431 | L38: =(SUM(H39:$H$49)*0.25*'17.1'!$C$10-(H38-$H$49)) -> -0.01083616057 | N38: 29 | AR38: 1 | AS38: 0.9998646046 | AT38: 0.9995311226 | AU38: 0.9990050295 | AV38: 0.9982917443 | AW38: 0.9973966075 | AX38: 0.9963249163 | AY38: 0.9950818844 | AZ38: 0.9936726585 | BA38: 0.9921023128 | BB38: 0.9903758475 | BC38: 0.988498187
F39: 7.5 | G39: 0.0135131021 | H39: 0.9036182788 | I39: 0.01803393604 | J39: 0.01942592131 | K39: 5.276334473 | L39: =(SUM(H40:$H$49)*0.25*'17.1'!$C$10-(H39-$H$49)) -> -0.01011899262 | N39: 30 | O39: =IF(O$8>=$N39,OFFSET(DFcts,O$8,0,1,1)/OFFSET(DFcts,$N39,0,1,1)*EXP(OFFSET(BFactors,O$8-$N39,0,1,1)*OFFSET(FwdRates,$N39,0,1,1)-(IRVol^2)*(1-EXP(-2*MeanRvs*$N39*0.25))*OFFSET(BFactors,(O$8-$N39),0,1,1)^2/(4*MeanRvs)),"") ->  | Y39: =IF(Y$8>=$N39,OFFSET(DFcts,Y$8,0,1,1)/OFFSET(DFcts,$N39,0,1,1)*EXP(OFFSET(BFactors,Y$8-$N39,0,1,1)*OFFSET(FwdRates,$N39,0,1,1)-(IRVol^2)*(1-EXP(-2*MeanRvs*$N39*0.25))*OFFSET(BFactors,(Y$8-$N39),0,1,1)^2/(4*MeanRvs)),"") ->  | AI39: =IF(AI$8>=$N39,OFFSET(DFcts,AI$8,0,1,1)/OFFSET(DFcts,$N39,0,1,1)*EXP(OFFSET(BFactors,AI$8-$N39,0,1,1)*OFFSET(FwdRates,$N39,0,1,1)-(IRVol^2)*(1-EXP(-2*MeanRvs*$N39*0.25))*OFFSET(BFactors,(AI$8-$N39),0,1,1)^2/(4*MeanRvs)),"") ->  | AS39: =IF(AS$8>=$N39,OFFSET(DFcts,AS$8,0,1,1)/OFFSET(DFcts,$N39,0,1,1)*EXP(OFFSET(BFactors,AS$8-$N39,0,1,1)*OFFSET(FwdRates,$N39,0,1,1)-(IRVol^2)*(1-EXP(-2*MeanRvs*$N39*0.25))*OFFSET(BFactors,(AS$8-$N39),0,1,1)^2/(4*MeanRvs)),"") -> 1 | AT39: 0.9998645472 | AU39: 0.9995299674 | AV39: 0.9990018045 | AW39: 0.9982855257 | AX39: 0.997386556 | AY39: 0.9963102379 | AZ39: 0.9950618473 | BA39: 0.993646588 | BB39: 0.9920695898 | BC39: 0.9903359064
F40: 7.75 | G40: 0.01366767521 | H40: 0.8994925726 | I40: 0.01830486844 | J40: 0.0197590705 | K40: 5.39296219 | L40: =(SUM(H41:$H$49)*0.25*'17.1'!$C$10-(H40-$H$49)) -> -0.009343896286 | N40: 31 | AT40: 1 | AU40: 0.9998645075 | AV40: 0.9995288883 | AW40: 0.9989987339 | AX40: 0.9982795959 | AY40: 0.9973769443 | AZ40: 0.9962961836 | BA40: 0.9950426471 | BB40: 0.993621594 | BC40: 0.9920382077
F41: 8 | G41: 0.01382093341 | H41: 0.8953259229 | I41: 0.01857193771 | J41: 0.02008813065 | K41: 5.506710359 | L41: =(SUM(H42:$H$49)*0.25*'17.1'!$C$10-(H41-$H$49)) -> -0.008512335673 | N41: 32 | AU41: 1 | AV41: 0.9998644889 | AW41: 0.9995278722 | AX41: 0.9989958254 | AY41: 0.9982739447 | AZ41: 0.9973677622 | BA41: 0.9962827395 | BB41: 0.9950242651 | BC41: 0.9935976523
F42: 8.25 | G42: 0.01397287906 | H42: 0.8911199361 | I42: 0.01883513962 | J42: 0.02041303924 | K42: 5.617650075 | L42: =(SUM(H43:$H$49)*0.25*'17.1'!$C$10-(H42-$H$49)) -> -0.007625770559 | N42: 33 | AV42: 1 | AW42: 0.9998644718 | AX42: 0.9995269175 | AY42: 0.9989930566 | AZ42: 0.9982685472 | BA42: 0.9973589782 | BB42: 0.9962698665 | BC42: 0.9950066546
F43: 8.5 | G43: 0.01412351634 | H43: 0.8868761903 | I43: 0.01909454687 | J43: 0.02073381517 | K43: 5.725850681 | L43: =(SUM(H44:$H$49)*0.25*'17.1'!$C$10-(H43-$H$49)) -> -0.00668563863 | N43: 34 | AW43: 1 | AX43: 0.9998644941 | AY43: 0.9995260602 | AZ43: 0.9989904798 | BA43: 0.9982634671 | BB43: 0.9973506664 | BC43: 0.9962576483
F44: 8.75 | G44: 0.01427284669 | H44: 0.8825962698 | I44: 0.01935007853 | J44: 0.02105032805 | K44: 5.831379803 | L44: =(SUM(H45:$H$49)*0.25*'17.1'!$C$10-(H44-$H$49)) -> -0.005693389199 | N44: 35 | AX44: 1 | AY44: 0.9998645171 | AZ44: 0.9995252424 | BA44: 0.9989880135 | BB44: 0.9982585995 | BC44: 0.9973426983
F45: 9 | G45: 0.01442087338 | H45: 0.8782817295 | I45: 0.01960180731 | J45: 0.02136260515 | K45: 5.934303403 | L45: =(SUM(H46:$H$49)*0.25*'17.1'!$C$10-(H45-$H$49)) -> -0.004650448371 | N45: 36 | AY45: 1 | AZ45: 0.9998645595 | BA45: 0.9995244965 | BB45: 0.9989857028 | BC45: 0.9982540011
F46: 9.25 | G46: 0.0145675992 | H46: 0.8739341122 | I46: 0.01984972904 | J46: 0.02167060068 | K46: 6.034685809 | L46: =(SUM(H47:$H$49)*0.25*'17.1'!$C$10-(H46-$H$49)) -> -0.003558235652 | N46: 37 | AZ46: 1 | BA46: 0.9998646173 | BB46: 0.9995238134 | BC46: 0.9989835334
F47: 9.5 | G47: 0.01471302699 | H47: 0.8695549444 | I47: 0.02009385501 | J47: 0.02197428788 | K47: 6.132589765 | L47: =(SUM(H48:$H$49)*0.25*'17.1'!$C$10-(H47-$H$49)) -> -0.002418159989 | N47: 38 | BA47: 1 | BB47: 0.9998646899 | BC47: 0.9995231919
F48: 9.75 | G48: 0.01485715954 | H48: 0.8651457358 | I48: 0.02033419643 | J48: 0.02227364326 | K48: 6.228076464 | L48: =(SUM(H49:$H$49)*0.25*'17.1'!$C$10-(H48-$H$49)) -> -0.001231619302 | N48: 39 | BB48: 1 | BC48: 0.9998647772
F49: 10 | G49: 0.01499999966 | H49: 0.8607079793 | I49: 0.02057076456 | J49: 0.02256864657 | K49: 6.321205588 | L49: 0 | N49: 40 | BC49: 1
A50: Param1 | B50: =EXP(-MeanRvs*0.25) -> 0.975309912
A51: Param2 | B51: =SQRT((1-EXP(-2*MeanRvs*0.25))/(2*MeanRvs)) -> 0.4938146186

Sheet 17.1
B8: Inputs | G8: Spread | H8: PD | I8: DD (actual) | J8: DD (approx) | K8: EMTM | L8: EPE | M8: ENE | N8: Spot rate | O8: Running DF | P8: Swap MtM | Q8: 0 | R8: =Q8+1 -> 1 | S8: =R8+1 -> 2 | T8: 3 | U8: 4 | V8: 5 | W8: 6 | X8: 7 | Y8: 8 | Z8: 9 | AA8: 10 | AB8: 11 | AC8: 12 | AD8: 13 | AE8: 14 | AF8: 15 | AG8: 16 | AH8: 17 | AI8: 18 | AJ8: 19 | AK8: 20 | AL8: 21 | AM8: 22 | AN8: 23 | AO8: 24 | AP8: 25 | AQ8: 26 | AR8: 27 | AS8: 28 | AT8: 29 | AU8: 30 | AV8: 31 | AW8: 32 | AX8: 33 | AY8: 34 | AZ8: 35 | BA8: 36 | BB8: 37 | BC8: 38 | BD8: 39 | BE8: 40
B9: Simulations | C9: 10000 | E9: 0 | F9: 0 | G9: =Cubic_Spline(CDSTenors,CDSQuotes,F9) -> 0.0003280884557 | H9: 0 | K9: =SUM(Calibration!H10:H49)*0.25*SwapRate-1+Calibration!H49 -> 0.000239663758 | L9: =K9 -> 0.000239663758 | M9: =L9 -> 0.000239663758 | N9: =Calibration!G9 -> 0.007500000298 | O9: =1 -> 1
B10: Swap rate | C10: 0.0149 | E10: =E9+1 -> 1 | F10: =F9+0.25 -> 0.25 | G10: 0.0007100759369 | H10: =EXP(-G9*F9/LGD)-EXP(-G10*F10/LGD) -> 0.00029582121 | I10: =(EXP(-G9*F9/LGD)-EXP(-G10*F10/LGD))/$H$49 -> 0.001468213478 | J10: 0.0013 | K10: 0.001051122549 | L10: 0.01253035262 | M10: -0.01147923007 | N10: =IF(F9<Tau,N9*Param1+NORMSINV(RAND())*IRVol*Param2+Calibration!J10-Calibration!J9*Param1,NA()) -> 0.006458528805 | O10: =O9*EXP(-0.25*N10) -> 0.9983866706 | P10: =IF(AND(F9<Tau,F10>Tau),(-SUM(OFFSET(Q10,0,$E10+1,1,40-$E10))*0.25*SwapRate+(OFFSET(Q10,0,E10,1,1)-BE10))*O10,NA()) ->  | R10: =IF(AND(R$8>=$E10,$F9<=Tau,$F10>Tau),Calibration!P10*FEXP(-OFFSET(BFactors,R$8-$E10,0,1,1)*$N10),"") ->  | S10: =IF(AND(S$8>=$E10,$F9<=Tau,$F10>Tau),Calibration!Q10*FEXP(-OFFSET(BFactors,S$8-$E10,0,1,1)*$N10),"") ->  | T10: =IF(AND(T$8>=$E10,$F9<=Tau,$F10>Tau),Calibration!R10*FEXP(-OFFSET(BFactors,T$8-$E10,0,1,1)*$N10),"") ->  | U10: =IF(AND(U$8>=$E10,$F9<=Tau,$F10>Tau),Calibration!S10*FEXP(-OFFSET(BFactors,U$8-$E10,0,1,1)*$N10),"") ->  | V10: =IF(AND(V$8>=$E10,$F9<=Tau,$F10>Tau),Calibration!T10*FEXP(-OFFSET(BFactors,V$8-$E10,0,1,1)*$N10),"") ->  | W10: =IF(AND(W$8>=$E10,$F9<=Tau,$F10>Tau),Calibration!U10*FEXP(-OFFSET(BFactors,W$8-$E10,0,1,1)*$N10),"") ->  | X10: =IF(AND(X$8>=$E10,$F9<=Tau,$F10>Tau),Calibration!V10*FEXP(-OFFSET(BFactors,X$8-$E10,0,1,1)*$N10),"") ->  | Y10: =IF(AND(Y$8>=$E10,$F9<=Tau,$F10>Tau),Calibration!W10*FEXP(-OFFSET(BFactors,Y$8-$E10,0,1,1)*$N10),"") ->  | Z10: =IF(AND(Z$8>=$E10,$F9<=Tau,$F10>Tau),Calibration!X10*FEXP(-OFFSET(BFactors,Z$8-$E10,0,1,1)*$N10),"") ->  | AA10: =IF(AND(AA$8>=$E10,$F9<=Tau,$F10>Tau),Calibration!Y10*FEXP(-OFFSET(BFactors,AA$8-$E10,0,1,1)*$N10),"") ->  | AB10: =IF(AND(AB$8>=$E10,$F9<=Tau,$F10>Tau),Calibration!Z10*FEXP(-OFFSET(BFactors,AB$8-$E10,0,1,1)*$N10),"") ->  | AC10: =IF(AND(AC$8>=$E10,$F9<=Tau,$F10>Tau),Calibration!AA10*FEXP(-OFFSET(BFactors,AC$8-$E10,0,1,1)*$N10),"") ->  | AD10: =IF(AND(AD$8>=$E10,$F9<=Tau,$F10>Tau),Calibration!AB10*FEXP(-OFFSET(BFactors,AD$8-$E10,0,1,1)*$N10),"") ->  | AE10: =IF(AND(AE$8>=$E10,$F9<=Tau,$F10>Tau),Calibration!AC10*FEXP(-OFFSET(BFactors,AE$8-$E10,0,1,1)*$N10),"") ->  | AF10: =IF(AND(AF$8>=$E10,$F9<=Tau,$F10>Tau),Calibration!AD10*FEXP(-OFFSET(BFactors,AF$8-$E10,0,1,1)*$N10),"") ->  | AG10: =IF(AND(AG$8>=$E10,$F9<=Tau,$F10>Tau),Calibration!AE10*FEXP(-OFFSET(BFactors,AG$8-$E10,0,1,1)*$N10),"") ->  | AH10: =IF(AND(AH$8>=$E10,$F9<=Tau,$F10>Tau),Calibration!AF10*FEXP(-OFFSET(BFactors,AH$8-$E10,0,1,1)*$N10),"") ->  | AI10: =IF(AND(AI$8>=$E10,$F9<=Tau,$F10>Tau),Calibration!AG10*FEXP(-OFFSET(BFactors,AI$8-$E10,0,1,1)*$N10),"") ->  | AJ10: =IF(AND(AJ$8>=$E10,$F9<=Tau,$F10>Tau),Calibration!AH10*FEXP(-OFFSET(BFactors,AJ$8-$E10,0,1,1)*$N10),"") ->  | AK10: =IF(AND(AK$8>=$E10,$F9<=Tau,$F10>Tau),Calibration!AI10*FEXP(-OFFSET(BFactors,AK$8-$E10,0,1,1)*$N10),"") ->  | AL10: =IF(AND(AL$8>=$E10,$F9<=Tau,$F10>Tau),Calibration!AJ10*FEXP(-OFFSET(BFactors,AL$8-$E10,0,1,1)*$N10),"") ->  | AM10: =IF(AND(AM$8>=$E10,$F9<=Tau,$F10>Tau),Calibration!AK10*FEXP(-OFFSET(BFactors,AM$8-$E10,0,1,1)*$N10),"") ->  | AN10: =IF(AND(AN$8>=$E10,$F9<=Tau,$F10>Tau),Calibration!AL10*FEXP(-OFFSET(BFactors,AN$8-$E10,0,1,1)*$N10),"") ->  | AO10: =IF(AND(AO$8>=$E10,$F9<=Tau,$F10>Tau),Calibration!AM10*FEXP(-OFFSET(BFactors,AO$8-$E10,0,1,1)*$N10),"") ->  | AP10: =IF(AND(AP$8>=$E10,$F9<=Tau,$F10>Tau),Calibration!AN10*FEXP(-OFFSET(BFactors,AP$8-$E10,0,1,1)*$N10),"") ->  | AQ10: =IF(AND(AQ$8>=$E10,$F9<=Tau,$F10>Tau),Calibration!AO10*FEXP(-OFFSET(BFactors,AQ$8-$E10,0,1,1)*$N10),"") ->  | AR10: =IF(AND(AR$8>=$E10,$F9<=Tau,$F10>Tau),Calibration!AP10*FEXP(-OFFSET(BFactors,AR$8-$E10,0,1,1)*$N10),"") ->  | AS10: =IF(AND(AS$8>=$E10,$F9<=Tau,$F10>Tau),Calibration!AQ10*FEXP(-OFFSET(BFactors,AS$8-$E10,0,1,1)*$N10),"") ->  | AT10: =IF(AND(AT$8>=$E10,$F9<=Tau,$F10>Tau),Calibration!AR10*FEXP(-OFFSET(BFactors,AT$8-$E10,0,1,1)*$N10),"") ->  | AU10: =IF(AND(AU$8>=$E10,$F9<=Tau,$F10>Tau),Calibration!AS10*FEXP(-OFFSET(BFactors,AU$8-$E10,0,1,1)*$N10),"") ->  | AV10: =IF(AND(AV$8>=$E10,$F9<=Tau,$F10>Tau),Calibration!AT10*FEXP(-OFFSET(BFactors,AV$8-$E10,0,1,1)*$N10),"") ->  | AW10: =IF(AND(AW$8>=$E10,$F9<=Tau,$F10>Tau),Calibration!AU10*FEXP(-OFFSET(BFactors,AW$8-$E10,0,1,1)*$N10),"") ->  | AX10: =IF(AND(AX$8>=$E10,$F9<=Tau,$F10>Tau),Calibration!AV10*FEXP(-OFFSET(BFactors,AX$8-$E10,0,1,1)*$N10),"") ->  | AY10: =IF(AND(AY$8>=$E10,$F9<=Tau,$F10>Tau),Calibration!AW10*FEXP(-OFFSET(BFactors,AY$8-$E10,0,1,1)*$N10),"") ->  | AZ10: =IF(AND(AZ$8>=$E10,$F9<=Tau,$F10>Tau),Calibration!AX10*FEXP(-OFFSET(BFactors,AZ$8-$E10,0,1,1)*$N10),"") ->  | BA10: =IF(AND(BA$8>=$E10,$F9<=Tau,$F10>Tau),Calibration!AY10*FEXP(-OFFSET(BFactors,BA$8-$E10,0,1,1)*$N10),"") ->  | BB10: =IF(AND(BB$8>=$E10,$F9<=Tau,$F10>Tau),Calibration!AZ10*FEXP(-OFFSET(BFactors,BB$8-$E10,0,1,1)*$N10),"") ->  | BC10: =IF(AND(BC$8>=$E10,$F9<=Tau,$F10>Tau),Calibration!BA10*FEXP(-OFFSET(BFactors,BC$8-$E10,0,1,1)*$N10),"") ->  | BD10: =IF(AND(BD$8>=$E10,$F9<=Tau,$F10>Tau),Calibration!BB10*FEXP(-OFFSET(BFactors,BD$8-$E10,0,1,1)*$N10),"") ->  | BE10: =IF(AND(BE$8>=$E10,$F9<=Tau,$F10>Tau),Calibration!BC10*FEXP(-OFFSET(BFactors,BE$8-$E10,0,1,1)*$N10),"") -> 
E11: 2 | F11: 0.5 | G11: 0.001080055137 | H11: =EXP(-G10*F10/LGD)-EXP(-G11*F11/LGD)+H10 -> 0.0008996410278 | I11: 0.002996865555 | J11: 0.0028 | K11: 0.004777151134 | L11: 0.02012187384 | M11: -0.0153447227 | N11: =IF(F10<Tau,N10*Param1+NORMSINV(RAND())*IRVol*Param2+Calibration!J11-Calibration!J10*Param1,NA()) -> 0.01159097107 | O11: 0.9954977905 | S11: =IF(AND(S$8>=$E11,$F10<=Tau,$F11>Tau),Calibration!Q11*FEXP(-OFFSET(BFactors,S$8-$E11,0,1,1)*$N11),"") ->  | T11: =IF(AND(T$8>=$E11,$F10<=Tau,$F11>Tau),Calibration!R11*FEXP(-OFFSET(BFactors,T$8-$E11,0,1,1)*$N11),"") ->  | U11: =IF(AND(U$8>=$E11,$F10<=Tau,$F11>Tau),Calibration!S11*FEXP(-OFFSET(BFactors,U$8-$E11,0,1,1)*$N11),"") ->  | V11: =IF(AND(V$8>=$E11,$F10<=Tau,$F11>Tau),Calibration!T11*FEXP(-OFFSET(BFactors,V$8-$E11,0,1,1)*$N11),"") ->  | W11: =IF(AND(W$8>=$E11,$F10<=Tau,$F11>Tau),Calibration!U11*FEXP(-OFFSET(BFactors,W$8-$E11,0,1,1)*$N11),"") ->  | X11: =IF(AND(X$8>=$E11,$F10<=Tau,$F11>Tau),Calibration!V11*FEXP(-OFFSET(BFactors,X$8-$E11,0,1,1)*$N11),"") ->  | Y11: =IF(AND(Y$8>=$E11,$F10<=Tau,$F11>Tau),Calibration!W11*FEXP(-OFFSET(BFactors,Y$8-$E11,0,1,1)*$N11),"") ->  | Z11: =IF(AND(Z$8>=$E11,$F10<=Tau,$F11>Tau),Calibration!X11*FEXP(-OFFSET(BFactors,Z$8-$E11,0,1,1)*$N11),"") ->  | AA11: =IF(AND(AA$8>=$E11,$F10<=Tau,$F11>Tau),Calibration!Y11*FEXP(-OFFSET(BFactors,AA$8-$E11,0,1,1)*$N11),"") ->  | AB11: =IF(AND(AB$8>=$E11,$F10<=Tau,$F11>Tau),Calibration!Z11*FEXP(-OFFSET(BFactors,AB$8-$E11,0,1,1)*$N11),"") ->  | AC11: =IF(AND(AC$8>=$E11,$F10<=Tau,$F11>Tau),Calibration!AA11*FEXP(-OFFSET(BFactors,AC$8-$E11,0,1,1)*$N11),"") ->  | AD11: =IF(AND(AD$8>=$E11,$F10<=Tau,$F11>Tau),Calibration!AB11*FEXP(-OFFSET(BFactors,AD$8-$E11,0,1,1)*$N11),"") ->  | AE11: =IF(AND(AE$8>=$E11,$F10<=Tau,$F11>Tau),Calibration!AC11*FEXP(-OFFSET(BFactors,AE$8-$E11,0,1,1)*$N11),"") ->  | AF11: =IF(AND(AF$8>=$E11,$F10<=Tau,$F11>Tau),Calibration!AD11*FEXP(-OFFSET(BFactors,AF$8-$E11,0,1,1)*$N11),"") ->  | AG11: =IF(AND(AG$8>=$E11,$F10<=Tau,$F11>Tau),Calibration!AE11*FEXP(-OFFSET(BFactors,AG$8-$E11,0,1,1)*$N11),"") ->  | AH11: =IF(AND(AH$8>=$E11,$F10<=Tau,$F11>Tau),Calibration!AF11*FEXP(-OFFSET(BFactors,AH$8-$E11,0,1,1)*$N11),"") ->  | AI11: =IF(AND(AI$8>=$E11,$F10<=Tau,$F11>Tau),Calibration!AG11*FEXP(-OFFSET(BFactors,AI$8-$E11,0,1,1)*$N11),"") ->  | AJ11: =IF(AND(AJ$8>=$E11,$F10<=Tau,$F11>Tau),Calibration!AH11*FEXP(-OFFSET(BFactors,AJ$8-$E11,0,1,1)*$N11),"") ->  | AK11: =IF(AND(AK$8>=$E11,$F10<=Tau,$F11>Tau),Calibration!AI11*FEXP(-OFFSET(BFactors,AK$8-$E11,0,1,1)*$N11),"") ->  | AL11: =IF(AND(AL$8>=$E11,$F10<=Tau,$F11>Tau),Calibration!AJ11*FEXP(-OFFSET(BFactors,AL$8-$E11,0,1,1)*$N11),"") ->  | AM11: =IF(AND(AM$8>=$E11,$F10<=Tau,$F11>Tau),Calibration!AK11*FEXP(-OFFSET(BFactors,AM$8-$E11,0,1,1)*$N11),"") ->  | AN11: =IF(AND(AN$8>=$E11,$F10<=Tau,$F11>Tau),Calibration!AL11*FEXP(-OFFSET(BFactors,AN$8-$E11,0,1,1)*$N11),"") ->  | AO11: =IF(AND(AO$8>=$E11,$F10<=Tau,$F11>Tau),Calibration!AM11*FEXP(-OFFSET(BFactors,AO$8-$E11,0,1,1)*$N11),"") ->  | AP11: =IF(AND(AP$8>=$E11,$F10<=Tau,$F11>Tau),Calibration!AN11*FEXP(-OFFSET(BFactors,AP$8-$E11,0,1,1)*$N11),"") ->  | AQ11: =IF(AND(AQ$8>=$E11,$F10<=Tau,$F11>Tau),Calibration!AO11*FEXP(-OFFSET(BFactors,AQ$8-$E11,0,1,1)*$N11),"") ->  | AR11: =IF(AND(AR$8>=$E11,$F10<=Tau,$F11>Tau),Calibration!AP11*FEXP(-OFFSET(BFactors,AR$8-$E11,0,1,1)*$N11),"") ->  | AS11: =IF(AND(AS$8>=$E11,$F10<=Tau,$F11>Tau),Calibration!AQ11*FEXP(-OFFSET(BFactors,AS$8-$E11,0,1,1)*$N11),"") ->  | AT11: =IF(AND(AT$8>=$E11,$F10<=Tau,$F11>Tau),Calibration!AR11*FEXP(-OFFSET(BFactors,AT$8-$E11,0,1,1)*$N11),"") ->  | AU11: =IF(AND(AU$8>=$E11,$F10<=Tau,$F11>Tau),Calibration!AS11*FEXP(-OFFSET(BFactors,AU$8-$E11,0,1,1)*$N11),"") ->  | AV11: =IF(AND(AV$8>=$E11,$F10<=Tau,$F11>Tau),Calibration!AT11*FEXP(-OFFSET(BFactors,AV$8-$E11,0,1,1)*$N11),"") ->  | AW11: =IF(AND(AW$8>=$E11,$F10<=Tau,$F11>Tau),Calibration!AU11*FEXP(-OFFSET(BFactors,AW$8-$E11,0,1,1)*$N11),"") ->  | AX11: =IF(AND(AX$8>=$E11,$F10<=Tau,$F11>Tau),Calibration!AV11*FEXP(-OFFSET(BFactors,AX$8-$E11,0,1,1)*$N11),"") ->  | AY11: =IF(AND(AY$8>=$E11,$F10<=Tau,$F11>Tau),Calibration!AW11*FEXP(-OFFSET(BFactors,AY$8-$E11,0,1,1)*$N11),"") ->  | AZ11: =IF(AND(AZ$8>=$E11,$F10<=Tau,$F11>Tau),Calibration!AX11*FEXP(-OFFSET(BFactors,AZ$8-$E11,0,1,1)*$N11),"") ->  | BA11: =IF(AND(BA$8>=$E11,$F10<=Tau,$F11>Tau),Calibration!AY11*FEXP(-OFFSET(BFactors,BA$8-$E11,0,1,1)*$N11),"") ->  | BB11: =IF(AND(BB$8>=$E11,$F10<=Tau,$F11>Tau),Calibration!AZ11*FEXP(-OFFSET(BFactors,BB$8-$E11,0,1,1)*$N11),"") ->  | BC11: =IF(AND(BC$8>=$E11,$F10<=Tau,$F11>Tau),Calibration!BA11*FEXP(-OFFSET(BFactors,BC$8-$E11,0,1,1)*$N11),"") ->  | BD11: =IF(AND(BD$8>=$E11,$F10<=Tau,$F11>Tau),Calibration!BB11*FEXP(-OFFSET(BFactors,BD$8-$E11,0,1,1)*$N11),"") ->  | BE11: =IF(AND(BE$8>=$E11,$F10<=Tau,$F11>Tau),Calibration!BC11*FEXP(-OFFSET(BFactors,BE$8-$E11,0,1,1)*$N11),"") -> 
B12: Simulation | E12: 3 | F12: 0.75 | G12: 0.00144202905 | H12: 0.001800912719 | I12: 0.004473172307 | J12: 0.0043 | K12: 0.002076634292 | L12: 0.02334995968 | M12: -0.02127332538 | N12: =IF(F11<Tau,N11*Param1+NORMSINV(RAND())*IRVol*Param2+Calibration!J12-Calibration!J11*Param1,NA()) -> 0.01071814137 | O12: 0.9928338896 | T12: =IF(AND(T$8>=$E12,$F11<=Tau,$F12>Tau),Calibration!R12*FEXP(-OFFSET(BFactors,T$8-$E12,0,1,1)*$N12),"") ->  | U12: =IF(AND(U$8>=$E12,$F11<=Tau,$F12>Tau),Calibration!S12*FEXP(-OFFSET(BFactors,U$8-$E12,0,1,1)*$N12),"") ->  | V12: =IF(AND(V$8>=$E12,$F11<=Tau,$F12>Tau),Calibration!T12*FEXP(-OFFSET(BFactors,V$8-$E12,0,1,1)*$N12),"") ->  | W12: =IF(AND(W$8>=$E12,$F11<=Tau,$F12>Tau),Calibration!U12*FEXP(-OFFSET(BFactors,W$8-$E12,0,1,1)*$N12),"") ->  | X12: =IF(AND(X$8>=$E12,$F11<=Tau,$F12>Tau),Calibration!V12*FEXP(-OFFSET(BFactors,X$8-$E12,0,1,1)*$N12),"") ->  | Y12: =IF(AND(Y$8>=$E12,$F11<=Tau,$F12>Tau),Calibration!W12*FEXP(-OFFSET(BFactors,Y$8-$E12,0,1,1)*$N12),"") ->  | Z12: =IF(AND(Z$8>=$E12,$F11<=Tau,$F12>Tau),Calibration!X12*FEXP(-OFFSET(BFactors,Z$8-$E12,0,1,1)*$N12),"") ->  | AA12: =IF(AND(AA$8>=$E12,$F11<=Tau,$F12>Tau),Calibration!Y12*FEXP(-OFFSET(BFactors,AA$8-$E12,0,1,1)*$N12),"") ->  | AB12: =IF(AND(AB$8>=$E12,$F11<=Tau,$F12>Tau),Calibration!Z12*FEXP(-OFFSET(BFactors,AB$8-$E12,0,1,1)*$N12),"") ->  | AC12: =IF(AND(AC$8>=$E12,$F11<=Tau,$F12>Tau),Calibration!AA12*FEXP(-OFFSET(BFactors,AC$8-$E12,0,1,1)*$N12),"") ->  | AD12: =IF(AND(AD$8>=$E12,$F11<=Tau,$F12>Tau),Calibration!AB12*FEXP(-OFFSET(BFactors,AD$8-$E12,0,1,1)*$N12),"") ->  | AE12: =IF(AND(AE$8>=$E12,$F11<=Tau,$F12>Tau),Calibration!AC12*FEXP(-OFFSET(BFactors,AE$8-$E12,0,1,1)*$N12),"") ->  | AF12: =IF(AND(AF$8>=$E12,$F11<=Tau,$F12>Tau),Calibration!AD12*FEXP(-OFFSET(BFactors,AF$8-$E12,0,1,1)*$N12),"") ->  | AG12: =IF(AND(AG$8>=$E12,$F11<=Tau,$F12>Tau),Calibration!AE12*FEXP(-OFFSET(BFactors,AG$8-$E12,0,1,1)*$N12),"") ->  | AH12: =IF(AND(AH$8>=$E12,$F11<=Tau,$F12>Tau),Calibration!AF12*FEXP(-OFFSET(BFactors,AH$8-$E12,0,1,1)*$N12),"") ->  | AI12: =IF(AND(AI$8>=$E12,$F11<=Tau,$F12>Tau),Calibration!AG12*FEXP(-OFFSET(BFactors,AI$8-$E12,0,1,1)*$N12),"") ->  | AJ12: =IF(AND(AJ$8>=$E12,$F11<=Tau,$F12>Tau),Calibration!AH12*FEXP(-OFFSET(BFactors,AJ$8-$E12,0,1,1)*$N12),"") ->  | AK12: =IF(AND(AK$8>=$E12,$F11<=Tau,$F12>Tau),Calibration!AI12*FEXP(-OFFSET(BFactors,AK$8-$E12,0,1,1)*$N12),"") ->  | AL12: =IF(AND(AL$8>=$E12,$F11<=Tau,$F12>Tau),Calibration!AJ12*FEXP(-OFFSET(BFactors,AL$8-$E12,0,1,1)*$N12),"") ->  | AM12: =IF(AND(AM$8>=$E12,$F11<=Tau,$F12>Tau),Calibration!AK12*FEXP(-OFFSET(BFactors,AM$8-$E12,0,1,1)*$N12),"") ->  | AN12: =IF(AND(AN$8>=$E12,$F11<=Tau,$F12>Tau),Calibration!AL12*FEXP(-OFFSET(BFactors,AN$8-$E12,0,1,1)*$N12),"") ->  | AO12: =IF(AND(AO$8>=$E12,$F11<=Tau,$F12>Tau),Calibration!AM12*FEXP(-OFFSET(BFactors,AO$8-$E12,0,1,1)*$N12),"") ->  | AP12: =IF(AND(AP$8>=$E12,$F11<=Tau,$F12>Tau),Calibration!AN12*FEXP(-OFFSET(BFactors,AP$8-$E12,0,1,1)*$N12),"") ->  | AQ12: =IF(AND(AQ$8>=$E12,$F11<=Tau,$F12>Tau),Calibration!AO12*FEXP(-OFFSET(BFactors,AQ$8-$E12,0,1,1)*$N12),"") ->  | AR12: =IF(AND(AR$8>=$E12,$F11<=Tau,$F12>Tau),Calibration!AP12*FEXP(-OFFSET(BFactors,AR$8-$E12,0,1,1)*$N12),"") ->  | AS12: =IF(AND(AS$8>=$E12,$F11<=Tau,$F12>Tau),Calibration!AQ12*FEXP(-OFFSET(BFactors,AS$8-$E12,0,1,1)*$N12),"") ->  | AT12: =IF(AND(AT$8>=$E12,$F11<=Tau,$F12>Tau),Calibration!AR12*FEXP(-OFFSET(BFactors,AT$8-$E12,0,1,1)*$N12),"") ->  | AU12: =IF(AND(AU$8>=$E12,$F11<=Tau,$F12>Tau),Calibration!AS12*FEXP(-OFFSET(BFactors,AU$8-$E12,0,1,1)*$N12),"") ->  | AV12: =IF(AND(AV$8>=$E12,$F11<=Tau,$F12>Tau),Calibration!AT12*FEXP(-OFFSET(BFactors,AV$8-$E12,0,1,1)*$N12),"") ->  | AW12: =IF(AND(AW$8>=$E12,$F11<=Tau,$F12>Tau),Calibration!AU12*FEXP(-OFFSET(BFactors,AW$8-$E12,0,1,1)*$N12),"") ->  | AX12: =IF(AND(AX$8>=$E12,$F11<=Tau,$F12>Tau),Calibration!AV12*FEXP(-OFFSET(BFactors,AX$8-$E12,0,1,1)*$N12),"") ->  | AY12: =IF(AND(AY$8>=$E12,$F11<=Tau,$F12>Tau),Calibration!AW12*FEXP(-OFFSET(BFactors,AY$8-$E12,0,1,1)*$N12),"") ->  | AZ12: =IF(AND(AZ$8>=$E12,$F11<=Tau,$F12>Tau),Calibration!AX12*FEXP(-OFFSET(BFactors,AZ$8-$E12,0,1,1)*$N12),"") ->  | BA12: =IF(AND(BA$8>=$E12,$F11<=Tau,$F12>Tau),Calibration!AY12*FEXP(-OFFSET(BFactors,BA$8-$E12,0,1,1)*$N12),"") ->  | BB12: =IF(AND(BB$8>=$E12,$F11<=Tau,$F12>Tau),Calibration!AZ12*FEXP(-OFFSET(BFactors,BB$8-$E12,0,1,1)*$N12),"") ->  | BC12: =IF(AND(BC$8>=$E12,$F11<=Tau,$F12>Tau),Calibration!BA12*FEXP(-OFFSET(BFactors,BC$8-$E12,0,1,1)*$N12),"") ->  | BD12: =IF(AND(BD$8>=$E12,$F11<=Tau,$F12>Tau),Calibration!BB12*FEXP(-OFFSET(BFactors,BD$8-$E12,0,1,1)*$N12),"") ->  | BE12: =IF(AND(BE$8>=$E12,$F11<=Tau,$F12>Tau),Calibration!BC12*FEXP(-OFFSET(BFactors,BE$8-$E12,0,1,1)*$N12),"") -> 
B13: Rand | C13: =RAND() -> 0.5466853887 | E13: 4 | F13: 1 | G13: 0.001799999969 | H13: 0.002995504445 | I13: 0.005928972005 | J13: 0.0054 | K13: -0.004140453522 | L13: 0.02051392068 | M13: -0.02465437421 | N13: =IF(F12<Tau,N12*Param1+NORMSINV(RAND())*IRVol*Param2+Calibration!J13-Calibration!J12*Param1,NA()) -> 0.01294178044 | O13: 0.989626821 | U13: =IF(AND(U$8>=$E13,$F12<=Tau,$F13>Tau),Calibration!S13*FEXP(-OFFSET(BFactors,U$8-$E13,0,1,1)*$N13),"") ->  | V13: =IF(AND(V$8>=$E13,$F12<=Tau,$F13>Tau),Calibration!T13*FEXP(-OFFSET(BFactors,V$8-$E13,0,1,1)*$N13),"") ->  | W13: =IF(AND(W$8>=$E13,$F12<=Tau,$F13>Tau),Calibration!U13*FEXP(-OFFSET(BFactors,W$8-$E13,0,1,1)*$N13),"") ->  | X13: =IF(AND(X$8>=$E13,$F12<=Tau,$F13>Tau),Calibration!V13*FEXP(-OFFSET(BFactors,X$8-$E13,0,1,1)*$N13),"") ->  | Y13: =IF(AND(Y$8>=$E13,$F12<=Tau,$F13>Tau),Calibration!W13*FEXP(-OFFSET(BFactors,Y$8-$E13,0,1,1)*$N13),"") ->  | Z13: =IF(AND(Z$8>=$E13,$F12<=Tau,$F13>Tau),Calibration!X13*FEXP(-OFFSET(BFactors,Z$8-$E13,0,1,1)*$N13),"") ->  | AA13: =IF(AND(AA$8>=$E13,$F12<=Tau,$F13>Tau),Calibration!Y13*FEXP(-OFFSET(BFactors,AA$8-$E13,0,1,1)*$N13),"") ->  | AB13: =IF(AND(AB$8>=$E13,$F12<=Tau,$F13>Tau),Calibration!Z13*FEXP(-OFFSET(BFactors,AB$8-$E13,0,1,1)*$N13),"") ->  | AC13: =IF(AND(AC$8>=$E13,$F12<=Tau,$F13>Tau),Calibration!AA13*FEXP(-OFFSET(BFactors,AC$8-$E13,0,1,1)*$N13),"") ->  | AD13: =IF(AND(AD$8>=$E13,$F12<=Tau,$F13>Tau),Calibration!AB13*FEXP(-OFFSET(BFactors,AD$8-$E13,0,1,1)*$N13),"") ->  | AE13: =IF(AND(AE$8>=$E13,$F12<=Tau,$F13>Tau),Calibration!AC13*FEXP(-OFFSET(BFactors,AE$8-$E13,0,1,1)*$N13),"") ->  | AF13: =IF(AND(AF$8>=$E13,$F12<=Tau,$F13>Tau),Calibration!AD13*FEXP(-OFFSET(BFactors,AF$8-$E13,0,1,1)*$N13),"") ->  | AG13: =IF(AND(AG$8>=$E13,$F12<=Tau,$F13>Tau),Calibration!AE13*FEXP(-OFFSET(BFactors,AG$8-$E13,0,1,1)*$N13),"") ->  | AH13: =IF(AND(AH$8>=$E13,$F12<=Tau,$F13>Tau),Calibration!AF13*FEXP(-OFFSET(BFactors,AH$8-$E13,0,1,1)*$N13),"") ->  | AI13: =IF(AND(AI$8>=$E13,$F12<=Tau,$F13>Tau),Calibration!AG13*FEXP(-OFFSET(BFactors,AI$8-$E13,0,1,1)*$N13),"") ->  | AJ13: =IF(AND(AJ$8>=$E13,$F12<=Tau,$F13>Tau),Calibration!AH13*FEXP(-OFFSET(BFactors,AJ$8-$E13,0,1,1)*$N13),"") ->  | AK13: =IF(AND(AK$8>=$E13,$F12<=Tau,$F13>Tau),Calibration!AI13*FEXP(-OFFSET(BFactors,AK$8-$E13,0,1,1)*$N13),"") ->  | AL13: =IF(AND(AL$8>=$E13,$F12<=Tau,$F13>Tau),Calibration!AJ13*FEXP(-OFFSET(BFactors,AL$8-$E13,0,1,1)*$N13),"") ->  | AM13: =IF(AND(AM$8>=$E13,$F12<=Tau,$F13>Tau),Calibration!AK13*FEXP(-OFFSET(BFactors,AM$8-$E13,0,1,1)*$N13),"") ->  | AN13: =IF(AND(AN$8>=$E13,$F12<=Tau,$F13>Tau),Calibration!AL13*FEXP(-OFFSET(BFactors,AN$8-$E13,0,1,1)*$N13),"") ->  | AO13: =IF(AND(AO$8>=$E13,$F12<=Tau,$F13>Tau),Calibration!AM13*FEXP(-OFFSET(BFactors,AO$8-$E13,0,1,1)*$N13),"") ->  | AP13: =IF(AND(AP$8>=$E13,$F12<=Tau,$F13>Tau),Calibration!AN13*FEXP(-OFFSET(BFactors,AP$8-$E13,0,1,1)*$N13),"") ->  | AQ13: =IF(AND(AQ$8>=$E13,$F12<=Tau,$F13>Tau),Calibration!AO13*FEXP(-OFFSET(BFactors,AQ$8-$E13,0,1,1)*$N13),"") ->  | AR13: =IF(AND(AR$8>=$E13,$F12<=Tau,$F13>Tau),Calibration!AP13*FEXP(-OFFSET(BFactors,AR$8-$E13,0,1,1)*$N13),"") ->  | AS13: =IF(AND(AS$8>=$E13,$F12<=Tau,$F13>Tau),Calibration!AQ13*FEXP(-OFFSET(BFactors,AS$8-$E13,0,1,1)*$N13),"") ->  | AT13: =IF(AND(AT$8>=$E13,$F12<=Tau,$F13>Tau),Calibration!AR13*FEXP(-OFFSET(BFactors,AT$8-$E13,0,1,1)*$N13),"") ->  | AU13: =IF(AND(AU$8>=$E13,$F12<=Tau,$F13>Tau),Calibration!AS13*FEXP(-OFFSET(BFactors,AU$8-$E13,0,1,1)*$N13),"") ->  | AV13: =IF(AND(AV$8>=$E13,$F12<=Tau,$F13>Tau),Calibration!AT13*FEXP(-OFFSET(BFactors,AV$8-$E13,0,1,1)*$N13),"") ->  | AW13: =IF(AND(AW$8>=$E13,$F12<=Tau,$F13>Tau),Calibration!AU13*FEXP(-OFFSET(BFactors,AW$8-$E13,0,1,1)*$N13),"") ->  | AX13: =IF(AND(AX$8>=$E13,$F12<=Tau,$F13>Tau),Calibration!AV13*FEXP(-OFFSET(BFactors,AX$8-$E13,0,1,1)*$N13),"") ->  | AY13: =IF(AND(AY$8>=$E13,$F12<=Tau,$F13>Tau),Calibration!AW13*FEXP(-OFFSET(BFactors,AY$8-$E13,0,1,1)*$N13),"") ->  | AZ13: =IF(AND(AZ$8>=$E13,$F12<=Tau,$F13>Tau),Calibration!AX13*FEXP(-OFFSET(BFactors,AZ$8-$E13,0,1,1)*$N13),"") ->  | BA13: =IF(AND(BA$8>=$E13,$F12<=Tau,$F13>Tau),Calibration!AY13*FEXP(-OFFSET(BFactors,BA$8-$E13,0,1,1)*$N13),"") ->  | BB13: =IF(AND(BB$8>=$E13,$F12<=Tau,$F13>Tau),Calibration!AZ13*FEXP(-OFFSET(BFactors,BB$8-$E13,0,1,1)*$N13),"") ->  | BC13: =IF(AND(BC$8>=$E13,$F12<=Tau,$F13>Tau),Calibration!BA13*FEXP(-OFFSET(BFactors,BC$8-$E13,0,1,1)*$N13),"") ->  | BD13: =IF(AND(BD$8>=$E13,$F12<=Tau,$F13>Tau),Calibration!BB13*FEXP(-OFFSET(BFactors,BD$8-$E13,0,1,1)*$N13),"") ->  | BE13: =IF(AND(BE$8>=$E13,$F12<=Tau,$F13>Tau),Calibration!BC13*FEXP(-OFFSET(BFactors,BE$8-$E13,0,1,1)*$N13),"") -> 
B14: Adjusted Rand | C14: =C13*H49 -> 0.1101482418 | E14: 5 | F14: 1.25 | G14: 0.002157971005 | H14: 0.004485682067 | I14: 0.007396017578 | J14: 0.0079 | K14: 0.01220359799 | L14: 0.03159028488 | M14: -0.01938668689 | N14: =IF(F13<Tau,N13*Param1+NORMSINV(RAND())*IRVol*Param2+Calibration!J14-Calibration!J13*Param1,NA()) -> 0.01948716861 | O14: 0.9848172898 | V14: =IF(AND(V$8>=$E14,$F13<=Tau,$F14>Tau),Calibration!T14*FEXP(-OFFSET(BFactors,V$8-$E14,0,1,1)*$N14),"") ->  | W14: =IF(AND(W$8>=$E14,$F13<=Tau,$F14>Tau),Calibration!U14*FEXP(-OFFSET(BFactors,W$8-$E14,0,1,1)*$N14),"") ->  | X14: =IF(AND(X$8>=$E14,$F13<=Tau,$F14>Tau),Calibration!V14*FEXP(-OFFSET(BFactors,X$8-$E14,0,1,1)*$N14),"") ->  | Y14: =IF(AND(Y$8>=$E14,$F13<=Tau,$F14>Tau),Calibration!W14*FEXP(-OFFSET(BFactors,Y$8-$E14,0,1,1)*$N14),"") ->  | Z14: =IF(AND(Z$8>=$E14,$F13<=Tau,$F14>Tau),Calibration!X14*FEXP(-OFFSET(BFactors,Z$8-$E14,0,1,1)*$N14),"") ->  | AA14: =IF(AND(AA$8>=$E14,$F13<=Tau,$F14>Tau),Calibration!Y14*FEXP(-OFFSET(BFactors,AA$8-$E14,0,1,1)*$N14),"") ->  | AB14: =IF(AND(AB$8>=$E14,$F13<=Tau,$F14>Tau),Calibration!Z14*FEXP(-OFFSET(BFactors,AB$8-$E14,0,1,1)*$N14),"") ->  | AC14: =IF(AND(AC$8>=$E14,$F13<=Tau,$F14>Tau),Calibration!AA14*FEXP(-OFFSET(BFactors,AC$8-$E14,0,1,1)*$N14),"") ->  | AD14: =IF(AND(AD$8>=$E14,$F13<=Tau,$F14>Tau),Calibration!AB14*FEXP(-OFFSET(BFactors,AD$8-$E14,0,1,1)*$N14),"") ->  | AE14: =IF(AND(AE$8>=$E14,$F13<=Tau,$F14>Tau),Calibration!AC14*FEXP(-OFFSET(BFactors,AE$8-$E14,0,1,1)*$N14),"") ->  | AF14: =IF(AND(AF$8>=$E14,$F13<=Tau,$F14>Tau),Calibration!AD14*FEXP(-OFFSET(BFactors,AF$8-$E14,0,1,1)*$N14),"") ->  | AG14: =IF(AND(AG$8>=$E14,$F13<=Tau,$F14>Tau),Calibration!AE14*FEXP(-OFFSET(BFactors,AG$8-$E14,0,1,1)*$N14),"") ->  | AH14: =IF(AND(AH$8>=$E14,$F13<=Tau,$F14>Tau),Calibration!AF14*FEXP(-OFFSET(BFactors,AH$8-$E14,0,1,1)*$N14),"") ->  | AI14: =IF(AND(AI$8>=$E14,$F13<=Tau,$F14>Tau),Calibration!AG14*FEXP(-OFFSET(BFactors,AI$8-$E14,0,1,1)*$N14),"") ->  | AJ14: =IF(AND(AJ$8>=$E14,$F13<=Tau,$F14>Tau),Calibration!AH14*FEXP(-OFFSET(BFactors,AJ$8-$E14,0,1,1)*$N14),"") ->  | AK14: =IF(AND(AK$8>=$E14,$F13<=Tau,$F14>Tau),Calibration!AI14*FEXP(-OFFSET(BFactors,AK$8-$E14,0,1,1)*$N14),"") ->  | AL14: =IF(AND(AL$8>=$E14,$F13<=Tau,$F14>Tau),Calibration!AJ14*FEXP(-OFFSET(BFactors,AL$8-$E14,0,1,1)*$N14),"") ->  | AM14: =IF(AND(AM$8>=$E14,$F13<=Tau,$F14>Tau),Calibration!AK14*FEXP(-OFFSET(BFactors,AM$8-$E14,0,1,1)*$N14),"") ->  | AN14: =IF(AND(AN$8>=$E14,$F13<=Tau,$F14>Tau),Calibration!AL14*FEXP(-OFFSET(BFactors,AN$8-$E14,0,1,1)*$N14),"") ->  | AO14: =IF(AND(AO$8>=$E14,$F13<=Tau,$F14>Tau),Calibration!AM14*FEXP(-OFFSET(BFactors,AO$8-$E14,0,1,1)*$N14),"") ->  | AP14: =IF(AND(AP$8>=$E14,$F13<=Tau,$F14>Tau),Calibration!AN14*FEXP(-OFFSET(BFactors,AP$8-$E14,0,1,1)*$N14),"") ->  | AQ14: =IF(AND(AQ$8>=$E14,$F13<=Tau,$F14>Tau),Calibration!AO14*FEXP(-OFFSET(BFactors,AQ$8-$E14,0,1,1)*$N14),"") ->  | AR14: =IF(AND(AR$8>=$E14,$F13<=Tau,$F14>Tau),Calibration!AP14*FEXP(-OFFSET(BFactors,AR$8-$E14,0,1,1)*$N14),"") ->  | AS14: =IF(AND(AS$8>=$E14,$F13<=Tau,$F14>Tau),Calibration!AQ14*FEXP(-OFFSET(BFactors,AS$8-$E14,0,1,1)*$N14),"") ->  | AT14: =IF(AND(AT$8>=$E14,$F13<=Tau,$F14>Tau),Calibration!AR14*FEXP(-OFFSET(BFactors,AT$8-$E14,0,1,1)*$N14),"") ->  | AU14: =IF(AND(AU$8>=$E14,$F13<=Tau,$F14>Tau),Calibration!AS14*FEXP(-OFFSET(BFactors,AU$8-$E14,0,1,1)*$N14),"") ->  | AV14: =IF(AND(AV$8>=$E14,$F13<=Tau,$F14>Tau),Calibration!AT14*FEXP(-OFFSET(BFactors,AV$8-$E14,0,1,1)*$N14),"") ->  | AW14: =IF(AND(AW$8>=$E14,$F13<=Tau,$F14>Tau),Calibration!AU14*FEXP(-OFFSET(BFactors,AW$8-$E14,0,1,1)*$N14),"") ->  | AX14: =IF(AND(AX$8>=$E14,$F13<=Tau,$F14>Tau),Calibration!AV14*FEXP(-OFFSET(BFactors,AX$8-$E14,0,1,1)*$N14),"") ->  | AY14: =IF(AND(AY$8>=$E14,$F13<=Tau,$F14>Tau),Calibration!AW14*FEXP(-OFFSET(BFactors,AY$8-$E14,0,1,1)*$N14),"") ->  | AZ14: =IF(AND(AZ$8>=$E14,$F13<=Tau,$F14>Tau),Calibration!AX14*FEXP(-OFFSET(BFactors,AZ$8-$E14,0,1,1)*$N14),"") ->  | BA14: =IF(AND(BA$8>=$E14,$F13<=Tau,$F14>Tau),Calibration!AY14*FEXP(-OFFSET(BFactors,BA$8-$E14,0,1,1)*$N14),"") ->  | BB14: =IF(AND(BB$8>=$E14,$F13<=Tau,$F14>Tau),Calibration!AZ14*FEXP(-OFFSET(BFactors,BB$8-$E14,0,1,1)*$N14),"") ->  | BC14: =IF(AND(BC$8>=$E14,$F13<=Tau,$F14>Tau),Calibration!BA14*FEXP(-OFFSET(BFactors,BC$8-$E14,0,1,1)*$N14),"") ->  | BD14: =IF(AND(BD$8>=$E14,$F13<=Tau,$F14>Tau),Calibration!BB14*FEXP(-OFFSET(BFactors,BD$8-$E14,0,1,1)*$N14),"") ->  | BE14: =IF(AND(BE$8>=$E14,$F13<=Tau,$F14>Tau),Calibration!BC14*FEXP(-OFFSET(BFactors,BE$8-$E14,0,1,1)*$N14),"") -> 
B15: Default time | C15: =Linterp(H9:H49,F9:F49,C14) -> 6.259844717 | E15: 6 | F15: 1.5 | G15: 0.002519944801 | H15: 0.006280059478 | I15: 0.008905815436 | J15: 0.0084 | K15: 0.003897411302 | L15: 0.02289292112 | M15: -0.01899550982 | N15: =IF(F14<Tau,N14*Param1+NORMSINV(RAND())*IRVol*Param2+Calibration!J15-Calibration!J14*Param1,NA()) -> 0.01969473087 | O15: 0.9799802797 | W15: =IF(AND(W$8>=$E15,$F14<=Tau,$F15>Tau),Calibration!U15*FEXP(-OFFSET(BFactors,W$8-$E15,0,1,1)*$N15),"") ->  | X15: =IF(AND(X$8>=$E15,$F14<=Tau,$F15>Tau),Calibration!V15*FEXP(-OFFSET(BFactors,X$8-$E15,0,1,1)*$N15),"") ->  | Y15: =IF(AND(Y$8>=$E15,$F14<=Tau,$F15>Tau),Calibration!W15*FEXP(-OFFSET(BFactors,Y$8-$E15,0,1,1)*$N15),"") ->  | Z15: =IF(AND(Z$8>=$E15,$F14<=Tau,$F15>Tau),Calibration!X15*FEXP(-OFFSET(BFactors,Z$8-$E15,0,1,1)*$N15),"") ->  | AA15: =IF(AND(AA$8>=$E15,$F14<=Tau,$F15>Tau),Calibration!Y15*FEXP(-OFFSET(BFactors,AA$8-$E15,0,1,1)*$N15),"") ->  | AB15: =IF(AND(AB$8>=$E15,$F14<=Tau,$F15>Tau),Calibration!Z15*FEXP(-OFFSET(BFactors,AB$8-$E15,0,1,1)*$N15),"") ->  | AC15: =IF(AND(AC$8>=$E15,$F14<=Tau,$F15>Tau),Calibration!AA15*FEXP(-OFFSET(BFactors,AC$8-$E15,0,1,1)*$N15),"") ->  | AD15: =IF(AND(AD$8>=$E15,$F14<=Tau,$F15>Tau),Calibration!AB15*FEXP(-OFFSET(BFactors,AD$8-$E15,0,1,1)*$N15),"") ->  | AE15: =IF(AND(AE$8>=$E15,$F14<=Tau,$F15>Tau),Calibration!AC15*FEXP(-OFFSET(BFactors,AE$8-$E15,0,1,1)*$N15),"") ->  | AF15: =IF(AND(AF$8>=$E15,$F14<=Tau,$F15>Tau),Calibration!AD15*FEXP(-OFFSET(BFactors,AF$8-$E15,0,1,1)*$N15),"") ->  | AG15: =IF(AND(AG$8>=$E15,$F14<=Tau,$F15>Tau),Calibration!AE15*FEXP(-OFFSET(BFactors,AG$8-$E15,0,1,1)*$N15),"") ->  | AH15: =IF(AND(AH$8>=$E15,$F14<=Tau,$F15>Tau),Calibration!AF15*FEXP(-OFFSET(BFactors,AH$8-$E15,0,1,1)*$N15),"") ->  | AI15: =IF(AND(AI$8>=$E15,$F14<=Tau,$F15>Tau),Calibration!AG15*FEXP(-OFFSET(BFactors,AI$8-$E15,0,1,1)*$N15),"") ->  | AJ15: =IF(AND(AJ$8>=$E15,$F14<=Tau,$F15>Tau),Calibration!AH15*FEXP(-OFFSET(BFactors,AJ$8-$E15,0,1,1)*$N15),"") ->  | AK15: =IF(AND(AK$8>=$E15,$F14<=Tau,$F15>Tau),Calibration!AI15*FEXP(-OFFSET(BFactors,AK$8-$E15,0,1,1)*$N15),"") ->  | AL15: =IF(AND(AL$8>=$E15,$F14<=Tau,$F15>Tau),Calibration!AJ15*FEXP(-OFFSET(BFactors,AL$8-$E15,0,1,1)*$N15),"") ->  | AM15: =IF(AND(AM$8>=$E15,$F14<=Tau,$F15>Tau),Calibration!AK15*FEXP(-OFFSET(BFactors,AM$8-$E15,0,1,1)*$N15),"") ->  | AN15: =IF(AND(AN$8>=$E15,$F14<=Tau,$F15>Tau),Calibration!AL15*FEXP(-OFFSET(BFactors,AN$8-$E15,0,1,1)*$N15),"") ->  | AO15: =IF(AND(AO$8>=$E15,$F14<=Tau,$F15>Tau),Calibration!AM15*FEXP(-OFFSET(BFactors,AO$8-$E15,0,1,1)*$N15),"") ->  | AP15: =IF(AND(AP$8>=$E15,$F14<=Tau,$F15>Tau),Calibration!AN15*FEXP(-OFFSET(BFactors,AP$8-$E15,0,1,1)*$N15),"") ->  | AQ15: =IF(AND(AQ$8>=$E15,$F14<=Tau,$F15>Tau),Calibration!AO15*FEXP(-OFFSET(BFactors,AQ$8-$E15,0,1,1)*$N15),"") ->  | AR15: =IF(AND(AR$8>=$E15,$F14<=Tau,$F15>Tau),Calibration!AP15*FEXP(-OFFSET(BFactors,AR$8-$E15,0,1,1)*$N15),"") ->  | AS15: =IF(AND(AS$8>=$E15,$F14<=Tau,$F15>Tau),Calibration!AQ15*FEXP(-OFFSET(BFactors,AS$8-$E15,0,1,1)*$N15),"") ->  | AT15: =IF(AND(AT$8>=$E15,$F14<=Tau,$F15>Tau),Calibration!AR15*FEXP(-OFFSET(BFactors,AT$8-$E15,0,1,1)*$N15),"") ->  | AU15: =IF(AND(AU$8>=$E15,$F14<=Tau,$F15>Tau),Calibration!AS15*FEXP(-OFFSET(BFactors,AU$8-$E15,0,1,1)*$N15),"") ->  | AV15: =IF(AND(AV$8>=$E15,$F14<=Tau,$F15>Tau),Calibration!AT15*FEXP(-OFFSET(BFactors,AV$8-$E15,0,1,1)*$N15),"") ->  | AW15: =IF(AND(AW$8>=$E15,$F14<=Tau,$F15>Tau),Calibration!AU15*FEXP(-OFFSET(BFactors,AW$8-$E15,0,1,1)*$N15),"") ->  | AX15: =IF(AND(AX$8>=$E15,$F14<=Tau,$F15>Tau),Calibration!AV15*FEXP(-OFFSET(BFactors,AX$8-$E15,0,1,1)*$N15),"") ->  | AY15: =IF(AND(AY$8>=$E15,$F14<=Tau,$F15>Tau),Calibration!AW15*FEXP(-OFFSET(BFactors,AY$8-$E15,0,1,1)*$N15),"") ->  | AZ15: =IF(AND(AZ$8>=$E15,$F14<=Tau,$F15>Tau),Calibration!AX15*FEXP(-OFFSET(BFactors,AZ$8-$E15,0,1,1)*$N15),"") ->  | BA15: =IF(AND(BA$8>=$E15,$F14<=Tau,$F15>Tau),Calibration!AY15*FEXP(-OFFSET(BFactors,BA$8-$E15,0,1,1)*$N15),"") ->  | BB15: =IF(AND(BB$8>=$E15,$F14<=Tau,$F15>Tau),Calibration!AZ15*FEXP(-OFFSET(BFactors,BB$8-$E15,0,1,1)*$N15),"") ->  | BC15: =IF(AND(BC$8>=$E15,$F14<=Tau,$F15>Tau),Calibration!BA15*FEXP(-OFFSET(BFactors,BC$8-$E15,0,1,1)*$N15),"") ->  | BD15: =IF(AND(BD$8>=$E15,$F14<=Tau,$F15>Tau),Calibration!BB15*FEXP(-OFFSET(BFactors,BD$8-$E15,0,1,1)*$N15),"") ->  | BE15: =IF(AND(BE$8>=$E15,$F14<=Tau,$F15>Tau),Calibration!BC15*FEXP(-OFFSET(BFactors,BE$8-$E15,0,1,1)*$N15),"") -> 
B16: Length | C16: =INT(Tau*4)+1 -> 26 | E16: 7 | F16: 1.75 | G16: 0.002889924001 | H16: 0.008393521045 | I16: 0.01048948707 | J16: 0.0106 | K16: 0.008279311222 | L16: 0.0292174847 | M16: -0.02093817347 | N16: =IF(F15<Tau,N15*Param1+NORMSINV(RAND())*IRVol*Param2+Calibration!J16-Calibration!J15*Param1,NA()) -> 0.02048457186 | O16: 0.9749744892 | X16: =IF(AND(X$8>=$E16,$F15<=Tau,$F16>Tau),Calibration!V16*FEXP(-OFFSET(BFactors,X$8-$E16,0,1,1)*$N16),"") ->  | Y16: =IF(AND(Y$8>=$E16,$F15<=Tau,$F16>Tau),Calibration!W16*FEXP(-OFFSET(BFactors,Y$8-$E16,0,1,1)*$N16),"") ->  | Z16: =IF(AND(Z$8>=$E16,$F15<=Tau,$F16>Tau),Calibration!X16*FEXP(-OFFSET(BFactors,Z$8-$E16,0,1,1)*$N16),"") ->  | AA16: =IF(AND(AA$8>=$E16,$F15<=Tau,$F16>Tau),Calibration!Y16*FEXP(-OFFSET(BFactors,AA$8-$E16,0,1,1)*$N16),"") ->  | AB16: =IF(AND(AB$8>=$E16,$F15<=Tau,$F16>Tau),Calibration!Z16*FEXP(-OFFSET(BFactors,AB$8-$E16,0,1,1)*$N16),"") ->  | AC16: =IF(AND(AC$8>=$E16,$F15<=Tau,$F16>Tau),Calibration!AA16*FEXP(-OFFSET(BFactors,AC$8-$E16,0,1,1)*$N16),"") ->  | AD16: =IF(AND(AD$8>=$E16,$F15<=Tau,$F16>Tau),Calibration!AB16*FEXP(-OFFSET(BFactors,AD$8-$E16,0,1,1)*$N16),"") ->  | AE16: =IF(AND(AE$8>=$E16,$F15<=Tau,$F16>Tau),Calibration!AC16*FEXP(-OFFSET(BFactors,AE$8-$E16,0,1,1)*$N16),"") ->  | AF16: =IF(AND(AF$8>=$E16,$F15<=Tau,$F16>Tau),Calibration!AD16*FEXP(-OFFSET(BFactors,AF$8-$E16,0,1,1)*$N16),"") ->  | AG16: =IF(AND(AG$8>=$E16,$F15<=Tau,$F16>Tau),Calibration!AE16*FEXP(-OFFSET(BFactors,AG$8-$E16,0,1,1)*$N16),"") ->  | AH16: =IF(AND(AH$8>=$E16,$F15<=Tau,$F16>Tau),Calibration!AF16*FEXP(-OFFSET(BFactors,AH$8-$E16,0,1,1)*$N16),"") ->  | AI16: =IF(AND(AI$8>=$E16,$F15<=Tau,$F16>Tau),Calibration!AG16*FEXP(-OFFSET(BFactors,AI$8-$E16,0,1,1)*$N16),"") ->  | AJ16: =IF(AND(AJ$8>=$E16,$F15<=Tau,$F16>Tau),Calibration!AH16*FEXP(-OFFSET(BFactors,AJ$8-$E16,0,1,1)*$N16),"") ->  | AK16: =IF(AND(AK$8>=$E16,$F15<=Tau,$F16>Tau),Calibration!AI16*FEXP(-OFFSET(BFactors,AK$8-$E16,0,1,1)*$N16),"") ->  | AL16: =IF(AND(AL$8>=$E16,$F15<=Tau,$F16>Tau),Calibration!AJ16*FEXP(-OFFSET(BFactors,AL$8-$E16,0,1,1)*$N16),"") ->  | AM16: =IF(AND(AM$8>=$E16,$F15<=Tau,$F16>Tau),Calibration!AK16*FEXP(-OFFSET(BFactors,AM$8-$E16,0,1,1)*$N16),"") ->  | AN16: =IF(AND(AN$8>=$E16,$F15<=Tau,$F16>Tau),Calibration!AL16*FEXP(-OFFSET(BFactors,AN$8-$E16,0,1,1)*$N16),"") ->  | AO16: =IF(AND(AO$8>=$E16,$F15<=Tau,$F16>Tau),Calibration!AM16*FEXP(-OFFSET(BFactors,AO$8-$E16,0,1,1)*$N16),"") ->  | AP16: =IF(AND(AP$8>=$E16,$F15<=Tau,$F16>Tau),Calibration!AN16*FEXP(-OFFSET(BFactors,AP$8-$E16,0,1,1)*$N16),"") ->  | AQ16: =IF(AND(AQ$8>=$E16,$F15<=Tau,$F16>Tau),Calibration!AO16*FEXP(-OFFSET(BFactors,AQ$8-$E16,0,1,1)*$N16),"") ->  | AR16: =IF(AND(AR$8>=$E16,$F15<=Tau,$F16>Tau),Calibration!AP16*FEXP(-OFFSET(BFactors,AR$8-$E16,0,1,1)*$N16),"") ->  | AS16: =IF(AND(AS$8>=$E16,$F15<=Tau,$F16>Tau),Calibration!AQ16*FEXP(-OFFSET(BFactors,AS$8-$E16,0,1,1)*$N16),"") ->  | AT16: =IF(AND(AT$8>=$E16,$F15<=Tau,$F16>Tau),Calibration!AR16*FEXP(-OFFSET(BFactors,AT$8-$E16,0,1,1)*$N16),"") ->  | AU16: =IF(AND(AU$8>=$E16,$F15<=Tau,$F16>Tau),Calibration!AS16*FEXP(-OFFSET(BFactors,AU$8-$E16,0,1,1)*$N16),"") ->  | AV16: =IF(AND(AV$8>=$E16,$F15<=Tau,$F16>Tau),Calibration!AT16*FEXP(-OFFSET(BFactors,AV$8-$E16,0,1,1)*$N16),"") ->  | AW16: =IF(AND(AW$8>=$E16,$F15<=Tau,$F16>Tau),Calibration!AU16*FEXP(-OFFSET(BFactors,AW$8-$E16,0,1,1)*$N16),"") ->  | AX16: =IF(AND(AX$8>=$E16,$F15<=Tau,$F16>Tau),Calibration!AV16*FEXP(-OFFSET(BFactors,AX$8-$E16,0,1,1)*$N16),"") ->  | AY16: =IF(AND(AY$8>=$E16,$F15<=Tau,$F16>Tau),Calibration!AW16*FEXP(-OFFSET(BFactors,AY$8-$E16,0,1,1)*$N16),"") ->  | AZ16: =IF(AND(AZ$8>=$E16,$F15<=Tau,$F16>Tau),Calibration!AX16*FEXP(-OFFSET(BFactors,AZ$8-$E16,0,1,1)*$N16),"") ->  | BA16: =IF(AND(BA$8>=$E16,$F15<=Tau,$F16>Tau),Calibration!AY16*FEXP(-OFFSET(BFactors,BA$8-$E16,0,1,1)*$N16),"") ->  | BB16: =IF(AND(BB$8>=$E16,$F15<=Tau,$F16>Tau),Calibration!AZ16*FEXP(-OFFSET(BFactors,BB$8-$E16,0,1,1)*$N16),"") ->  | BC16: =IF(AND(BC$8>=$E16,$F15<=Tau,$F16>Tau),Calibration!BA16*FEXP(-OFFSET(BFactors,BC$8-$E16,0,1,1)*$N16),"") ->  | BD16: =IF(AND(BD$8>=$E16,$F15<=Tau,$F16>Tau),Calibration!BB16*FEXP(-OFFSET(BFactors,BD$8-$E16,0,1,1)*$N16),"") ->  | BE16: =IF(AND(BE$8>=$E16,$F15<=Tau,$F16>Tau),Calibration!BC16*FEXP(-OFFSET(BFactors,BE$8-$E16,0,1,1)*$N16),"") -> 
B17: EAD | C17: =OFFSET(P9,C16,0,1,1) -> 0.0003020138421 | E17: 8 | F17: 2 | G17: 0.003271911599 | H17: 0.01084711315 | I17: 0.01217761565 | J17: 0.0098 | K17: 0.01082050777 | L17: 0.03169281471 | M17: -0.02087230694 | N17: =IF(F16<Tau,N16*Param1+NORMSINV(RAND())*IRVol*Param2+Calibration!J17-Calibration!J16*Param1,NA()) -> 0.02924076563 | O17: 0.9678732265 | Y17: =IF(AND(Y$8>=$E17,$F16<=Tau,$F17>Tau),Calibration!W17*FEXP(-OFFSET(BFactors,Y$8-$E17,0,1,1)*$N17),"") ->  | Z17: =IF(AND(Z$8>=$E17,$F16<=Tau,$F17>Tau),Calibration!X17*FEXP(-OFFSET(BFactors,Z$8-$E17,0,1,1)*$N17),"") ->  | AA17: =IF(AND(AA$8>=$E17,$F16<=Tau,$F17>Tau),Calibration!Y17*FEXP(-OFFSET(BFactors,AA$8-$E17,0,1,1)*$N17),"") ->  | AB17: =IF(AND(AB$8>=$E17,$F16<=Tau,$F17>Tau),Calibration!Z17*FEXP(-OFFSET(BFactors,AB$8-$E17,0,1,1)*$N17),"") ->  | AC17: =IF(AND(AC$8>=$E17,$F16<=Tau,$F17>Tau),Calibration!AA17*FEXP(-OFFSET(BFactors,AC$8-$E17,0,1,1)*$N17),"") ->  | AD17: =IF(AND(AD$8>=$E17,$F16<=Tau,$F17>Tau),Calibration!AB17*FEXP(-OFFSET(BFactors,AD$8-$E17,0,1,1)*$N17),"") ->  | AE17: =IF(AND(AE$8>=$E17,$F16<=Tau,$F17>Tau),Calibration!AC17*FEXP(-OFFSET(BFactors,AE$8-$E17,0,1,1)*$N17),"") ->  | AF17: =IF(AND(AF$8>=$E17,$F16<=Tau,$F17>Tau),Calibration!AD17*FEXP(-OFFSET(BFactors,AF$8-$E17,0,1,1)*$N17),"") ->  | AG17: =IF(AND(AG$8>=$E17,$F16<=Tau,$F17>Tau),Calibration!AE17*FEXP(-OFFSET(BFactors,AG$8-$E17,0,1,1)*$N17),"") ->  | AH17: =IF(AND(AH$8>=$E17,$F16<=Tau,$F17>Tau),Calibration!AF17*FEXP(-OFFSET(BFactors,AH$8-$E17,0,1,1)*$N17),"") ->  | AI17: =IF(AND(AI$8>=$E17,$F16<=Tau,$F17>Tau),Calibration!AG17*FEXP(-OFFSET(BFactors,AI$8-$E17,0,1,1)*$N17),"") ->  | AJ17: =IF(AND(AJ$8>=$E17,$F16<=Tau,$F17>Tau),Calibration!AH17*FEXP(-OFFSET(BFactors,AJ$8-$E17,0,1,1)*$N17),"") ->  | AK17: =IF(AND(AK$8>=$E17,$F16<=Tau,$F17>Tau),Calibration!AI17*FEXP(-OFFSET(BFactors,AK$8-$E17,0,1,1)*$N17),"") ->  | AL17: =IF(AND(AL$8>=$E17,$F16<=Tau,$F17>Tau),Calibration!AJ17*FEXP(-OFFSET(BFactors,AL$8-$E17,0,1,1)*$N17),"") ->  | AM17: =IF(AND(AM$8>=$E17,$F16<=Tau,$F17>Tau),Calibration!AK17*FEXP(-OFFSET(BFactors,AM$8-$E17,0,1,1)*$N17),"") ->  | AN17: =IF(AND(AN$8>=$E17,$F16<=Tau,$F17>Tau),Calibration!AL17*FEXP(-OFFSET(BFactors,AN$8-$E17,0,1,1)*$N17),"") ->  | AO17: =IF(AND(AO$8>=$E17,$F16<=Tau,$F17>Tau),Calibration!AM17*FEXP(-OFFSET(BFactors,AO$8-$E17,0,1,1)*$N17),"") ->  | AP17: =IF(AND(AP$8>=$E17,$F16<=Tau,$F17>Tau),Calibration!AN17*FEXP(-OFFSET(BFactors,AP$8-$E17,0,1,1)*$N17),"") ->  | AQ17: =IF(AND(AQ$8>=$E17,$F16<=Tau,$F17>Tau),Calibration!AO17*FEXP(-OFFSET(BFactors,AQ$8-$E17,0,1,1)*$N17),"") ->  | AR17: =IF(AND(AR$8>=$E17,$F16<=Tau,$F17>Tau),Calibration!AP17*FEXP(-OFFSET(BFactors,AR$8-$E17,0,1,1)*$N17),"") ->  | AS17: =IF(AND(AS$8>=$E17,$F16<=Tau,$F17>Tau),Calibration!AQ17*FEXP(-OFFSET(BFactors,AS$8-$E17,0,1,1)*$N17),"") ->  | AT17: =IF(AND(AT$8>=$E17,$F16<=Tau,$F17>Tau),Calibration!AR17*FEXP(-OFFSET(BFactors,AT$8-$E17,0,1,1)*$N17),"") ->  | AU17: =IF(AND(AU$8>=$E17,$F16<=Tau,$F17>Tau),Calibration!AS17*FEXP(-OFFSET(BFactors,AU$8-$E17,0,1,1)*$N17),"") ->  | AV17: =IF(AND(AV$8>=$E17,$F16<=Tau,$F17>Tau),Calibration!AT17*FEXP(-OFFSET(BFactors,AV$8-$E17,0,1,1)*$N17),"") ->  | AW17: =IF(AND(AW$8>=$E17,$F16<=Tau,$F17>Tau),Calibration!AU17*FEXP(-OFFSET(BFactors,AW$8-$E17,0,1,1)*$N17),"") ->  | AX17: =IF(AND(AX$8>=$E17,$F16<=Tau,$F17>Tau),Calibration!AV17*FEXP(-OFFSET(BFactors,AX$8-$E17,0,1,1)*$N17),"") ->  | AY17: =IF(AND(AY$8>=$E17,$F16<=Tau,$F17>Tau),Calibration!AW17*FEXP(-OFFSET(BFactors,AY$8-$E17,0,1,1)*$N17),"") ->  | AZ17: =IF(AND(AZ$8>=$E17,$F16<=Tau,$F17>Tau),Calibration!AX17*FEXP(-OFFSET(BFactors,AZ$8-$E17,0,1,1)*$N17),"") ->  | BA17: =IF(AND(BA$8>=$E17,$F16<=Tau,$F17>Tau),Calibration!AY17*FEXP(-OFFSET(BFactors,BA$8-$E17,0,1,1)*$N17),"") ->  | BB17: =IF(AND(BB$8>=$E17,$F16<=Tau,$F17>Tau),Calibration!AZ17*FEXP(-OFFSET(BFactors,BB$8-$E17,0,1,1)*$N17),"") ->  | BC17: =IF(AND(BC$8>=$E17,$F16<=Tau,$F17>Tau),Calibration!BA17*FEXP(-OFFSET(BFactors,BC$8-$E17,0,1,1)*$N17),"") ->  | BD17: =IF(AND(BD$8>=$E17,$F16<=Tau,$F17>Tau),Calibration!BB17*FEXP(-OFFSET(BFactors,BD$8-$E17,0,1,1)*$N17),"") ->  | BE17: =IF(AND(BE$8>=$E17,$F16<=Tau,$F17>Tau),Calibration!BC17*FEXP(-OFFSET(BFactors,BE$8-$E17,0,1,1)*$N17),"") -> 
B18: CVA contrib | C18: =-C17*LGD*10000*H49 -> -0.3651053538 | E18: 9 | F18: 2.25 | G18: 0.003669910238 | H18: 0.01366789775 | I18: 0.01400005756 | J18: 0.0127 | K18: 0.01070076591 | L18: 0.0318692995 | M18: -0.0211685336 | N18: =IF(F17<Tau,N17*Param1+NORMSINV(RAND())*IRVol*Param2+Calibration!J18-Calibration!J17*Param1,NA()) -> 0.02704084096 | O18: 0.9613522663 | Z18: =IF(AND(Z$8>=$E18,$F17<=Tau,$F18>Tau),Calibration!X18*FEXP(-OFFSET(BFactors,Z$8-$E18,0,1,1)*$N18),"") ->  | AA18: =IF(AND(AA$8>=$E18,$F17<=Tau,$F18>Tau),Calibration!Y18*FEXP(-OFFSET(BFactors,AA$8-$E18,0,1,1)*$N18),"") ->  | AB18: =IF(AND(AB$8>=$E18,$F17<=Tau,$F18>Tau),Calibration!Z18*FEXP(-OFFSET(BFactors,AB$8-$E18,0,1,1)*$N18),"") ->  | AC18: =IF(AND(AC$8>=$E18,$F17<=Tau,$F18>Tau),Calibration!AA18*FEXP(-OFFSET(BFactors,AC$8-$E18,0,1,1)*$N18),"") ->  | AD18: =IF(AND(AD$8>=$E18,$F17<=Tau,$F18>Tau),Calibration!AB18*FEXP(-OFFSET(BFactors,AD$8-$E18,0,1,1)*$N18),"") ->  | AE18: =IF(AND(AE$8>=$E18,$F17<=Tau,$F18>Tau),Calibration!AC18*FEXP(-OFFSET(BFactors,AE$8-$E18,0,1,1)*$N18),"") ->  | AF18: =IF(AND(AF$8>=$E18,$F17<=Tau,$F18>Tau),Calibration!AD18*FEXP(-OFFSET(BFactors,AF$8-$E18,0,1,1)*$N18),"") ->  | AG18: =IF(AND(AG$8>=$E18,$F17<=Tau,$F18>Tau),Calibration!AE18*FEXP(-OFFSET(BFactors,AG$8-$E18,0,1,1)*$N18),"") ->  | AH18: =IF(AND(AH$8>=$E18,$F17<=Tau,$F18>Tau),Calibration!AF18*FEXP(-OFFSET(BFactors,AH$8-$E18,0,1,1)*$N18),"") ->  | AI18: =IF(AND(AI$8>=$E18,$F17<=Tau,$F18>Tau),Calibration!AG18*FEXP(-OFFSET(BFactors,AI$8-$E18,0,1,1)*$N18),"") ->  | AJ18: =IF(AND(AJ$8>=$E18,$F17<=Tau,$F18>Tau),Calibration!AH18*FEXP(-OFFSET(BFactors,AJ$8-$E18,0,1,1)*$N18),"") ->  | AK18: =IF(AND(AK$8>=$E18,$F17<=Tau,$F18>Tau),Calibration!AI18*FEXP(-OFFSET(BFactors,AK$8-$E18,0,1,1)*$N18),"") ->  | AL18: =IF(AND(AL$8>=$E18,$F17<=Tau,$F18>Tau),Calibration!AJ18*FEXP(-OFFSET(BFactors,AL$8-$E18,0,1,1)*$N18),"") ->  | AM18: =IF(AND(AM$8>=$E18,$F17<=Tau,$F18>Tau),Calibration!AK18*FEXP(-OFFSET(BFactors,AM$8-$E18,0,1,1)*$N18),"") ->  | AN18: =IF(AND(AN$8>=$E18,$F17<=Tau,$F18>Tau),Calibration!AL18*FEXP(-OFFSET(BFactors,AN$8-$E18,0,1,1)*$N18),"") ->  | AO18: =IF(AND(AO$8>=$E18,$F17<=Tau,$F18>Tau),Calibration!AM18*FEXP(-OFFSET(BFactors,AO$8-$E18,0,1,1)*$N18),"") ->  | AP18: =IF(AND(AP$8>=$E18,$F17<=Tau,$F18>Tau),Calibration!AN18*FEXP(-OFFSET(BFactors,AP$8-$E18,0,1,1)*$N18),"") ->  | AQ18: =IF(AND(AQ$8>=$E18,$F17<=Tau,$F18>Tau),Calibration!AO18*FEXP(-OFFSET(BFactors,AQ$8-$E18,0,1,1)*$N18),"") ->  | AR18: =IF(AND(AR$8>=$E18,$F17<=Tau,$F18>Tau),Calibration!AP18*FEXP(-OFFSET(BFactors,AR$8-$E18,0,1,1)*$N18),"") ->  | AS18: =IF(AND(AS$8>=$E18,$F17<=Tau,$F18>Tau),Calibration!AQ18*FEXP(-OFFSET(BFactors,AS$8-$E18,0,1,1)*$N18),"") ->  | AT18: =IF(AND(AT$8>=$E18,$F17<=Tau,$F18>Tau),Calibration!AR18*FEXP(-OFFSET(BFactors,AT$8-$E18,0,1,1)*$N18),"") ->  | AU18: =IF(AND(AU$8>=$E18,$F17<=Tau,$F18>Tau),Calibration!AS18*FEXP(-OFFSET(BFactors,AU$8-$E18,0,1,1)*$N18),"") ->  | AV18: =IF(AND(AV$8>=$E18,$F17<=Tau,$F18>Tau),Calibration!AT18*FEXP(-OFFSET(BFactors,AV$8-$E18,0,1,1)*$N18),"") ->  | AW18: =IF(AND(AW$8>=$E18,$F17<=Tau,$F18>Tau),Calibration!AU18*FEXP(-OFFSET(BFactors,AW$8-$E18,0,1,1)*$N18),"") ->  | AX18: =IF(AND(AX$8>=$E18,$F17<=Tau,$F18>Tau),Calibration!AV18*FEXP(-OFFSET(BFactors,AX$8-$E18,0,1,1)*$N18),"") ->  | AY18: =IF(AND(AY$8>=$E18,$F17<=Tau,$F18>Tau),Calibration!AW18*FEXP(-OFFSET(BFactors,AY$8-$E18,0,1,1)*$N18),"") ->  | AZ18: =IF(AND(AZ$8>=$E18,$F17<=Tau,$F18>Tau),Calibration!AX18*FEXP(-OFFSET(BFactors,AZ$8-$E18,0,1,1)*$N18),"") ->  | BA18: =IF(AND(BA$8>=$E18,$F17<=Tau,$F18>Tau),Calibration!AY18*FEXP(-OFFSET(BFactors,BA$8-$E18,0,1,1)*$N18),"") ->  | BB18: =IF(AND(BB$8>=$E18,$F17<=Tau,$F18>Tau),Calibration!AZ18*FEXP(-OFFSET(BFactors,BB$8-$E18,0,1,1)*$N18),"") ->  | BC18: =IF(AND(BC$8>=$E18,$F17<=Tau,$F18>Tau),Calibration!BA18*FEXP(-OFFSET(BFactors,BC$8-$E18,0,1,1)*$N18),"") ->  | BD18: =IF(AND(BD$8>=$E18,$F17<=Tau,$F18>Tau),Calibration!BB18*FEXP(-OFFSET(BFactors,BD$8-$E18,0,1,1)*$N18),"") ->  | BE18: =IF(AND(BE$8>=$E18,$F17<=Tau,$F18>Tau),Calibration!BC18*FEXP(-OFFSET(BFactors,BE$8-$E18,0,1,1)*$N18),"") -> 
E19: 10 | F19: 2.5 | G19: 0.00408792262 | H19: 0.0168887693 | I19: 0.01598576054 | J19: 0.0166 | K19: 0.0120452108 | L19: 0.03086715987 | M19: -0.01882194907 | N19: =IF(F18<Tau,N18*Param1+NORMSINV(RAND())*IRVol*Param2+Calibration!J19-Calibration!J18*Param1,NA()) -> 0.02424156089 | O19: 0.9555437153 | AA19: =IF(AND(AA$8>=$E19,$F18<=Tau,$F19>Tau),Calibration!Y19*FEXP(-OFFSET(BFactors,AA$8-$E19,0,1,1)*$N19),"") ->  | AB19: =IF(AND(AB$8>=$E19,$F18<=Tau,$F19>Tau),Calibration!Z19*FEXP(-OFFSET(BFactors,AB$8-$E19,0,1,1)*$N19),"") ->  | AC19: =IF(AND(AC$8>=$E19,$F18<=Tau,$F19>Tau),Calibration!AA19*FEXP(-OFFSET(BFactors,AC$8-$E19,0,1,1)*$N19),"") ->  | AD19: =IF(AND(AD$8>=$E19,$F18<=Tau,$F19>Tau),Calibration!AB19*FEXP(-OFFSET(BFactors,AD$8-$E19,0,1,1)*$N19),"") ->  | AE19: =IF(AND(AE$8>=$E19,$F18<=Tau,$F19>Tau),Calibration!AC19*FEXP(-OFFSET(BFactors,AE$8-$E19,0,1,1)*$N19),"") ->  | AF19: =IF(AND(AF$8>=$E19,$F18<=Tau,$F19>Tau),Calibration!AD19*FEXP(-OFFSET(BFactors,AF$8-$E19,0,1,1)*$N19),"") ->  | AG19: =IF(AND(AG$8>=$E19,$F18<=Tau,$F19>Tau),Calibration!AE19*FEXP(-OFFSET(BFactors,AG$8-$E19,0,1,1)*$N19),"") ->  | AH19: =IF(AND(AH$8>=$E19,$F18<=Tau,$F19>Tau),Calibration!AF19*FEXP(-OFFSET(BFactors,AH$8-$E19,0,1,1)*$N19),"") ->  | AI19: =IF(AND(AI$8>=$E19,$F18<=Tau,$F19>Tau),Calibration!AG19*FEXP(-OFFSET(BFactors,AI$8-$E19,0,1,1)*$N19),"") ->  | AJ19: =IF(AND(AJ$8>=$E19,$F18<=Tau,$F19>Tau),Calibration!AH19*FEXP(-OFFSET(BFactors,AJ$8-$E19,0,1,1)*$N19),"") ->  | AK19: =IF(AND(AK$8>=$E19,$F18<=Tau,$F19>Tau),Calibration!AI19*FEXP(-OFFSET(BFactors,AK$8-$E19,0,1,1)*$N19),"") ->  | AL19: =IF(AND(AL$8>=$E19,$F18<=Tau,$F19>Tau),Calibration!AJ19*FEXP(-OFFSET(BFactors,AL$8-$E19,0,1,1)*$N19),"") ->  | AM19: =IF(AND(AM$8>=$E19,$F18<=Tau,$F19>Tau),Calibration!AK19*FEXP(-OFFSET(BFactors,AM$8-$E19,0,1,1)*$N19),"") ->  | AN19: =IF(AND(AN$8>=$E19,$F18<=Tau,$F19>Tau),Calibration!AL19*FEXP(-OFFSET(BFactors,AN$8-$E19,0,1,1)*$N19),"") ->  | AO19: =IF(AND(AO$8>=$E19,$F18<=Tau,$F19>Tau),Calibration!AM19*FEXP(-OFFSET(BFactors,AO$8-$E19,0,1,1)*$N19),"") ->  | AP19: =IF(AND(AP$8>=$E19,$F18<=Tau,$F19>Tau),Calibration!AN19*FEXP(-OFFSET(BFactors,AP$8-$E19,0,1,1)*$N19),"") ->  | AQ19: =IF(AND(AQ$8>=$E19,$F18<=Tau,$F19>Tau),Calibration!AO19*FEXP(-OFFSET(BFactors,AQ$8-$E19,0,1,1)*$N19),"") ->  | AR19: =IF(AND(AR$8>=$E19,$F18<=Tau,$F19>Tau),Calibration!AP19*FEXP(-OFFSET(BFactors,AR$8-$E19,0,1,1)*$N19),"") ->  | AS19: =IF(AND(AS$8>=$E19,$F18<=Tau,$F19>Tau),Calibration!AQ19*FEXP(-OFFSET(BFactors,AS$8-$E19,0,1,1)*$N19),"") ->  | AT19: =IF(AND(AT$8>=$E19,$F18<=Tau,$F19>Tau),Calibration!AR19*FEXP(-OFFSET(BFactors,AT$8-$E19,0,1,1)*$N19),"") ->  | AU19: =IF(AND(AU$8>=$E19,$F18<=Tau,$F19>Tau),Calibration!AS19*FEXP(-OFFSET(BFactors,AU$8-$E19,0,1,1)*$N19),"") ->  | AV19: =IF(AND(AV$8>=$E19,$F18<=Tau,$F19>Tau),Calibration!AT19*FEXP(-OFFSET(BFactors,AV$8-$E19,0,1,1)*$N19),"") ->  | AW19: =IF(AND(AW$8>=$E19,$F18<=Tau,$F19>Tau),Calibration!AU19*FEXP(-OFFSET(BFactors,AW$8-$E19,0,1,1)*$N19),"") ->  | AX19: =IF(AND(AX$8>=$E19,$F18<=Tau,$F19>Tau),Calibration!AV19*FEXP(-OFFSET(BFactors,AX$8-$E19,0,1,1)*$N19),"") ->  | AY19: =IF(AND(AY$8>=$E19,$F18<=Tau,$F19>Tau),Calibration!AW19*FEXP(-OFFSET(BFactors,AY$8-$E19,0,1,1)*$N19),"") ->  | AZ19: =IF(AND(AZ$8>=$E19,$F18<=Tau,$F19>Tau),Calibration!AX19*FEXP(-OFFSET(BFactors,AZ$8-$E19,0,1,1)*$N19),"") ->  | BA19: =IF(AND(BA$8>=$E19,$F18<=Tau,$F19>Tau),Calibration!AY19*FEXP(-OFFSET(BFactors,BA$8-$E19,0,1,1)*$N19),"") ->  | BB19: =IF(AND(BB$8>=$E19,$F18<=Tau,$F19>Tau),Calibration!AZ19*FEXP(-OFFSET(BFactors,BB$8-$E19,0,1,1)*$N19),"") ->  | BC19: =IF(AND(BC$8>=$E19,$F18<=Tau,$F19>Tau),Calibration!BA19*FEXP(-OFFSET(BFactors,BC$8-$E19,0,1,1)*$N19),"") ->  | BD19: =IF(AND(BD$8>=$E19,$F18<=Tau,$F19>Tau),Calibration!BB19*FEXP(-OFFSET(BFactors,BD$8-$E19,0,1,1)*$N19),"") ->  | BE19: =IF(AND(BE$8>=$E19,$F18<=Tau,$F19>Tau),Calibration!BC19*FEXP(-OFFSET(BFactors,BE$8-$E19,0,1,1)*$N19),"") -> 
B20: Results | E20: 11 | F20: 2.75 | G20: 0.004529951593 | H20: 0.020548226 | I20: 0.01816253691 | J20: 0.019 | K20: 0.02257247882 | L20: 0.04009665088 | M20: -0.01752417206 | N20: =IF(F19<Tau,N19*Param1+NORMSINV(RAND())*IRVol*Param2+Calibration!J20-Calibration!J19*Param1,NA()) -> 0.01908341359 | O20: 0.9509958136 | AB20: =IF(AND(AB$8>=$E20,$F19<=Tau,$F20>Tau),Calibration!Z20*FEXP(-OFFSET(BFactors,AB$8-$E20,0,1,1)*$N20),"") ->  | AC20: =IF(AND(AC$8>=$E20,$F19<=Tau,$F20>Tau),Calibration!AA20*FEXP(-OFFSET(BFactors,AC$8-$E20,0,1,1)*$N20),"") ->  | AD20: =IF(AND(AD$8>=$E20,$F19<=Tau,$F20>Tau),Calibration!AB20*FEXP(-OFFSET(BFactors,AD$8-$E20,0,1,1)*$N20),"") ->  | AE20: =IF(AND(AE$8>=$E20,$F19<=Tau,$F20>Tau),Calibration!AC20*FEXP(-OFFSET(BFactors,AE$8-$E20,0,1,1)*$N20),"") ->  | AF20: =IF(AND(AF$8>=$E20,$F19<=Tau,$F20>Tau),Calibration!AD20*FEXP(-OFFSET(BFactors,AF$8-$E20,0,1,1)*$N20),"") ->  | AG20: =IF(AND(AG$8>=$E20,$F19<=Tau,$F20>Tau),Calibration!AE20*FEXP(-OFFSET(BFactors,AG$8-$E20,0,1,1)*$N20),"") ->  | AH20: =IF(AND(AH$8>=$E20,$F19<=Tau,$F20>Tau),Calibration!AF20*FEXP(-OFFSET(BFactors,AH$8-$E20,0,1,1)*$N20),"") ->  | AI20: =IF(AND(AI$8>=$E20,$F19<=Tau,$F20>Tau),Calibration!AG20*FEXP(-OFFSET(BFactors,AI$8-$E20,0,1,1)*$N20),"") ->  | AJ20: =IF(AND(AJ$8>=$E20,$F19<=Tau,$F20>Tau),Calibration!AH20*FEXP(-OFFSET(BFactors,AJ$8-$E20,0,1,1)*$N20),"") ->  | AK20: =IF(AND(AK$8>=$E20,$F19<=Tau,$F20>Tau),Calibration!AI20*FEXP(-OFFSET(BFactors,AK$8-$E20,0,1,1)*$N20),"") ->  | AL20: =IF(AND(AL$8>=$E20,$F19<=Tau,$F20>Tau),Calibration!AJ20*FEXP(-OFFSET(BFactors,AL$8-$E20,0,1,1)*$N20),"") ->  | AM20: =IF(AND(AM$8>=$E20,$F19<=Tau,$F20>Tau),Calibration!AK20*FEXP(-OFFSET(BFactors,AM$8-$E20,0,1,1)*$N20),"") ->  | AN20: =IF(AND(AN$8>=$E20,$F19<=Tau,$F20>Tau),Calibration!AL20*FEXP(-OFFSET(BFactors,AN$8-$E20,0,1,1)*$N20),"") ->  | AO20: =IF(AND(AO$8>=$E20,$F19<=Tau,$F20>Tau),Calibration!AM20*FEXP(-OFFSET(BFactors,AO$8-$E20,0,1,1)*$N20),"") ->  | AP20: =IF(AND(AP$8>=$E20,$F19<=Tau,$F20>Tau),Calibration!AN20*FEXP(-OFFSET(BFactors,AP$8-$E20,0,1,1)*$N20),"") ->  | AQ20: =IF(AND(AQ$8>=$E20,$F19<=Tau,$F20>Tau),Calibration!AO20*FEXP(-OFFSET(BFactors,AQ$8-$E20,0,1,1)*$N20),"") ->  | AR20: =IF(AND(AR$8>=$E20,$F19<=Tau,$F20>Tau),Calibration!AP20*FEXP(-OFFSET(BFactors,AR$8-$E20,0,1,1)*$N20),"") ->  | AS20: =IF(AND(AS$8>=$E20,$F19<=Tau,$F20>Tau),Calibration!AQ20*FEXP(-OFFSET(BFactors,AS$8-$E20,0,1,1)*$N20),"") ->  | AT20: =IF(AND(AT$8>=$E20,$F19<=Tau,$F20>Tau),Calibration!AR20*FEXP(-OFFSET(BFactors,AT$8-$E20,0,1,1)*$N20),"") ->  | AU20: =IF(AND(AU$8>=$E20,$F19<=Tau,$F20>Tau),Calibration!AS20*FEXP(-OFFSET(BFactors,AU$8-$E20,0,1,1)*$N20),"") ->  | AV20: =IF(AND(AV$8>=$E20,$F19<=Tau,$F20>Tau),Calibration!AT20*FEXP(-OFFSET(BFactors,AV$8-$E20,0,1,1)*$N20),"") ->  | AW20: =IF(AND(AW$8>=$E20,$F19<=Tau,$F20>Tau),Calibration!AU20*FEXP(-OFFSET(BFactors,AW$8-$E20,0,1,1)*$N20),"") ->  | AX20: =IF(AND(AX$8>=$E20,$F19<=Tau,$F20>Tau),Calibration!AV20*FEXP(-OFFSET(BFactors,AX$8-$E20,0,1,1)*$N20),"") ->  | AY20: =IF(AND(AY$8>=$E20,$F19<=Tau,$F20>Tau),Calibration!AW20*FEXP(-OFFSET(BFactors,AY$8-$E20,0,1,1)*$N20),"") ->  | AZ20: =IF(AND(AZ$8>=$E20,$F19<=Tau,$F20>Tau),Calibration!AX20*FEXP(-OFFSET(BFactors,AZ$8-$E20,0,1,1)*$N20),"") ->  | BA20: =IF(AND(BA$8>=$E20,$F19<=Tau,$F20>Tau),Calibration!AY20*FEXP(-OFFSET(BFactors,BA$8-$E20,0,1,1)*$N20),"") ->  | BB20: =IF(AND(BB$8>=$E20,$F19<=Tau,$F20>Tau),Calibration!AZ20*FEXP(-OFFSET(BFactors,BB$8-$E20,0,1,1)*$N20),"") ->  | BC20: =IF(AND(BC$8>=$E20,$F19<=Tau,$F20>Tau),Calibration!BA20*FEXP(-OFFSET(BFactors,BC$8-$E20,0,1,1)*$N20),"") ->  | BD20: =IF(AND(BD$8>=$E20,$F19<=Tau,$F20>Tau),Calibration!BB20*FEXP(-OFFSET(BFactors,BD$8-$E20,0,1,1)*$N20),"") ->  | BE20: =IF(AND(BE$8>=$E20,$F19<=Tau,$F20>Tau),Calibration!BC20*FEXP(-OFFSET(BFactors,BE$8-$E20,0,1,1)*$N20),"") -> 
B21: CVA Payer (bps) | C21: -29.11735365 | E21: 12 | F21: 3 | G21: 0.004999999888 | H21: 0.02469008743 | I21: 0.0205567977 | J21: 0.0216 | K21: 0.009552491045 | L21: 0.03173625449 | M21: -0.02218376344 | N21: =IF(F20<Tau,N20*Param1+NORMSINV(RAND())*IRVol*Param2+Calibration!J21-Calibration!J20*Param1,NA()) -> 0.02018156459 | O21: 0.9462097517 | AC21: =IF(AND(AC$8>=$E21,$F20<=Tau,$F21>Tau),Calibration!AA21*FEXP(-OFFSET(BFactors,AC$8-$E21,0,1,1)*$N21),"") ->  | AD21: =IF(AND(AD$8>=$E21,$F20<=Tau,$F21>Tau),Calibration!AB21*FEXP(-OFFSET(BFactors,AD$8-$E21,0,1,1)*$N21),"") ->  | AE21: =IF(AND(AE$8>=$E21,$F20<=Tau,$F21>Tau),Calibration!AC21*FEXP(-OFFSET(BFactors,AE$8-$E21,0,1,1)*$N21),"") ->  | AF21: =IF(AND(AF$8>=$E21,$F20<=Tau,$F21>Tau),Calibration!AD21*FEXP(-OFFSET(BFactors,AF$8-$E21,0,1,1)*$N21),"") ->  | AG21: =IF(AND(AG$8>=$E21,$F20<=Tau,$F21>Tau),Calibration!AE21*FEXP(-OFFSET(BFactors,AG$8-$E21,0,1,1)*$N21),"") ->  | AH21: =IF(AND(AH$8>=$E21,$F20<=Tau,$F21>Tau),Calibration!AF21*FEXP(-OFFSET(BFactors,AH$8-$E21,0,1,1)*$N21),"") ->  | AI21: =IF(AND(AI$8>=$E21,$F20<=Tau,$F21>Tau),Calibration!AG21*FEXP(-OFFSET(BFactors,AI$8-$E21,0,1,1)*$N21),"") ->  | AJ21: =IF(AND(AJ$8>=$E21,$F20<=Tau,$F21>Tau),Calibration!AH21*FEXP(-OFFSET(BFactors,AJ$8-$E21,0,1,1)*$N21),"") ->  | AK21: =IF(AND(AK$8>=$E21,$F20<=Tau,$F21>Tau),Calibration!AI21*FEXP(-OFFSET(BFactors,AK$8-$E21,0,1,1)*$N21),"") ->  | AL21: =IF(AND(AL$8>=$E21,$F20<=Tau,$F21>Tau),Calibration!AJ21*FEXP(-OFFSET(BFactors,AL$8-$E21,0,1,1)*$N21),"") ->  | AM21: =IF(AND(AM$8>=$E21,$F20<=Tau,$F21>Tau),Calibration!AK21*FEXP(-OFFSET(BFactors,AM$8-$E21,0,1,1)*$N21),"") ->  | AN21: =IF(AND(AN$8>=$E21,$F20<=Tau,$F21>Tau),Calibration!AL21*FEXP(-OFFSET(BFactors,AN$8-$E21,0,1,1)*$N21),"") ->  | AO21: =IF(AND(AO$8>=$E21,$F20<=Tau,$F21>Tau),Calibration!AM21*FEXP(-OFFSET(BFactors,AO$8-$E21,0,1,1)*$N21),"") ->  | AP21: =IF(AND(AP$8>=$E21,$F20<=Tau,$F21>Tau),Calibration!AN21*FEXP(-OFFSET(BFactors,AP$8-$E21,0,1,1)*$N21),"") ->  | AQ21: =IF(AND(AQ$8>=$E21,$F20<=Tau,$F21>Tau),Calibration!AO21*FEXP(-OFFSET(BFactors,AQ$8-$E21,0,1,1)*$N21),"") ->  | AR21: =IF(AND(AR$8>=$E21,$F20<=Tau,$F21>Tau),Calibration!AP21*FEXP(-OFFSET(BFactors,AR$8-$E21,0,1,1)*$N21),"") ->  | AS21: =IF(AND(AS$8>=$E21,$F20<=Tau,$F21>Tau),Calibration!AQ21*FEXP(-OFFSET(BFactors,AS$8-$E21,0,1,1)*$N21),"") ->  | AT21: =IF(AND(AT$8>=$E21,$F20<=Tau,$F21>Tau),Calibration!AR21*FEXP(-OFFSET(BFactors,AT$8-$E21,0,1,1)*$N21),"") ->  | AU21: =IF(AND(AU$8>=$E21,$F20<=Tau,$F21>Tau),Calibration!AS21*FEXP(-OFFSET(BFactors,AU$8-$E21,0,1,1)*$N21),"") ->  | AV21: =IF(AND(AV$8>=$E21,$F20<=Tau,$F21>Tau),Calibration!AT21*FEXP(-OFFSET(BFactors,AV$8-$E21,0,1,1)*$N21),"") ->  | AW21: =IF(AND(AW$8>=$E21,$F20<=Tau,$F21>Tau),Calibration!AU21*FEXP(-OFFSET(BFactors,AW$8-$E21,0,1,1)*$N21),"") ->  | AX21: =IF(AND(AX$8>=$E21,$F20<=Tau,$F21>Tau),Calibration!AV21*FEXP(-OFFSET(BFactors,AX$8-$E21,0,1,1)*$N21),"") ->  | AY21: =IF(AND(AY$8>=$E21,$F20<=Tau,$F21>Tau),Calibration!AW21*FEXP(-OFFSET(BFactors,AY$8-$E21,0,1,1)*$N21),"") ->  | AZ21: =IF(AND(AZ$8>=$E21,$F20<=Tau,$F21>Tau),Calibration!AX21*FEXP(-OFFSET(BFactors,AZ$8-$E21,0,1,1)*$N21),"") ->  | BA21: =IF(AND(BA$8>=$E21,$F20<=Tau,$F21>Tau),Calibration!AY21*FEXP(-OFFSET(BFactors,BA$8-$E21,0,1,1)*$N21),"") ->  | BB21: =IF(AND(BB$8>=$E21,$F20<=Tau,$F21>Tau),Calibration!AZ21*FEXP(-OFFSET(BFactors,BB$8-$E21,0,1,1)*$N21),"") ->  | BC21: =IF(AND(BC$8>=$E21,$F20<=Tau,$F21>Tau),Calibration!BA21*FEXP(-OFFSET(BFactors,BC$8-$E21,0,1,1)*$N21),"") ->  | BD21: =IF(AND(BD$8>=$E21,$F20<=Tau,$F21>Tau),Calibration!BB21*FEXP(-OFFSET(BFactors,BD$8-$E21,0,1,1)*$N21),"") ->  | BE21: =IF(AND(BE$8>=$E21,$F20<=Tau,$F21>Tau),Calibration!BC21*FEXP(-OFFSET(BFactors,BE$8-$E21,0,1,1)*$N21),"") -> 
B22: CVA Receiver (bps) | C22: -17.08233275 | E22: 13 | F22: 3.25 | G22: 0.005500020743 | H22: 0.0293523783 | I22: 0.02313978194 | J22: 0.0239 | K22: 0.008928259055 | L22: 0.03544267602 | M22: -0.02651441696 | N22: =IF(F21<Tau,N21*Param1+NORMSINV(RAND())*IRVol*Param2+Calibration!J22-Calibration!J21*Param1,NA()) -> 0.0157836065 | O22: 0.9424834577 | AD22: =IF(AND(AD$8>=$E22,$F21<=Tau,$F22>Tau),Calibration!AB22*FEXP(-OFFSET(BFactors,AD$8-$E22,0,1,1)*$N22),"") ->  | AE22: =IF(AND(AE$8>=$E22,$F21<=Tau,$F22>Tau),Calibration!AC22*FEXP(-OFFSET(BFactors,AE$8-$E22,0,1,1)*$N22),"") ->  | AF22: =IF(AND(AF$8>=$E22,$F21<=Tau,$F22>Tau),Calibration!AD22*FEXP(-OFFSET(BFactors,AF$8-$E22,0,1,1)*$N22),"") ->  | AG22: =IF(AND(AG$8>=$E22,$F21<=Tau,$F22>Tau),Calibration!AE22*FEXP(-OFFSET(BFactors,AG$8-$E22,0,1,1)*$N22),"") ->  | AH22: =IF(AND(AH$8>=$E22,$F21<=Tau,$F22>Tau),Calibration!AF22*FEXP(-OFFSET(BFactors,AH$8-$E22,0,1,1)*$N22),"") ->  | AI22: =IF(AND(AI$8>=$E22,$F21<=Tau,$F22>Tau),Calibration!AG22*FEXP(-OFFSET(BFactors,AI$8-$E22,0,1,1)*$N22),"") ->  | AJ22: =IF(AND(AJ$8>=$E22,$F21<=Tau,$F22>Tau),Calibration!AH22*FEXP(-OFFSET(BFactors,AJ$8-$E22,0,1,1)*$N22),"") ->  | AK22: =IF(AND(AK$8>=$E22,$F21<=Tau,$F22>Tau),Calibration!AI22*FEXP(-OFFSET(BFactors,AK$8-$E22,0,1,1)*$N22),"") ->  | AL22: =IF(AND(AL$8>=$E22,$F21<=Tau,$F22>Tau),Calibration!AJ22*FEXP(-OFFSET(BFactors,AL$8-$E22,0,1,1)*$N22),"") ->  | AM22: =IF(AND(AM$8>=$E22,$F21<=Tau,$F22>Tau),Calibration!AK22*FEXP(-OFFSET(BFactors,AM$8-$E22,0,1,1)*$N22),"") ->  | AN22: =IF(AND(AN$8>=$E22,$F21<=Tau,$F22>Tau),Calibration!AL22*FEXP(-OFFSET(BFactors,AN$8-$E22,0,1,1)*$N22),"") ->  | AO22: =IF(AND(AO$8>=$E22,$F21<=Tau,$F22>Tau),Calibration!AM22*FEXP(-OFFSET(BFactors,AO$8-$E22,0,1,1)*$N22),"") ->  | AP22: =IF(AND(AP$8>=$E22,$F21<=Tau,$F22>Tau),Calibration!AN22*FEXP(-OFFSET(BFactors,AP$8-$E22,0,1,1)*$N22),"") ->  | AQ22: =IF(AND(AQ$8>=$E22,$F21<=Tau,$F22>Tau),Calibration!AO22*FEXP(-OFFSET(BFactors,AQ$8-$E22,0,1,1)*$N22),"") ->  | AR22: =IF(AND(AR$8>=$E22,$F21<=Tau,$F22>Tau),Calibration!AP22*FEXP(-OFFSET(BFactors,AR$8-$E22,0,1,1)*$N22),"") ->  | AS22: =IF(AND(AS$8>=$E22,$F21<=Tau,$F22>Tau),Calibration!AQ22*FEXP(-OFFSET(BFactors,AS$8-$E22,0,1,1)*$N22),"") ->  | AT22: =IF(AND(AT$8>=$E22,$F21<=Tau,$F22>Tau),Calibration!AR22*FEXP(-OFFSET(BFactors,AT$8-$E22,0,1,1)*$N22),"") ->  | AU22: =IF(AND(AU$8>=$E22,$F21<=Tau,$F22>Tau),Calibration!AS22*FEXP(-OFFSET(BFactors,AU$8-$E22,0,1,1)*$N22),"") ->  | AV22: =IF(AND(AV$8>=$E22,$F21<=Tau,$F22>Tau),Calibration!AT22*FEXP(-OFFSET(BFactors,AV$8-$E22,0,1,1)*$N22),"") ->  | AW22: =IF(AND(AW$8>=$E22,$F21<=Tau,$F22>Tau),Calibration!AU22*FEXP(-OFFSET(BFactors,AW$8-$E22,0,1,1)*$N22),"") ->  | AX22: =IF(AND(AX$8>=$E22,$F21<=Tau,$F22>Tau),Calibration!AV22*FEXP(-OFFSET(BFactors,AX$8-$E22,0,1,1)*$N22),"") ->  | AY22: =IF(AND(AY$8>=$E22,$F21<=Tau,$F22>Tau),Calibration!AW22*FEXP(-OFFSET(BFactors,AY$8-$E22,0,1,1)*$N22),"") ->  | AZ22: =IF(AND(AZ$8>=$E22,$F21<=Tau,$F22>Tau),Calibration!AX22*FEXP(-OFFSET(BFactors,AZ$8-$E22,0,1,1)*$N22),"") ->  | BA22: =IF(AND(BA$8>=$E22,$F21<=Tau,$F22>Tau),Calibration!AY22*FEXP(-OFFSET(BFactors,BA$8-$E22,0,1,1)*$N22),"") ->  | BB22: =IF(AND(BB$8>=$E22,$F21<=Tau,$F22>Tau),Calibration!AZ22*FEXP(-OFFSET(BFactors,BB$8-$E22,0,1,1)*$N22),"") ->  | BC22: =IF(AND(BC$8>=$E22,$F21<=Tau,$F22>Tau),Calibration!BA22*FEXP(-OFFSET(BFactors,BC$8-$E22,0,1,1)*$N22),"") ->  | BD22: =IF(AND(BD$8>=$E22,$F21<=Tau,$F22>Tau),Calibration!BB22*FEXP(-OFFSET(BFactors,BD$8-$E22,0,1,1)*$N22),"") ->  | BE22: =IF(AND(BE$8>=$E22,$F21<=Tau,$F22>Tau),Calibration!BC22*FEXP(-OFFSET(BFactors,BE$8-$E22,0,1,1)*$N22),"") -> 
E23: 14 | F23: 3.5 | G23: 0.006023768401 | H23: 0.03452845469 | I23: 0.02568979123 | J23: 0.0256 | K23: 0.009366326597 | L23: 0.03109708082 | M23: -0.02173075422 | N23: =IF(F22<Tau,N22*Param1+NORMSINV(RAND())*IRVol*Param2+Calibration!J23-Calibration!J22*Param1,NA()) -> 0.01780864345 | O23: 0.9382966967 | AE23: =IF(AND(AE$8>=$E23,$F22<=Tau,$F23>Tau),Calibration!AC23*FEXP(-OFFSET(BFactors,AE$8-$E23,0,1,1)*$N23),"") ->  | AF23: =IF(AND(AF$8>=$E23,$F22<=Tau,$F23>Tau),Calibration!AD23*FEXP(-OFFSET(BFactors,AF$8-$E23,0,1,1)*$N23),"") ->  | AG23: =IF(AND(AG$8>=$E23,$F22<=Tau,$F23>Tau),Calibration!AE23*FEXP(-OFFSET(BFactors,AG$8-$E23,0,1,1)*$N23),"") ->  | AH23: =IF(AND(AH$8>=$E23,$F22<=Tau,$F23>Tau),Calibration!AF23*FEXP(-OFFSET(BFactors,AH$8-$E23,0,1,1)*$N23),"") ->  | AI23: =IF(AND(AI$8>=$E23,$F22<=Tau,$F23>Tau),Calibration!AG23*FEXP(-OFFSET(BFactors,AI$8-$E23,0,1,1)*$N23),"") ->  | AJ23: =IF(AND(AJ$8>=$E23,$F22<=Tau,$F23>Tau),Calibration!AH23*FEXP(-OFFSET(BFactors,AJ$8-$E23,0,1,1)*$N23),"") ->  | AK23: =IF(AND(AK$8>=$E23,$F22<=Tau,$F23>Tau),Calibration!AI23*FEXP(-OFFSET(BFactors,AK$8-$E23,0,1,1)*$N23),"") ->  | AL23: =IF(AND(AL$8>=$E23,$F22<=Tau,$F23>Tau),Calibration!AJ23*FEXP(-OFFSET(BFactors,AL$8-$E23,0,1,1)*$N23),"") ->  | AM23: =IF(AND(AM$8>=$E23,$F22<=Tau,$F23>Tau),Calibration!AK23*FEXP(-OFFSET(BFactors,AM$8-$E23,0,1,1)*$N23),"") ->  | AN23: =IF(AND(AN$8>=$E23,$F22<=Tau,$F23>Tau),Calibration!AL23*FEXP(-OFFSET(BFactors,AN$8-$E23,0,1,1)*$N23),"") ->  | AO23: =IF(AND(AO$8>=$E23,$F22<=Tau,$F23>Tau),Calibration!AM23*FEXP(-OFFSET(BFactors,AO$8-$E23,0,1,1)*$N23),"") ->  | AP23: =IF(AND(AP$8>=$E23,$F22<=Tau,$F23>Tau),Calibration!AN23*FEXP(-OFFSET(BFactors,AP$8-$E23,0,1,1)*$N23),"") ->  | AQ23: =IF(AND(AQ$8>=$E23,$F22<=Tau,$F23>Tau),Calibration!AO23*FEXP(-OFFSET(BFactors,AQ$8-$E23,0,1,1)*$N23),"") ->  | AR23: =IF(AND(AR$8>=$E23,$F22<=Tau,$F23>Tau),Calibration!AP23*FEXP(-OFFSET(BFactors,AR$8-$E23,0,1,1)*$N23),"") ->  | AS23: =IF(AND(AS$8>=$E23,$F22<=Tau,$F23>Tau),Calibration!AQ23*FEXP(-OFFSET(BFactors,AS$8-$E23,0,1,1)*$N23),"") ->  | AT23: =IF(AND(AT$8>=$E23,$F22<=Tau,$F23>Tau),Calibration!AR23*FEXP(-OFFSET(BFactors,AT$8-$E23,0,1,1)*$N23),"") ->  | AU23: =IF(AND(AU$8>=$E23,$F22<=Tau,$F23>Tau),Calibration!AS23*FEXP(-OFFSET(BFactors,AU$8-$E23,0,1,1)*$N23),"") ->  | AV23: =IF(AND(AV$8>=$E23,$F22<=Tau,$F23>Tau),Calibration!AT23*FEXP(-OFFSET(BFactors,AV$8-$E23,0,1,1)*$N23),"") ->  | AW23: =IF(AND(AW$8>=$E23,$F22<=Tau,$F23>Tau),Calibration!AU23*FEXP(-OFFSET(BFactors,AW$8-$E23,0,1,1)*$N23),"") ->  | AX23: =IF(AND(AX$8>=$E23,$F22<=Tau,$F23>Tau),Calibration!AV23*FEXP(-OFFSET(BFactors,AX$8-$E23,0,1,1)*$N23),"") ->  | AY23: =IF(AND(AY$8>=$E23,$F22<=Tau,$F23>Tau),Calibration!AW23*FEXP(-OFFSET(BFactors,AY$8-$E23,0,1,1)*$N23),"") ->  | AZ23: =IF(AND(AZ$8>=$E23,$F22<=Tau,$F23>Tau),Calibration!AX23*FEXP(-OFFSET(BFactors,AZ$8-$E23,0,1,1)*$N23),"") ->  | BA23: =IF(AND(BA$8>=$E23,$F22<=Tau,$F23>Tau),Calibration!AY23*FEXP(-OFFSET(BFactors,BA$8-$E23,0,1,1)*$N23),"") ->  | BB23: =IF(AND(BB$8>=$E23,$F22<=Tau,$F23>Tau),Calibration!AZ23*FEXP(-OFFSET(BFactors,BB$8-$E23,0,1,1)*$N23),"") ->  | BC23: =IF(AND(BC$8>=$E23,$F22<=Tau,$F23>Tau),Calibration!BA23*FEXP(-OFFSET(BFactors,BC$8-$E23,0,1,1)*$N23),"") ->  | BD23: =IF(AND(BD$8>=$E23,$F22<=Tau,$F23>Tau),Calibration!BB23*FEXP(-OFFSET(BFactors,BD$8-$E23,0,1,1)*$N23),"") ->  | BE23: =IF(AND(BE$8>=$E23,$F22<=Tau,$F23>Tau),Calibration!BC23*FEXP(-OFFSET(BFactors,BE$8-$E23,0,1,1)*$N23),"") -> 
E24: 15 | F24: 3.75 | G24: 0.006562948049 | H24: 0.04018855503 | I24: 0.02809208848 | J24: 0.0256 | K24: 0.01056489544 | L24: 0.03234202994 | M24: -0.0217771345 | N24: =IF(F23<Tau,N23*Param1+NORMSINV(RAND())*IRVol*Param2+Calibration!J24-Calibration!J23*Param1,NA()) -> 0.02039886566 | O24: 0.9335238302 | AF24: =IF(AND(AF$8>=$E24,$F23<=Tau,$F24>Tau),Calibration!AD24*FEXP(-OFFSET(BFactors,AF$8-$E24,0,1,1)*$N24),"") ->  | AG24: =IF(AND(AG$8>=$E24,$F23<=Tau,$F24>Tau),Calibration!AE24*FEXP(-OFFSET(BFactors,AG$8-$E24,0,1,1)*$N24),"") ->  | AH24: =IF(AND(AH$8>=$E24,$F23<=Tau,$F24>Tau),Calibration!AF24*FEXP(-OFFSET(BFactors,AH$8-$E24,0,1,1)*$N24),"") ->  | AI24: =IF(AND(AI$8>=$E24,$F23<=Tau,$F24>Tau),Calibration!AG24*FEXP(-OFFSET(BFactors,AI$8-$E24,0,1,1)*$N24),"") ->  | AJ24: =IF(AND(AJ$8>=$E24,$F23<=Tau,$F24>Tau),Calibration!AH24*FEXP(-OFFSET(BFactors,AJ$8-$E24,0,1,1)*$N24),"") ->  | AK24: =IF(AND(AK$8>=$E24,$F23<=Tau,$F24>Tau),Calibration!AI24*FEXP(-OFFSET(BFactors,AK$8-$E24,0,1,1)*$N24),"") ->  | AL24: =IF(AND(AL$8>=$E24,$F23<=Tau,$F24>Tau),Calibration!AJ24*FEXP(-OFFSET(BFactors,AL$8-$E24,0,1,1)*$N24),"") ->  | AM24: =IF(AND(AM$8>=$E24,$F23<=Tau,$F24>Tau),Calibration!AK24*FEXP(-OFFSET(BFactors,AM$8-$E24,0,1,1)*$N24),"") ->  | AN24: =IF(AND(AN$8>=$E24,$F23<=Tau,$F24>Tau),Calibration!AL24*FEXP(-OFFSET(BFactors,AN$8-$E24,0,1,1)*$N24),"") ->  | AO24: =IF(AND(AO$8>=$E24,$F23<=Tau,$F24>Tau),Calibration!AM24*FEXP(-OFFSET(BFactors,AO$8-$E24,0,1,1)*$N24),"") ->  | AP24: =IF(AND(AP$8>=$E24,$F23<=Tau,$F24>Tau),Calibration!AN24*FEXP(-OFFSET(BFactors,AP$8-$E24,0,1,1)*$N24),"") ->  | AQ24: =IF(AND(AQ$8>=$E24,$F23<=Tau,$F24>Tau),Calibration!AO24*FEXP(-OFFSET(BFactors,AQ$8-$E24,0,1,1)*$N24),"") ->  | AR24: =IF(AND(AR$8>=$E24,$F23<=Tau,$F24>Tau),Calibration!AP24*FEXP(-OFFSET(BFactors,AR$8-$E24,0,1,1)*$N24),"") ->  | AS24: =IF(AND(AS$8>=$E24,$F23<=Tau,$F24>Tau),Calibration!AQ24*FEXP(-OFFSET(BFactors,AS$8-$E24,0,1,1)*$N24),"") ->  | AT24: =IF(AND(AT$8>=$E24,$F23<=Tau,$F24>Tau),Calibration!AR24*FEXP(-OFFSET(BFactors,AT$8-$E24,0,1,1)*$N24),"") ->  | AU24: =IF(AND(AU$8>=$E24,$F23<=Tau,$F24>Tau),Calibration!AS24*FEXP(-OFFSET(BFactors,AU$8-$E24,0,1,1)*$N24),"") ->  | AV24: =IF(AND(AV$8>=$E24,$F23<=Tau,$F24>Tau),Calibration!AT24*FEXP(-OFFSET(BFactors,AV$8-$E24,0,1,1)*$N24),"") ->  | AW24: =IF(AND(AW$8>=$E24,$F23<=Tau,$F24>Tau),Calibration!AU24*FEXP(-OFFSET(BFactors,AW$8-$E24,0,1,1)*$N24),"") ->  | AX24: =IF(AND(AX$8>=$E24,$F23<=Tau,$F24>Tau),Calibration!AV24*FEXP(-OFFSET(BFactors,AX$8-$E24,0,1,1)*$N24),"") ->  | AY24: =IF(AND(AY$8>=$E24,$F23<=Tau,$F24>Tau),Calibration!AW24*FEXP(-OFFSET(BFactors,AY$8-$E24,0,1,1)*$N24),"") ->  | AZ24: =IF(AND(AZ$8>=$E24,$F23<=Tau,$F24>Tau),Calibration!AX24*FEXP(-OFFSET(BFactors,AZ$8-$E24,0,1,1)*$N24),"") ->  | BA24: =IF(AND(BA$8>=$E24,$F23<=Tau,$F24>Tau),Calibration!AY24*FEXP(-OFFSET(BFactors,BA$8-$E24,0,1,1)*$N24),"") ->  | BB24: =IF(AND(BB$8>=$E24,$F23<=Tau,$F24>Tau),Calibration!AZ24*FEXP(-OFFSET(BFactors,BB$8-$E24,0,1,1)*$N24),"") ->  | BC24: =IF(AND(BC$8>=$E24,$F23<=Tau,$F24>Tau),Calibration!BA24*FEXP(-OFFSET(BFactors,BC$8-$E24,0,1,1)*$N24),"") ->  | BD24: =IF(AND(BD$8>=$E24,$F23<=Tau,$F24>Tau),Calibration!BB24*FEXP(-OFFSET(BFactors,BD$8-$E24,0,1,1)*$N24),"") ->  | BE24: =IF(AND(BE$8>=$E24,$F23<=Tau,$F24>Tau),Calibration!BC24*FEXP(-OFFSET(BFactors,BE$8-$E24,0,1,1)*$N24),"") -> 
E25: 16 | F25: 4 | G25: 0.007109264872 | H25: 0.04628948707 | I25: 0.03028001489 | J25: 0.0323 | K25: 0.009035687978 | L25: 0.03010180673 | M25: -0.02106611875 | N25: =IF(F24<Tau,N24*Param1+NORMSINV(RAND())*IRVol*Param2+Calibration!J25-Calibration!J24*Param1,NA()) -> 0.02902699138 | O25: 0.9267740036 | AG25: =IF(AND(AG$8>=$E25,$F24<=Tau,$F25>Tau),Calibration!AE25*FEXP(-OFFSET(BFactors,AG$8-$E25,0,1,1)*$N25),"") ->  | AH25: =IF(AND(AH$8>=$E25,$F24<=Tau,$F25>Tau),Calibration!AF25*FEXP(-OFFSET(BFactors,AH$8-$E25,0,1,1)*$N25),"") ->  | AI25: =IF(AND(AI$8>=$E25,$F24<=Tau,$F25>Tau),Calibration!AG25*FEXP(-OFFSET(BFactors,AI$8-$E25,0,1,1)*$N25),"") ->  | AJ25: =IF(AND(AJ$8>=$E25,$F24<=Tau,$F25>Tau),Calibration!AH25*FEXP(-OFFSET(BFactors,AJ$8-$E25,0,1,1)*$N25),"") ->  | AK25: =IF(AND(AK$8>=$E25,$F24<=Tau,$F25>Tau),Calibration!AI25*FEXP(-OFFSET(BFactors,AK$8-$E25,0,1,1)*$N25),"") ->  | AL25: =IF(AND(AL$8>=$E25,$F24<=Tau,$F25>Tau),Calibration!AJ25*FEXP(-OFFSET(BFactors,AL$8-$E25,0,1,1)*$N25),"") ->  | AM25: =IF(AND(AM$8>=$E25,$F24<=Tau,$F25>Tau),Calibration!AK25*FEXP(-OFFSET(BFactors,AM$8-$E25,0,1,1)*$N25),"") ->  | AN25: =IF(AND(AN$8>=$E25,$F24<=Tau,$F25>Tau),Calibration!AL25*FEXP(-OFFSET(BFactors,AN$8-$E25,0,1,1)*$N25),"") ->  | AO25: =IF(AND(AO$8>=$E25,$F24<=Tau,$F25>Tau),Calibration!AM25*FEXP(-OFFSET(BFactors,AO$8-$E25,0,1,1)*$N25),"") ->  | AP25: =IF(AND(AP$8>=$E25,$F24<=Tau,$F25>Tau),Calibration!AN25*FEXP(-OFFSET(BFactors,AP$8-$E25,0,1,1)*$N25),"") ->  | AQ25: =IF(AND(AQ$8>=$E25,$F24<=Tau,$F25>Tau),Calibration!AO25*FEXP(-OFFSET(BFactors,AQ$8-$E25,0,1,1)*$N25),"") ->  | AR25: =IF(AND(AR$8>=$E25,$F24<=Tau,$F25>Tau),Calibration!AP25*FEXP(-OFFSET(BFactors,AR$8-$E25,0,1,1)*$N25),"") ->  | AS25: =IF(AND(AS$8>=$E25,$F24<=Tau,$F25>Tau),Calibration!AQ25*FEXP(-OFFSET(BFactors,AS$8-$E25,0,1,1)*$N25),"") ->  | AT25: =IF(AND(AT$8>=$E25,$F24<=Tau,$F25>Tau),Calibration!AR25*FEXP(-OFFSET(BFactors,AT$8-$E25,0,1,1)*$N25),"") ->  | AU25: =IF(AND(AU$8>=$E25,$F24<=Tau,$F25>Tau),Calibration!AS25*FEXP(-OFFSET(BFactors,AU$8-$E25,0,1,1)*$N25),"") ->  | AV25: =IF(AND(AV$8>=$E25,$F24<=Tau,$F25>Tau),Calibration!AT25*FEXP(-OFFSET(BFactors,AV$8-$E25,0,1,1)*$N25),"") ->  | AW25: =IF(AND(AW$8>=$E25,$F24<=Tau,$F25>Tau),Calibration!AU25*FEXP(-OFFSET(BFactors,AW$8-$E25,0,1,1)*$N25),"") ->  | AX25: =IF(AND(AX$8>=$E25,$F24<=Tau,$F25>Tau),Calibration!AV25*FEXP(-OFFSET(BFactors,AX$8-$E25,0,1,1)*$N25),"") ->  | AY25: =IF(AND(AY$8>=$E25,$F24<=Tau,$F25>Tau),Calibration!AW25*FEXP(-OFFSET(BFactors,AY$8-$E25,0,1,1)*$N25),"") ->  | AZ25: =IF(AND(AZ$8>=$E25,$F24<=Tau,$F25>Tau),Calibration!AX25*FEXP(-OFFSET(BFactors,AZ$8-$E25,0,1,1)*$N25),"") ->  | BA25: =IF(AND(BA$8>=$E25,$F24<=Tau,$F25>Tau),Calibration!AY25*FEXP(-OFFSET(BFactors,BA$8-$E25,0,1,1)*$N25),"") ->  | BB25: =IF(AND(BB$8>=$E25,$F24<=Tau,$F25>Tau),Calibration!AZ25*FEXP(-OFFSET(BFactors,BB$8-$E25,0,1,1)*$N25),"") ->  | BC25: =IF(AND(BC$8>=$E25,$F24<=Tau,$F25>Tau),Calibration!BA25*FEXP(-OFFSET(BFactors,BC$8-$E25,0,1,1)*$N25),"") ->  | BD25: =IF(AND(BD$8>=$E25,$F24<=Tau,$F25>Tau),Calibration!BB25*FEXP(-OFFSET(BFactors,BD$8-$E25,0,1,1)*$N25),"") ->  | BE25: =IF(AND(BE$8>=$E25,$F24<=Tau,$F25>Tau),Calibration!BC25*FEXP(-OFFSET(BFactors,BE$8-$E25,0,1,1)*$N25),"") -> 
E26: 17 | F26: 4.25 | G26: 0.007654423476 | H26: 0.05277520018 | I26: 0.03218975207 | J26: 0.0349 | K26: 0.0175621963 | L26: 0.03607903879 | M26: -0.01851684249 | N26: =IF(F25<Tau,N25*Param1+NORMSINV(RAND())*IRVol*Param2+Calibration!J26-Calibration!J25*Param1,NA()) -> 0.0269818564 | O26: 0.9205435202 | AH26: =IF(AND(AH$8>=$E26,$F25<=Tau,$F26>Tau),Calibration!AF26*FEXP(-OFFSET(BFactors,AH$8-$E26,0,1,1)*$N26),"") ->  | AI26: =IF(AND(AI$8>=$E26,$F25<=Tau,$F26>Tau),Calibration!AG26*FEXP(-OFFSET(BFactors,AI$8-$E26,0,1,1)*$N26),"") ->  | AJ26: =IF(AND(AJ$8>=$E26,$F25<=Tau,$F26>Tau),Calibration!AH26*FEXP(-OFFSET(BFactors,AJ$8-$E26,0,1,1)*$N26),"") ->  | AK26: =IF(AND(AK$8>=$E26,$F25<=Tau,$F26>Tau),Calibration!AI26*FEXP(-OFFSET(BFactors,AK$8-$E26,0,1,1)*$N26),"") ->  | AL26: =IF(AND(AL$8>=$E26,$F25<=Tau,$F26>Tau),Calibration!AJ26*FEXP(-OFFSET(BFactors,AL$8-$E26,0,1,1)*$N26),"") ->  | AM26: =IF(AND(AM$8>=$E26,$F25<=Tau,$F26>Tau),Calibration!AK26*FEXP(-OFFSET(BFactors,AM$8-$E26,0,1,1)*$N26),"") ->  | AN26: =IF(AND(AN$8>=$E26,$F25<=Tau,$F26>Tau),Calibration!AL26*FEXP(-OFFSET(BFactors,AN$8-$E26,0,1,1)*$N26),"") ->  | AO26: =IF(AND(AO$8>=$E26,$F25<=Tau,$F26>Tau),Calibration!AM26*FEXP(-OFFSET(BFactors,AO$8-$E26,0,1,1)*$N26),"") ->  | AP26: =IF(AND(AP$8>=$E26,$F25<=Tau,$F26>Tau),Calibration!AN26*FEXP(-OFFSET(BFactors,AP$8-$E26,0,1,1)*$N26),"") ->  | AQ26: =IF(AND(AQ$8>=$E26,$F25<=Tau,$F26>Tau),Calibration!AO26*FEXP(-OFFSET(BFactors,AQ$8-$E26,0,1,1)*$N26),"") ->  | AR26: =IF(AND(AR$8>=$E26,$F25<=Tau,$F26>Tau),Calibration!AP26*FEXP(-OFFSET(BFactors,AR$8-$E26,0,1,1)*$N26),"") ->  | AS26: =IF(AND(AS$8>=$E26,$F25<=Tau,$F26>Tau),Calibration!AQ26*FEXP(-OFFSET(BFactors,AS$8-$E26,0,1,1)*$N26),"") ->  | AT26: =IF(AND(AT$8>=$E26,$F25<=Tau,$F26>Tau),Calibration!AR26*FEXP(-OFFSET(BFactors,AT$8-$E26,0,1,1)*$N26),"") ->  | AU26: =IF(AND(AU$8>=$E26,$F25<=Tau,$F26>Tau),Calibration!AS26*FEXP(-OFFSET(BFactors,AU$8-$E26,0,1,1)*$N26),"") ->  | AV26: =IF(AND(AV$8>=$E26,$F25<=Tau,$F26>Tau),Calibration!AT26*FEXP(-OFFSET(BFactors,AV$8-$E26,0,1,1)*$N26),"") ->  | AW26: =IF(AND(AW$8>=$E26,$F25<=Tau,$F26>Tau),Calibration!AU26*FEXP(-OFFSET(BFactors,AW$8-$E26,0,1,1)*$N26),"") ->  | AX26: =IF(AND(AX$8>=$E26,$F25<=Tau,$F26>Tau),Calibration!AV26*FEXP(-OFFSET(BFactors,AX$8-$E26,0,1,1)*$N26),"") ->  | AY26: =IF(AND(AY$8>=$E26,$F25<=Tau,$F26>Tau),Calibration!AW26*FEXP(-OFFSET(BFactors,AY$8-$E26,0,1,1)*$N26),"") ->  | AZ26: =IF(AND(AZ$8>=$E26,$F25<=Tau,$F26>Tau),Calibration!AX26*FEXP(-OFFSET(BFactors,AZ$8-$E26,0,1,1)*$N26),"") ->  | BA26: =IF(AND(BA$8>=$E26,$F25<=Tau,$F26>Tau),Calibration!AY26*FEXP(-OFFSET(BFactors,BA$8-$E26,0,1,1)*$N26),"") ->  | BB26: =IF(AND(BB$8>=$E26,$F25<=Tau,$F26>Tau),Calibration!AZ26*FEXP(-OFFSET(BFactors,BB$8-$E26,0,1,1)*$N26),"") ->  | BC26: =IF(AND(BC$8>=$E26,$F25<=Tau,$F26>Tau),Calibration!BA26*FEXP(-OFFSET(BFactors,BC$8-$E26,0,1,1)*$N26),"") ->  | BD26: =IF(AND(BD$8>=$E26,$F25<=Tau,$F26>Tau),Calibration!BB26*FEXP(-OFFSET(BFactors,BD$8-$E26,0,1,1)*$N26),"") ->  | BE26: =IF(AND(BE$8>=$E26,$F25<=Tau,$F26>Tau),Calibration!BC26*FEXP(-OFFSET(BFactors,BE$8-$E26,0,1,1)*$N26),"") -> 
E27: 18 | F27: 4.5 | G27: 0.00819012893 | H27: 0.05957743451 | I27: 0.03376070337 | J27: 0.0334 | K27: 0.01444187775 | L27: 0.03424231491 | M27: -0.01980043716 | N27: =IF(F26<Tau,N26*Param1+NORMSINV(RAND())*IRVol*Param2+Calibration!J27-Calibration!J26*Param1,NA()) -> 0.02936111895 | O27: 0.913811212 | AI27: =IF(AND(AI$8>=$E27,$F26<=Tau,$F27>Tau),Calibration!AG27*FEXP(-OFFSET(BFactors,AI$8-$E27,0,1,1)*$N27),"") ->  | AJ27: =IF(AND(AJ$8>=$E27,$F26<=Tau,$F27>Tau),Calibration!AH27*FEXP(-OFFSET(BFactors,AJ$8-$E27,0,1,1)*$N27),"") ->  | AK27: =IF(AND(AK$8>=$E27,$F26<=Tau,$F27>Tau),Calibration!AI27*FEXP(-OFFSET(BFactors,AK$8-$E27,0,1,1)*$N27),"") ->  | AL27: =IF(AND(AL$8>=$E27,$F26<=Tau,$F27>Tau),Calibration!AJ27*FEXP(-OFFSET(BFactors,AL$8-$E27,0,1,1)*$N27),"") ->  | AM27: =IF(AND(AM$8>=$E27,$F26<=Tau,$F27>Tau),Calibration!AK27*FEXP(-OFFSET(BFactors,AM$8-$E27,0,1,1)*$N27),"") ->  | AN27: =IF(AND(AN$8>=$E27,$F26<=Tau,$F27>Tau),Calibration!AL27*FEXP(-OFFSET(BFactors,AN$8-$E27,0,1,1)*$N27),"") ->  | AO27: =IF(AND(AO$8>=$E27,$F26<=Tau,$F27>Tau),Calibration!AM27*FEXP(-OFFSET(BFactors,AO$8-$E27,0,1,1)*$N27),"") ->  | AP27: =IF(AND(AP$8>=$E27,$F26<=Tau,$F27>Tau),Calibration!AN27*FEXP(-OFFSET(BFactors,AP$8-$E27,0,1,1)*$N27),"") ->  | AQ27: =IF(AND(AQ$8>=$E27,$F26<=Tau,$F27>Tau),Calibration!AO27*FEXP(-OFFSET(BFactors,AQ$8-$E27,0,1,1)*$N27),"") ->  | AR27: =IF(AND(AR$8>=$E27,$F26<=Tau,$F27>Tau),Calibration!AP27*FEXP(-OFFSET(BFactors,AR$8-$E27,0,1,1)*$N27),"") ->  | AS27: =IF(AND(AS$8>=$E27,$F26<=Tau,$F27>Tau),Calibration!AQ27*FEXP(-OFFSET(BFactors,AS$8-$E27,0,1,1)*$N27),"") ->  | AT27: =IF(AND(AT$8>=$E27,$F26<=Tau,$F27>Tau),Calibration!AR27*FEXP(-OFFSET(BFactors,AT$8-$E27,0,1,1)*$N27),"") ->  | AU27: =IF(AND(AU$8>=$E27,$F26<=Tau,$F27>Tau),Calibration!AS27*FEXP(-OFFSET(BFactors,AU$8-$E27,0,1,1)*$N27),"") ->  | AV27: =IF(AND(AV$8>=$E27,$F26<=Tau,$F27>Tau),Calibration!AT27*FEXP(-OFFSET(BFactors,AV$8-$E27,0,1,1)*$N27),"") ->  | AW27: =IF(AND(AW$8>=$E27,$F26<=Tau,$F27>Tau),Calibration!AU27*FEXP(-OFFSET(BFactors,AW$8-$E27,0,1,1)*$N27),"") ->  | AX27: =IF(AND(AX$8>=$E27,$F26<=Tau,$F27>Tau),Calibration!AV27*FEXP(-OFFSET(BFactors,AX$8-$E27,0,1,1)*$N27),"") ->  | AY27: =IF(AND(AY$8>=$E27,$F26<=Tau,$F27>Tau),Calibration!AW27*FEXP(-OFFSET(BFactors,AY$8-$E27,0,1,1)*$N27),"") ->  | AZ27: =IF(AND(AZ$8>=$E27,$F26<=Tau,$F27>Tau),Calibration!AX27*FEXP(-OFFSET(BFactors,AZ$8-$E27,0,1,1)*$N27),"") ->  | BA27: =IF(AND(BA$8>=$E27,$F26<=Tau,$F27>Tau),Calibration!AY27*FEXP(-OFFSET(BFactors,BA$8-$E27,0,1,1)*$N27),"") ->  | BB27: =IF(AND(BB$8>=$E27,$F26<=Tau,$F27>Tau),Calibration!AZ27*FEXP(-OFFSET(BFactors,BB$8-$E27,0,1,1)*$N27),"") ->  | BC27: =IF(AND(BC$8>=$E27,$F26<=Tau,$F27>Tau),Calibration!BA27*FEXP(-OFFSET(BFactors,BC$8-$E27,0,1,1)*$N27),"") ->  | BD27: =IF(AND(BD$8>=$E27,$F26<=Tau,$F27>Tau),Calibration!BB27*FEXP(-OFFSET(BFactors,BD$8-$E27,0,1,1)*$N27),"") ->  | BE27: =IF(AND(BE$8>=$E27,$F26<=Tau,$F27>Tau),Calibration!BC27*FEXP(-OFFSET(BFactors,BE$8-$E27,0,1,1)*$N27),"") -> 
E28: 19 | F28: 4.75 | G28: 0.008708086189 | H28: 0.06661639987 | I28: 0.03493564174 | J28: 0.0366 | K28: 0.01650402791 | L28: 0.03487872067 | M28: -0.01837469276 | N28: =IF(F27<Tau,N27*Param1+NORMSINV(RAND())*IRVol*Param2+Calibration!J28-Calibration!J27*Param1,NA()) -> 0.03053307103 | O28: 0.9068624012 | AJ28: =IF(AND(AJ$8>=$E28,$F27<=Tau,$F28>Tau),Calibration!AH28*FEXP(-OFFSET(BFactors,AJ$8-$E28,0,1,1)*$N28),"") ->  | AK28: =IF(AND(AK$8>=$E28,$F27<=Tau,$F28>Tau),Calibration!AI28*FEXP(-OFFSET(BFactors,AK$8-$E28,0,1,1)*$N28),"") ->  | AL28: =IF(AND(AL$8>=$E28,$F27<=Tau,$F28>Tau),Calibration!AJ28*FEXP(-OFFSET(BFactors,AL$8-$E28,0,1,1)*$N28),"") ->  | AM28: =IF(AND(AM$8>=$E28,$F27<=Tau,$F28>Tau),Calibration!AK28*FEXP(-OFFSET(BFactors,AM$8-$E28,0,1,1)*$N28),"") ->  | AN28: =IF(AND(AN$8>=$E28,$F27<=Tau,$F28>Tau),Calibration!AL28*FEXP(-OFFSET(BFactors,AN$8-$E28,0,1,1)*$N28),"") ->  | AO28: =IF(AND(AO$8>=$E28,$F27<=Tau,$F28>Tau),Calibration!AM28*FEXP(-OFFSET(BFactors,AO$8-$E28,0,1,1)*$N28),"") ->  | AP28: =IF(AND(AP$8>=$E28,$F27<=Tau,$F28>Tau),Calibration!AN28*FEXP(-OFFSET(BFactors,AP$8-$E28,0,1,1)*$N28),"") ->  | AQ28: =IF(AND(AQ$8>=$E28,$F27<=Tau,$F28>Tau),Calibration!AO28*FEXP(-OFFSET(BFactors,AQ$8-$E28,0,1,1)*$N28),"") ->  | AR28: =IF(AND(AR$8>=$E28,$F27<=Tau,$F28>Tau),Calibration!AP28*FEXP(-OFFSET(BFactors,AR$8-$E28,0,1,1)*$N28),"") ->  | AS28: =IF(AND(AS$8>=$E28,$F27<=Tau,$F28>Tau),Calibration!AQ28*FEXP(-OFFSET(BFactors,AS$8-$E28,0,1,1)*$N28),"") ->  | AT28: =IF(AND(AT$8>=$E28,$F27<=Tau,$F28>Tau),Calibration!AR28*FEXP(-OFFSET(BFactors,AT$8-$E28,0,1,1)*$N28),"") ->  | AU28: =IF(AND(AU$8>=$E28,$F27<=Tau,$F28>Tau),Calibration!AS28*FEXP(-OFFSET(BFactors,AU$8-$E28,0,1,1)*$N28),"") ->  | AV28: =IF(AND(AV$8>=$E28,$F27<=Tau,$F28>Tau),Calibration!AT28*FEXP(-OFFSET(BFactors,AV$8-$E28,0,1,1)*$N28),"") ->  | AW28: =IF(AND(AW$8>=$E28,$F27<=Tau,$F28>Tau),Calibration!AU28*FEXP(-OFFSET(BFactors,AW$8-$E28,0,1,1)*$N28),"") ->  | AX28: =IF(AND(AX$8>=$E28,$F27<=Tau,$F28>Tau),Calibration!AV28*FEXP(-OFFSET(BFactors,AX$8-$E28,0,1,1)*$N28),"") ->  | AY28: =IF(AND(AY$8>=$E28,$F27<=Tau,$F28>Tau),Calibration!AW28*FEXP(-OFFSET(BFactors,AY$8-$E28,0,1,1)*$N28),"") ->  | AZ28: =IF(AND(AZ$8>=$E28,$F27<=Tau,$F28>Tau),Calibration!AX28*FEXP(-OFFSET(BFactors,AZ$8-$E28,0,1,1)*$N28),"") ->  | BA28: =IF(AND(BA$8>=$E28,$F27<=Tau,$F28>Tau),Calibration!AY28*FEXP(-OFFSET(BFactors,BA$8-$E28,0,1,1)*$N28),"") ->  | BB28: =IF(AND(BB$8>=$E28,$F27<=Tau,$F28>Tau),Calibration!AZ28*FEXP(-OFFSET(BFactors,BB$8-$E28,0,1,1)*$N28),"") ->  | BC28: =IF(AND(BC$8>=$E28,$F27<=Tau,$F28>Tau),Calibration!BA28*FEXP(-OFFSET(BFactors,BC$8-$E28,0,1,1)*$N28),"") ->  | BD28: =IF(AND(BD$8>=$E28,$F27<=Tau,$F28>Tau),Calibration!BB28*FEXP(-OFFSET(BFactors,BD$8-$E28,0,1,1)*$N28),"") ->  | BE28: =IF(AND(BE$8>=$E28,$F27<=Tau,$F28>Tau),Calibration!BC28*FEXP(-OFFSET(BFactors,BE$8-$E28,0,1,1)*$N28),"") -> 
E29: 20 | F29: 5 | G29: 0.009200000204 | H29: 0.07380146657 | I29: 0.03566076877 | J29: 0.0353 | K29: 0.00364643692 | L29: 0.02636956573 | M29: -0.02272312881 | N29: =IF(F28<Tau,N28*Param1+NORMSINV(RAND())*IRVol*Param2+Calibration!J29-Calibration!J28*Param1,NA()) -> 0.02572329518 | O29: 0.9010492406 | AK29: =IF(AND(AK$8>=$E29,$F28<=Tau,$F29>Tau),Calibration!AI29*FEXP(-OFFSET(BFactors,AK$8-$E29,0,1,1)*$N29),"") ->  | AL29: =IF(AND(AL$8>=$E29,$F28<=Tau,$F29>Tau),Calibration!AJ29*FEXP(-OFFSET(BFactors,AL$8-$E29,0,1,1)*$N29),"") ->  | AM29: =IF(AND(AM$8>=$E29,$F28<=Tau,$F29>Tau),Calibration!AK29*FEXP(-OFFSET(BFactors,AM$8-$E29,0,1,1)*$N29),"") ->  | AN29: =IF(AND(AN$8>=$E29,$F28<=Tau,$F29>Tau),Calibration!AL29*FEXP(-OFFSET(BFactors,AN$8-$E29,0,1,1)*$N29),"") ->  | AO29: =IF(AND(AO$8>=$E29,$F28<=Tau,$F29>Tau),Calibration!AM29*FEXP(-OFFSET(BFactors,AO$8-$E29,0,1,1)*$N29),"") ->  | AP29: =IF(AND(AP$8>=$E29,$F28<=Tau,$F29>Tau),Calibration!AN29*FEXP(-OFFSET(BFactors,AP$8-$E29,0,1,1)*$N29),"") ->  | AQ29: =IF(AND(AQ$8>=$E29,$F28<=Tau,$F29>Tau),Calibration!AO29*FEXP(-OFFSET(BFactors,AQ$8-$E29,0,1,1)*$N29),"") ->  | AR29: =IF(AND(AR$8>=$E29,$F28<=Tau,$F29>Tau),Calibration!AP29*FEXP(-OFFSET(BFactors,AR$8-$E29,0,1,1)*$N29),"") ->  | AS29: =IF(AND(AS$8>=$E29,$F28<=Tau,$F29>Tau),Calibration!AQ29*FEXP(-OFFSET(BFactors,AS$8-$E29,0,1,1)*$N29),"") ->  | AT29: =IF(AND(AT$8>=$E29,$F28<=Tau,$F29>Tau),Calibration!AR29*FEXP(-OFFSET(BFactors,AT$8-$E29,0,1,1)*$N29),"") ->  | AU29: =IF(AND(AU$8>=$E29,$F28<=Tau,$F29>Tau),Calibration!AS29*FEXP(-OFFSET(BFactors,AU$8-$E29,0,1,1)*$N29),"") ->  | AV29: =IF(AND(AV$8>=$E29,$F28<=Tau,$F29>Tau),Calibration!AT29*FEXP(-OFFSET(BFactors,AV$8-$E29,0,1,1)*$N29),"") ->  | AW29: =IF(AND(AW$8>=$E29,$F28<=Tau,$F29>Tau),Calibration!AU29*FEXP(-OFFSET(BFactors,AW$8-$E29,0,1,1)*$N29),"") ->  | AX29: =IF(AND(AX$8>=$E29,$F28<=Tau,$F29>Tau),Calibration!AV29*FEXP(-OFFSET(BFactors,AX$8-$E29,0,1,1)*$N29),"") ->  | AY29: =IF(AND(AY$8>=$E29,$F28<=Tau,$F29>Tau),Calibration!AW29*FEXP(-OFFSET(BFactors,AY$8-$E29,0,1,1)*$N29),"") ->  | AZ29: =IF(AND(AZ$8>=$E29,$F28<=Tau,$F29>Tau),Calibration!AX29*FEXP(-OFFSET(BFactors,AZ$8-$E29,0,1,1)*$N29),"") ->  | BA29: =IF(AND(BA$8>=$E29,$F28<=Tau,$F29>Tau),Calibration!AY29*FEXP(-OFFSET(BFactors,BA$8-$E29,0,1,1)*$N29),"") ->  | BB29: =IF(AND(BB$8>=$E29,$F28<=Tau,$F29>Tau),Calibration!AZ29*FEXP(-OFFSET(BFactors,BB$8-$E29,0,1,1)*$N29),"") ->  | BC29: =IF(AND(BC$8>=$E29,$F28<=Tau,$F29>Tau),Calibration!BA29*FEXP(-OFFSET(BFactors,BC$8-$E29,0,1,1)*$N29),"") ->  | BD29: =IF(AND(BD$8>=$E29,$F28<=Tau,$F29>Tau),Calibration!BB29*FEXP(-OFFSET(BFactors,BD$8-$E29,0,1,1)*$N29),"") ->  | BE29: =IF(AND(BE$8>=$E29,$F28<=Tau,$F29>Tau),Calibration!BC29*FEXP(-OFFSET(BFactors,BE$8-$E29,0,1,1)*$N29),"") -> 
E30: 21 | F30: 5.25 | G30: 0.009659133943 | H30: 0.08104435481 | I30: 0.03594774738 | J30: 0.0376 | K30: 0.01163884349 | L30: 0.03004664367 | M30: -0.01840780018 | N30: =IF(F29<Tau,N29*Param1+NORMSINV(RAND())*IRVol*Param2+Calibration!J30-Calibration!J29*Param1,NA()) -> 0.01805476456 | O30: 0.8969913476 | AL30: =IF(AND(AL$8>=$E30,$F29<=Tau,$F30>Tau),Calibration!AJ30*FEXP(-OFFSET(BFactors,AL$8-$E30,0,1,1)*$N30),"") ->  | AM30: =IF(AND(AM$8>=$E30,$F29<=Tau,$F30>Tau),Calibration!AK30*FEXP(-OFFSET(BFactors,AM$8-$E30,0,1,1)*$N30),"") ->  | AN30: =IF(AND(AN$8>=$E30,$F29<=Tau,$F30>Tau),Calibration!AL30*FEXP(-OFFSET(BFactors,AN$8-$E30,0,1,1)*$N30),"") ->  | AO30: =IF(AND(AO$8>=$E30,$F29<=Tau,$F30>Tau),Calibration!AM30*FEXP(-OFFSET(BFactors,AO$8-$E30,0,1,1)*$N30),"") ->  | AP30: =IF(AND(AP$8>=$E30,$F29<=Tau,$F30>Tau),Calibration!AN30*FEXP(-OFFSET(BFactors,AP$8-$E30,0,1,1)*$N30),"") ->  | AQ30: =IF(AND(AQ$8>=$E30,$F29<=Tau,$F30>Tau),Calibration!AO30*FEXP(-OFFSET(BFactors,AQ$8-$E30,0,1,1)*$N30),"") ->  | AR30: =IF(AND(AR$8>=$E30,$F29<=Tau,$F30>Tau),Calibration!AP30*FEXP(-OFFSET(BFactors,AR$8-$E30,0,1,1)*$N30),"") ->  | AS30: =IF(AND(AS$8>=$E30,$F29<=Tau,$F30>Tau),Calibration!AQ30*FEXP(-OFFSET(BFactors,AS$8-$E30,0,1,1)*$N30),"") ->  | AT30: =IF(AND(AT$8>=$E30,$F29<=Tau,$F30>Tau),Calibration!AR30*FEXP(-OFFSET(BFactors,AT$8-$E30,0,1,1)*$N30),"") ->  | AU30: =IF(AND(AU$8>=$E30,$F29<=Tau,$F30>Tau),Calibration!AS30*FEXP(-OFFSET(BFactors,AU$8-$E30,0,1,1)*$N30),"") ->  | AV30: =IF(AND(AV$8>=$E30,$F29<=Tau,$F30>Tau),Calibration!AT30*FEXP(-OFFSET(BFactors,AV$8-$E30,0,1,1)*$N30),"") ->  | AW30: =IF(AND(AW$8>=$E30,$F29<=Tau,$F30>Tau),Calibration!AU30*FEXP(-OFFSET(BFactors,AW$8-$E30,0,1,1)*$N30),"") ->  | AX30: =IF(AND(AX$8>=$E30,$F29<=Tau,$F30>Tau),Calibration!AV30*FEXP(-OFFSET(BFactors,AX$8-$E30,0,1,1)*$N30),"") ->  | AY30: =IF(AND(AY$8>=$E30,$F29<=Tau,$F30>Tau),Calibration!AW30*FEXP(-OFFSET(BFactors,AY$8-$E30,0,1,1)*$N30),"") ->  | AZ30: =IF(AND(AZ$8>=$E30,$F29<=Tau,$F30>Tau),Calibration!AX30*FEXP(-OFFSET(BFactors,AZ$8-$E30,0,1,1)*$N30),"") ->  | BA30: =IF(AND(BA$8>=$E30,$F29<=Tau,$F30>Tau),Calibration!AY30*FEXP(-OFFSET(BFactors,BA$8-$E30,0,1,1)*$N30),"") ->  | BB30: =IF(AND(BB$8>=$E30,$F29<=Tau,$F30>Tau),Calibration!AZ30*FEXP(-OFFSET(BFactors,BB$8-$E30,0,1,1)*$N30),"") ->  | BC30: =IF(AND(BC$8>=$E30,$F29<=Tau,$F30>Tau),Calibration!BA30*FEXP(-OFFSET(BFactors,BC$8-$E30,0,1,1)*$N30),"") ->  | BD30: =IF(AND(BD$8>=$E30,$F29<=Tau,$F30>Tau),Calibration!BB30*FEXP(-OFFSET(BFactors,BD$8-$E30,0,1,1)*$N30),"") ->  | BE30: =IF(AND(BE$8>=$E30,$F29<=Tau,$F30>Tau),Calibration!BC30*FEXP(-OFFSET(BFactors,BE$8-$E30,0,1,1)*$N30),"") -> 
E31: 22 | F31: 5.5 | G31: 0.01008498181 | H31: 0.08830125468 | I31: 0.03601728962 | J31: 0.0346 | K31: 0.01116394428 | L31: 0.02989491759 | M31: -0.01873097331 | N31: =IF(F30<Tau,N30*Param1+NORMSINV(RAND())*IRVol*Param2+Calibration!J31-Calibration!J30*Param1,NA()) -> 0.01820978145 | O31: 0.8929171243 | AM31: =IF(AND(AM$8>=$E31,$F30<=Tau,$F31>Tau),Calibration!AK31*FEXP(-OFFSET(BFactors,AM$8-$E31,0,1,1)*$N31),"") ->  | AN31: =IF(AND(AN$8>=$E31,$F30<=Tau,$F31>Tau),Calibration!AL31*FEXP(-OFFSET(BFactors,AN$8-$E31,0,1,1)*$N31),"") ->  | AO31: =IF(AND(AO$8>=$E31,$F30<=Tau,$F31>Tau),Calibration!AM31*FEXP(-OFFSET(BFactors,AO$8-$E31,0,1,1)*$N31),"") ->  | AP31: =IF(AND(AP$8>=$E31,$F30<=Tau,$F31>Tau),Calibration!AN31*FEXP(-OFFSET(BFactors,AP$8-$E31,0,1,1)*$N31),"") ->  | AQ31: =IF(AND(AQ$8>=$E31,$F30<=Tau,$F31>Tau),Calibration!AO31*FEXP(-OFFSET(BFactors,AQ$8-$E31,0,1,1)*$N31),"") ->  | AR31: =IF(AND(AR$8>=$E31,$F30<=Tau,$F31>Tau),Calibration!AP31*FEXP(-OFFSET(BFactors,AR$8-$E31,0,1,1)*$N31),"") ->  | AS31: =IF(AND(AS$8>=$E31,$F30<=Tau,$F31>Tau),Calibration!AQ31*FEXP(-OFFSET(BFactors,AS$8-$E31,0,1,1)*$N31),"") ->  | AT31: =IF(AND(AT$8>=$E31,$F30<=Tau,$F31>Tau),Calibration!AR31*FEXP(-OFFSET(BFactors,AT$8-$E31,0,1,1)*$N31),"") ->  | AU31: =IF(AND(AU$8>=$E31,$F30<=Tau,$F31>Tau),Calibration!AS31*FEXP(-OFFSET(BFactors,AU$8-$E31,0,1,1)*$N31),"") ->  | AV31: =IF(AND(AV$8>=$E31,$F30<=Tau,$F31>Tau),Calibration!AT31*FEXP(-OFFSET(BFactors,AV$8-$E31,0,1,1)*$N31),"") ->  | AW31: =IF(AND(AW$8>=$E31,$F30<=Tau,$F31>Tau),Calibration!AU31*FEXP(-OFFSET(BFactors,AW$8-$E31,0,1,1)*$N31),"") ->  | AX31: =IF(AND(AX$8>=$E31,$F30<=Tau,$F31>Tau),Calibration!AV31*FEXP(-OFFSET(BFactors,AX$8-$E31,0,1,1)*$N31),"") ->  | AY31: =IF(AND(AY$8>=$E31,$F30<=Tau,$F31>Tau),Calibration!AW31*FEXP(-OFFSET(BFactors,AY$8-$E31,0,1,1)*$N31),"") ->  | AZ31: =IF(AND(AZ$8>=$E31,$F30<=Tau,$F31>Tau),Calibration!AX31*FEXP(-OFFSET(BFactors,AZ$8-$E31,0,1,1)*$N31),"") ->  | BA31: =IF(AND(BA$8>=$E31,$F30<=Tau,$F31>Tau),Calibration!AY31*FEXP(-OFFSET(BFactors,BA$8-$E31,0,1,1)*$N31),"") ->  | BB31: =IF(AND(BB$8>=$E31,$F30<=Tau,$F31>Tau),Calibration!AZ31*FEXP(-OFFSET(BFactors,BB$8-$E31,0,1,1)*$N31),"") ->  | BC31: =IF(AND(BC$8>=$E31,$F30<=Tau,$F31>Tau),Calibration!BA31*FEXP(-OFFSET(BFactors,BC$8-$E31,0,1,1)*$N31),"") ->  | BD31: =IF(AND(BD$8>=$E31,$F30<=Tau,$F31>Tau),Calibration!BB31*FEXP(-OFFSET(BFactors,BD$8-$E31,0,1,1)*$N31),"") ->  | BE31: =IF(AND(BE$8>=$E31,$F30<=Tau,$F31>Tau),Calibration!BC31*FEXP(-OFFSET(BFactors,BE$8-$E31,0,1,1)*$N31),"") -> 
E32: 23 | F32: 5.75 | G32: 0.01047859576 | H32: 0.09554242173 | I32: 0.03593920479 | J32: 0.0331 | K32: 0.01082885242 | L32: 0.02953087543 | M32: -0.01870202301 | N32: =IF(F31<Tau,N31*Param1+NORMSINV(RAND())*IRVol*Param2+Calibration!J32-Calibration!J31*Param1,NA()) -> 0.02119300535 | O32: 0.8881987356 | AN32: =IF(AND(AN$8>=$E32,$F31<=Tau,$F32>Tau),Calibration!AL32*FEXP(-OFFSET(BFactors,AN$8-$E32,0,1,1)*$N32),"") ->  | AO32: =IF(AND(AO$8>=$E32,$F31<=Tau,$F32>Tau),Calibration!AM32*FEXP(-OFFSET(BFactors,AO$8-$E32,0,1,1)*$N32),"") ->  | AP32: =IF(AND(AP$8>=$E32,$F31<=Tau,$F32>Tau),Calibration!AN32*FEXP(-OFFSET(BFactors,AP$8-$E32,0,1,1)*$N32),"") ->  | AQ32: =IF(AND(AQ$8>=$E32,$F31<=Tau,$F32>Tau),Calibration!AO32*FEXP(-OFFSET(BFactors,AQ$8-$E32,0,1,1)*$N32),"") ->  | AR32: =IF(AND(AR$8>=$E32,$F31<=Tau,$F32>Tau),Calibration!AP32*FEXP(-OFFSET(BFactors,AR$8-$E32,0,1,1)*$N32),"") ->  | AS32: =IF(AND(AS$8>=$E32,$F31<=Tau,$F32>Tau),Calibration!AQ32*FEXP(-OFFSET(BFactors,AS$8-$E32,0,1,1)*$N32),"") ->  | AT32: =IF(AND(AT$8>=$E32,$F31<=Tau,$F32>Tau),Calibration!AR32*FEXP(-OFFSET(BFactors,AT$8-$E32,0,1,1)*$N32),"") ->  | AU32: =IF(AND(AU$8>=$E32,$F31<=Tau,$F32>Tau),Calibration!AS32*FEXP(-OFFSET(BFactors,AU$8-$E32,0,1,1)*$N32),"") ->  | AV32: =IF(AND(AV$8>=$E32,$F31<=Tau,$F32>Tau),Calibration!AT32*FEXP(-OFFSET(BFactors,AV$8-$E32,0,1,1)*$N32),"") ->  | AW32: =IF(AND(AW$8>=$E32,$F31<=Tau,$F32>Tau),Calibration!AU32*FEXP(-OFFSET(BFactors,AW$8-$E32,0,1,1)*$N32),"") ->  | AX32: =IF(AND(AX$8>=$E32,$F31<=Tau,$F32>Tau),Calibration!AV32*FEXP(-OFFSET(BFactors,AX$8-$E32,0,1,1)*$N32),"") ->  | AY32: =IF(AND(AY$8>=$E32,$F31<=Tau,$F32>Tau),Calibration!AW32*FEXP(-OFFSET(BFactors,AY$8-$E32,0,1,1)*$N32),"") ->  | AZ32: =IF(AND(AZ$8>=$E32,$F31<=Tau,$F32>Tau),Calibration!AX32*FEXP(-OFFSET(BFactors,AZ$8-$E32,0,1,1)*$N32),"") ->  | BA32: =IF(AND(BA$8>=$E32,$F31<=Tau,$F32>Tau),Calibration!AY32*FEXP(-OFFSET(BFactors,BA$8-$E32,0,1,1)*$N32),"") ->  | BB32: =IF(AND(BB$8>=$E32,$F31<=Tau,$F32>Tau),Calibration!AZ32*FEXP(-OFFSET(BFactors,BB$8-$E32,0,1,1)*$N32),"") ->  | BC32: =IF(AND(BC$8>=$E32,$F31<=Tau,$F32>Tau),Calibration!BA32*FEXP(-OFFSET(BFactors,BC$8-$E32,0,1,1)*$N32),"") ->  | BD32: =IF(AND(BD$8>=$E32,$F31<=Tau,$F32>Tau),Calibration!BB32*FEXP(-OFFSET(BFactors,BD$8-$E32,0,1,1)*$N32),"") ->  | BE32: =IF(AND(BE$8>=$E32,$F31<=Tau,$F32>Tau),Calibration!BC32*FEXP(-OFFSET(BFactors,BE$8-$E32,0,1,1)*$N32),"") -> 
E33: 24 | F33: 6 | G33: 0.01084102913 | H33: 0.1027406168 | I33: 0.03572592728 | J33: 0.0325 | K33: 0.01491107587 | L33: 0.03133061668 | M33: -0.0164195408 | N33: =IF(F32<Tau,N32*Param1+NORMSINV(RAND())*IRVol*Param2+Calibration!J33-Calibration!J32*Param1,NA()) -> 0.008700332054 | O33: 0.8862689292 | AO33: =IF(AND(AO$8>=$E33,$F32<=Tau,$F33>Tau),Calibration!AM33*FEXP(-OFFSET(BFactors,AO$8-$E33,0,1,1)*$N33),"") ->  | AP33: =IF(AND(AP$8>=$E33,$F32<=Tau,$F33>Tau),Calibration!AN33*FEXP(-OFFSET(BFactors,AP$8-$E33,0,1,1)*$N33),"") ->  | AQ33: =IF(AND(AQ$8>=$E33,$F32<=Tau,$F33>Tau),Calibration!AO33*FEXP(-OFFSET(BFactors,AQ$8-$E33,0,1,1)*$N33),"") ->  | AR33: =IF(AND(AR$8>=$E33,$F32<=Tau,$F33>Tau),Calibration!AP33*FEXP(-OFFSET(BFactors,AR$8-$E33,0,1,1)*$N33),"") ->  | AS33: =IF(AND(AS$8>=$E33,$F32<=Tau,$F33>Tau),Calibration!AQ33*FEXP(-OFFSET(BFactors,AS$8-$E33,0,1,1)*$N33),"") ->  | AT33: =IF(AND(AT$8>=$E33,$F32<=Tau,$F33>Tau),Calibration!AR33*FEXP(-OFFSET(BFactors,AT$8-$E33,0,1,1)*$N33),"") ->  | AU33: =IF(AND(AU$8>=$E33,$F32<=Tau,$F33>Tau),Calibration!AS33*FEXP(-OFFSET(BFactors,AU$8-$E33,0,1,1)*$N33),"") ->  | AV33: =IF(AND(AV$8>=$E33,$F32<=Tau,$F33>Tau),Calibration!AT33*FEXP(-OFFSET(BFactors,AV$8-$E33,0,1,1)*$N33),"") ->  | AW33: =IF(AND(AW$8>=$E33,$F32<=Tau,$F33>Tau),Calibration!AU33*FEXP(-OFFSET(BFactors,AW$8-$E33,0,1,1)*$N33),"") ->  | AX33: =IF(AND(AX$8>=$E33,$F32<=Tau,$F33>Tau),Calibration!AV33*FEXP(-OFFSET(BFactors,AX$8-$E33,0,1,1)*$N33),"") ->  | AY33: =IF(AND(AY$8>=$E33,$F32<=Tau,$F33>Tau),Calibration!AW33*FEXP(-OFFSET(BFactors,AY$8-$E33,0,1,1)*$N33),"") ->  | AZ33: =IF(AND(AZ$8>=$E33,$F32<=Tau,$F33>Tau),Calibration!AX33*FEXP(-OFFSET(BFactors,AZ$8-$E33,0,1,1)*$N33),"") ->  | BA33: =IF(AND(BA$8>=$E33,$F32<=Tau,$F33>Tau),Calibration!AY33*FEXP(-OFFSET(BFactors,BA$8-$E33,0,1,1)*$N33),"") ->  | BB33: =IF(AND(BB$8>=$E33,$F32<=Tau,$F33>Tau),Calibration!AZ33*FEXP(-OFFSET(BFactors,BB$8-$E33,0,1,1)*$N33),"") ->  | BC33: =IF(AND(BC$8>=$E33,$F32<=Tau,$F33>Tau),Calibration!BA33*FEXP(-OFFSET(BFactors,BC$8-$E33,0,1,1)*$N33),"") ->  | BD33: =IF(AND(BD$8>=$E33,$F32<=Tau,$F33>Tau),Calibration!BB33*FEXP(-OFFSET(BFactors,BD$8-$E33,0,1,1)*$N33),"") ->  | BE33: =IF(AND(BE$8>=$E33,$F32<=Tau,$F33>Tau),Calibration!BC33*FEXP(-OFFSET(BFactors,BE$8-$E33,0,1,1)*$N33),"") -> 
E34: 25 | F34: 6.25 | G34: 0.01117333388 | H34: 0.1098710104 | I34: 0.03538941618 | J34: 0.0338 | K34: 0.01556638884 | L34: 0.02816145387 | M34: -0.01259506503 | N34: =IF(F33<Tau,N33*Param1+NORMSINV(RAND())*IRVol*Param2+Calibration!J34-Calibration!J33*Param1,NA()) -> 0.01554327647 | O34: 0.8828317309 | AP34: =IF(AND(AP$8>=$E34,$F33<=Tau,$F34>Tau),Calibration!AN34*FEXP(-OFFSET(BFactors,AP$8-$E34,0,1,1)*$N34),"") ->  | AQ34: =IF(AND(AQ$8>=$E34,$F33<=Tau,$F34>Tau),Calibration!AO34*FEXP(-OFFSET(BFactors,AQ$8-$E34,0,1,1)*$N34),"") ->  | AR34: =IF(AND(AR$8>=$E34,$F33<=Tau,$F34>Tau),Calibration!AP34*FEXP(-OFFSET(BFactors,AR$8-$E34,0,1,1)*$N34),"") ->  | AS34: =IF(AND(AS$8>=$E34,$F33<=Tau,$F34>Tau),Calibration!AQ34*FEXP(-OFFSET(BFactors,AS$8-$E34,0,1,1)*$N34),"") ->  | AT34: =IF(AND(AT$8>=$E34,$F33<=Tau,$F34>Tau),Calibration!AR34*FEXP(-OFFSET(BFactors,AT$8-$E34,0,1,1)*$N34),"") ->  | AU34: =IF(AND(AU$8>=$E34,$F33<=Tau,$F34>Tau),Calibration!AS34*FEXP(-OFFSET(BFactors,AU$8-$E34,0,1,1)*$N34),"") ->  | AV34: =IF(AND(AV$8>=$E34,$F33<=Tau,$F34>Tau),Calibration!AT34*FEXP(-OFFSET(BFactors,AV$8-$E34,0,1,1)*$N34),"") ->  | AW34: =IF(AND(AW$8>=$E34,$F33<=Tau,$F34>Tau),Calibration!AU34*FEXP(-OFFSET(BFactors,AW$8-$E34,0,1,1)*$N34),"") ->  | AX34: =IF(AND(AX$8>=$E34,$F33<=Tau,$F34>Tau),Calibration!AV34*FEXP(-OFFSET(BFactors,AX$8-$E34,0,1,1)*$N34),"") ->  | AY34: =IF(AND(AY$8>=$E34,$F33<=Tau,$F34>Tau),Calibration!AW34*FEXP(-OFFSET(BFactors,AY$8-$E34,0,1,1)*$N34),"") ->  | AZ34: =IF(AND(AZ$8>=$E34,$F33<=Tau,$F34>Tau),Calibration!AX34*FEXP(-OFFSET(BFactors,AZ$8-$E34,0,1,1)*$N34),"") ->  | BA34: =IF(AND(BA$8>=$E34,$F33<=Tau,$F34>Tau),Calibration!AY34*FEXP(-OFFSET(BFactors,BA$8-$E34,0,1,1)*$N34),"") ->  | BB34: =IF(AND(BB$8>=$E34,$F33<=Tau,$F34>Tau),Calibration!AZ34*FEXP(-OFFSET(BFactors,BB$8-$E34,0,1,1)*$N34),"") ->  | BC34: =IF(AND(BC$8>=$E34,$F33<=Tau,$F34>Tau),Calibration!BA34*FEXP(-OFFSET(BFactors,BC$8-$E34,0,1,1)*$N34),"") ->  | BD34: =IF(AND(BD$8>=$E34,$F33<=Tau,$F34>Tau),Calibration!BB34*FEXP(-OFFSET(BFactors,BD$8-$E34,0,1,1)*$N34),"") ->  | BE34: =IF(AND(BE$8>=$E34,$F33<=Tau,$F34>Tau),Calibration!BC34*FEXP(-OFFSET(BFactors,BE$8-$E34,0,1,1)*$N34),"") -> 
E35: 26 | F35: 6.5 | G35: 0.01147656219 | H35: 0.1169111175 | I35: 0.03494130856 | J35: 0.0352 | K35: 0.01492699887 | L35: 0.02941547449 | M35: -0.01448847561 | N35: =IF(F34<Tau,N34*Param1+NORMSINV(RAND())*IRVol*Param2+Calibration!J35-Calibration!J34*Param1,NA()) -> 0.011703862 | O35: 0.8802523711 | P35: 0.0003020138421 | AQ35: =IF(AND(AQ$8>=$E35,$F34<=Tau,$F35>Tau),Calibration!AO35*FEXP(-OFFSET(BFactors,AQ$8-$E35,0,1,1)*$N35),"") -> 1 | AR35: =IF(AND(AR$8>=$E35,$F34<=Tau,$F35>Tau),Calibration!AP35*FEXP(-OFFSET(BFactors,AR$8-$E35,0,1,1)*$N35),"") -> 0.9969789793 | AS35: =IF(AND(AS$8>=$E35,$F34<=Tau,$F35>Tau),Calibration!AQ35*FEXP(-OFFSET(BFactors,AS$8-$E35,0,1,1)*$N35),"") -> 0.9938439441 | AT35: =IF(AND(AT$8>=$E35,$F34<=Tau,$F35>Tau),Calibration!AR35*FEXP(-OFFSET(BFactors,AT$8-$E35,0,1,1)*$N35),"") -> 0.9905996613 | AU35: =IF(AND(AU$8>=$E35,$F34<=Tau,$F35>Tau),Calibration!AS35*FEXP(-OFFSET(BFactors,AU$8-$E35,0,1,1)*$N35),"") -> 0.9872505079 | AV35: =IF(AND(AV$8>=$E35,$F34<=Tau,$F35>Tau),Calibration!AT35*FEXP(-OFFSET(BFactors,AV$8-$E35,0,1,1)*$N35),"") -> 0.9838006738 | AW35: =IF(AND(AW$8>=$E35,$F34<=Tau,$F35>Tau),Calibration!AU35*FEXP(-OFFSET(BFactors,AW$8-$E35,0,1,1)*$N35),"") -> 0.9802542377 | AX35: =IF(AND(AX$8>=$E35,$F34<=Tau,$F35>Tau),Calibration!AV35*FEXP(-OFFSET(BFactors,AX$8-$E35,0,1,1)*$N35),"") -> 0.9766151738 | AY35: =IF(AND(AY$8>=$E35,$F34<=Tau,$F35>Tau),Calibration!AW35*FEXP(-OFFSET(BFactors,AY$8-$E35,0,1,1)*$N35),"") -> 0.9728873352 | AZ35: =IF(AND(AZ$8>=$E35,$F34<=Tau,$F35>Tau),Calibration!AX35*FEXP(-OFFSET(BFactors,AZ$8-$E35,0,1,1)*$N35),"") -> 0.9690744945 | BA35: =IF(AND(BA$8>=$E35,$F34<=Tau,$F35>Tau),Calibration!AY35*FEXP(-OFFSET(BFactors,BA$8-$E35,0,1,1)*$N35),"") -> 0.9651803092 | BB35: =IF(AND(BB$8>=$E35,$F34<=Tau,$F35>Tau),Calibration!AZ35*FEXP(-OFFSET(BFactors,BB$8-$E35,0,1,1)*$N35),"") -> 0.9612083423 | BC35: =IF(AND(BC$8>=$E35,$F34<=Tau,$F35>Tau),Calibration!BA35*FEXP(-OFFSET(BFactors,BC$8-$E35,0,1,1)*$N35),"") -> 0.9571620615 | BD35: =IF(AND(BD$8>=$E35,$F34<=Tau,$F35>Tau),Calibration!BB35*FEXP(-OFFSET(BFactors,BD$8-$E35,0,1,1)*$N35),"") -> 0.9530448419 | BE35: =IF(AND(BE$8>=$E35,$F34<=Tau,$F35>Tau),Calibration!BC35*FEXP(-OFFSET(BFactors,BE$8-$E35,0,1,1)*$N35),"") -> 0.9488599679
E36: 27 | F36: 6.75 | G36: 0.01175176683 | H36: 0.1238407189 | I36: 0.03439284912 | J36: 0.0355 | K36: 0.01224964971 | L36: 0.02533253295 | M36: -0.01308288324 | N36: =IF(F35<Tau,N35*Param1+NORMSINV(RAND())*IRVol*Param2+Calibration!J36-Calibration!J35*Param1,NA()) ->  | AR36: =IF(AND(AR$8>=$E36,$F35<=Tau,$F36>Tau),Calibration!AP36*FEXP(-OFFSET(BFactors,AR$8-$E36,0,1,1)*$N36),"") ->  | AS36: =IF(AND(AS$8>=$E36,$F35<=Tau,$F36>Tau),Calibration!AQ36*FEXP(-OFFSET(BFactors,AS$8-$E36,0,1,1)*$N36),"") ->  | AT36: =IF(AND(AT$8>=$E36,$F35<=Tau,$F36>Tau),Calibration!AR36*FEXP(-OFFSET(BFactors,AT$8-$E36,0,1,1)*$N36),"") ->  | AU36: =IF(AND(AU$8>=$E36,$F35<=Tau,$F36>Tau),Calibration!AS36*FEXP(-OFFSET(BFactors,AU$8-$E36,0,1,1)*$N36),"") ->  | AV36: =IF(AND(AV$8>=$E36,$F35<=Tau,$F36>Tau),Calibration!AT36*FEXP(-OFFSET(BFactors,AV$8-$E36,0,1,1)*$N36),"") ->  | AW36: =IF(AND(AW$8>=$E36,$F35<=Tau,$F36>Tau),Calibration!AU36*FEXP(-OFFSET(BFactors,AW$8-$E36,0,1,1)*$N36),"") ->  | AX36: =IF(AND(AX$8>=$E36,$F35<=Tau,$F36>Tau),Calibration!AV36*FEXP(-OFFSET(BFactors,AX$8-$E36,0,1,1)*$N36),"") ->  | AY36: =IF(AND(AY$8>=$E36,$F35<=Tau,$F36>Tau),Calibration!AW36*FEXP(-OFFSET(BFactors,AY$8-$E36,0,1,1)*$N36),"") ->  | AZ36: =IF(AND(AZ$8>=$E36,$F35<=Tau,$F36>Tau),Calibration!AX36*FEXP(-OFFSET(BFactors,AZ$8-$E36,0,1,1)*$N36),"") ->  | BA36: =IF(AND(BA$8>=$E36,$F35<=Tau,$F36>Tau),Calibration!AY36*FEXP(-OFFSET(BFactors,BA$8-$E36,0,1,1)*$N36),"") ->  | BB36: =IF(AND(BB$8>=$E36,$F35<=Tau,$F36>Tau),Calibration!AZ36*FEXP(-OFFSET(BFactors,BB$8-$E36,0,1,1)*$N36),"") ->  | BC36: =IF(AND(BC$8>=$E36,$F35<=Tau,$F36>Tau),Calibration!BA36*FEXP(-OFFSET(BFactors,BC$8-$E36,0,1,1)*$N36),"") ->  | BD36: =IF(AND(BD$8>=$E36,$F35<=Tau,$F36>Tau),Calibration!BB36*FEXP(-OFFSET(BFactors,BD$8-$E36,0,1,1)*$N36),"") ->  | BE36: =IF(AND(BE$8>=$E36,$F35<=Tau,$F36>Tau),Calibration!BC36*FEXP(-OFFSET(BFactors,BE$8-$E36,0,1,1)*$N36),"") -> 
E37: 28 | F37: 7 | G37: 0.0120000001 | H37: 0.1306417657 | I37: 0.03375480902 | J37: 0.0318 | K37: 0.01035528344 | L37: 0.02378522661 | M37: -0.01342994317 | N37: =IF(F36<Tau,N36*Param1+NORMSINV(RAND())*IRVol*Param2+Calibration!J37-Calibration!J36*Param1,NA()) ->  | AS37: =IF(AND(AS$8>=$E37,$F36<=Tau,$F37>Tau),Calibration!AQ37*FEXP(-OFFSET(BFactors,AS$8-$E37,0,1,1)*$N37),"") ->  | AT37: =IF(AND(AT$8>=$E37,$F36<=Tau,$F37>Tau),Calibration!AR37*FEXP(-OFFSET(BFactors,AT$8-$E37,0,1,1)*$N37),"") ->  | AU37: =IF(AND(AU$8>=$E37,$F36<=Tau,$F37>Tau),Calibration!AS37*FEXP(-OFFSET(BFactors,AU$8-$E37,0,1,1)*$N37),"") ->  | AV37: =IF(AND(AV$8>=$E37,$F36<=Tau,$F37>Tau),Calibration!AT37*FEXP(-OFFSET(BFactors,AV$8-$E37,0,1,1)*$N37),"") ->  | AW37: =IF(AND(AW$8>=$E37,$F36<=Tau,$F37>Tau),Calibration!AU37*FEXP(-OFFSET(BFactors,AW$8-$E37,0,1,1)*$N37),"") ->  | AX37: =IF(AND(AX$8>=$E37,$F36<=Tau,$F37>Tau),Calibration!AV37*FEXP(-OFFSET(BFactors,AX$8-$E37,0,1,1)*$N37),"") ->  | AY37: =IF(AND(AY$8>=$E37,$F36<=Tau,$F37>Tau),Calibration!AW37*FEXP(-OFFSET(BFactors,AY$8-$E37,0,1,1)*$N37),"") ->  | AZ37: =IF(AND(AZ$8>=$E37,$F36<=Tau,$F37>Tau),Calibration!AX37*FEXP(-OFFSET(BFactors,AZ$8-$E37,0,1,1)*$N37),"") ->  | BA37: =IF(AND(BA$8>=$E37,$F36<=Tau,$F37>Tau),Calibration!AY37*FEXP(-OFFSET(BFactors,BA$8-$E37,0,1,1)*$N37),"") ->  | BB37: =IF(AND(BB$8>=$E37,$F36<=Tau,$F37>Tau),Calibration!AZ37*FEXP(-OFFSET(BFactors,BB$8-$E37,0,1,1)*$N37),"") ->  | BC37: =IF(AND(BC$8>=$E37,$F36<=Tau,$F37>Tau),Calibration!BA37*FEXP(-OFFSET(BFactors,BC$8-$E37,0,1,1)*$N37),"") ->  | BD37: =IF(AND(BD$8>=$E37,$F36<=Tau,$F37>Tau),Calibration!BB37*FEXP(-OFFSET(BFactors,BD$8-$E37,0,1,1)*$N37),"") ->  | BE37: =IF(AND(BE$8>=$E37,$F36<=Tau,$F37>Tau),Calibration!BC37*FEXP(-OFFSET(BFactors,BE$8-$E37,0,1,1)*$N37),"") -> 
E38: 29 | F38: 7.25 | G38: 0.01222245423 | H38: 0.1372997547 | I38: 0.03304478839 | J38: 0.0343 | K38: 0.01154449066 | L38: 0.02373849499 | M38: -0.01219400433 | N38: =IF(F37<Tau,N37*Param1+NORMSINV(RAND())*IRVol*Param2+Calibration!J38-Calibration!J37*Param1,NA()) ->  | AT38: =IF(AND(AT$8>=$E38,$F37<=Tau,$F38>Tau),Calibration!AR38*FEXP(-OFFSET(BFactors,AT$8-$E38,0,1,1)*$N38),"") ->  | AU38: =IF(AND(AU$8>=$E38,$F37<=Tau,$F38>Tau),Calibration!AS38*FEXP(-OFFSET(BFactors,AU$8-$E38,0,1,1)*$N38),"") ->  | AV38: =IF(AND(AV$8>=$E38,$F37<=Tau,$F38>Tau),Calibration!AT38*FEXP(-OFFSET(BFactors,AV$8-$E38,0,1,1)*$N38),"") ->  | AW38: =IF(AND(AW$8>=$E38,$F37<=Tau,$F38>Tau),Calibration!AU38*FEXP(-OFFSET(BFactors,AW$8-$E38,0,1,1)*$N38),"") ->  | AX38: =IF(AND(AX$8>=$E38,$F37<=Tau,$F38>Tau),Calibration!AV38*FEXP(-OFFSET(BFactors,AX$8-$E38,0,1,1)*$N38),"") ->  | AY38: =IF(AND(AY$8>=$E38,$F37<=Tau,$F38>Tau),Calibration!AW38*FEXP(-OFFSET(BFactors,AY$8-$E38,0,1,1)*$N38),"") ->  | AZ38: =IF(AND(AZ$8>=$E38,$F37<=Tau,$F38>Tau),Calibration!AX38*FEXP(-OFFSET(BFactors,AZ$8-$E38,0,1,1)*$N38),"") ->  | BA38: =IF(AND(BA$8>=$E38,$F37<=Tau,$F38>Tau),Calibration!AY38*FEXP(-OFFSET(BFactors,BA$8-$E38,0,1,1)*$N38),"") ->  | BB38: =IF(AND(BB$8>=$E38,$F37<=Tau,$F38>Tau),Calibration!AZ38*FEXP(-OFFSET(BFactors,BB$8-$E38,0,1,1)*$N38),"") ->  | BC38: =IF(AND(BC$8>=$E38,$F37<=Tau,$F38>Tau),Calibration!BA38*FEXP(-OFFSET(BFactors,BC$8-$E38,0,1,1)*$N38),"") ->  | BD38: =IF(AND(BD$8>=$E38,$F37<=Tau,$F38>Tau),Calibration!BB38*FEXP(-OFFSET(BFactors,BD$8-$E38,0,1,1)*$N38),"") ->  | BE38: =IF(AND(BE$8>=$E38,$F37<=Tau,$F38>Tau),Calibration!BC38*FEXP(-OFFSET(BFactors,BE$8-$E38,0,1,1)*$N38),"") -> 
E39: 30 | F39: 7.5 | G39: 0.01242088176 | H39: 0.1438083365 | I39: 0.03230325328 | J39: 0.0337 | K39: 0.009911496902 | L39: 0.01984176225 | M39: -0.009930265344 | N39: =IF(F38<Tau,N38*Param1+NORMSINV(RAND())*IRVol*Param2+Calibration!J39-Calibration!J38*Param1,NA()) ->  | AU39: =IF(AND(AU$8>=$E39,$F38<=Tau,$F39>Tau),Calibration!AS39*FEXP(-OFFSET(BFactors,AU$8-$E39,0,1,1)*$N39),"") ->  | AV39: =IF(AND(AV$8>=$E39,$F38<=Tau,$F39>Tau),Calibration!AT39*FEXP(-OFFSET(BFactors,AV$8-$E39,0,1,1)*$N39),"") ->  | AW39: =IF(AND(AW$8>=$E39,$F38<=Tau,$F39>Tau),Calibration!AU39*FEXP(-OFFSET(BFactors,AW$8-$E39,0,1,1)*$N39),"") ->  | AX39: =IF(AND(AX$8>=$E39,$F38<=Tau,$F39>Tau),Calibration!AV39*FEXP(-OFFSET(BFactors,AX$8-$E39,0,1,1)*$N39),"") ->  | AY39: =IF(AND(AY$8>=$E39,$F38<=Tau,$F39>Tau),Calibration!AW39*FEXP(-OFFSET(BFactors,AY$8-$E39,0,1,1)*$N39),"") ->  | AZ39: =IF(AND(AZ$8>=$E39,$F38<=Tau,$F39>Tau),Calibration!AX39*FEXP(-OFFSET(BFactors,AZ$8-$E39,0,1,1)*$N39),"") ->  | BA39: =IF(AND(BA$8>=$E39,$F38<=Tau,$F39>Tau),Calibration!AY39*FEXP(-OFFSET(BFactors,BA$8-$E39,0,1,1)*$N39),"") ->  | BB39: =IF(AND(BB$8>=$E39,$F38<=Tau,$F39>Tau),Calibration!AZ39*FEXP(-OFFSET(BFactors,BB$8-$E39,0,1,1)*$N39),"") ->  | BC39: =IF(AND(BC$8>=$E39,$F38<=Tau,$F39>Tau),Calibration!BA39*FEXP(-OFFSET(BFactors,BC$8-$E39,0,1,1)*$N39),"") ->  | BD39: =IF(AND(BD$8>=$E39,$F38<=Tau,$F39>Tau),Calibration!BB39*FEXP(-OFFSET(BFactors,BD$8-$E39,0,1,1)*$N39),"") ->  | BE39: =IF(AND(BE$8>=$E39,$F38<=Tau,$F39>Tau),Calibration!BC39*FEXP(-OFFSET(BFactors,BE$8-$E39,0,1,1)*$N39),"") -> 
C40: 1 | E40: 31 | F40: 7.75 | G40: 0.0125971749 | H40: 0.1501653765 | I40: 0.03155112465 | J40: 0.0296 | K40: 0.01254376925 | L40: 0.0202952623 | M40: -0.007751493054 | N40: =IF(F39<Tau,N39*Param1+NORMSINV(RAND())*IRVol*Param2+Calibration!J40-Calibration!J39*Param1,NA()) ->  | AV40: =IF(AND(AV$8>=$E40,$F39<=Tau,$F40>Tau),Calibration!AT40*FEXP(-OFFSET(BFactors,AV$8-$E40,0,1,1)*$N40),"") ->  | AW40: =IF(AND(AW$8>=$E40,$F39<=Tau,$F40>Tau),Calibration!AU40*FEXP(-OFFSET(BFactors,AW$8-$E40,0,1,1)*$N40),"") ->  | AX40: =IF(AND(AX$8>=$E40,$F39<=Tau,$F40>Tau),Calibration!AV40*FEXP(-OFFSET(BFactors,AX$8-$E40,0,1,1)*$N40),"") ->  | AY40: =IF(AND(AY$8>=$E40,$F39<=Tau,$F40>Tau),Calibration!AW40*FEXP(-OFFSET(BFactors,AY$8-$E40,0,1,1)*$N40),"") ->  | AZ40: =IF(AND(AZ$8>=$E40,$F39<=Tau,$F40>Tau),Calibration!AX40*FEXP(-OFFSET(BFactors,AZ$8-$E40,0,1,1)*$N40),"") ->  | BA40: =IF(AND(BA$8>=$E40,$F39<=Tau,$F40>Tau),Calibration!AY40*FEXP(-OFFSET(BFactors,BA$8-$E40,0,1,1)*$N40),"") ->  | BB40: =IF(AND(BB$8>=$E40,$F39<=Tau,$F40>Tau),Calibration!AZ40*FEXP(-OFFSET(BFactors,BB$8-$E40,0,1,1)*$N40),"") ->  | BC40: =IF(AND(BC$8>=$E40,$F39<=Tau,$F40>Tau),Calibration!BA40*FEXP(-OFFSET(BFactors,BC$8-$E40,0,1,1)*$N40),"") ->  | BD40: =IF(AND(BD$8>=$E40,$F39<=Tau,$F40>Tau),Calibration!BB40*FEXP(-OFFSET(BFactors,BD$8-$E40,0,1,1)*$N40),"") ->  | BE40: =IF(AND(BE$8>=$E40,$F39<=Tau,$F40>Tau),Calibration!BC40*FEXP(-OFFSET(BFactors,BE$8-$E40,0,1,1)*$N40),"") -> 
E41: 32 | F41: 8 | G41: 0.01275322694 | H41: 0.156371482 | I41: 0.03080200956 | J41: 0.0284 | K41: 0.009371547746 | L41: 0.01867004744 | M41: -0.00929849969 | N41: =IF(F40<Tau,N40*Param1+NORMSINV(RAND())*IRVol*Param2+Calibration!J41-Calibration!J40*Param1,NA()) ->  | AW41: =IF(AND(AW$8>=$E41,$F40<=Tau,$F41>Tau),Calibration!AU41*FEXP(-OFFSET(BFactors,AW$8-$E41,0,1,1)*$N41),"") ->  | AX41: =IF(AND(AX$8>=$E41,$F40<=Tau,$F41>Tau),Calibration!AV41*FEXP(-OFFSET(BFactors,AX$8-$E41,0,1,1)*$N41),"") ->  | AY41: =IF(AND(AY$8>=$E41,$F40<=Tau,$F41>Tau),Calibration!AW41*FEXP(-OFFSET(BFactors,AY$8-$E41,0,1,1)*$N41),"") ->  | AZ41: =IF(AND(AZ$8>=$E41,$F40<=Tau,$F41>Tau),Calibration!AX41*FEXP(-OFFSET(BFactors,AZ$8-$E41,0,1,1)*$N41),"") ->  | BA41: =IF(AND(BA$8>=$E41,$F40<=Tau,$F41>Tau),Calibration!AY41*FEXP(-OFFSET(BFactors,BA$8-$E41,0,1,1)*$N41),"") ->  | BB41: =IF(AND(BB$8>=$E41,$F40<=Tau,$F41>Tau),Calibration!AZ41*FEXP(-OFFSET(BFactors,BB$8-$E41,0,1,1)*$N41),"") ->  | BC41: =IF(AND(BC$8>=$E41,$F40<=Tau,$F41>Tau),Calibration!BA41*FEXP(-OFFSET(BFactors,BC$8-$E41,0,1,1)*$N41),"") ->  | BD41: =IF(AND(BD$8>=$E41,$F40<=Tau,$F41>Tau),Calibration!BB41*FEXP(-OFFSET(BFactors,BD$8-$E41,0,1,1)*$N41),"") ->  | BE41: =IF(AND(BE$8>=$E41,$F40<=Tau,$F41>Tau),Calibration!BC41*FEXP(-OFFSET(BFactors,BE$8-$E41,0,1,1)*$N41),"") -> 
E42: 33 | F42: 8.25 | G42: 0.01289092787 | H42: 0.1624298505 | I42: 0.03006876429 | J42: 0.0299 | K42: 0.009742989607 | L42: 0.0167488941 | M42: -0.007005904498 | N42: =IF(F41<Tau,N41*Param1+NORMSINV(RAND())*IRVol*Param2+Calibration!J42-Calibration!J41*Param1,NA()) ->  | AX42: =IF(AND(AX$8>=$E42,$F41<=Tau,$F42>Tau),Calibration!AV42*FEXP(-OFFSET(BFactors,AX$8-$E42,0,1,1)*$N42),"") ->  | AY42: =IF(AND(AY$8>=$E42,$F41<=Tau,$F42>Tau),Calibration!AW42*FEXP(-OFFSET(BFactors,AY$8-$E42,0,1,1)*$N42),"") ->  | AZ42: =IF(AND(AZ$8>=$E42,$F41<=Tau,$F42>Tau),Calibration!AX42*FEXP(-OFFSET(BFactors,AZ$8-$E42,0,1,1)*$N42),"") ->  | BA42: =IF(AND(BA$8>=$E42,$F41<=Tau,$F42>Tau),Calibration!AY42*FEXP(-OFFSET(BFactors,BA$8-$E42,0,1,1)*$N42),"") ->  | BB42: =IF(AND(BB$8>=$E42,$F41<=Tau,$F42>Tau),Calibration!AZ42*FEXP(-OFFSET(BFactors,BB$8-$E42,0,1,1)*$N42),"") ->  | BC42: =IF(AND(BC$8>=$E42,$F41<=Tau,$F42>Tau),Calibration!BA42*FEXP(-OFFSET(BFactors,BC$8-$E42,0,1,1)*$N42),"") ->  | BD42: =IF(AND(BD$8>=$E42,$F41<=Tau,$F42>Tau),Calibration!BB42*FEXP(-OFFSET(BFactors,BD$8-$E42,0,1,1)*$N42),"") ->  | BE42: =IF(AND(BE$8>=$E42,$F41<=Tau,$F42>Tau),Calibration!BC42*FEXP(-OFFSET(BFactors,BE$8-$E42,0,1,1)*$N42),"") -> 
E43: 34 | F43: 8.5 | G43: 0.0130121723 | H43: 0.1683462641 | I43: 0.02936421699 | J43: 0.0296 | K43: 0.003742747556 | L43: 0.01194155225 | M43: -0.008198804689 | N43: =IF(F42<Tau,N42*Param1+NORMSINV(RAND())*IRVol*Param2+Calibration!J43-Calibration!J42*Param1,NA()) ->  | AY43: =IF(AND(AY$8>=$E43,$F42<=Tau,$F43>Tau),Calibration!AW43*FEXP(-OFFSET(BFactors,AY$8-$E43,0,1,1)*$N43),"") ->  | AZ43: =IF(AND(AZ$8>=$E43,$F42<=Tau,$F43>Tau),Calibration!AX43*FEXP(-OFFSET(BFactors,AZ$8-$E43,0,1,1)*$N43),"") ->  | BA43: =IF(AND(BA$8>=$E43,$F42<=Tau,$F43>Tau),Calibration!AY43*FEXP(-OFFSET(BFactors,BA$8-$E43,0,1,1)*$N43),"") ->  | BB43: =IF(AND(BB$8>=$E43,$F42<=Tau,$F43>Tau),Calibration!AZ43*FEXP(-OFFSET(BFactors,BB$8-$E43,0,1,1)*$N43),"") ->  | BC43: =IF(AND(BC$8>=$E43,$F42<=Tau,$F43>Tau),Calibration!BA43*FEXP(-OFFSET(BFactors,BC$8-$E43,0,1,1)*$N43),"") ->  | BD43: =IF(AND(BD$8>=$E43,$F42<=Tau,$F43>Tau),Calibration!BB43*FEXP(-OFFSET(BFactors,BD$8-$E43,0,1,1)*$N43),"") ->  | BE43: =IF(AND(BE$8>=$E43,$F42<=Tau,$F43>Tau),Calibration!BC43*FEXP(-OFFSET(BFactors,BE$8-$E43,0,1,1)*$N43),"") -> 
E44: 35 | F44: 8.75 | G44: 0.01311885115 | H44: 0.1741289069 | I44: 0.02870028868 | J44: 0.0284 | K44: 0.006649203308 | L44: 0.01183039531 | M44: -0.005181192002 | N44: =IF(F43<Tau,N43*Param1+NORMSINV(RAND())*IRVol*Param2+Calibration!J44-Calibration!J43*Param1,NA()) ->  | AZ44: =IF(AND(AZ$8>=$E44,$F43<=Tau,$F44>Tau),Calibration!AX44*FEXP(-OFFSET(BFactors,AZ$8-$E44,0,1,1)*$N44),"") ->  | BA44: =IF(AND(BA$8>=$E44,$F43<=Tau,$F44>Tau),Calibration!AY44*FEXP(-OFFSET(BFactors,BA$8-$E44,0,1,1)*$N44),"") ->  | BB44: =IF(AND(BB$8>=$E44,$F43<=Tau,$F44>Tau),Calibration!AZ44*FEXP(-OFFSET(BFactors,BB$8-$E44,0,1,1)*$N44),"") ->  | BC44: =IF(AND(BC$8>=$E44,$F43<=Tau,$F44>Tau),Calibration!BA44*FEXP(-OFFSET(BFactors,BC$8-$E44,0,1,1)*$N44),"") ->  | BD44: =IF(AND(BD$8>=$E44,$F43<=Tau,$F44>Tau),Calibration!BB44*FEXP(-OFFSET(BFactors,BD$8-$E44,0,1,1)*$N44),"") ->  | BE44: =IF(AND(BE$8>=$E44,$F43<=Tau,$F44>Tau),Calibration!BC44*FEXP(-OFFSET(BFactors,BE$8-$E44,0,1,1)*$N44),"") -> 
E45: 36 | F45: 9 | G45: 0.01321285767 | H45: 0.1797883523 | I45: 0.02808883755 | J45: 0.0328 | K45: 0.004156089344 | L45: 0.008947763389 | M45: -0.004791674046 | N45: =IF(F44<Tau,N44*Param1+NORMSINV(RAND())*IRVol*Param2+Calibration!J45-Calibration!J44*Param1,NA()) ->  | BA45: =IF(AND(BA$8>=$E45,$F44<=Tau,$F45>Tau),Calibration!AY45*FEXP(-OFFSET(BFactors,BA$8-$E45,0,1,1)*$N45),"") ->  | BB45: =IF(AND(BB$8>=$E45,$F44<=Tau,$F45>Tau),Calibration!AZ45*FEXP(-OFFSET(BFactors,BB$8-$E45,0,1,1)*$N45),"") ->  | BC45: =IF(AND(BC$8>=$E45,$F44<=Tau,$F45>Tau),Calibration!BA45*FEXP(-OFFSET(BFactors,BC$8-$E45,0,1,1)*$N45),"") ->  | BD45: =IF(AND(BD$8>=$E45,$F44<=Tau,$F45>Tau),Calibration!BB45*FEXP(-OFFSET(BFactors,BD$8-$E45,0,1,1)*$N45),"") ->  | BE45: =IF(AND(BE$8>=$E45,$F44<=Tau,$F45>Tau),Calibration!BC45*FEXP(-OFFSET(BFactors,BE$8-$E45,0,1,1)*$N45),"") -> 
E46: 37 | F46: 9.25 | G46: 0.01329608321 | H46: 0.1853374355 | I46: 0.02754109078 | J46: 0.0273 | K46: 0.004903956881 | L46: 0.008045330136 | M46: -0.003141373255 | N46: =IF(F45<Tau,N45*Param1+NORMSINV(RAND())*IRVol*Param2+Calibration!J46-Calibration!J45*Param1,NA()) ->  | BB46: =IF(AND(BB$8>=$E46,$F45<=Tau,$F46>Tau),Calibration!AZ46*FEXP(-OFFSET(BFactors,BB$8-$E46,0,1,1)*$N46),"") ->  | BC46: =IF(AND(BC$8>=$E46,$F45<=Tau,$F46>Tau),Calibration!BA46*FEXP(-OFFSET(BFactors,BC$8-$E46,0,1,1)*$N46),"") ->  | BD46: =IF(AND(BD$8>=$E46,$F45<=Tau,$F46>Tau),Calibration!BB46*FEXP(-OFFSET(BFactors,BD$8-$E46,0,1,1)*$N46),"") ->  | BE46: =IF(AND(BE$8>=$E46,$F45<=Tau,$F46>Tau),Calibration!BC46*FEXP(-OFFSET(BFactors,BE$8-$E46,0,1,1)*$N46),"") -> 
E47: 38 | F47: 9.5 | G47: 0.01337042079 | H47: 0.1907912246 | I47: 0.0270681287 | J47: 0.0276 | K47: 0.00234767868 | L47: 0.004778604658 | M47: -0.002430925978 | N47: =IF(F46<Tau,N46*Param1+NORMSINV(RAND())*IRVol*Param2+Calibration!J47-Calibration!J46*Param1,NA()) ->  | BC47: =IF(AND(BC$8>=$E47,$F46<=Tau,$F47>Tau),Calibration!BA47*FEXP(-OFFSET(BFactors,BC$8-$E47,0,1,1)*$N47),"") ->  | BD47: =IF(AND(BD$8>=$E47,$F46<=Tau,$F47>Tau),Calibration!BB47*FEXP(-OFFSET(BFactors,BD$8-$E47,0,1,1)*$N47),"") ->  | BE47: =IF(AND(BE$8>=$E47,$F46<=Tau,$F47>Tau),Calibration!BC47*FEXP(-OFFSET(BFactors,BE$8-$E47,0,1,1)*$N47),"") -> 
E48: 39 | F48: 9.75 | G48: 0.01343776236 | H48: 0.196166916 | I48: 0.02668051652 | J48: 0.0276 | K48: 0.001465004905 | L48: 0.002526854119 | M48: -0.001061849214 | N48: =IF(F47<Tau,N47*Param1+NORMSINV(RAND())*IRVol*Param2+Calibration!J48-Calibration!J47*Param1,NA()) ->  | BD48: =IF(AND(BD$8>=$E48,$F47<=Tau,$F48>Tau),Calibration!BB48*FEXP(-OFFSET(BFactors,BD$8-$E48,0,1,1)*$N48),"") ->  | BE48: =IF(AND(BE$8>=$E48,$F47<=Tau,$F48>Tau),Calibration!BC48*FEXP(-OFFSET(BFactors,BE$8-$E48,0,1,1)*$N48),"") -> 
E49: 40 | F49: 10 | G49: 0.01350000035 | H49: 0.2014837859 | I49: 0.02638857437 | J49: 0.0287 | K49: 0 | L49: 0 | M49: 0 | N49: =IF(F48<Tau,N48*Param1+NORMSINV(RAND())*IRVol*Param2+Calibration!J49-Calibration!J48*Param1,NA()) ->  | P49: 0 | BE49: =IF(AND(BE$8>=$E49,$F48<=Tau,$F49>Tau),Calibration!BC49*FEXP(-OFFSET(BFactors,BE$8-$E49,0,1,1)*$N49),"") -> 
... 1 more rows

Sheet 17.2 and 17.3
E9: Counterparty | G9: Own | J9: Contingent | K9: YES
C10: EPE | D10: ENE | E10: Spread | F10: Survival | G10: Spread | H10: Survival
B11: 0 | C11: 0 | D11: 0 | E11: =Cubic_Spline(CDSTenors,CDSQuotes,B11) -> 0.0003280884557 | F11: =EXP(-E11*B11/LGD) -> 1 | G11: =Cubic_Spline(CDSTenors,OwnCDSQuotes,B11) -> 0.0005808419228 | H11: =EXP(-G11*B11/OwnLGD) -> 1 | K11: Pay Fixed | L11: Receive Fixed
B12: 0.25 | C12: 0.01241326124 | D12: -0.01070009061 | E12: =Cubic_Spline(CDSTenors,CDSQuotes,B12) -> 0.0007100759369 | F12: 0.9997041788 | G12: =Cubic_Spline(CDSTenors,OwnCDSQuotes,B12) -> 0.0006374423153 | H12: 0.9997344343 | J12: =IF(Contingent="YES","CVA","UCVA") -> CVA | K12: =-LGD*IF(Contingent="YES",(SUMPRODUCT(C12:C51,F11:F50,H11:H50)-SUMPRODUCT(C12:C51,F12:F51,H11:H50)),(SUMPRODUCT(C12:C51,F11:F50)-SUMPRODUCT(C12:C51,F12:F51)))*10000 -> -28.89617367 | L12: =LGD*IF(Contingent="YES",(SUMPRODUCT(D12:D51,F11:F50,H11:H50)-SUMPRODUCT(D12:D51,F12:F51,H11:H50)),(SUMPRODUCT(D12:D51,F11:F50)-SUMPRODUCT(D12:D51,F12:F51)))*10000 -> -16.56790551
B13: 0.5 | C13: 0.01747670665 | D13: -0.01430368505 | E13: =Cubic_Spline(CDSTenors,CDSQuotes,B13) -> 0.001080055137 | F13: 0.999100359 | G13: =Cubic_Spline(CDSTenors,OwnCDSQuotes,B13) -> 0.0006817762714 | H13: 0.9994320145 | J13: =IF(Contingent="YES","DVA","UDVA") -> DVA | K13: =-LGD*IF(Contingent="YES",(SUMPRODUCT(D12:D51,H11:H50,F11:F50)-SUMPRODUCT(D12:D51,H12:H51,F11:F50)),(SUMPRODUCT(D12:D51,H11:H50)-SUMPRODUCT(D12:D51,H12:H51)))*10000 -> 7.355911833 | L13: =LGD*IF(Contingent="YES",(SUMPRODUCT(C12:C51,H11:H50,F11:F50)-SUMPRODUCT(C12:C51,H12:H51,F11:F50)),(SUMPRODUCT(C12:C51,H11:H50)-SUMPRODUCT(C12:C51,H12:H51)))*10000 -> 13.14336439
B14: 0.75 | C14: 0.02113590941 | D14: -0.01667774422 | E14: =Cubic_Spline(CDSTenors,CDSQuotes,B14) -> 0.00144202905 | F14: 0.9981990873 | G14: =Cubic_Spline(CDSTenors,OwnCDSQuotes,B14) -> 0.0007179325451 | H14: 0.9991029869 | J14: BCVA | K14: =K12+K13 -> -21.54026184 | L14: =L12+L13 -> -3.424541122
B15: 1 | C15: 0.02401286295 | D15: -0.01837824749 | E15: =Cubic_Spline(CDSTenors,CDSQuotes,B15) -> 0.001799999969 | F15: 0.9970044956 | G15: =Cubic_Spline(CDSTenors,OwnCDSQuotes,B15) -> 0.0007500000065 | H15: 0.9987507809
B16: 1.25 | C16: 0.02635488111 | D16: -0.01962883751 | E16: =Cubic_Spline(CDSTenors,CDSQuotes,B16) -> 0.002157971005 | F16: 0.9955143179 | G16: =Cubic_Spline(CDSTenors,OwnCDSQuotes,B16) -> 0.000782067468 | H16: 0.9983720194
B17: 1.5 | C17: 0.02829572579 | D17: -0.02054532624 | E17: =Cubic_Spline(CDSTenors,CDSQuotes,B17) -> 0.002519944801 | F17: 0.9937199405 | G17: =Cubic_Spline(CDSTenors,OwnCDSQuotes,B17) -> 0.0008182237416 | H17: 0.9979565314
B18: 1.75 | C18: 0.02991725965 | D18: -0.02119857201 | E18: =Cubic_Spline(CDSTenors,CDSQuotes,B18) -> 0.002889924001 | F18: 0.991606479 | G18: =Cubic_Spline(CDSTenors,OwnCDSQuotes,B18) -> 0.0008625576977 | H18: 0.9974873687
B19: 2 | C19: 0.03127033568 | D19: -0.02163907782 | E19: =Cubic_Spline(CDSTenors,CDSQuotes,B19) -> 0.003271911599 | F19: 0.9891528869 | G19: =Cubic_Spline(CDSTenors,OwnCDSQuotes,B19) -> 0.000919158032 | H19: 0.9969408287
B20: 2.25 | C20: 0.03238676816 | D20: -0.0219059971 | E20: =Cubic_Spline(CDSTenors,CDSQuotes,B20) -> 0.003669910238 | F20: 0.9863321023 | G20: =Cubic_Spline(CDSTenors,OwnCDSQuotes,B20) -> 0.000992113615 | H20: 0.9962864862
B21: 2.5 | C21: 0.0332910731 | D21: -0.02202769555 | E21: =Cubic_Spline(CDSTenors,CDSQuotes,B21) -> 0.00408792262 | F21: 0.9831112307 | G21: =Cubic_Spline(CDSTenors,OwnCDSQuotes,B21) -> 0.001085513288 | H21: 0.9954872412
B22: 2.75 | C22: 0.03400117778 | D22: -0.02202660342 | E22: =Cubic_Spline(CDSTenors,CDSQuotes,B22) -> 0.004529951593 | F22: 0.979451774 | G22: =Cubic_Spline(CDSTenors,OwnCDSQuotes,B22) -> 0.001203445819 | H22: 0.9944993907
B23: 3 | C23: 0.03452897339 | D23: -0.02192196311 | E23: =Cubic_Spline(CDSTenors,CDSQuotes,B23) -> 0.004999999888 | F23: 0.9753099126 | G23: =Cubic_Spline(CDSTenors,OwnCDSQuotes,B23) -> 0.001350000035 | H23: 0.9932727299
B24: 3.25 | C24: 0.03488261302 | D24: -0.02173016548 | E24: =Cubic_Spline(CDSTenors,CDSQuotes,B24) -> 0.005500020743 | F24: 0.9706476217 | G24: =Cubic_Spline(CDSTenors,OwnCDSQuotes,B24) -> 0.001527812605 | H24: 0.9917584973
B25: 3.5 | C25: 0.0350714138 | D25: -0.02146270342 | E25: =Cubic_Spline(CDSTenors,CDSQuotes,B25) -> 0.006023768401 | F25: 0.9654715453 | G25: =Cubic_Spline(CDSTenors,OwnCDSQuotes,B25) -> 0.001733712038 | H25: 0.9899376474
B26: 3.75 | C26: 0.03510426618 | D26: -0.0211283268 | E26: =Cubic_Spline(CDSTenors,CDSQuotes,B26) -> 0.006562948049 | F26: 0.959811445 | G26: =Cubic_Spline(CDSTenors,OwnCDSQuotes,B26) -> 0.001963074411 | H26: 0.9878057449
B27: 4 | C27: 0.03498907562 | D27: -0.02073411762 | E27: =Cubic_Spline(CDSTenors,CDSQuotes,B27) -> 0.007109264872 | F27: 0.9537105129 | G27: =Cubic_Spline(CDSTenors,OwnCDSQuotes,B27) -> 0.002211276031 | H27: 0.9853662887
B28: 4.25 | C28: 0.03473304006 | D28: -0.02028578621 | E28: =Cubic_Spline(CDSTenors,CDSQuotes,B28) -> 0.007654423476 | F28: 0.9472247998 | G28: =Cubic_Spline(CDSTenors,OwnCDSQuotes,B28) -> 0.002473693148 | H28: 0.9826306243
B29: 4.5 | C29: 0.03434286301 | D29: -0.01978788876 | E29: =Cubic_Spline(CDSTenors,CDSQuotes,B29) -> 0.00819012893 | F29: 0.9404225655 | G29: =Cubic_Spline(CDSTenors,OwnCDSQuotes,B29) -> 0.002745702012 | H29: 0.9796178179
B30: 4.75 | C30: 0.03382491239 | D30: -0.01924399488 | E30: =Cubic_Spline(CDSTenors,CDSQuotes,B30) -> 0.008708086189 | F30: 0.9333836001 | G30: =Cubic_Spline(CDSTenors,OwnCDSQuotes,B30) -> 0.003022678873 | H30: 0.9763545002
B31: 5 | C31: 0.03318533772 | D31: -0.01865682042 | E31: =Cubic_Spline(CDSTenors,CDSQuotes,B31) -> 0.009200000204 | F31: 0.9261985334 | G31: =Cubic_Spline(CDSTenors,OwnCDSQuotes,B31) -> 0.003299999982 | H31: 0.9728746827
B32: 5.25 | C32: 0.03242985481 | D32: -0.01802853103 | E32: =Cubic_Spline(CDSTenors,CDSQuotes,B32) -> 0.009659133943 | F32: 0.9189556452 | G32: =Cubic_Spline(CDSTenors,OwnCDSQuotes,B32) -> 0.003573576528 | H32: 0.9692150183
B33: 5.5 | C33: 0.03156277696 | D33: -0.01736149371 | E33: =Cubic_Spline(CDSTenors,CDSQuotes,B33) -> 0.01008498181 | F33: 0.9116987453 | G33: =Cubic_Spline(CDSTenors,OwnCDSQuotes,B33) -> 0.003841459449 | H33: 0.965399399
B34: 5.75 | C34: 0.03058779646 | D34: -0.01665785571 | E34: =Cubic_Spline(CDSTenors,CDSQuotes,B34) -> 0.01047859576 | F34: 0.9044575783 | G34: =Cubic_Spline(CDSTenors,OwnCDSQuotes,B34) -> 0.00410223462 | H34: 0.9614496497
B35: 6 | C35: 0.02950831343 | D35: -0.01591941246 | E35: =Cubic_Spline(CDSTenors,CDSQuotes,B35) -> 0.01084102913 | F35: 0.8972593832 | G35: =Cubic_Spline(CDSTenors,OwnCDSQuotes,B35) -> 0.004354487919 | H35: 0.9573895863
B36: 6.25 | C36: 0.02832747664 | D36: -0.0151476504 | E36: =Cubic_Spline(CDSTenors,CDSQuotes,B36) -> 0.01117333388 | F36: 0.8901289896 | G36: =Cubic_Spline(CDSTenors,OwnCDSQuotes,B36) -> 0.004596805223 | H36: 0.9532449406
B37: 6.5 | C37: 0.02704821711 | D37: -0.0143437824 | E37: =Cubic_Spline(CDSTenors,CDSQuotes,B37) -> 0.01147656219 | F37: 0.8830888825 | G37: =Cubic_Spline(CDSTenors,OwnCDSQuotes,B37) -> 0.004827772408 | H37: 0.9490432874
B38: 6.75 | C38: 0.02567327601 | D38: -0.01350877758 | E38: =Cubic_Spline(CDSTenors,CDSQuotes,B38) -> 0.01175176683 | F38: 0.8761592811 | G38: =Cubic_Spline(CDSTenors,OwnCDSQuotes,B38) -> 0.005045975351 | H38: 0.944813975
B39: 7 | C39: 0.02420522767 | D39: -0.01264338636 | E39: =Cubic_Spline(CDSTenors,CDSQuotes,B39) -> 0.0120000001 | F39: 0.8693582343 | G39: =Cubic_Spline(CDSTenors,OwnCDSQuotes,B39) -> 0.005249999929 | H39: 0.9405880641
B40: 7.25 | C40: 0.02264645506 | D40: -0.01174818966 | E40: =Cubic_Spline(CDSTenors,CDSQuotes,B40) -> 0.01222245423 | F40: 0.8627002453 | G40: =Cubic_Spline(CDSTenors,OwnCDSQuotes,B40) -> 0.005438821139 | H40: 0.9363938709
B41: 7.5 | C41: 0.02099902314 | D41: -0.0108237072 | E41: =Cubic_Spline(CDSTenors,CDSQuotes,B41) -> 0.01242088176 | F41: 0.8561916635 | G41: =Cubic_Spline(CDSTenors,OwnCDSQuotes,B41) -> 0.005612970346 | H41: 0.9322426638
B42: 7.75 | C42: 0.01926480562 | D42: -0.009870341123 | E42: =Cubic_Spline(CDSTenors,CDSQuotes,B42) -> 0.0125971749 | F42: 0.8498346235 | G42: =Cubic_Spline(CDSTenors,OwnCDSQuotes,B42) -> 0.00577336795 | H42: 0.9281400243
B43: 8 | C43: 0.01744553862 | D43: -0.008888363183 | E43: =Cubic_Spline(CDSTenors,CDSQuotes,B43) -> 0.01275322694 | F43: 0.843628518 | G43: =Cubic_Spline(CDSTenors,OwnCDSQuotes,B43) -> 0.005920934437 | H43: 0.9240900157
B44: 8.25 | C44: 0.01554283371 | D44: -0.007877924924 | E44: =Cubic_Spline(CDSTenors,CDSQuotes,B44) -> 0.01289092787 | F44: 0.8375701495 | G44: =Cubic_Spline(CDSTenors,OwnCDSQuotes,B44) -> 0.00605659003 | H44: 0.9200952213
B45: 8.5 | C45: 0.01355817683 | D45: -0.006839074361 | E45: =Cubic_Spline(CDSTenors,CDSQuotes,B45) -> 0.0130121723 | F45: 0.8316537359 | G45: =Cubic_Spline(CDSTenors,OwnCDSQuotes,B45) -> 0.006181255643 | H45: 0.9161567649
B46: 8.75 | C46: 0.0114929575 | D46: -0.005771751462 | E46: =Cubic_Spline(CDSTenors,CDSQuotes,B46) -> 0.01311885115 | F46: 0.8258710931 | G46: =Cubic_Spline(CDSTenors,OwnCDSQuotes,B46) -> 0.006295851499 | H46: 0.9122743598
B47: 9 | C47: 0.009348454931 | D47: -0.004675809114 | E47: =Cubic_Spline(CDSTenors,CDSQuotes,B47) -> 0.01321285767 | F47: 0.8202116477 | G47: =Cubic_Spline(CDSTenors,OwnCDSQuotes,B47) -> 0.006401298062 | H47: 0.9084463276
B48: 9.25 | C48: 0.007125854765 | D48: -0.003551013245 | E48: =Cubic_Spline(CDSTenors,CDSQuotes,B48) -> 0.01329608321 | F48: 0.8146625645 | G48: =Cubic_Spline(CDSTenors,OwnCDSQuotes,B48) -> 0.006498515657 | H48: 0.9046696318
B49: 9.5 | C49: 0.004826252424 | D49: -0.002397050129 | E49: =Cubic_Spline(CDSTenors,CDSQuotes,B49) -> 0.01337042079 | F49: 0.8092087754 | G49: =Cubic_Spline(CDSTenors,OwnCDSQuotes,B49) -> 0.006588424985 | H49: 0.9009398985
B50: 9.75 | C50: 0.00245065791 | D50: -0.001213531652 | E50: =Cubic_Spline(CDSTenors,CDSQuotes,B50) -> 0.01343776236 | F50: 0.803833084 | G50: =Cubic_Spline(CDSTenors,OwnCDSQuotes,B50) -> 0.006671946319 | H50: 0.8972514547
B51: 10 | C51: 0 | D51: 0 | E51: =Cubic_Spline(CDSTenors,CDSQuotes,B51) -> 0.01350000035 | F51: 0.7985162141 | G51: =Cubic_Spline(CDSTenors,OwnCDSQuotes,B51) -> 0.006750000175 | H51: 0.8935973445
... 1 more rows

Sheet 17.4
C9: EPE | I9: Survival | M9: Counterparty | N9: Own
C10: Stand-alone | D10: Directional | E10: Neutral | F10: Stand-alone | G10: Directional | H10: Neutral | I10: Counterparty | J10: Own | L10: Spread | M10: 0.015 | N10: 0.01
B11: 0 | C11: 1.564353489 | D11: 1.564353489 | E11: 0.03061666641 | F11: 0 | G11: 0 | H11: 1.533736822 | I11: =EXP(-Spread*B11/LGD_C) -> 1 | J11: =EXP(-OwnSpread*B11/LGD_Own) -> 1 | L11: LGD | M11: 0.6 | N11: 0.6
B12: 0.25 | C12: 2.150158548 | D12: 1.766985551 | E12: 1.348690842 | F12: -0.5946721542 | G12: -0.2114991575 | H12: 0.2067955511 | I12: 0.9937694906 | J12: 0.9958420018
B13: 0.5 | C13: 2.563165157 | D13: 2.18076429 | E13: 1.508439416 | F13: -0.9145576894 | G13: -0.5321568222 | H13: 0.1401680519 | I13: 0.9875778005 | J13: 0.9917012926 | M13: Stand-alone | N13: Directional | O13: Neutral
B14: 0.75 | C14: 2.918397243 | D14: 2.565066811 | E14: 1.605805175 | F14: -1.112594339 | G14: -0.7592639071 | H14: 0.1999977293 | I14: 0.9814246877 | J14: 0.9875778005 | L14: CVA | M14: =-LGD_C*(SUMPRODUCT(C12:C39,I11:I38)-SUMPRODUCT(C12:C39,I12:I39))*10000/100 -> -26.2750929 | N14: =-LGD_C*(SUMPRODUCT(D12:D39,I11:I38)-SUMPRODUCT(D12:D39,I12:I39))*10000/100 -> -25.13610683 | O14: =-LGD_C*(SUMPRODUCT(E12:E39,I11:I38)-SUMPRODUCT(E12:E39,I12:I39))*10000/100 -> -13.72122771
B15: 1 | C15: 3.233823884 | D15: 2.924022964 | E15: 1.750565347 | F15: -1.224183644 | G15: -0.9143827235 | H15: 0.2590748932 | I15: 0.975309912 | J15: 0.9834714538 | L15: DVA | M15: =-LGD_Own*(SUMPRODUCT(F12:F39,J11:J38)-SUMPRODUCT(F12:F39,J12:J39))*10000/100 -> 6.024947152 | N15: =-LGD_Own*(SUMPRODUCT(G12:G39,J11:J38)-SUMPRODUCT(G12:G39,J12:J39))*10000/100 -> 5.256388403 | O15: =-LGD_Own*(SUMPRODUCT(H12:H39,J11:J38)-SUMPRODUCT(H12:H39,J12:J39))*10000/100 -> -2.530314175
B16: 1.25 | C16: 3.560178533 | D16: 3.299866145 | E16: 1.939042696 | F16: -1.274172291 | G16: -1.013859903 | H16: 0.3469635465 | I16: 0.9692332345 | J16: 0.9793821813 | L16: BCVA | M16: =M15+M14 -> -20.25014574 | N16: =N15+N14 -> -19.87971843 | O16: =O15+O14 -> -16.25154188
B17: 1.5 | C17: 3.692088876 | D17: 3.472994837 | E17: 1.883641002 | F17: -1.337726723 | G17: -1.118632685 | H17: 0.4707211507 | I17: 0.9631944177 | J17: 0.975309912
B18: 1.75 | C18: 3.812409597 | D18: 3.611201595 | E18: 1.923665251 | F18: -1.354989505 | G18: -1.153781503 | H18: 0.5337548408 | I18: 0.9571932259 | J18: 0.9712545752
B19: 2 | C19: 3.836485044 | D19: 3.664362071 | E19: 1.83119807 | F19: -1.387649147 | G19: -1.215526174 | H19: 0.617637828 | I19: 0.9512294245 | J19: 0.9672161005
B20: 2.25 | C20: 3.858475321 | D20: 3.712082198 | E20: 1.770139629 | F20: -1.343810235 | G20: -1.197417112 | H20: 0.7445254569 | I20: 0.9453027807 | J20: 0.9631944177
B21: 2.5 | C21: 3.85884392 | D21: 3.734355214 | E21: 1.79832716 | F21: -1.340585294 | G21: -1.216096589 | H21: 0.7199314649 | I21: 0.9394130628 | J21: 0.9591894571
B22: 2.75 | C22: 3.822222332 | D22: 3.704144686 | E22: 1.723177681 | F22: -1.298004536 | G22: -1.17992689 | H22: 0.8010401157 | I22: 0.9335600409 | J22: 0.9552011491
B23: 3 | C23: 3.732658571 | D23: 3.636176839 | E23: 1.60541315 | F23: -1.282644308 | G23: -1.186162576 | H23: 0.8446011134 | I23: 0.9277434863 | J23: 0.9512294245
B24: 3.25 | C24: 3.619023212 | D24: 3.539007992 | E24: 1.505146426 | F24: -1.230394686 | G24: -1.150379466 | H24: 0.8834821006 | I24: 0.9219631718 | J24: 0.9472742143
B25: 3.5 | C25: 3.503886576 | D25: 3.436888987 | E25: 1.396775095 | F25: -1.164146014 | G25: -1.097148425 | H25: 0.9429654671 | I25: 0.9162188717 | J25: 0.9433354499
B26: 3.75 | C26: 3.348645673 | D26: 3.290697703 | E26: 1.280409388 | F26: -1.105420741 | G26: -1.04747277 | H26: 0.9628155448 | I26: 0.9105103614 | J26: 0.9394130628
B27: 4 | C27: 3.163986281 | D27: 3.118230327 | E27: 1.214828098 | F27: -1.046119847 | G27: -1.000363893 | H27: 0.9030383363 | I27: 0.904837418 | J27: 0.935506985
B28: 4.25 | C28: 2.976800673 | D28: 2.942184826 | E28: 1.041833724 | F28: -0.9748856588 | G28: -0.9402698117 | H28: 0.9600812909 | I28: 0.89919982 | J28: 0.9316171487
B29: 4.5 | C29: 2.792441545 | D29: 2.768587238 | E29: 0.9245518607 | F29: -0.8932940921 | G29: -0.8694397852 | H29: 0.9745955922 | I29: 0.8935973471 | J29: 0.9277434863
B30: 4.75 | C30: 2.588115343 | D30: 2.575324384 | E30: 0.83645481 | F30: -0.8094803077 | G30: -0.796689349 | H30: 0.9421802253 | I30: 0.8880297805 | J30: 0.9238859306
B31: 5 | C31: 2.36511411 | D31: 2.363535735 | E31: 0.7365716395 | F31: -0.7257670951 | G31: -0.7241887206 | H31: 0.9027753754 | I31: 0.8824969026 | J31: 0.9200444146
B32: 5.25 | C32: 2.131324451 | D32: 2.131324451 | E32: 2.131324451 | F32: -0.6414063574 | G32: -0.6414063574 | H32: -0.6414063574 | I32: 0.8769984974 | J32: 0.9162188717
B33: 5.5 | C33: 1.893443993 | D33: 1.884879917 | E33: 1.893443993 | F33: -0.5564545116 | G33: -0.5478904362 | H33: -0.5564545116 | I33: 0.87153435 | J33: 0.9124092353
B34: 5.75 | C34: 1.645149966 | D34: 1.644802892 | E34: 1.645149966 | F34: -0.4731794685 | G34: -0.4728323948 | H34: -0.4731794685 | I34: 0.8661042471 | J34: 0.9086154394
B35: 6 | C35: 1.382008433 | D35: 1.369395817 | E35: 1.382008433 | F35: -0.3914541724 | G35: -0.3788415566 | H35: -0.3914541724 | I35: 0.8607079764 | J35: 0.904837418
B36: 6.25 | C36: 1.104343602 | D36: 1.102358948 | E36: 1.104343602 | F36: -0.3078333732 | G36: -0.3058487198 | H36: -0.3078333732 | I36: 0.8553453273 | J36: 0.9010751057
B37: 6.5 | C37: 0.8528658333 | D37: 0.8352726918 | E37: 0.8528658333 | F37: -0.2296562348 | G37: -0.2120630934 | H37: -0.2296562348 | I37: 0.8500160902 | J37: 0.8973284371
B38: 6.75 | C38: 0.5802266676 | D38: 0.5749886747 | E38: 0.5802266676 | F38: -0.1510827623 | G38: -0.1458447693 | H38: -0.1510827623 | I38: 0.844720057 | J38: 0.8935973471
B39: 7 | C39: 0.289456574 | D39: 0.2757376767 | E39: 0.289456574 | F39: -0.07348847517 | G39: -0.0597695779 | H39: -0.07348847517 | I39: 0.8394570208 | J39: 0.889881771
... 1 more rows

Sheet 17.5
C9: IRS first | G9: XCCY first | K9: Survival | O9: Counterparty | P9: Own
C10: IRS | E10: XCCY | G10: IRS | I10: XCCY | N10: Spread | O10: 0.015 | P10: 0.01
C11: EPE | D11: ENE | E11: EPE | F11: ENE | G11: EPE | H11: ENE | I11: EPE | J11: ENE | K11: Counterparty | L11: Own | N11: LGD | O11: 0.6 | P11: 0.6
B12: 0 | C12: 1.564353489 | D12: 0 | E12: -1.533736822 | F12: 0 | G12: 0.03061666641 | H12: 1.533736822 | I12: 0 | J12: -1.533736822 | K12: =EXP(-Spread*B12/LGD_C) -> 1 | L12: =EXP(-OwnSpread*B12/LGD_Own) -> 1
B13: 0.25 | C13: 2.150158548 | D13: -0.5946721542 | E13: 0.3837912872 | F13: -0.3638594106 | G13: 1.348690842 | H13: 0.2067955511 | I13: 1.185258992 | J13: -1.165327116 | K13: 0.9937694906 | L13: 0.9958420018 | O13: EPE | T13: ENE
B14: 0.5 | C14: 2.563165157 | D14: -0.9145576894 | E14: 0.619601551 | F14: -0.5550622835 | G14: 1.508439416 | H14: 0.1401680519 | I14: 1.674327292 | J14: -1.609788025 | K14: 0.9875778005 | L14: 0.9917012926 | O14: Stand-alone | P14: XCCY first | Q14: IRS first | S14: ENE | T14: Stand-alone | U14: XCCY first | V14: IRS first
B15: 0.75 | C15: 2.918397243 | D15: -1.112594339 | E15: 0.7609749512 | F15: -0.6609912264 | G15: 1.605805175 | H15: 0.1999977293 | I15: 2.07356702 | J15: -1.973583295 | K15: 0.9814246877 | L15: 0.9875778005 | N15: IRS | O15: =Q15 -> -26.2750929 | P15: =-LGD_C*(SUMPRODUCT(G13:G40,K12:K39)-SUMPRODUCT(G13:G40,K13:K40))*10000/100 -> -13.72122771 | Q15: =-LGD_C*(SUMPRODUCT(C13:C40,K12:K39)-SUMPRODUCT(C13:C40,K13:K40))*10000/100 -> -26.2750929 | S15: IRS | T15: =V15 -> 8.833393291 | U15: =-LGD_C*(SUMPRODUCT(H13:H40,K12:K39)-SUMPRODUCT(H13:H40,K13:K40))*10000/100 -> -3.720471896 | V15: =-LGD_C*(SUMPRODUCT(D13:D40,K12:K39)-SUMPRODUCT(D13:D40,K13:K40))*10000/100 -> 8.833393291
B16: 1 | C16: 3.233823884 | D16: -1.224183644 | E16: 0.9303427867 | F16: -0.6982403052 | G16: 1.750565347 | H16: 0.2590748932 | I16: 2.413601324 | J16: -2.181498842 | K16: 0.975309912 | L16: 0.9834714538 | N16: XCCY | O16: =P16 -> -23.22798149 | P16: =-LGD_C*(SUMPRODUCT(I13:I40,K12:K39)-SUMPRODUCT(I13:I40,K13:K40))*10000/100 -> -23.22798149 | Q16: =-LGD_C*(SUMPRODUCT(E13:E40,K12:K39)-SUMPRODUCT(E13:E40,K13:K40))*10000/100 -> -10.6741163 | S16: XCCY | T16: =U16 -> 29.02901375 | U16: =-LGD_C*(SUMPRODUCT(J13:J40,K12:K39)-SUMPRODUCT(J13:J40,K13:K40))*10000/100 -> 29.02901375 | V16: =-LGD_C*(SUMPRODUCT(F13:F40,K12:K39)-SUMPRODUCT(F13:F40,K13:K40))*10000/100 -> 16.47514856
B17: 1.25 | C17: 3.560178533 | D17: -1.274172291 | E17: 1.057802057 | F17: -0.9092700024 | G17: 1.939042696 | H17: 0.3469635465 | I17: 2.678937895 | J17: -2.53040584 | K17: 0.9692332345 | L17: 0.9793821813 | N17: Total | O17: =O16+O15 -> -49.50307439 | P17: =P16+P15 -> -36.9492092 | Q17: =Q15+Q16 -> -36.9492092 | S17: Total | T17: =T16+T15 -> 37.86240704 | U17: =U15+U16 -> 25.30854185 | V17: =V15+V16 -> 25.30854185
B18: 1.5 | C18: 3.692088876 | D18: -1.337726723 | E18: 1.015741478 | F18: -1.047763066 | G18: 1.883641002 | H18: 0.4707211507 | I18: 2.824189352 | J18: -2.85621094 | K18: 0.9631944177 | L18: 0.975309912
B19: 1.75 | C19: 3.812409597 | D19: -1.354989505 | E19: 1.129521684 | F19: -1.16179907 | G19: 1.923665251 | H19: 0.5337548408 | I19: 3.01826603 | J19: -3.050543416 | K19: 0.9571932259 | L19: 0.9712545752
B20: 2 | C20: 3.836485044 | D20: -1.387649147 | E20: 1.170411903 | F20: -1.393765946 | G20: 1.83119807 | H20: 0.617637828 | I20: 3.175698878 | J20: -3.399052921 | K20: 0.9512294245 | L20: 0.9672161005
B21: 2.25 | C21: 3.858475321 | D21: -1.343810235 | E21: 1.304504444 | F21: -1.626711133 | G21: 1.770139629 | H21: 0.7445254569 | I21: 3.392840136 | J21: -3.715046825 | K21: 0.9453027807 | L21: 0.9631944177
B22: 2.5 | C22: 3.85884392 | D22: -1.340585294 | E22: 1.430232317 | F22: -1.935124239 | G22: 1.79832716 | H22: 0.7199314649 | I22: 3.490749076 | J22: -3.995640999 | K22: 0.9394130628 | L22: 0.9591894571
B23: 2.75 | C23: 3.822222332 | D23: -1.298004536 | E23: 1.533172861 | F23: -2.172847373 | G23: 1.723177681 | H23: 0.8010401157 | I23: 3.632217513 | J23: -4.271892025 | K23: 0.9335600409 | L23: 0.9552011491
B24: 3 | C24: 3.732658571 | D24: -1.282644308 | E24: 1.599414525 | F24: -2.47567688 | G24: 1.60541315 | H24: 0.8446011134 | I24: 3.726659947 | J24: -4.602922302 | K24: 0.9277434863 | L24: 0.9512294245
B25: 3.25 | C25: 3.619023212 | D25: -1.230394686 | E25: 1.719578824 | F25: -2.603392599 | G25: 1.505146426 | H25: 0.8834821006 | I25: 3.83345561 | J25: -4.717269385 | K25: 0.9219631718 | L25: 0.9472742143
B26: 3.5 | C26: 3.503886576 | D26: -1.164146014 | E26: 1.872254214 | F26: -3.161566002 | G26: 1.396775095 | H26: 0.9429654671 | I26: 3.979365694 | J26: -5.268677482 | K26: 0.9162188717 | L26: 0.9433354499
B27: 3.75 | C27: 3.348645673 | D27: -1.105420741 | E27: 1.92787694 | F27: -3.655531657 | G27: 1.280409388 | H27: 0.9628155448 | I27: 3.996113226 | J27: -5.723767942 | K27: 0.9105103614 | L27: 0.9394130628
B28: 4 | C28: 3.163986281 | D28: -1.046119847 | E28: 2.152604362 | F28: -3.965474682 | G28: 1.214828098 | H28: 0.9030383363 | I28: 4.101762546 | J28: -5.914632866 | K28: 0.904837418 | L28: 0.935506985
B29: 4.25 | C29: 2.976800673 | D29: -0.9748856588 | E29: 2.262480958 | F29: -4.275846523 | G29: 1.041833724 | H29: 0.9600812909 | I29: 4.197447908 | J29: -6.210813473 | K29: 0.89919982 | L29: 0.9316171487
B30: 4.5 | C30: 2.792441545 | D30: -0.8932940921 | E30: 2.370328768 | F30: -4.698780383 | G30: 0.9245518607 | H30: 0.9745955922 | I30: 4.238218452 | J30: -6.566670067 | K30: 0.8935973471 | L30: 0.9277434863
B31: 4.75 | C31: 2.588115343 | D31: -0.8094803077 | E31: 2.661295017 | F31: -5.049685744 | G31: 0.83645481 | H31: 0.9421802253 | I31: 4.41295555 | J31: -6.801346277 | K31: 0.8880297805 | L31: 0.9238859306
B32: 5 | C32: 2.36511411 | D32: -0.7257670951 | E32: 2.85348501 | F32: -5.446483935 | G32: 0.7365716395 | H32: 0.9027753754 | I32: 4.482027481 | J32: -7.075026405 | K32: 0.8824969026 | L32: 0.9200444146
B33: 5.25 | C33: 2.131324451 | D33: -0.6414063574 | E33: 0 | F33: 0 | G33: 2.131324451 | H33: -0.6414063574 | I33: 0 | J33: 0 | K33: 0.8769984974 | L33: 0.9162188717
B34: 5.5 | C34: 1.893443993 | D34: -0.5564545116 | E34: 0 | F34: 0 | G34: 1.893443993 | H34: -0.5564545116 | I34: 0 | J34: 0 | K34: 0.87153435 | L34: 0.9124092353
B35: 5.75 | C35: 1.645149966 | D35: -0.4731794685 | E35: 0 | F35: 0 | G35: 1.645149966 | H35: -0.4731794685 | I35: 0 | J35: 0 | K35: 0.8661042471 | L35: 0.9086154394
B36: 6 | C36: 1.382008433 | D36: -0.3914541724 | E36: 0 | F36: 0 | G36: 1.382008433 | H36: -0.3914541724 | I36: 0 | J36: 0 | K36: 0.8607079764 | L36: 0.904837418
B37: 6.25 | C37: 1.104343602 | D37: -0.3078333732 | E37: 0 | F37: 0 | G37: 1.104343602 | H37: -0.3078333732 | I37: 0 | J37: 0 | K37: 0.8553453273 | L37: 0.9010751057
B38: 6.5 | C38: 0.8528658333 | D38: -0.2296562348 | E38: 0 | F38: 0 | G38: 0.8528658333 | H38: -0.2296562348 | I38: 0 | J38: 0 | K38: 0.8500160902 | L38: 0.8973284371
B39: 6.75 | C39: 0.5802266676 | D39: -0.1510827623 | E39: 0 | F39: 0 | G39: 0.5802266676 | H39: -0.1510827623 | I39: 0 | J39: 0 | K39: 0.844720057 | L39: 0.8935973471
B40: 7 | C40: 0.289456574 | D40: -0.07348847517 | E40: 0 | F40: 0 | G40: 0.289456574 | H40: -0.07348847517 | I40: 0 | J40: 0 | K40: 0.8394570208 | L40: 0.889881771
... 1 more rows

Sheet 17.6
B9: Parameters
B10: Mu | C10: 0 | F10: Mu(t) | G10: Sigma(t) | H10: Normal EPE | I10: survival | J10: s'(t) | K10: Sigma'(t) | L10: Mu'(t) | M10: Wrong-way EPE
B11: Sigma | C11: 0.1 | E11: 1e-07 | F11: =E11*Mu -> 0 | G11: =SQRT(E11)*Sigma -> 3.16227766e-05 | H11: =F11*NORMSDIST(F11/G11)+G11*NORMDIST(F11/G11,0,1,FALSE) -> 1.261566261e-05 | I11: =EXP(-Spread*E11/10000/LGD) -> 0.999999998 | J11: =NORMSINV(I11) -> 5.884193359 | K11: =SQRT(1-Correlation^2)*G11 -> 2.738612788e-05 | L11: =F11+Correlation*G11*J11 -> 9.303726604e-05 | M11: =L11*NORMSDIST(L11/K11)+K11*NORMDIST(L11/K11,0,1,FALSE) -> 9.303966491e-05
B12: Spread | C12: 120 | E12: 0.05 | F12: 0 | G12: 0.02236067977 | H12: =F12*NORMSDIST(F12/G12)+G12*NORMDIST(F12/G12,0,1,FALSE) -> 0.008920620581 | I12: 0.9990004998 | J12: 3.090380787 | K12: 0.01936491673 | L12: 0.03455150758 | M12: 0.03483911599
B13: LGD | C13: 0.6 | E13: 0.1 | F13: 0 | G13: 0.0316227766 | H13: =F13*NORMSDIST(F13/G13)+G13*NORMDIST(F13/G13,0,1,FALSE) -> 0.01261566261 | I13: 0.9980019987 | J13: 2.87847712 | K13: 0.02738612788 | L13: 0.04551271946 | M13: 0.04606197537
B14: Correlation | C14: 0.5 | E14: 0.15 | F14: 0 | G14: 0.03872983346 | H14: 0.01545096808 | I14: 0.9970044955 | J14: 2.748273073 | K14: 0.03354101966 | L14: 0.05322007921 | M14: 0.05402438504
E15: 0.2 | F15: 0 | G15: 0.04472135955 | H15: 0.01784124116 | I15: 0.9960079893 | J15: 2.652744785 | K15: 0.03872983346 | L15: 0.05931717667 | M15: 0.06037301646
E16: 0.25 | F16: 0 | G16: 0.05 | H16: 0.01994711402 | I16: 0.9950124792 | J16: 2.576693294 | K16: 0.04330127019 | L16: 0.06441733236 | M16: 0.0657224971
E17: 0.3 | F17: 0 | G17: 0.05477225575 | H17: 0.02185096861 | I17: 0.9940179641 | J17: 2.513202263 | K17: 0.0474341649 | L17: 0.06882687856 | M17: 0.07037986491
E18: 0.35 | F18: 0 | G18: 0.05916079783 | H18: 0.0236017436 | I18: 0.9930244429 | J18: 2.458519651 | K18: 0.05123475383 | L18: 0.07272399201 | M18: 0.07452372973
E19: 0.4 | F19: 0 | G19: 0.0632455532 | H19: 0.02523132522 | I19: 0.9920319148 | J19: 2.410374103 | K19: 0.05477225575 | L19: 0.0762227218 | M19: 0.07826842885
E20: 0.5 | F20: 0 | G20: 0.07071067812 | H20: 0.02820947918 | I20: 0.9900498337 | J20: 2.328221738 | K20: 0.06123724357 | L20: 0.08231506894 | M20: 0.08485112606
E21: 0.6 | F21: 0 | G21: 0.07745966692 | H21: 0.03090193616 | I21: 0.9880717129 | J21: 2.259431219 | K21: 0.06708203932 | L21: 0.08750739483 | M21: 0.09053250654
E22: 0.8 | F22: 0 | G22: 0.0894427191 | H22: 0.03568248232 | I22: 0.9841273201 | J22: 2.147602334 | K22: 0.07745966692 | L22: 0.09604369613 | M22: 0.1000453606
E23: 1 | F23: 0 | G23: 0.1 | H23: 0.03989422804 | I23: 0.9801986733 | J23: 2.057869592 | K23: 0.08660254038 | L23: 0.1028934796 | M23: 0.1078717606
E24: 1.2 | F24: 0 | G24: 0.1095445115 | H24: 0.04370193722 | I24: 0.9762857098 | J24: 1.982452841 | K24: 0.09486832981 | L24: 0.108583414 | M24: 0.1145397948
E25: 1.4 | F25: 0 | G25: 0.1183215957 | H25: 0.04720348719 | I25: 0.9723883668 | J25: 1.917115449 | K25: 0.1024695077 | L25: 0.1134180795 | M25: 0.1203548227
E26: 1.6 | F26: 0 | G26: 0.1264911064 | H26: 0.05046265044 | I26: 0.9685065821 | J26: 1.859284408 | K26: 0.1095445115 | L26: 0.117591471 | M26: 0.1255112973
E27: 1.8 | F27: 0 | G27: 0.1341640786 | H27: 0.05352372348 | I27: 0.9646402935 | J27: 1.807274993 | K27: 0.1161895004 | L27: 0.1212356922 | M27: 0.1301416016
E28: 2 | F28: 0 | G28: 0.1414213562 | H28: 0.05641895835 | I28: 0.9607894392 | J28: 1.759921475 | K28: 0.1224744871 | L28: 0.1244452409 | M28: 0.1343404061
E29: 2.2 | F29: 0 | G29: 0.1483239697 | H29: 0.05917270273 | I29: 0.9569539575 | J29: 1.716382349 | K29: 0.1284523258 | L29: 0.1272903218 | M29: 0.1381780214
E30: 2.4 | F30: 0 | G30: 0.1549193338 | H30: 0.06180387232 | I30: 0.9531337871 | J30: 1.676029442 | K30: 0.1341640786 | L30: 0.1298246823 | M30: 0.1417082574
E31: 2.6 | F31: 0 | G31: 0.161245155 | H31: 0.06432750983 | I31: 0.9493288668 | J31: 1.638380874 | K31: 0.1396424004 | L31: 0.132090489 | M31: 0.1449733138
E32: 2.8 | F32: 0 | G32: 0.1673320053 | H32: 0.06675581178 | I32: 0.9455391359 | J32: 1.60305855 | K32: 0.1449137675 | L32: 0.1341215009 | M32: 0.1480069628
E33: 3 | F33: 0 | G33: 0.1732050808 | H33: 0.06909882989 | I33: 0.9417645336 | J33: 1.569760102 | K33: 0.15 | L33: 0.1359452126 | M33: 0.1508366982
E34: 3.2 | F34: 0 | G34: 0.1788854382 | H34: 0.07136496465 | I34: 0.9380049995 | J34: 1.538239767 | K34: 0.1549193338 | L34: 0.1375843474 | M34: 0.1534852324
E35: 3.4 | F35: 0 | G35: 0.1843908891 | H35: 0.0735613218 | I35: 0.9342604736 | J35: 1.508294959 | K35: 0.1596871942 | L35: 0.1390579243 | M35: 0.155971567
E36: 3.6 | F36: 0 | G36: 0.1897366596 | H36: 0.07569397566 | I36: 0.9305308958 | J36: 1.479756624 | K36: 0.1643167673 | L36: 0.1403820394 | M36: 0.1583117755
E37: 3.8 | F37: 0 | G37: 0.1949358869 | H37: 0.07776816725 | I37: 0.9268162066 | J37: 1.452482157 | K37: 0.1688194302 | L37: 0.1415704488 | M37: 0.1605195881
E38: 4 | F38: 0 | G38: 0.2 | H38: 0.07978845608 | I38: 0.9231163464 | J38: 1.426350109 | K38: 0.1732050808 | L38: 0.1426350109 | M38: 0.1626068346
E39: 4.2 | F39: 0 | G39: 0.2049390153 | H39: 0.08175883811 | I39: 0.9194312561 | J39: 1.401256153 | K39: 0.1774823935 | L39: 0.1435860281 | M39: 0.1645837876
E40: 4.4 | F40: 0 | G40: 0.2097617696 | H40: 0.08368283872 | I40: 0.9157608767 | J40: 1.377109983 | K40: 0.1816590212 | L40: 0.1444325136 | M40: 0.1664594289
E41: 4.6 | F41: 0 | G41: 0.2144761059 | H41: 0.08556358678 | I41: 0.9121051495 | J41: 1.353832881 | K41: 0.1857417562 | L41: 0.1451824021 | M41: 0.1682416618
E42: 4.8 | F42: 0 | G42: 0.219089023 | H42: 0.08740387445 | I42: 0.9084640161 | J42: 1.331355794 | K42: 0.1897366596 | L42: 0.14584272 | M42: 0.1699374804
E43: 5 | F43: =E43*Mu -> 0 | G43: =SQRT(E43)*Sigma -> 0.2236067977 | H43: 0.08920620581 | I43: =EXP(-Spread*E43/10000/LGD) -> 0.904837418 | J43: 1.309617799 | K43: =SQRT(1-Correlation^2)*G43 -> 0.1936491673 | L43: =F43+Correlation*G43*J43 -> 0.1464197212 | M43: 0.1715531066
E44: 5.2 | F44: 0 | G44: 0.228035085 | H44: 0.09097283683 | I44: 0.9012252974 | J44: 1.288564864 | K44: 0.1974841766 | L44: 0.1469189991 | M44: 0.173094102
E45: 5.4 | F45: 0 | G45: 0.2323790008 | H45: 0.09270580849 | I45: 0.8976275964 | J45: 1.268148828 | K45: 0.201246118 | L45: 0.1473455788 | M45: 0.1745654597
E46: 5.6 | F46: 0 | G46: 0.2366431913 | H46: 0.09440697439 | I46: 0.8940442575 | J46: 1.248326578 | K46: 0.2049390153 | L46: 0.1477039926 | M46: 0.175971681
E47: 5.8 | F47: 0 | G47: 0.2408318916 | H47: 0.09607802402 | I47: 0.8904752233 | J47: 1.229059353 | K47: 0.2085665361 | L47: 0.1479983445 | M47: 0.1773168386
E48: 6 | F48: 0 | G48: 0.2449489743 | H48: 0.09772050238 | I48: 0.8869204367 | J48: 1.210312178 | K48: 0.2121320344 | L48: 0.1482323632 | M48: 0.1786046312
E49: 6.2 | F49: 0 | G49: 0.248997992 | H49: 0.09933582673 | I49: 0.8833798409 | J49: 1.192053373 | K49: 0.2156385865 | L49: 0.148409448 | M49: 0.1798384277
E50: 6.4 | F50: 0 | G50: 0.2529822128 | H50: 0.1009253009 | I50: 0.8798533791 | J50: 1.174254152 | K50: 0.219089023 | L50: 0.1485327068 | M50: 0.1810213069
E51: 6.6 | F51: 0 | G51: 0.2569046516 | H51: 0.1024901275 | I51: 0.8763409951 | J51: 1.156888275 | K51: 0.2224859546 | L51: 0.1486049896 | M51: 0.1821560898
E52: 6.8 | F52: 0 | G52: 0.2607680962 | H52: 0.104031419 | I52: 0.8728426325 | J52: 1.139931753 | K52: 0.2258317958 | L52: 0.1486289165 | M52: 0.1832453685
E53: 7 | F53: 0 | G53: 0.2645751311 | H53: 0.1055502061 | I53: 0.8693582354 | J53: 1.123362595 | K53: 0.2291287847 | L53: 0.1486069029 | M53: 0.1842915305
E54: 7.2 | F54: 0 | G54: 0.2683281573 | H54: 0.107047447 | I54: 0.8658877481 | J54: 1.107160588 | K54: 0.2323790008 | L54: 0.1485411802 | M54: 0.1852967803
E55: 7.4 | F55: 0 | G55: 0.2720294102 | H55: 0.1085240332 | I55: 0.8624311149 | J55: 1.09130711 | K55: 0.2355843798 | L55: 0.1484338148 | M55: 0.1862631574
E56: 7.6 | F56: 0 | G56: 0.275680975 | H56: 0.1099807968 | I56: 0.8589882807 | J56: 1.075784964 | K56: 0.2387467277 | L56: 0.1482867239 | M56: 0.1871925534
E57: 7.8 | F57: 0 | G57: 0.2792848009 | H57: 0.1114185153 | I57: 0.8555591904 | J57: 1.060578233 | K57: 0.2418677324 | L57: 0.1481016902 | M57: 0.1880867255
E58: 8 | F58: 0 | G58: 0.2828427125 | H58: 0.1128379167 | I58: 0.852143789 | J58: 1.045672157 | K58: 0.2449489743 | L58: 0.1478803746 | M58: 0.1889473096
E59: 8.2 | F59: 0 | G59: 0.2863564213 | H59: 0.1142396837 | I59: 0.8487420219 | J59: 1.031053022 | K59: 0.2479919354 | L59: 0.1476243267 | M59: 0.1897758309
E60: 8.4 | F60: 0 | G60: 0.2898275349 | H60: 0.1156244577 | I60: 0.8453538347 | J60: 1.016708059 | K60: 0.250998008 | L60: 0.1473349953 | M60: 0.1905737144
E61: 8.6 | F61: =E61*Mu -> 0 | G61: =SQRT(E61)*Sigma -> 0.293257566 | H61: 0.1169928421 | I61: 0.8419791732 | J61: 1.002625363 | K61: =SQRT(1-Correlation^2)*G61 -> 0.253968502 | L61: =F61+Correlation*G61*J61 -> 0.1470137368 | M61: 0.1913422932
E62: 8.8 | F62: 0 | G62: 0.2966479395 | H62: 0.1183454055 | I62: 0.8386179833 | J62: 0.9887938102 | K62: 0.2569046516 | L62: 0.1466618232 | M62: 0.1920828165
E63: 9 | F63: 0 | G63: 0.3 | H63: 0.1196826841 | I63: 0.8352702114 | J63: 0.9752029942 | K63: 0.2598076211 | L63: 0.1462804491 | M63: 0.1927964564
E64: 9.2 | F64: 0 | G64: 0.3033150178 | H64: 0.1210051849 | I64: 0.8319358038 | J64: 0.9618431635 | K64: 0.2626785107 | L64: 0.1458707381 | M64: 0.1934843145
E65: 9.4 | F65: 0 | G65: 0.3065941943 | H65: 0.122313387 | I65: 0.8286147072 | J65: 0.9487051666 | K65: 0.2655183609 | L65: 0.1454337481 | M65: 0.1941474275
E66: 9.6 | F66: 0 | G66: 0.3098386677 | H66: 0.1236077446 | I66: 0.8253068685 | J66: 0.9357804038 | K66: 0.2683281573 | L66: 0.1449704768 | M66: 0.1947867718
E67: 9.8 | F67: 0 | G67: 0.3130495168 | H67: 0.1248886881 | I67: 0.8220122347 | J67: 0.9230607823 | K67: 0.2711088342 | L67: 0.144481866 | M67: 0.1954032688
E68: 10 | F68: 0 | G68: 0.316227766 | H68: 0.1261566261 | I68: 0.8187307531 | J68: 0.9105386774 | K68: 0.2738612788 | L68: 0.1439688059 | M68: 0.1959977884

Sheet 17.7
B8: Inputs | G8: DD (approx) | H8: EMTM | I8: EPE | J8: ENE | K8: Gauss | L8: Spot rate | M8: Running DF | N8: Swap MtM | O8: 0 | P8: =O8+1 -> 1 | Q8: =P8+1 -> 2 | R8: 3 | S8: 4 | T8: 5 | U8: 6 | V8: 7 | W8: 8 | X8: 9 | Y8: 10 | Z8: 11 | AA8: 12 | AB8: 13 | AC8: 14 | AD8: 15 | AE8: 16 | AF8: 17 | AG8: 18 | AH8: 19 | AI8: 20 | AJ8: 21 | AK8: 22 | AL8: 23 | AM8: 24 | AN8: 25 | AO8: 26 | AP8: 27 | AQ8: 28 | AR8: 29 | AS8: 30 | AT8: 31 | AU8: 32 | AV8: 33 | AW8: 34 | AX8: 35 | AY8: 36 | AZ8: 37 | BA8: 38 | BB8: 39 | BC8: 40
B9: Simulations | C9: 10000 | E9: 0 | F9: 0 | H9: =SUM(Calibration!H10:H49)*0.25*SwapRate-1+Calibration!H49 -> 0.000239663758 | I9: =H9 -> 0.000239663758 | J9: =I9 -> 0.000239663758 | K9: =TRANSPOSE(SimulateGaussPathDefault(HR0,HRVol,CorrelHRIR,0.25,40)) -> 9 | L9: =Calibration!G9 -> 0.007500000298 | M9: =1 -> 1
B10: Swap rate | C10: 0.0149 | E10: =E9+1 -> 1 | F10: =F9+0.25 -> 0.25 | G10: 0.003673596999 | H10: 0.0009425231071 | I10: 0.01070989499 | J10: -0.009767371884 | K10: 0.3942032484 | L10: =IF(F9<Tau,L9*Param1+K10*IRVol*Param2+Calibration!J10-Calibration!J9*Param1,NA()) -> 0.00994968165 | M10: =M9*EXP(-0.25*L10) -> 0.9975156707 | N10: =IF(AND(F9<Tau,F10>Tau),(-SUM(OFFSET(O10,0,$E10+1,1,40-$E10))*0.25*SwapRate+(OFFSET(O10,0,E10,1,1)-BC10))*M10,NA()) ->  | P10: =IF(AND(P$8>=$E10,$F9<=Tau,$F10>Tau),Calibration!P10*FEXP(-OFFSET(BFactors,P$8-$E10,0,1,1)*$L10),"") ->  | Q10: =IF(AND(Q$8>=$E10,$F9<=Tau,$F10>Tau),Calibration!Q10*FEXP(-OFFSET(BFactors,Q$8-$E10,0,1,1)*$L10),"") ->  | R10: =IF(AND(R$8>=$E10,$F9<=Tau,$F10>Tau),Calibration!R10*FEXP(-OFFSET(BFactors,R$8-$E10,0,1,1)*$L10),"") ->  | S10: =IF(AND(S$8>=$E10,$F9<=Tau,$F10>Tau),Calibration!S10*FEXP(-OFFSET(BFactors,S$8-$E10,0,1,1)*$L10),"") ->  | T10: =IF(AND(T$8>=$E10,$F9<=Tau,$F10>Tau),Calibration!T10*FEXP(-OFFSET(BFactors,T$8-$E10,0,1,1)*$L10),"") ->  | U10: =IF(AND(U$8>=$E10,$F9<=Tau,$F10>Tau),Calibration!U10*FEXP(-OFFSET(BFactors,U$8-$E10,0,1,1)*$L10),"") ->  | V10: =IF(AND(V$8>=$E10,$F9<=Tau,$F10>Tau),Calibration!V10*FEXP(-OFFSET(BFactors,V$8-$E10,0,1,1)*$L10),"") ->  | W10: =IF(AND(W$8>=$E10,$F9<=Tau,$F10>Tau),Calibration!W10*FEXP(-OFFSET(BFactors,W$8-$E10,0,1,1)*$L10),"") ->  | X10: =IF(AND(X$8>=$E10,$F9<=Tau,$F10>Tau),Calibration!X10*FEXP(-OFFSET(BFactors,X$8-$E10,0,1,1)*$L10),"") ->  | Y10: =IF(AND(Y$8>=$E10,$F9<=Tau,$F10>Tau),Calibration!Y10*FEXP(-OFFSET(BFactors,Y$8-$E10,0,1,1)*$L10),"") ->  | Z10: =IF(AND(Z$8>=$E10,$F9<=Tau,$F10>Tau),Calibration!Z10*FEXP(-OFFSET(BFactors,Z$8-$E10,0,1,1)*$L10),"") ->  | AA10: =IF(AND(AA$8>=$E10,$F9<=Tau,$F10>Tau),Calibration!AA10*FEXP(-OFFSET(BFactors,AA$8-$E10,0,1,1)*$L10),"") ->  | AB10: =IF(AND(AB$8>=$E10,$F9<=Tau,$F10>Tau),Calibration!AB10*FEXP(-OFFSET(BFactors,AB$8-$E10,0,1,1)*$L10),"") ->  | AC10: =IF(AND(AC$8>=$E10,$F9<=Tau,$F10>Tau),Calibration!AC10*FEXP(-OFFSET(BFactors,AC$8-$E10,0,1,1)*$L10),"") ->  | AD10: =IF(AND(AD$8>=$E10,$F9<=Tau,$F10>Tau),Calibration!AD10*FEXP(-OFFSET(BFactors,AD$8-$E10,0,1,1)*$L10),"") ->  | AE10: =IF(AND(AE$8>=$E10,$F9<=Tau,$F10>Tau),Calibration!AE10*FEXP(-OFFSET(BFactors,AE$8-$E10,0,1,1)*$L10),"") ->  | AF10: =IF(AND(AF$8>=$E10,$F9<=Tau,$F10>Tau),Calibration!AF10*FEXP(-OFFSET(BFactors,AF$8-$E10,0,1,1)*$L10),"") ->  | AG10: =IF(AND(AG$8>=$E10,$F9<=Tau,$F10>Tau),Calibration!AG10*FEXP(-OFFSET(BFactors,AG$8-$E10,0,1,1)*$L10),"") ->  | AH10: =IF(AND(AH$8>=$E10,$F9<=Tau,$F10>Tau),Calibration!AH10*FEXP(-OFFSET(BFactors,AH$8-$E10,0,1,1)*$L10),"") ->  | AI10: =IF(AND(AI$8>=$E10,$F9<=Tau,$F10>Tau),Calibration!AI10*FEXP(-OFFSET(BFactors,AI$8-$E10,0,1,1)*$L10),"") ->  | AJ10: =IF(AND(AJ$8>=$E10,$F9<=Tau,$F10>Tau),Calibration!AJ10*FEXP(-OFFSET(BFactors,AJ$8-$E10,0,1,1)*$L10),"") ->  | AK10: =IF(AND(AK$8>=$E10,$F9<=Tau,$F10>Tau),Calibration!AK10*FEXP(-OFFSET(BFactors,AK$8-$E10,0,1,1)*$L10),"") ->  | AL10: =IF(AND(AL$8>=$E10,$F9<=Tau,$F10>Tau),Calibration!AL10*FEXP(-OFFSET(BFactors,AL$8-$E10,0,1,1)*$L10),"") ->  | AM10: =IF(AND(AM$8>=$E10,$F9<=Tau,$F10>Tau),Calibration!AM10*FEXP(-OFFSET(BFactors,AM$8-$E10,0,1,1)*$L10),"") ->  | AN10: =IF(AND(AN$8>=$E10,$F9<=Tau,$F10>Tau),Calibration!AN10*FEXP(-OFFSET(BFactors,AN$8-$E10,0,1,1)*$L10),"") ->  | AO10: =IF(AND(AO$8>=$E10,$F9<=Tau,$F10>Tau),Calibration!AO10*FEXP(-OFFSET(BFactors,AO$8-$E10,0,1,1)*$L10),"") ->  | AP10: =IF(AND(AP$8>=$E10,$F9<=Tau,$F10>Tau),Calibration!AP10*FEXP(-OFFSET(BFactors,AP$8-$E10,0,1,1)*$L10),"") ->  | AQ10: =IF(AND(AQ$8>=$E10,$F9<=Tau,$F10>Tau),Calibration!AQ10*FEXP(-OFFSET(BFactors,AQ$8-$E10,0,1,1)*$L10),"") ->  | AR10: =IF(AND(AR$8>=$E10,$F9<=Tau,$F10>Tau),Calibration!AR10*FEXP(-OFFSET(BFactors,AR$8-$E10,0,1,1)*$L10),"") ->  | AS10: =IF(AND(AS$8>=$E10,$F9<=Tau,$F10>Tau),Calibration!AS10*FEXP(-OFFSET(BFactors,AS$8-$E10,0,1,1)*$L10),"") ->  | AT10: =IF(AND(AT$8>=$E10,$F9<=Tau,$F10>Tau),Calibration!AT10*FEXP(-OFFSET(BFactors,AT$8-$E10,0,1,1)*$L10),"") ->  | AU10: =IF(AND(AU$8>=$E10,$F9<=Tau,$F10>Tau),Calibration!AU10*FEXP(-OFFSET(BFactors,AU$8-$E10,0,1,1)*$L10),"") ->  | AV10: =IF(AND(AV$8>=$E10,$F9<=Tau,$F10>Tau),Calibration!AV10*FEXP(-OFFSET(BFactors,AV$8-$E10,0,1,1)*$L10),"") ->  | AW10: =IF(AND(AW$8>=$E10,$F9<=Tau,$F10>Tau),Calibration!AW10*FEXP(-OFFSET(BFactors,AW$8-$E10,0,1,1)*$L10),"") ->  | AX10: =IF(AND(AX$8>=$E10,$F9<=Tau,$F10>Tau),Calibration!AX10*FEXP(-OFFSET(BFactors,AX$8-$E10,0,1,1)*$L10),"") ->  | AY10: =IF(AND(AY$8>=$E10,$F9<=Tau,$F10>Tau),Calibration!AY10*FEXP(-OFFSET(BFactors,AY$8-$E10,0,1,1)*$L10),"") ->  | AZ10: =IF(AND(AZ$8>=$E10,$F9<=Tau,$F10>Tau),Calibration!AZ10*FEXP(-OFFSET(BFactors,AZ$8-$E10,0,1,1)*$L10),"") ->  | BA10: =IF(AND(BA$8>=$E10,$F9<=Tau,$F10>Tau),Calibration!BA10*FEXP(-OFFSET(BFactors,BA$8-$E10,0,1,1)*$L10),"") ->  | BB10: =IF(AND(BB$8>=$E10,$F9<=Tau,$F10>Tau),Calibration!BB10*FEXP(-OFFSET(BFactors,BB$8-$E10,0,1,1)*$L10),"") ->  | BC10: =IF(AND(BC$8>=$E10,$F9<=Tau,$F10>Tau),Calibration!BC10*FEXP(-OFFSET(BFactors,BC$8-$E10,0,1,1)*$L10),"") -> 
E11: 2 | F11: 0.5 | G11: 0.004377051743 | H11: 0.008147155583 | I11: 0.02109914473 | J11: -0.01295198915 | K11: -0.546907814 | L11: =IF(F10<Tau,L10*Param1+K11*IRVol*Param2+Calibration!J11-Calibration!J10*Param1,NA()) -> 0.008209753374 | M11: 0.9954704308 | Q11: =IF(AND(Q$8>=$E11,$F10<=Tau,$F11>Tau),Calibration!Q11*FEXP(-OFFSET(BFactors,Q$8-$E11,0,1,1)*$L11),"") ->  | R11: =IF(AND(R$8>=$E11,$F10<=Tau,$F11>Tau),Calibration!R11*FEXP(-OFFSET(BFactors,R$8-$E11,0,1,1)*$L11),"") ->  | S11: =IF(AND(S$8>=$E11,$F10<=Tau,$F11>Tau),Calibration!S11*FEXP(-OFFSET(BFactors,S$8-$E11,0,1,1)*$L11),"") ->  | T11: =IF(AND(T$8>=$E11,$F10<=Tau,$F11>Tau),Calibration!T11*FEXP(-OFFSET(BFactors,T$8-$E11,0,1,1)*$L11),"") ->  | U11: =IF(AND(U$8>=$E11,$F10<=Tau,$F11>Tau),Calibration!U11*FEXP(-OFFSET(BFactors,U$8-$E11,0,1,1)*$L11),"") ->  | V11: =IF(AND(V$8>=$E11,$F10<=Tau,$F11>Tau),Calibration!V11*FEXP(-OFFSET(BFactors,V$8-$E11,0,1,1)*$L11),"") ->  | W11: =IF(AND(W$8>=$E11,$F10<=Tau,$F11>Tau),Calibration!W11*FEXP(-OFFSET(BFactors,W$8-$E11,0,1,1)*$L11),"") ->  | X11: =IF(AND(X$8>=$E11,$F10<=Tau,$F11>Tau),Calibration!X11*FEXP(-OFFSET(BFactors,X$8-$E11,0,1,1)*$L11),"") ->  | Y11: =IF(AND(Y$8>=$E11,$F10<=Tau,$F11>Tau),Calibration!Y11*FEXP(-OFFSET(BFactors,Y$8-$E11,0,1,1)*$L11),"") ->  | Z11: =IF(AND(Z$8>=$E11,$F10<=Tau,$F11>Tau),Calibration!Z11*FEXP(-OFFSET(BFactors,Z$8-$E11,0,1,1)*$L11),"") ->  | AA11: =IF(AND(AA$8>=$E11,$F10<=Tau,$F11>Tau),Calibration!AA11*FEXP(-OFFSET(BFactors,AA$8-$E11,0,1,1)*$L11),"") ->  | AB11: =IF(AND(AB$8>=$E11,$F10<=Tau,$F11>Tau),Calibration!AB11*FEXP(-OFFSET(BFactors,AB$8-$E11,0,1,1)*$L11),"") ->  | AC11: =IF(AND(AC$8>=$E11,$F10<=Tau,$F11>Tau),Calibration!AC11*FEXP(-OFFSET(BFactors,AC$8-$E11,0,1,1)*$L11),"") ->  | AD11: =IF(AND(AD$8>=$E11,$F10<=Tau,$F11>Tau),Calibration!AD11*FEXP(-OFFSET(BFactors,AD$8-$E11,0,1,1)*$L11),"") ->  | AE11: =IF(AND(AE$8>=$E11,$F10<=Tau,$F11>Tau),Calibration!AE11*FEXP(-OFFSET(BFactors,AE$8-$E11,0,1,1)*$L11),"") ->  | AF11: =IF(AND(AF$8>=$E11,$F10<=Tau,$F11>Tau),Calibration!AF11*FEXP(-OFFSET(BFactors,AF$8-$E11,0,1,1)*$L11),"") ->  | AG11: =IF(AND(AG$8>=$E11,$F10<=Tau,$F11>Tau),Calibration!AG11*FEXP(-OFFSET(BFactors,AG$8-$E11,0,1,1)*$L11),"") ->  | AH11: =IF(AND(AH$8>=$E11,$F10<=Tau,$F11>Tau),Calibration!AH11*FEXP(-OFFSET(BFactors,AH$8-$E11,0,1,1)*$L11),"") ->  | AI11: =IF(AND(AI$8>=$E11,$F10<=Tau,$F11>Tau),Calibration!AI11*FEXP(-OFFSET(BFactors,AI$8-$E11,0,1,1)*$L11),"") ->  | AJ11: =IF(AND(AJ$8>=$E11,$F10<=Tau,$F11>Tau),Calibration!AJ11*FEXP(-OFFSET(BFactors,AJ$8-$E11,0,1,1)*$L11),"") ->  | AK11: =IF(AND(AK$8>=$E11,$F10<=Tau,$F11>Tau),Calibration!AK11*FEXP(-OFFSET(BFactors,AK$8-$E11,0,1,1)*$L11),"") ->  | AL11: =IF(AND(AL$8>=$E11,$F10<=Tau,$F11>Tau),Calibration!AL11*FEXP(-OFFSET(BFactors,AL$8-$E11,0,1,1)*$L11),"") ->  | AM11: =IF(AND(AM$8>=$E11,$F10<=Tau,$F11>Tau),Calibration!AM11*FEXP(-OFFSET(BFactors,AM$8-$E11,0,1,1)*$L11),"") ->  | AN11: =IF(AND(AN$8>=$E11,$F10<=Tau,$F11>Tau),Calibration!AN11*FEXP(-OFFSET(BFactors,AN$8-$E11,0,1,1)*$L11),"") ->  | AO11: =IF(AND(AO$8>=$E11,$F10<=Tau,$F11>Tau),Calibration!AO11*FEXP(-OFFSET(BFactors,AO$8-$E11,0,1,1)*$L11),"") ->  | AP11: =IF(AND(AP$8>=$E11,$F10<=Tau,$F11>Tau),Calibration!AP11*FEXP(-OFFSET(BFactors,AP$8-$E11,0,1,1)*$L11),"") ->  | AQ11: =IF(AND(AQ$8>=$E11,$F10<=Tau,$F11>Tau),Calibration!AQ11*FEXP(-OFFSET(BFactors,AQ$8-$E11,0,1,1)*$L11),"") ->  | AR11: =IF(AND(AR$8>=$E11,$F10<=Tau,$F11>Tau),Calibration!AR11*FEXP(-OFFSET(BFactors,AR$8-$E11,0,1,1)*$L11),"") ->  | AS11: =IF(AND(AS$8>=$E11,$F10<=Tau,$F11>Tau),Calibration!AS11*FEXP(-OFFSET(BFactors,AS$8-$E11,0,1,1)*$L11),"") ->  | AT11: =IF(AND(AT$8>=$E11,$F10<=Tau,$F11>Tau),Calibration!AT11*FEXP(-OFFSET(BFactors,AT$8-$E11,0,1,1)*$L11),"") ->  | AU11: =IF(AND(AU$8>=$E11,$F10<=Tau,$F11>Tau),Calibration!AU11*FEXP(-OFFSET(BFactors,AU$8-$E11,0,1,1)*$L11),"") ->  | AV11: =IF(AND(AV$8>=$E11,$F10<=Tau,$F11>Tau),Calibration!AV11*FEXP(-OFFSET(BFactors,AV$8-$E11,0,1,1)*$L11),"") ->  | AW11: =IF(AND(AW$8>=$E11,$F10<=Tau,$F11>Tau),Calibration!AW11*FEXP(-OFFSET(BFactors,AW$8-$E11,0,1,1)*$L11),"") ->  | AX11: =IF(AND(AX$8>=$E11,$F10<=Tau,$F11>Tau),Calibration!AX11*FEXP(-OFFSET(BFactors,AX$8-$E11,0,1,1)*$L11),"") ->  | AY11: =IF(AND(AY$8>=$E11,$F10<=Tau,$F11>Tau),Calibration!AY11*FEXP(-OFFSET(BFactors,AY$8-$E11,0,1,1)*$L11),"") ->  | AZ11: =IF(AND(AZ$8>=$E11,$F10<=Tau,$F11>Tau),Calibration!AZ11*FEXP(-OFFSET(BFactors,AZ$8-$E11,0,1,1)*$L11),"") ->  | BA11: =IF(AND(BA$8>=$E11,$F10<=Tau,$F11>Tau),Calibration!BA11*FEXP(-OFFSET(BFactors,BA$8-$E11,0,1,1)*$L11),"") ->  | BB11: =IF(AND(BB$8>=$E11,$F10<=Tau,$F11>Tau),Calibration!BB11*FEXP(-OFFSET(BFactors,BB$8-$E11,0,1,1)*$L11),"") ->  | BC11: =IF(AND(BC$8>=$E11,$F10<=Tau,$F11>Tau),Calibration!BC11*FEXP(-OFFSET(BFactors,BC$8-$E11,0,1,1)*$L11),"") -> 
B12: Simulation | E12: 3 | F12: 0.75 | G12: 0.004123026419 | H12: 0.01880143164 | I12: 0.03010395064 | J12: -0.011302519 | K12: 0.08949265458 | L12: =IF(F11<Tau,L11*Param1+K12*IRVol*Param2+Calibration!J12-Calibration!J11*Param1,NA()) -> 0.00937337767 | M12: 0.9931404318 | R12: =IF(AND(R$8>=$E12,$F11<=Tau,$F12>Tau),Calibration!R12*FEXP(-OFFSET(BFactors,R$8-$E12,0,1,1)*$L12),"") ->  | S12: =IF(AND(S$8>=$E12,$F11<=Tau,$F12>Tau),Calibration!S12*FEXP(-OFFSET(BFactors,S$8-$E12,0,1,1)*$L12),"") ->  | T12: =IF(AND(T$8>=$E12,$F11<=Tau,$F12>Tau),Calibration!T12*FEXP(-OFFSET(BFactors,T$8-$E12,0,1,1)*$L12),"") ->  | U12: =IF(AND(U$8>=$E12,$F11<=Tau,$F12>Tau),Calibration!U12*FEXP(-OFFSET(BFactors,U$8-$E12,0,1,1)*$L12),"") ->  | V12: =IF(AND(V$8>=$E12,$F11<=Tau,$F12>Tau),Calibration!V12*FEXP(-OFFSET(BFactors,V$8-$E12,0,1,1)*$L12),"") ->  | W12: =IF(AND(W$8>=$E12,$F11<=Tau,$F12>Tau),Calibration!W12*FEXP(-OFFSET(BFactors,W$8-$E12,0,1,1)*$L12),"") ->  | X12: =IF(AND(X$8>=$E12,$F11<=Tau,$F12>Tau),Calibration!X12*FEXP(-OFFSET(BFactors,X$8-$E12,0,1,1)*$L12),"") ->  | Y12: =IF(AND(Y$8>=$E12,$F11<=Tau,$F12>Tau),Calibration!Y12*FEXP(-OFFSET(BFactors,Y$8-$E12,0,1,1)*$L12),"") ->  | Z12: =IF(AND(Z$8>=$E12,$F11<=Tau,$F12>Tau),Calibration!Z12*FEXP(-OFFSET(BFactors,Z$8-$E12,0,1,1)*$L12),"") ->  | AA12: =IF(AND(AA$8>=$E12,$F11<=Tau,$F12>Tau),Calibration!AA12*FEXP(-OFFSET(BFactors,AA$8-$E12,0,1,1)*$L12),"") ->  | AB12: =IF(AND(AB$8>=$E12,$F11<=Tau,$F12>Tau),Calibration!AB12*FEXP(-OFFSET(BFactors,AB$8-$E12,0,1,1)*$L12),"") ->  | AC12: =IF(AND(AC$8>=$E12,$F11<=Tau,$F12>Tau),Calibration!AC12*FEXP(-OFFSET(BFactors,AC$8-$E12,0,1,1)*$L12),"") ->  | AD12: =IF(AND(AD$8>=$E12,$F11<=Tau,$F12>Tau),Calibration!AD12*FEXP(-OFFSET(BFactors,AD$8-$E12,0,1,1)*$L12),"") ->  | AE12: =IF(AND(AE$8>=$E12,$F11<=Tau,$F12>Tau),Calibration!AE12*FEXP(-OFFSET(BFactors,AE$8-$E12,0,1,1)*$L12),"") ->  | AF12: =IF(AND(AF$8>=$E12,$F11<=Tau,$F12>Tau),Calibration!AF12*FEXP(-OFFSET(BFactors,AF$8-$E12,0,1,1)*$L12),"") ->  | AG12: =IF(AND(AG$8>=$E12,$F11<=Tau,$F12>Tau),Calibration!AG12*FEXP(-OFFSET(BFactors,AG$8-$E12,0,1,1)*$L12),"") ->  | AH12: =IF(AND(AH$8>=$E12,$F11<=Tau,$F12>Tau),Calibration!AH12*FEXP(-OFFSET(BFactors,AH$8-$E12,0,1,1)*$L12),"") ->  | AI12: =IF(AND(AI$8>=$E12,$F11<=Tau,$F12>Tau),Calibration!AI12*FEXP(-OFFSET(BFactors,AI$8-$E12,0,1,1)*$L12),"") ->  | AJ12: =IF(AND(AJ$8>=$E12,$F11<=Tau,$F12>Tau),Calibration!AJ12*FEXP(-OFFSET(BFactors,AJ$8-$E12,0,1,1)*$L12),"") ->  | AK12: =IF(AND(AK$8>=$E12,$F11<=Tau,$F12>Tau),Calibration!AK12*FEXP(-OFFSET(BFactors,AK$8-$E12,0,1,1)*$L12),"") ->  | AL12: =IF(AND(AL$8>=$E12,$F11<=Tau,$F12>Tau),Calibration!AL12*FEXP(-OFFSET(BFactors,AL$8-$E12,0,1,1)*$L12),"") ->  | AM12: =IF(AND(AM$8>=$E12,$F11<=Tau,$F12>Tau),Calibration!AM12*FEXP(-OFFSET(BFactors,AM$8-$E12,0,1,1)*$L12),"") ->  | AN12: =IF(AND(AN$8>=$E12,$F11<=Tau,$F12>Tau),Calibration!AN12*FEXP(-OFFSET(BFactors,AN$8-$E12,0,1,1)*$L12),"") ->  | AO12: =IF(AND(AO$8>=$E12,$F11<=Tau,$F12>Tau),Calibration!AO12*FEXP(-OFFSET(BFactors,AO$8-$E12,0,1,1)*$L12),"") ->  | AP12: =IF(AND(AP$8>=$E12,$F11<=Tau,$F12>Tau),Calibration!AP12*FEXP(-OFFSET(BFactors,AP$8-$E12,0,1,1)*$L12),"") ->  | AQ12: =IF(AND(AQ$8>=$E12,$F11<=Tau,$F12>Tau),Calibration!AQ12*FEXP(-OFFSET(BFactors,AQ$8-$E12,0,1,1)*$L12),"") ->  | AR12: =IF(AND(AR$8>=$E12,$F11<=Tau,$F12>Tau),Calibration!AR12*FEXP(-OFFSET(BFactors,AR$8-$E12,0,1,1)*$L12),"") ->  | AS12: =IF(AND(AS$8>=$E12,$F11<=Tau,$F12>Tau),Calibration!AS12*FEXP(-OFFSET(BFactors,AS$8-$E12,0,1,1)*$L12),"") ->  | AT12: =IF(AND(AT$8>=$E12,$F11<=Tau,$F12>Tau),Calibration!AT12*FEXP(-OFFSET(BFactors,AT$8-$E12,0,1,1)*$L12),"") ->  | AU12: =IF(AND(AU$8>=$E12,$F11<=Tau,$F12>Tau),Calibration!AU12*FEXP(-OFFSET(BFactors,AU$8-$E12,0,1,1)*$L12),"") ->  | AV12: =IF(AND(AV$8>=$E12,$F11<=Tau,$F12>Tau),Calibration!AV12*FEXP(-OFFSET(BFactors,AV$8-$E12,0,1,1)*$L12),"") ->  | AW12: =IF(AND(AW$8>=$E12,$F11<=Tau,$F12>Tau),Calibration!AW12*FEXP(-OFFSET(BFactors,AW$8-$E12,0,1,1)*$L12),"") ->  | AX12: =IF(AND(AX$8>=$E12,$F11<=Tau,$F12>Tau),Calibration!AX12*FEXP(-OFFSET(BFactors,AX$8-$E12,0,1,1)*$L12),"") ->  | AY12: =IF(AND(AY$8>=$E12,$F11<=Tau,$F12>Tau),Calibration!AY12*FEXP(-OFFSET(BFactors,AY$8-$E12,0,1,1)*$L12),"") ->  | AZ12: =IF(AND(AZ$8>=$E12,$F11<=Tau,$F12>Tau),Calibration!AZ12*FEXP(-OFFSET(BFactors,AZ$8-$E12,0,1,1)*$L12),"") ->  | BA12: =IF(AND(BA$8>=$E12,$F11<=Tau,$F12>Tau),Calibration!BA12*FEXP(-OFFSET(BFactors,BA$8-$E12,0,1,1)*$L12),"") ->  | BB12: =IF(AND(BB$8>=$E12,$F11<=Tau,$F12>Tau),Calibration!BB12*FEXP(-OFFSET(BFactors,BB$8-$E12,0,1,1)*$L12),"") ->  | BC12: =IF(AND(BC$8>=$E12,$F11<=Tau,$F12>Tau),Calibration!BC12*FEXP(-OFFSET(BFactors,BC$8-$E12,0,1,1)*$L12),"") -> 
B13: Initial hazard rate | C13: 0.015 | E13: 4 | F13: 1 | G13: 0.00494372362 | H13: 0.01910039588 | I13: 0.03076183793 | J13: -0.01166144205 | K13: -0.5060723742 | L13: =IF(F12<Tau,L12*Param1+K13*IRVol*Param2+Calibration!J13-Calibration!J12*Param1,NA()) -> 0.007326537555 | M13: 0.9913230266 | S13: =IF(AND(S$8>=$E13,$F12<=Tau,$F13>Tau),Calibration!S13*FEXP(-OFFSET(BFactors,S$8-$E13,0,1,1)*$L13),"") ->  | T13: =IF(AND(T$8>=$E13,$F12<=Tau,$F13>Tau),Calibration!T13*FEXP(-OFFSET(BFactors,T$8-$E13,0,1,1)*$L13),"") ->  | U13: =IF(AND(U$8>=$E13,$F12<=Tau,$F13>Tau),Calibration!U13*FEXP(-OFFSET(BFactors,U$8-$E13,0,1,1)*$L13),"") ->  | V13: =IF(AND(V$8>=$E13,$F12<=Tau,$F13>Tau),Calibration!V13*FEXP(-OFFSET(BFactors,V$8-$E13,0,1,1)*$L13),"") ->  | W13: =IF(AND(W$8>=$E13,$F12<=Tau,$F13>Tau),Calibration!W13*FEXP(-OFFSET(BFactors,W$8-$E13,0,1,1)*$L13),"") ->  | X13: =IF(AND(X$8>=$E13,$F12<=Tau,$F13>Tau),Calibration!X13*FEXP(-OFFSET(BFactors,X$8-$E13,0,1,1)*$L13),"") ->  | Y13: =IF(AND(Y$8>=$E13,$F12<=Tau,$F13>Tau),Calibration!Y13*FEXP(-OFFSET(BFactors,Y$8-$E13,0,1,1)*$L13),"") ->  | Z13: =IF(AND(Z$8>=$E13,$F12<=Tau,$F13>Tau),Calibration!Z13*FEXP(-OFFSET(BFactors,Z$8-$E13,0,1,1)*$L13),"") ->  | AA13: =IF(AND(AA$8>=$E13,$F12<=Tau,$F13>Tau),Calibration!AA13*FEXP(-OFFSET(BFactors,AA$8-$E13,0,1,1)*$L13),"") ->  | AB13: =IF(AND(AB$8>=$E13,$F12<=Tau,$F13>Tau),Calibration!AB13*FEXP(-OFFSET(BFactors,AB$8-$E13,0,1,1)*$L13),"") ->  | AC13: =IF(AND(AC$8>=$E13,$F12<=Tau,$F13>Tau),Calibration!AC13*FEXP(-OFFSET(BFactors,AC$8-$E13,0,1,1)*$L13),"") ->  | AD13: =IF(AND(AD$8>=$E13,$F12<=Tau,$F13>Tau),Calibration!AD13*FEXP(-OFFSET(BFactors,AD$8-$E13,0,1,1)*$L13),"") ->  | AE13: =IF(AND(AE$8>=$E13,$F12<=Tau,$F13>Tau),Calibration!AE13*FEXP(-OFFSET(BFactors,AE$8-$E13,0,1,1)*$L13),"") ->  | AF13: =IF(AND(AF$8>=$E13,$F12<=Tau,$F13>Tau),Calibration!AF13*FEXP(-OFFSET(BFactors,AF$8-$E13,0,1,1)*$L13),"") ->  | AG13: =IF(AND(AG$8>=$E13,$F12<=Tau,$F13>Tau),Calibration!AG13*FEXP(-OFFSET(BFactors,AG$8-$E13,0,1,1)*$L13),"") ->  | AH13: =IF(AND(AH$8>=$E13,$F12<=Tau,$F13>Tau),Calibration!AH13*FEXP(-OFFSET(BFactors,AH$8-$E13,0,1,1)*$L13),"") ->  | AI13: =IF(AND(AI$8>=$E13,$F12<=Tau,$F13>Tau),Calibration!AI13*FEXP(-OFFSET(BFactors,AI$8-$E13,0,1,1)*$L13),"") ->  | AJ13: =IF(AND(AJ$8>=$E13,$F12<=Tau,$F13>Tau),Calibration!AJ13*FEXP(-OFFSET(BFactors,AJ$8-$E13,0,1,1)*$L13),"") ->  | AK13: =IF(AND(AK$8>=$E13,$F12<=Tau,$F13>Tau),Calibration!AK13*FEXP(-OFFSET(BFactors,AK$8-$E13,0,1,1)*$L13),"") ->  | AL13: =IF(AND(AL$8>=$E13,$F12<=Tau,$F13>Tau),Calibration!AL13*FEXP(-OFFSET(BFactors,AL$8-$E13,0,1,1)*$L13),"") ->  | AM13: =IF(AND(AM$8>=$E13,$F12<=Tau,$F13>Tau),Calibration!AM13*FEXP(-OFFSET(BFactors,AM$8-$E13,0,1,1)*$L13),"") ->  | AN13: =IF(AND(AN$8>=$E13,$F12<=Tau,$F13>Tau),Calibration!AN13*FEXP(-OFFSET(BFactors,AN$8-$E13,0,1,1)*$L13),"") ->  | AO13: =IF(AND(AO$8>=$E13,$F12<=Tau,$F13>Tau),Calibration!AO13*FEXP(-OFFSET(BFactors,AO$8-$E13,0,1,1)*$L13),"") ->  | AP13: =IF(AND(AP$8>=$E13,$F12<=Tau,$F13>Tau),Calibration!AP13*FEXP(-OFFSET(BFactors,AP$8-$E13,0,1,1)*$L13),"") ->  | AQ13: =IF(AND(AQ$8>=$E13,$F12<=Tau,$F13>Tau),Calibration!AQ13*FEXP(-OFFSET(BFactors,AQ$8-$E13,0,1,1)*$L13),"") ->  | AR13: =IF(AND(AR$8>=$E13,$F12<=Tau,$F13>Tau),Calibration!AR13*FEXP(-OFFSET(BFactors,AR$8-$E13,0,1,1)*$L13),"") ->  | AS13: =IF(AND(AS$8>=$E13,$F12<=Tau,$F13>Tau),Calibration!AS13*FEXP(-OFFSET(BFactors,AS$8-$E13,0,1,1)*$L13),"") ->  | AT13: =IF(AND(AT$8>=$E13,$F12<=Tau,$F13>Tau),Calibration!AT13*FEXP(-OFFSET(BFactors,AT$8-$E13,0,1,1)*$L13),"") ->  | AU13: =IF(AND(AU$8>=$E13,$F12<=Tau,$F13>Tau),Calibration!AU13*FEXP(-OFFSET(BFactors,AU$8-$E13,0,1,1)*$L13),"") ->  | AV13: =IF(AND(AV$8>=$E13,$F12<=Tau,$F13>Tau),Calibration!AV13*FEXP(-OFFSET(BFactors,AV$8-$E13,0,1,1)*$L13),"") ->  | AW13: =IF(AND(AW$8>=$E13,$F12<=Tau,$F13>Tau),Calibration!AW13*FEXP(-OFFSET(BFactors,AW$8-$E13,0,1,1)*$L13),"") ->  | AX13: =IF(AND(AX$8>=$E13,$F12<=Tau,$F13>Tau),Calibration!AX13*FEXP(-OFFSET(BFactors,AX$8-$E13,0,1,1)*$L13),"") ->  | AY13: =IF(AND(AY$8>=$E13,$F12<=Tau,$F13>Tau),Calibration!AY13*FEXP(-OFFSET(BFactors,AY$8-$E13,0,1,1)*$L13),"") ->  | AZ13: =IF(AND(AZ$8>=$E13,$F12<=Tau,$F13>Tau),Calibration!AZ13*FEXP(-OFFSET(BFactors,AZ$8-$E13,0,1,1)*$L13),"") ->  | BA13: =IF(AND(BA$8>=$E13,$F12<=Tau,$F13>Tau),Calibration!BA13*FEXP(-OFFSET(BFactors,BA$8-$E13,0,1,1)*$L13),"") ->  | BB13: =IF(AND(BB$8>=$E13,$F12<=Tau,$F13>Tau),Calibration!BB13*FEXP(-OFFSET(BFactors,BB$8-$E13,0,1,1)*$L13),"") ->  | BC13: =IF(AND(BC$8>=$E13,$F12<=Tau,$F13>Tau),Calibration!BC13*FEXP(-OFFSET(BFactors,BC$8-$E13,0,1,1)*$L13),"") -> 
B14: Hazard rate volatility | C14: 0.5 | E14: 5 | F14: 1.25 | G14: 0.004748319525 | H14: 0.02197550278 | I14: 0.03516660938 | J14: -0.0131911066 | K14: 0.8501654824 | L14: =IF(F13<Tau,L13*Param1+K14*IRVol*Param2+Calibration!J14-Calibration!J13*Param1,NA()) -> 0.01194929563 | M14: 0.9883660425 | T14: =IF(AND(T$8>=$E14,$F13<=Tau,$F14>Tau),Calibration!T14*FEXP(-OFFSET(BFactors,T$8-$E14,0,1,1)*$L14),"") ->  | U14: =IF(AND(U$8>=$E14,$F13<=Tau,$F14>Tau),Calibration!U14*FEXP(-OFFSET(BFactors,U$8-$E14,0,1,1)*$L14),"") ->  | V14: =IF(AND(V$8>=$E14,$F13<=Tau,$F14>Tau),Calibration!V14*FEXP(-OFFSET(BFactors,V$8-$E14,0,1,1)*$L14),"") ->  | W14: =IF(AND(W$8>=$E14,$F13<=Tau,$F14>Tau),Calibration!W14*FEXP(-OFFSET(BFactors,W$8-$E14,0,1,1)*$L14),"") ->  | X14: =IF(AND(X$8>=$E14,$F13<=Tau,$F14>Tau),Calibration!X14*FEXP(-OFFSET(BFactors,X$8-$E14,0,1,1)*$L14),"") ->  | Y14: =IF(AND(Y$8>=$E14,$F13<=Tau,$F14>Tau),Calibration!Y14*FEXP(-OFFSET(BFactors,Y$8-$E14,0,1,1)*$L14),"") ->  | Z14: =IF(AND(Z$8>=$E14,$F13<=Tau,$F14>Tau),Calibration!Z14*FEXP(-OFFSET(BFactors,Z$8-$E14,0,1,1)*$L14),"") ->  | AA14: =IF(AND(AA$8>=$E14,$F13<=Tau,$F14>Tau),Calibration!AA14*FEXP(-OFFSET(BFactors,AA$8-$E14,0,1,1)*$L14),"") ->  | AB14: =IF(AND(AB$8>=$E14,$F13<=Tau,$F14>Tau),Calibration!AB14*FEXP(-OFFSET(BFactors,AB$8-$E14,0,1,1)*$L14),"") ->  | AC14: =IF(AND(AC$8>=$E14,$F13<=Tau,$F14>Tau),Calibration!AC14*FEXP(-OFFSET(BFactors,AC$8-$E14,0,1,1)*$L14),"") ->  | AD14: =IF(AND(AD$8>=$E14,$F13<=Tau,$F14>Tau),Calibration!AD14*FEXP(-OFFSET(BFactors,AD$8-$E14,0,1,1)*$L14),"") ->  | AE14: =IF(AND(AE$8>=$E14,$F13<=Tau,$F14>Tau),Calibration!AE14*FEXP(-OFFSET(BFactors,AE$8-$E14,0,1,1)*$L14),"") ->  | AF14: =IF(AND(AF$8>=$E14,$F13<=Tau,$F14>Tau),Calibration!AF14*FEXP(-OFFSET(BFactors,AF$8-$E14,0,1,1)*$L14),"") ->  | AG14: =IF(AND(AG$8>=$E14,$F13<=Tau,$F14>Tau),Calibration!AG14*FEXP(-OFFSET(BFactors,AG$8-$E14,0,1,1)*$L14),"") ->  | AH14: =IF(AND(AH$8>=$E14,$F13<=Tau,$F14>Tau),Calibration!AH14*FEXP(-OFFSET(BFactors,AH$8-$E14,0,1,1)*$L14),"") ->  | AI14: =IF(AND(AI$8>=$E14,$F13<=Tau,$F14>Tau),Calibration!AI14*FEXP(-OFFSET(BFactors,AI$8-$E14,0,1,1)*$L14),"") ->  | AJ14: =IF(AND(AJ$8>=$E14,$F13<=Tau,$F14>Tau),Calibration!AJ14*FEXP(-OFFSET(BFactors,AJ$8-$E14,0,1,1)*$L14),"") ->  | AK14: =IF(AND(AK$8>=$E14,$F13<=Tau,$F14>Tau),Calibration!AK14*FEXP(-OFFSET(BFactors,AK$8-$E14,0,1,1)*$L14),"") ->  | AL14: =IF(AND(AL$8>=$E14,$F13<=Tau,$F14>Tau),Calibration!AL14*FEXP(-OFFSET(BFactors,AL$8-$E14,0,1,1)*$L14),"") ->  | AM14: =IF(AND(AM$8>=$E14,$F13<=Tau,$F14>Tau),Calibration!AM14*FEXP(-OFFSET(BFactors,AM$8-$E14,0,1,1)*$L14),"") ->  | AN14: =IF(AND(AN$8>=$E14,$F13<=Tau,$F14>Tau),Calibration!AN14*FEXP(-OFFSET(BFactors,AN$8-$E14,0,1,1)*$L14),"") ->  | AO14: =IF(AND(AO$8>=$E14,$F13<=Tau,$F14>Tau),Calibration!AO14*FEXP(-OFFSET(BFactors,AO$8-$E14,0,1,1)*$L14),"") ->  | AP14: =IF(AND(AP$8>=$E14,$F13<=Tau,$F14>Tau),Calibration!AP14*FEXP(-OFFSET(BFactors,AP$8-$E14,0,1,1)*$L14),"") ->  | AQ14: =IF(AND(AQ$8>=$E14,$F13<=Tau,$F14>Tau),Calibration!AQ14*FEXP(-OFFSET(BFactors,AQ$8-$E14,0,1,1)*$L14),"") ->  | AR14: =IF(AND(AR$8>=$E14,$F13<=Tau,$F14>Tau),Calibration!AR14*FEXP(-OFFSET(BFactors,AR$8-$E14,0,1,1)*$L14),"") ->  | AS14: =IF(AND(AS$8>=$E14,$F13<=Tau,$F14>Tau),Calibration!AS14*FEXP(-OFFSET(BFactors,AS$8-$E14,0,1,1)*$L14),"") ->  | AT14: =IF(AND(AT$8>=$E14,$F13<=Tau,$F14>Tau),Calibration!AT14*FEXP(-OFFSET(BFactors,AT$8-$E14,0,1,1)*$L14),"") ->  | AU14: =IF(AND(AU$8>=$E14,$F13<=Tau,$F14>Tau),Calibration!AU14*FEXP(-OFFSET(BFactors,AU$8-$E14,0,1,1)*$L14),"") ->  | AV14: =IF(AND(AV$8>=$E14,$F13<=Tau,$F14>Tau),Calibration!AV14*FEXP(-OFFSET(BFactors,AV$8-$E14,0,1,1)*$L14),"") ->  | AW14: =IF(AND(AW$8>=$E14,$F13<=Tau,$F14>Tau),Calibration!AW14*FEXP(-OFFSET(BFactors,AW$8-$E14,0,1,1)*$L14),"") ->  | AX14: =IF(AND(AX$8>=$E14,$F13<=Tau,$F14>Tau),Calibration!AX14*FEXP(-OFFSET(BFactors,AX$8-$E14,0,1,1)*$L14),"") ->  | AY14: =IF(AND(AY$8>=$E14,$F13<=Tau,$F14>Tau),Calibration!AY14*FEXP(-OFFSET(BFactors,AY$8-$E14,0,1,1)*$L14),"") ->  | AZ14: =IF(AND(AZ$8>=$E14,$F13<=Tau,$F14>Tau),Calibration!AZ14*FEXP(-OFFSET(BFactors,AZ$8-$E14,0,1,1)*$L14),"") ->  | BA14: =IF(AND(BA$8>=$E14,$F13<=Tau,$F14>Tau),Calibration!BA14*FEXP(-OFFSET(BFactors,BA$8-$E14,0,1,1)*$L14),"") ->  | BB14: =IF(AND(BB$8>=$E14,$F13<=Tau,$F14>Tau),Calibration!BB14*FEXP(-OFFSET(BFactors,BB$8-$E14,0,1,1)*$L14),"") ->  | BC14: =IF(AND(BC$8>=$E14,$F13<=Tau,$F14>Tau),Calibration!BC14*FEXP(-OFFSET(BFactors,BC$8-$E14,0,1,1)*$L14),"") -> 
B15: Correlation | C15: 0.5 | E15: 6 | F15: 1.5 | G15: 0.004591996248 | H15: 0.03097597585 | I15: 0.04071001475 | J15: -0.009734038901 | K15: 0.8101220844 | L15: =IF(F14<Tau,L14*Param1+K15*IRVol*Param2+Calibration!J15-Calibration!J14*Param1,NA()) -> 0.01620197209 | M15: 0.9843707696 | U15: =IF(AND(U$8>=$E15,$F14<=Tau,$F15>Tau),Calibration!U15*FEXP(-OFFSET(BFactors,U$8-$E15,0,1,1)*$L15),"") ->  | V15: =IF(AND(V$8>=$E15,$F14<=Tau,$F15>Tau),Calibration!V15*FEXP(-OFFSET(BFactors,V$8-$E15,0,1,1)*$L15),"") ->  | W15: =IF(AND(W$8>=$E15,$F14<=Tau,$F15>Tau),Calibration!W15*FEXP(-OFFSET(BFactors,W$8-$E15,0,1,1)*$L15),"") ->  | X15: =IF(AND(X$8>=$E15,$F14<=Tau,$F15>Tau),Calibration!X15*FEXP(-OFFSET(BFactors,X$8-$E15,0,1,1)*$L15),"") ->  | Y15: =IF(AND(Y$8>=$E15,$F14<=Tau,$F15>Tau),Calibration!Y15*FEXP(-OFFSET(BFactors,Y$8-$E15,0,1,1)*$L15),"") ->  | Z15: =IF(AND(Z$8>=$E15,$F14<=Tau,$F15>Tau),Calibration!Z15*FEXP(-OFFSET(BFactors,Z$8-$E15,0,1,1)*$L15),"") ->  | AA15: =IF(AND(AA$8>=$E15,$F14<=Tau,$F15>Tau),Calibration!AA15*FEXP(-OFFSET(BFactors,AA$8-$E15,0,1,1)*$L15),"") ->  | AB15: =IF(AND(AB$8>=$E15,$F14<=Tau,$F15>Tau),Calibration!AB15*FEXP(-OFFSET(BFactors,AB$8-$E15,0,1,1)*$L15),"") ->  | AC15: =IF(AND(AC$8>=$E15,$F14<=Tau,$F15>Tau),Calibration!AC15*FEXP(-OFFSET(BFactors,AC$8-$E15,0,1,1)*$L15),"") ->  | AD15: =IF(AND(AD$8>=$E15,$F14<=Tau,$F15>Tau),Calibration!AD15*FEXP(-OFFSET(BFactors,AD$8-$E15,0,1,1)*$L15),"") ->  | AE15: =IF(AND(AE$8>=$E15,$F14<=Tau,$F15>Tau),Calibration!AE15*FEXP(-OFFSET(BFactors,AE$8-$E15,0,1,1)*$L15),"") ->  | AF15: =IF(AND(AF$8>=$E15,$F14<=Tau,$F15>Tau),Calibration!AF15*FEXP(-OFFSET(BFactors,AF$8-$E15,0,1,1)*$L15),"") ->  | AG15: =IF(AND(AG$8>=$E15,$F14<=Tau,$F15>Tau),Calibration!AG15*FEXP(-OFFSET(BFactors,AG$8-$E15,0,1,1)*$L15),"") ->  | AH15: =IF(AND(AH$8>=$E15,$F14<=Tau,$F15>Tau),Calibration!AH15*FEXP(-OFFSET(BFactors,AH$8-$E15,0,1,1)*$L15),"") ->  | AI15: =IF(AND(AI$8>=$E15,$F14<=Tau,$F15>Tau),Calibration!AI15*FEXP(-OFFSET(BFactors,AI$8-$E15,0,1,1)*$L15),"") ->  | AJ15: =IF(AND(AJ$8>=$E15,$F14<=Tau,$F15>Tau),Calibration!AJ15*FEXP(-OFFSET(BFactors,AJ$8-$E15,0,1,1)*$L15),"") ->  | AK15: =IF(AND(AK$8>=$E15,$F14<=Tau,$F15>Tau),Calibration!AK15*FEXP(-OFFSET(BFactors,AK$8-$E15,0,1,1)*$L15),"") ->  | AL15: =IF(AND(AL$8>=$E15,$F14<=Tau,$F15>Tau),Calibration!AL15*FEXP(-OFFSET(BFactors,AL$8-$E15,0,1,1)*$L15),"") ->  | AM15: =IF(AND(AM$8>=$E15,$F14<=Tau,$F15>Tau),Calibration!AM15*FEXP(-OFFSET(BFactors,AM$8-$E15,0,1,1)*$L15),"") ->  | AN15: =IF(AND(AN$8>=$E15,$F14<=Tau,$F15>Tau),Calibration!AN15*FEXP(-OFFSET(BFactors,AN$8-$E15,0,1,1)*$L15),"") ->  | AO15: =IF(AND(AO$8>=$E15,$F14<=Tau,$F15>Tau),Calibration!AO15*FEXP(-OFFSET(BFactors,AO$8-$E15,0,1,1)*$L15),"") ->  | AP15: =IF(AND(AP$8>=$E15,$F14<=Tau,$F15>Tau),Calibration!AP15*FEXP(-OFFSET(BFactors,AP$8-$E15,0,1,1)*$L15),"") ->  | AQ15: =IF(AND(AQ$8>=$E15,$F14<=Tau,$F15>Tau),Calibration!AQ15*FEXP(-OFFSET(BFactors,AQ$8-$E15,0,1,1)*$L15),"") ->  | AR15: =IF(AND(AR$8>=$E15,$F14<=Tau,$F15>Tau),Calibration!AR15*FEXP(-OFFSET(BFactors,AR$8-$E15,0,1,1)*$L15),"") ->  | AS15: =IF(AND(AS$8>=$E15,$F14<=Tau,$F15>Tau),Calibration!AS15*FEXP(-OFFSET(BFactors,AS$8-$E15,0,1,1)*$L15),"") ->  | AT15: =IF(AND(AT$8>=$E15,$F14<=Tau,$F15>Tau),Calibration!AT15*FEXP(-OFFSET(BFactors,AT$8-$E15,0,1,1)*$L15),"") ->  | AU15: =IF(AND(AU$8>=$E15,$F14<=Tau,$F15>Tau),Calibration!AU15*FEXP(-OFFSET(BFactors,AU$8-$E15,0,1,1)*$L15),"") ->  | AV15: =IF(AND(AV$8>=$E15,$F14<=Tau,$F15>Tau),Calibration!AV15*FEXP(-OFFSET(BFactors,AV$8-$E15,0,1,1)*$L15),"") ->  | AW15: =IF(AND(AW$8>=$E15,$F14<=Tau,$F15>Tau),Calibration!AW15*FEXP(-OFFSET(BFactors,AW$8-$E15,0,1,1)*$L15),"") ->  | AX15: =IF(AND(AX$8>=$E15,$F14<=Tau,$F15>Tau),Calibration!AX15*FEXP(-OFFSET(BFactors,AX$8-$E15,0,1,1)*$L15),"") ->  | AY15: =IF(AND(AY$8>=$E15,$F14<=Tau,$F15>Tau),Calibration!AY15*FEXP(-OFFSET(BFactors,AY$8-$E15,0,1,1)*$L15),"") ->  | AZ15: =IF(AND(AZ$8>=$E15,$F14<=Tau,$F15>Tau),Calibration!AZ15*FEXP(-OFFSET(BFactors,AZ$8-$E15,0,1,1)*$L15),"") ->  | BA15: =IF(AND(BA$8>=$E15,$F14<=Tau,$F15>Tau),Calibration!BA15*FEXP(-OFFSET(BFactors,BA$8-$E15,0,1,1)*$L15),"") ->  | BB15: =IF(AND(BB$8>=$E15,$F14<=Tau,$F15>Tau),Calibration!BB15*FEXP(-OFFSET(BFactors,BB$8-$E15,0,1,1)*$L15),"") ->  | BC15: =IF(AND(BC$8>=$E15,$F14<=Tau,$F15>Tau),Calibration!BC15*FEXP(-OFFSET(BFactors,BC$8-$E15,0,1,1)*$L15),"") -> 
B16: Default time | C16: =K9*0.25-0.00001 -> 2.24999 | E16: 7 | F16: 1.75 | G16: 0.004259809286 | H16: 0.02230364717 | I16: 0.03943970462 | J16: -0.01713605745 | K16: -0.4982729933 | L16: =IF(F15<Tau,L15*Param1+K16*IRVol*Param2+Calibration!J16-Calibration!J15*Param1,NA()) -> 0.01385612491 | M16: =M15*EXP(-0.25*L16) -> 0.9809667777 | V16: =IF(AND(V$8>=$E16,$F15<=Tau,$F16>Tau),Calibration!V16*FEXP(-OFFSET(BFactors,V$8-$E16,0,1,1)*$L16),"") ->  | W16: =IF(AND(W$8>=$E16,$F15<=Tau,$F16>Tau),Calibration!W16*FEXP(-OFFSET(BFactors,W$8-$E16,0,1,1)*$L16),"") ->  | X16: =IF(AND(X$8>=$E16,$F15<=Tau,$F16>Tau),Calibration!X16*FEXP(-OFFSET(BFactors,X$8-$E16,0,1,1)*$L16),"") ->  | Y16: =IF(AND(Y$8>=$E16,$F15<=Tau,$F16>Tau),Calibration!Y16*FEXP(-OFFSET(BFactors,Y$8-$E16,0,1,1)*$L16),"") ->  | Z16: =IF(AND(Z$8>=$E16,$F15<=Tau,$F16>Tau),Calibration!Z16*FEXP(-OFFSET(BFactors,Z$8-$E16,0,1,1)*$L16),"") ->  | AA16: =IF(AND(AA$8>=$E16,$F15<=Tau,$F16>Tau),Calibration!AA16*FEXP(-OFFSET(BFactors,AA$8-$E16,0,1,1)*$L16),"") ->  | AB16: =IF(AND(AB$8>=$E16,$F15<=Tau,$F16>Tau),Calibration!AB16*FEXP(-OFFSET(BFactors,AB$8-$E16,0,1,1)*$L16),"") ->  | AC16: =IF(AND(AC$8>=$E16,$F15<=Tau,$F16>Tau),Calibration!AC16*FEXP(-OFFSET(BFactors,AC$8-$E16,0,1,1)*$L16),"") ->  | AD16: =IF(AND(AD$8>=$E16,$F15<=Tau,$F16>Tau),Calibration!AD16*FEXP(-OFFSET(BFactors,AD$8-$E16,0,1,1)*$L16),"") ->  | AE16: =IF(AND(AE$8>=$E16,$F15<=Tau,$F16>Tau),Calibration!AE16*FEXP(-OFFSET(BFactors,AE$8-$E16,0,1,1)*$L16),"") ->  | AF16: =IF(AND(AF$8>=$E16,$F15<=Tau,$F16>Tau),Calibration!AF16*FEXP(-OFFSET(BFactors,AF$8-$E16,0,1,1)*$L16),"") ->  | AG16: =IF(AND(AG$8>=$E16,$F15<=Tau,$F16>Tau),Calibration!AG16*FEXP(-OFFSET(BFactors,AG$8-$E16,0,1,1)*$L16),"") ->  | AH16: =IF(AND(AH$8>=$E16,$F15<=Tau,$F16>Tau),Calibration!AH16*FEXP(-OFFSET(BFactors,AH$8-$E16,0,1,1)*$L16),"") ->  | AI16: =IF(AND(AI$8>=$E16,$F15<=Tau,$F16>Tau),Calibration!AI16*FEXP(-OFFSET(BFactors,AI$8-$E16,0,1,1)*$L16),"") ->  | AJ16: =IF(AND(AJ$8>=$E16,$F15<=Tau,$F16>Tau),Calibration!AJ16*FEXP(-OFFSET(BFactors,AJ$8-$E16,0,1,1)*$L16),"") ->  | AK16: =IF(AND(AK$8>=$E16,$F15<=Tau,$F16>Tau),Calibration!AK16*FEXP(-OFFSET(BFactors,AK$8-$E16,0,1,1)*$L16),"") ->  | AL16: =IF(AND(AL$8>=$E16,$F15<=Tau,$F16>Tau),Calibration!AL16*FEXP(-OFFSET(BFactors,AL$8-$E16,0,1,1)*$L16),"") ->  | AM16: =IF(AND(AM$8>=$E16,$F15<=Tau,$F16>Tau),Calibration!AM16*FEXP(-OFFSET(BFactors,AM$8-$E16,0,1,1)*$L16),"") ->  | AN16: =IF(AND(AN$8>=$E16,$F15<=Tau,$F16>Tau),Calibration!AN16*FEXP(-OFFSET(BFactors,AN$8-$E16,0,1,1)*$L16),"") ->  | AO16: =IF(AND(AO$8>=$E16,$F15<=Tau,$F16>Tau),Calibration!AO16*FEXP(-OFFSET(BFactors,AO$8-$E16,0,1,1)*$L16),"") ->  | AP16: =IF(AND(AP$8>=$E16,$F15<=Tau,$F16>Tau),Calibration!AP16*FEXP(-OFFSET(BFactors,AP$8-$E16,0,1,1)*$L16),"") ->  | AQ16: =IF(AND(AQ$8>=$E16,$F15<=Tau,$F16>Tau),Calibration!AQ16*FEXP(-OFFSET(BFactors,AQ$8-$E16,0,1,1)*$L16),"") ->  | AR16: =IF(AND(AR$8>=$E16,$F15<=Tau,$F16>Tau),Calibration!AR16*FEXP(-OFFSET(BFactors,AR$8-$E16,0,1,1)*$L16),"") ->  | AS16: =IF(AND(AS$8>=$E16,$F15<=Tau,$F16>Tau),Calibration!AS16*FEXP(-OFFSET(BFactors,AS$8-$E16,0,1,1)*$L16),"") ->  | AT16: =IF(AND(AT$8>=$E16,$F15<=Tau,$F16>Tau),Calibration!AT16*FEXP(-OFFSET(BFactors,AT$8-$E16,0,1,1)*$L16),"") ->  | AU16: =IF(AND(AU$8>=$E16,$F15<=Tau,$F16>Tau),Calibration!AU16*FEXP(-OFFSET(BFactors,AU$8-$E16,0,1,1)*$L16),"") ->  | AV16: =IF(AND(AV$8>=$E16,$F15<=Tau,$F16>Tau),Calibration!AV16*FEXP(-OFFSET(BFactors,AV$8-$E16,0,1,1)*$L16),"") ->  | AW16: =IF(AND(AW$8>=$E16,$F15<=Tau,$F16>Tau),Calibration!AW16*FEXP(-OFFSET(BFactors,AW$8-$E16,0,1,1)*$L16),"") ->  | AX16: =IF(AND(AX$8>=$E16,$F15<=Tau,$F16>Tau),Calibration!AX16*FEXP(-OFFSET(BFactors,AX$8-$E16,0,1,1)*$L16),"") ->  | AY16: =IF(AND(AY$8>=$E16,$F15<=Tau,$F16>Tau),Calibration!AY16*FEXP(-OFFSET(BFactors,AY$8-$E16,0,1,1)*$L16),"") ->  | AZ16: =IF(AND(AZ$8>=$E16,$F15<=Tau,$F16>Tau),Calibration!AZ16*FEXP(-OFFSET(BFactors,AZ$8-$E16,0,1,1)*$L16),"") ->  | BA16: =IF(AND(BA$8>=$E16,$F15<=Tau,$F16>Tau),Calibration!BA16*FEXP(-OFFSET(BFactors,BA$8-$E16,0,1,1)*$L16),"") ->  | BB16: =IF(AND(BB$8>=$E16,$F15<=Tau,$F16>Tau),Calibration!BB16*FEXP(-OFFSET(BFactors,BB$8-$E16,0,1,1)*$L16),"") ->  | BC16: =IF(AND(BC$8>=$E16,$F15<=Tau,$F16>Tau),Calibration!BC16*FEXP(-OFFSET(BFactors,BC$8-$E16,0,1,1)*$L16),"") -> 
B17: Tries | C17: =OFFSET(K8,Length+2,0,1,1) -> 17 | E17: 8 | F17: 2 | G17: 0.004806940753 | H17: 0.02931103885 | I17: 0.04250906184 | J17: -0.01319802299 | K17: -0.6698357264 | L17: =IF(F16<Tau,L16*Param1+K17*IRVol*Param2+Calibration!J17-Calibration!J16*Param1,NA()) -> 0.01073026034 | M17: 0.9783387969 | W17: =IF(AND(W$8>=$E17,$F16<=Tau,$F17>Tau),Calibration!W17*FEXP(-OFFSET(BFactors,W$8-$E17,0,1,1)*$L17),"") ->  | X17: =IF(AND(X$8>=$E17,$F16<=Tau,$F17>Tau),Calibration!X17*FEXP(-OFFSET(BFactors,X$8-$E17,0,1,1)*$L17),"") ->  | Y17: =IF(AND(Y$8>=$E17,$F16<=Tau,$F17>Tau),Calibration!Y17*FEXP(-OFFSET(BFactors,Y$8-$E17,0,1,1)*$L17),"") ->  | Z17: =IF(AND(Z$8>=$E17,$F16<=Tau,$F17>Tau),Calibration!Z17*FEXP(-OFFSET(BFactors,Z$8-$E17,0,1,1)*$L17),"") ->  | AA17: =IF(AND(AA$8>=$E17,$F16<=Tau,$F17>Tau),Calibration!AA17*FEXP(-OFFSET(BFactors,AA$8-$E17,0,1,1)*$L17),"") ->  | AB17: =IF(AND(AB$8>=$E17,$F16<=Tau,$F17>Tau),Calibration!AB17*FEXP(-OFFSET(BFactors,AB$8-$E17,0,1,1)*$L17),"") ->  | AC17: =IF(AND(AC$8>=$E17,$F16<=Tau,$F17>Tau),Calibration!AC17*FEXP(-OFFSET(BFactors,AC$8-$E17,0,1,1)*$L17),"") ->  | AD17: =IF(AND(AD$8>=$E17,$F16<=Tau,$F17>Tau),Calibration!AD17*FEXP(-OFFSET(BFactors,AD$8-$E17,0,1,1)*$L17),"") ->  | AE17: =IF(AND(AE$8>=$E17,$F16<=Tau,$F17>Tau),Calibration!AE17*FEXP(-OFFSET(BFactors,AE$8-$E17,0,1,1)*$L17),"") ->  | AF17: =IF(AND(AF$8>=$E17,$F16<=Tau,$F17>Tau),Calibration!AF17*FEXP(-OFFSET(BFactors,AF$8-$E17,0,1,1)*$L17),"") ->  | AG17: =IF(AND(AG$8>=$E17,$F16<=Tau,$F17>Tau),Calibration!AG17*FEXP(-OFFSET(BFactors,AG$8-$E17,0,1,1)*$L17),"") ->  | AH17: =IF(AND(AH$8>=$E17,$F16<=Tau,$F17>Tau),Calibration!AH17*FEXP(-OFFSET(BFactors,AH$8-$E17,0,1,1)*$L17),"") ->  | AI17: =IF(AND(AI$8>=$E17,$F16<=Tau,$F17>Tau),Calibration!AI17*FEXP(-OFFSET(BFactors,AI$8-$E17,0,1,1)*$L17),"") ->  | AJ17: =IF(AND(AJ$8>=$E17,$F16<=Tau,$F17>Tau),Calibration!AJ17*FEXP(-OFFSET(BFactors,AJ$8-$E17,0,1,1)*$L17),"") ->  | AK17: =IF(AND(AK$8>=$E17,$F16<=Tau,$F17>Tau),Calibration!AK17*FEXP(-OFFSET(BFactors,AK$8-$E17,0,1,1)*$L17),"") ->  | AL17: =IF(AND(AL$8>=$E17,$F16<=Tau,$F17>Tau),Calibration!AL17*FEXP(-OFFSET(BFactors,AL$8-$E17,0,1,1)*$L17),"") ->  | AM17: =IF(AND(AM$8>=$E17,$F16<=Tau,$F17>Tau),Calibration!AM17*FEXP(-OFFSET(BFactors,AM$8-$E17,0,1,1)*$L17),"") ->  | AN17: =IF(AND(AN$8>=$E17,$F16<=Tau,$F17>Tau),Calibration!AN17*FEXP(-OFFSET(BFactors,AN$8-$E17,0,1,1)*$L17),"") ->  | AO17: =IF(AND(AO$8>=$E17,$F16<=Tau,$F17>Tau),Calibration!AO17*FEXP(-OFFSET(BFactors,AO$8-$E17,0,1,1)*$L17),"") ->  | AP17: =IF(AND(AP$8>=$E17,$F16<=Tau,$F17>Tau),Calibration!AP17*FEXP(-OFFSET(BFactors,AP$8-$E17,0,1,1)*$L17),"") ->  | AQ17: =IF(AND(AQ$8>=$E17,$F16<=Tau,$F17>Tau),Calibration!AQ17*FEXP(-OFFSET(BFactors,AQ$8-$E17,0,1,1)*$L17),"") ->  | AR17: =IF(AND(AR$8>=$E17,$F16<=Tau,$F17>Tau),Calibration!AR17*FEXP(-OFFSET(BFactors,AR$8-$E17,0,1,1)*$L17),"") ->  | AS17: =IF(AND(AS$8>=$E17,$F16<=Tau,$F17>Tau),Calibration!AS17*FEXP(-OFFSET(BFactors,AS$8-$E17,0,1,1)*$L17),"") ->  | AT17: =IF(AND(AT$8>=$E17,$F16<=Tau,$F17>Tau),Calibration!AT17*FEXP(-OFFSET(BFactors,AT$8-$E17,0,1,1)*$L17),"") ->  | AU17: =IF(AND(AU$8>=$E17,$F16<=Tau,$F17>Tau),Calibration!AU17*FEXP(-OFFSET(BFactors,AU$8-$E17,0,1,1)*$L17),"") ->  | AV17: =IF(AND(AV$8>=$E17,$F16<=Tau,$F17>Tau),Calibration!AV17*FEXP(-OFFSET(BFactors,AV$8-$E17,0,1,1)*$L17),"") ->  | AW17: =IF(AND(AW$8>=$E17,$F16<=Tau,$F17>Tau),Calibration!AW17*FEXP(-OFFSET(BFactors,AW$8-$E17,0,1,1)*$L17),"") ->  | AX17: =IF(AND(AX$8>=$E17,$F16<=Tau,$F17>Tau),Calibration!AX17*FEXP(-OFFSET(BFactors,AX$8-$E17,0,1,1)*$L17),"") ->  | AY17: =IF(AND(AY$8>=$E17,$F16<=Tau,$F17>Tau),Calibration!AY17*FEXP(-OFFSET(BFactors,AY$8-$E17,0,1,1)*$L17),"") ->  | AZ17: =IF(AND(AZ$8>=$E17,$F16<=Tau,$F17>Tau),Calibration!AZ17*FEXP(-OFFSET(BFactors,AZ$8-$E17,0,1,1)*$L17),"") ->  | BA17: =IF(AND(BA$8>=$E17,$F16<=Tau,$F17>Tau),Calibration!BA17*FEXP(-OFFSET(BFactors,BA$8-$E17,0,1,1)*$L17),"") ->  | BB17: =IF(AND(BB$8>=$E17,$F16<=Tau,$F17>Tau),Calibration!BB17*FEXP(-OFFSET(BFactors,BB$8-$E17,0,1,1)*$L17),"") ->  | BC17: =IF(AND(BC$8>=$E17,$F16<=Tau,$F17>Tau),Calibration!BC17*FEXP(-OFFSET(BFactors,BC$8-$E17,0,1,1)*$L17),"") -> 
B18: EAD | C18: =OFFSET(N9,K9,0,1,1) -> -0.03526083474 | E18: 9 | F18: 2.25 | G18: 0.004396592153 | H18: 0.03616006913 | I18: 0.04776443617 | J18: -0.01160436704 | K18: -1.838410164 | L18: =IF(F17<Tau,L17*Param1+K18*IRVol*Param2+Calibration!J18-Calibration!J17*Param1,NA()) -> 0.001951404092 | M18: 0.9778616298 | N18: -0.03526083474 | X18: =IF(AND(X$8>=$E18,$F17<=Tau,$F18>Tau),Calibration!X18*FEXP(-OFFSET(BFactors,X$8-$E18,0,1,1)*$L18),"") -> 1 | Y18: =IF(AND(Y$8>=$E18,$F17<=Tau,$F18>Tau),Calibration!Y18*FEXP(-OFFSET(BFactors,Y$8-$E18,0,1,1)*$L18),"") -> 0.9994116454 | Z18: =IF(AND(Z$8>=$E18,$F17<=Tau,$F18>Tau),Calibration!Z18*FEXP(-OFFSET(BFactors,Z$8-$E18,0,1,1)*$L18),"") -> 0.9986849353 | AA18: =IF(AND(AA$8>=$E18,$F17<=Tau,$F18>Tau),Calibration!AA18*FEXP(-OFFSET(BFactors,AA$8-$E18,0,1,1)*$L18),"") -> 0.997814443 | AB18: =IF(AND(AB$8>=$E18,$F17<=Tau,$F18>Tau),Calibration!AB18*FEXP(-OFFSET(BFactors,AB$8-$E18,0,1,1)*$L18),"") -> 0.9967937476 | AC18: =IF(AND(AC$8>=$E18,$F17<=Tau,$F18>Tau),Calibration!AC18*FEXP(-OFFSET(BFactors,AC$8-$E18,0,1,1)*$L18),"") -> 0.9956225943 | AD18: =IF(AND(AD$8>=$E18,$F17<=Tau,$F18>Tau),Calibration!AD18*FEXP(-OFFSET(BFactors,AD$8-$E18,0,1,1)*$L18),"") -> 0.994303071 | AE18: =IF(AND(AE$8>=$E18,$F17<=Tau,$F18>Tau),Calibration!AE18*FEXP(-OFFSET(BFactors,AE$8-$E18,0,1,1)*$L18),"") -> 0.992837935 | AF18: =IF(AND(AF$8>=$E18,$F17<=Tau,$F18>Tau),Calibration!AF18*FEXP(-OFFSET(BFactors,AF$8-$E18,0,1,1)*$L18),"") -> 0.9912305979 | AG18: =IF(AND(AG$8>=$E18,$F17<=Tau,$F18>Tau),Calibration!AG18*FEXP(-OFFSET(BFactors,AG$8-$E18,0,1,1)*$L18),"") -> 0.9894851247 | AH18: =IF(AND(AH$8>=$E18,$F17<=Tau,$F18>Tau),Calibration!AH18*FEXP(-OFFSET(BFactors,AH$8-$E18,0,1,1)*$L18),"") -> 0.9876062281 | AI18: =IF(AND(AI$8>=$E18,$F17<=Tau,$F18>Tau),Calibration!AI18*FEXP(-OFFSET(BFactors,AI$8-$E18,0,1,1)*$L18),"") -> 0.9855992554 | AJ18: =IF(AND(AJ$8>=$E18,$F17<=Tau,$F18>Tau),Calibration!AJ18*FEXP(-OFFSET(BFactors,AJ$8-$E18,0,1,1)*$L18),"") -> 0.9834696487 | AK18: =IF(AND(AK$8>=$E18,$F17<=Tau,$F18>Tau),Calibration!AK18*FEXP(-OFFSET(BFactors,AK$8-$E18,0,1,1)*$L18),"") -> 0.9812211461 | AL18: =IF(AND(AL$8>=$E18,$F17<=Tau,$F18>Tau),Calibration!AL18*FEXP(-OFFSET(BFactors,AL$8-$E18,0,1,1)*$L18),"") -> 0.9788570328 | AM18: =IF(AND(AM$8>=$E18,$F17<=Tau,$F18>Tau),Calibration!AM18*FEXP(-OFFSET(BFactors,AM$8-$E18,0,1,1)*$L18),"") -> 0.9763806229 | AN18: =IF(AND(AN$8>=$E18,$F17<=Tau,$F18>Tau),Calibration!AN18*FEXP(-OFFSET(BFactors,AN$8-$E18,0,1,1)*$L18),"") -> 0.9737952577 | AO18: =IF(AND(AO$8>=$E18,$F17<=Tau,$F18>Tau),Calibration!AO18*FEXP(-OFFSET(BFactors,AO$8-$E18,0,1,1)*$L18),"") -> 0.9711043041 | AP18: =IF(AND(AP$8>=$E18,$F17<=Tau,$F18>Tau),Calibration!AP18*FEXP(-OFFSET(BFactors,AP$8-$E18,0,1,1)*$L18),"") -> 0.9683111532 | AQ18: =IF(AND(AQ$8>=$E18,$F17<=Tau,$F18>Tau),Calibration!AQ18*FEXP(-OFFSET(BFactors,AQ$8-$E18,0,1,1)*$L18),"") -> 0.9654192178 | AR18: =IF(AND(AR$8>=$E18,$F17<=Tau,$F18>Tau),Calibration!AR18*FEXP(-OFFSET(BFactors,AR$8-$E18,0,1,1)*$L18),"") -> 0.9624318556 | AS18: =IF(AND(AS$8>=$E18,$F17<=Tau,$F18>Tau),Calibration!AS18*FEXP(-OFFSET(BFactors,AS$8-$E18,0,1,1)*$L18),"") -> 0.9593521207 | AT18: =IF(AND(AT$8>=$E18,$F17<=Tau,$F18>Tau),Calibration!AT18*FEXP(-OFFSET(BFactors,AT$8-$E18,0,1,1)*$L18),"") -> 0.9561829565 | AU18: =IF(AND(AU$8>=$E18,$F17<=Tau,$F18>Tau),Calibration!AU18*FEXP(-OFFSET(BFactors,AU$8-$E18,0,1,1)*$L18),"") -> 0.9529272669 | AV18: =IF(AND(AV$8>=$E18,$F17<=Tau,$F18>Tau),Calibration!AV18*FEXP(-OFFSET(BFactors,AV$8-$E18,0,1,1)*$L18),"") -> 0.9495879196 | AW18: =IF(AND(AW$8>=$E18,$F17<=Tau,$F18>Tau),Calibration!AW18*FEXP(-OFFSET(BFactors,AW$8-$E18,0,1,1)*$L18),"") -> 0.9461677274 | AX18: =IF(AND(AX$8>=$E18,$F17<=Tau,$F18>Tau),Calibration!AX18*FEXP(-OFFSET(BFactors,AX$8-$E18,0,1,1)*$L18),"") -> 0.9426694845 | AY18: =IF(AND(AY$8>=$E18,$F17<=Tau,$F18>Tau),Calibration!AY18*FEXP(-OFFSET(BFactors,AY$8-$E18,0,1,1)*$L18),"") -> 0.9390959301 | AZ18: =IF(AND(AZ$8>=$E18,$F17<=Tau,$F18>Tau),Calibration!AZ18*FEXP(-OFFSET(BFactors,AZ$8-$E18,0,1,1)*$L18),"") -> 0.9354497659 | BA18: =IF(AND(BA$8>=$E18,$F17<=Tau,$F18>Tau),Calibration!BA18*FEXP(-OFFSET(BFactors,BA$8-$E18,0,1,1)*$L18),"") -> 0.9317336529 | BB18: =IF(AND(BB$8>=$E18,$F17<=Tau,$F18>Tau),Calibration!BB18*FEXP(-OFFSET(BFactors,BB$8-$E18,0,1,1)*$L18),"") -> 0.9279502111 | BC18: =IF(AND(BC$8>=$E18,$F17<=Tau,$F18>Tau),Calibration!BC18*FEXP(-OFFSET(BFactors,BC$8-$E18,0,1,1)*$L18),"") -> 0.9241020192
B19: CVA contrib | C19: =-C18*LGD*10000 -> 211.5650084 | E19: 10 | F19: 2.5 | G19: 0.004455213381 | H19: 0.03706707652 | I19: 0.04752508133 | J19: -0.01045800482 | K19: 17 | L19: =IF(F18<Tau,L18*Param1+K19*IRVol*Param2+Calibration!J19-Calibration!J18*Param1,NA()) ->  | Y19: =IF(AND(Y$8>=$E19,$F18<=Tau,$F19>Tau),Calibration!Y19*FEXP(-OFFSET(BFactors,Y$8-$E19,0,1,1)*$L19),"") ->  | Z19: =IF(AND(Z$8>=$E19,$F18<=Tau,$F19>Tau),Calibration!Z19*FEXP(-OFFSET(BFactors,Z$8-$E19,0,1,1)*$L19),"") ->  | AA19: =IF(AND(AA$8>=$E19,$F18<=Tau,$F19>Tau),Calibration!AA19*FEXP(-OFFSET(BFactors,AA$8-$E19,0,1,1)*$L19),"") ->  | AB19: =IF(AND(AB$8>=$E19,$F18<=Tau,$F19>Tau),Calibration!AB19*FEXP(-OFFSET(BFactors,AB$8-$E19,0,1,1)*$L19),"") ->  | AC19: =IF(AND(AC$8>=$E19,$F18<=Tau,$F19>Tau),Calibration!AC19*FEXP(-OFFSET(BFactors,AC$8-$E19,0,1,1)*$L19),"") ->  | AD19: =IF(AND(AD$8>=$E19,$F18<=Tau,$F19>Tau),Calibration!AD19*FEXP(-OFFSET(BFactors,AD$8-$E19,0,1,1)*$L19),"") ->  | AE19: =IF(AND(AE$8>=$E19,$F18<=Tau,$F19>Tau),Calibration!AE19*FEXP(-OFFSET(BFactors,AE$8-$E19,0,1,1)*$L19),"") ->  | AF19: =IF(AND(AF$8>=$E19,$F18<=Tau,$F19>Tau),Calibration!AF19*FEXP(-OFFSET(BFactors,AF$8-$E19,0,1,1)*$L19),"") ->  | AG19: =IF(AND(AG$8>=$E19,$F18<=Tau,$F19>Tau),Calibration!AG19*FEXP(-OFFSET(BFactors,AG$8-$E19,0,1,1)*$L19),"") ->  | AH19: =IF(AND(AH$8>=$E19,$F18<=Tau,$F19>Tau),Calibration!AH19*FEXP(-OFFSET(BFactors,AH$8-$E19,0,1,1)*$L19),"") ->  | AI19: =IF(AND(AI$8>=$E19,$F18<=Tau,$F19>Tau),Calibration!AI19*FEXP(-OFFSET(BFactors,AI$8-$E19,0,1,1)*$L19),"") ->  | AJ19: =IF(AND(AJ$8>=$E19,$F18<=Tau,$F19>Tau),Calibration!AJ19*FEXP(-OFFSET(BFactors,AJ$8-$E19,0,1,1)*$L19),"") ->  | AK19: =IF(AND(AK$8>=$E19,$F18<=Tau,$F19>Tau),Calibration!AK19*FEXP(-OFFSET(BFactors,AK$8-$E19,0,1,1)*$L19),"") ->  | AL19: =IF(AND(AL$8>=$E19,$F18<=Tau,$F19>Tau),Calibration!AL19*FEXP(-OFFSET(BFactors,AL$8-$E19,0,1,1)*$L19),"") ->  | AM19: =IF(AND(AM$8>=$E19,$F18<=Tau,$F19>Tau),Calibration!AM19*FEXP(-OFFSET(BFactors,AM$8-$E19,0,1,1)*$L19),"") ->  | AN19: =IF(AND(AN$8>=$E19,$F18<=Tau,$F19>Tau),Calibration!AN19*FEXP(-OFFSET(BFactors,AN$8-$E19,0,1,1)*$L19),"") ->  | AO19: =IF(AND(AO$8>=$E19,$F18<=Tau,$F19>Tau),Calibration!AO19*FEXP(-OFFSET(BFactors,AO$8-$E19,0,1,1)*$L19),"") ->  | AP19: =IF(AND(AP$8>=$E19,$F18<=Tau,$F19>Tau),Calibration!AP19*FEXP(-OFFSET(BFactors,AP$8-$E19,0,1,1)*$L19),"") ->  | AQ19: =IF(AND(AQ$8>=$E19,$F18<=Tau,$F19>Tau),Calibration!AQ19*FEXP(-OFFSET(BFactors,AQ$8-$E19,0,1,1)*$L19),"") ->  | AR19: =IF(AND(AR$8>=$E19,$F18<=Tau,$F19>Tau),Calibration!AR19*FEXP(-OFFSET(BFactors,AR$8-$E19,0,1,1)*$L19),"") ->  | AS19: =IF(AND(AS$8>=$E19,$F18<=Tau,$F19>Tau),Calibration!AS19*FEXP(-OFFSET(BFactors,AS$8-$E19,0,1,1)*$L19),"") ->  | AT19: =IF(AND(AT$8>=$E19,$F18<=Tau,$F19>Tau),Calibration!AT19*FEXP(-OFFSET(BFactors,AT$8-$E19,0,1,1)*$L19),"") ->  | AU19: =IF(AND(AU$8>=$E19,$F18<=Tau,$F19>Tau),Calibration!AU19*FEXP(-OFFSET(BFactors,AU$8-$E19,0,1,1)*$L19),"") ->  | AV19: =IF(AND(AV$8>=$E19,$F18<=Tau,$F19>Tau),Calibration!AV19*FEXP(-OFFSET(BFactors,AV$8-$E19,0,1,1)*$L19),"") ->  | AW19: =IF(AND(AW$8>=$E19,$F18<=Tau,$F19>Tau),Calibration!AW19*FEXP(-OFFSET(BFactors,AW$8-$E19,0,1,1)*$L19),"") ->  | AX19: =IF(AND(AX$8>=$E19,$F18<=Tau,$F19>Tau),Calibration!AX19*FEXP(-OFFSET(BFactors,AX$8-$E19,0,1,1)*$L19),"") ->  | AY19: =IF(AND(AY$8>=$E19,$F18<=Tau,$F19>Tau),Calibration!AY19*FEXP(-OFFSET(BFactors,AY$8-$E19,0,1,1)*$L19),"") ->  | AZ19: =IF(AND(AZ$8>=$E19,$F18<=Tau,$F19>Tau),Calibration!AZ19*FEXP(-OFFSET(BFactors,AZ$8-$E19,0,1,1)*$L19),"") ->  | BA19: =IF(AND(BA$8>=$E19,$F18<=Tau,$F19>Tau),Calibration!BA19*FEXP(-OFFSET(BFactors,BA$8-$E19,0,1,1)*$L19),"") ->  | BB19: =IF(AND(BB$8>=$E19,$F18<=Tau,$F19>Tau),Calibration!BB19*FEXP(-OFFSET(BFactors,BB$8-$E19,0,1,1)*$L19),"") ->  | BC19: =IF(AND(BC$8>=$E19,$F18<=Tau,$F19>Tau),Calibration!BC19*FEXP(-OFFSET(BFactors,BC$8-$E19,0,1,1)*$L19),"") -> 
E20: 11 | F20: 2.75 | G20: 0.004767859934 | H20: 0.03831984655 | I20: 0.04811442566 | J20: -0.009794579109 | K20: -0.7257627617 | L20: =IF(F19<Tau,L19*Param1+K20*IRVol*Param2+Calibration!J20-Calibration!J19*Param1,NA()) ->  | Z20: =IF(AND(Z$8>=$E20,$F19<=Tau,$F20>Tau),Calibration!Z20*FEXP(-OFFSET(BFactors,Z$8-$E20,0,1,1)*$L20),"") ->  | AA20: =IF(AND(AA$8>=$E20,$F19<=Tau,$F20>Tau),Calibration!AA20*FEXP(-OFFSET(BFactors,AA$8-$E20,0,1,1)*$L20),"") ->  | AB20: =IF(AND(AB$8>=$E20,$F19<=Tau,$F20>Tau),Calibration!AB20*FEXP(-OFFSET(BFactors,AB$8-$E20,0,1,1)*$L20),"") ->  | AC20: =IF(AND(AC$8>=$E20,$F19<=Tau,$F20>Tau),Calibration!AC20*FEXP(-OFFSET(BFactors,AC$8-$E20,0,1,1)*$L20),"") ->  | AD20: =IF(AND(AD$8>=$E20,$F19<=Tau,$F20>Tau),Calibration!AD20*FEXP(-OFFSET(BFactors,AD$8-$E20,0,1,1)*$L20),"") ->  | AE20: =IF(AND(AE$8>=$E20,$F19<=Tau,$F20>Tau),Calibration!AE20*FEXP(-OFFSET(BFactors,AE$8-$E20,0,1,1)*$L20),"") ->  | AF20: =IF(AND(AF$8>=$E20,$F19<=Tau,$F20>Tau),Calibration!AF20*FEXP(-OFFSET(BFactors,AF$8-$E20,0,1,1)*$L20),"") ->  | AG20: =IF(AND(AG$8>=$E20,$F19<=Tau,$F20>Tau),Calibration!AG20*FEXP(-OFFSET(BFactors,AG$8-$E20,0,1,1)*$L20),"") ->  | AH20: =IF(AND(AH$8>=$E20,$F19<=Tau,$F20>Tau),Calibration!AH20*FEXP(-OFFSET(BFactors,AH$8-$E20,0,1,1)*$L20),"") ->  | AI20: =IF(AND(AI$8>=$E20,$F19<=Tau,$F20>Tau),Calibration!AI20*FEXP(-OFFSET(BFactors,AI$8-$E20,0,1,1)*$L20),"") ->  | AJ20: =IF(AND(AJ$8>=$E20,$F19<=Tau,$F20>Tau),Calibration!AJ20*FEXP(-OFFSET(BFactors,AJ$8-$E20,0,1,1)*$L20),"") ->  | AK20: =IF(AND(AK$8>=$E20,$F19<=Tau,$F20>Tau),Calibration!AK20*FEXP(-OFFSET(BFactors,AK$8-$E20,0,1,1)*$L20),"") ->  | AL20: =IF(AND(AL$8>=$E20,$F19<=Tau,$F20>Tau),Calibration!AL20*FEXP(-OFFSET(BFactors,AL$8-$E20,0,1,1)*$L20),"") ->  | AM20: =IF(AND(AM$8>=$E20,$F19<=Tau,$F20>Tau),Calibration!AM20*FEXP(-OFFSET(BFactors,AM$8-$E20,0,1,1)*$L20),"") ->  | AN20: =IF(AND(AN$8>=$E20,$F19<=Tau,$F20>Tau),Calibration!AN20*FEXP(-OFFSET(BFactors,AN$8-$E20,0,1,1)*$L20),"") ->  | AO20: =IF(AND(AO$8>=$E20,$F19<=Tau,$F20>Tau),Calibration!AO20*FEXP(-OFFSET(BFactors,AO$8-$E20,0,1,1)*$L20),"") ->  | AP20: =IF(AND(AP$8>=$E20,$F19<=Tau,$F20>Tau),Calibration!AP20*FEXP(-OFFSET(BFactors,AP$8-$E20,0,1,1)*$L20),"") ->  | AQ20: =IF(AND(AQ$8>=$E20,$F19<=Tau,$F20>Tau),Calibration!AQ20*FEXP(-OFFSET(BFactors,AQ$8-$E20,0,1,1)*$L20),"") ->  | AR20: =IF(AND(AR$8>=$E20,$F19<=Tau,$F20>Tau),Calibration!AR20*FEXP(-OFFSET(BFactors,AR$8-$E20,0,1,1)*$L20),"") ->  | AS20: =IF(AND(AS$8>=$E20,$F19<=Tau,$F20>Tau),Calibration!AS20*FEXP(-OFFSET(BFactors,AS$8-$E20,0,1,1)*$L20),"") ->  | AT20: =IF(AND(AT$8>=$E20,$F19<=Tau,$F20>Tau),Calibration!AT20*FEXP(-OFFSET(BFactors,AT$8-$E20,0,1,1)*$L20),"") ->  | AU20: =IF(AND(AU$8>=$E20,$F19<=Tau,$F20>Tau),Calibration!AU20*FEXP(-OFFSET(BFactors,AU$8-$E20,0,1,1)*$L20),"") ->  | AV20: =IF(AND(AV$8>=$E20,$F19<=Tau,$F20>Tau),Calibration!AV20*FEXP(-OFFSET(BFactors,AV$8-$E20,0,1,1)*$L20),"") ->  | AW20: =IF(AND(AW$8>=$E20,$F19<=Tau,$F20>Tau),Calibration!AW20*FEXP(-OFFSET(BFactors,AW$8-$E20,0,1,1)*$L20),"") ->  | AX20: =IF(AND(AX$8>=$E20,$F19<=Tau,$F20>Tau),Calibration!AX20*FEXP(-OFFSET(BFactors,AX$8-$E20,0,1,1)*$L20),"") ->  | AY20: =IF(AND(AY$8>=$E20,$F19<=Tau,$F20>Tau),Calibration!AY20*FEXP(-OFFSET(BFactors,AY$8-$E20,0,1,1)*$L20),"") ->  | AZ20: =IF(AND(AZ$8>=$E20,$F19<=Tau,$F20>Tau),Calibration!AZ20*FEXP(-OFFSET(BFactors,AZ$8-$E20,0,1,1)*$L20),"") ->  | BA20: =IF(AND(BA$8>=$E20,$F19<=Tau,$F20>Tau),Calibration!BA20*FEXP(-OFFSET(BFactors,BA$8-$E20,0,1,1)*$L20),"") ->  | BB20: =IF(AND(BB$8>=$E20,$F19<=Tau,$F20>Tau),Calibration!BB20*FEXP(-OFFSET(BFactors,BB$8-$E20,0,1,1)*$L20),"") ->  | BC20: =IF(AND(BC$8>=$E20,$F19<=Tau,$F20>Tau),Calibration!BC20*FEXP(-OFFSET(BFactors,BC$8-$E20,0,1,1)*$L20),"") -> 
B21: Results | E21: 12 | F21: 3 | G21: 0.004865561982 | H21: 0.03936646849 | I21: 0.05096429492 | J21: -0.01159782643 | K21: 0.8372967678 | L21: =IF(F20<Tau,L20*Param1+K21*IRVol*Param2+Calibration!J21-Calibration!J20*Param1,NA()) ->  | AA21: =IF(AND(AA$8>=$E21,$F20<=Tau,$F21>Tau),Calibration!AA21*FEXP(-OFFSET(BFactors,AA$8-$E21,0,1,1)*$L21),"") ->  | AB21: =IF(AND(AB$8>=$E21,$F20<=Tau,$F21>Tau),Calibration!AB21*FEXP(-OFFSET(BFactors,AB$8-$E21,0,1,1)*$L21),"") ->  | AC21: =IF(AND(AC$8>=$E21,$F20<=Tau,$F21>Tau),Calibration!AC21*FEXP(-OFFSET(BFactors,AC$8-$E21,0,1,1)*$L21),"") ->  | AD21: =IF(AND(AD$8>=$E21,$F20<=Tau,$F21>Tau),Calibration!AD21*FEXP(-OFFSET(BFactors,AD$8-$E21,0,1,1)*$L21),"") ->  | AE21: =IF(AND(AE$8>=$E21,$F20<=Tau,$F21>Tau),Calibration!AE21*FEXP(-OFFSET(BFactors,AE$8-$E21,0,1,1)*$L21),"") ->  | AF21: =IF(AND(AF$8>=$E21,$F20<=Tau,$F21>Tau),Calibration!AF21*FEXP(-OFFSET(BFactors,AF$8-$E21,0,1,1)*$L21),"") ->  | AG21: =IF(AND(AG$8>=$E21,$F20<=Tau,$F21>Tau),Calibration!AG21*FEXP(-OFFSET(BFactors,AG$8-$E21,0,1,1)*$L21),"") ->  | AH21: =IF(AND(AH$8>=$E21,$F20<=Tau,$F21>Tau),Calibration!AH21*FEXP(-OFFSET(BFactors,AH$8-$E21,0,1,1)*$L21),"") ->  | AI21: =IF(AND(AI$8>=$E21,$F20<=Tau,$F21>Tau),Calibration!AI21*FEXP(-OFFSET(BFactors,AI$8-$E21,0,1,1)*$L21),"") ->  | AJ21: =IF(AND(AJ$8>=$E21,$F20<=Tau,$F21>Tau),Calibration!AJ21*FEXP(-OFFSET(BFactors,AJ$8-$E21,0,1,1)*$L21),"") ->  | AK21: =IF(AND(AK$8>=$E21,$F20<=Tau,$F21>Tau),Calibration!AK21*FEXP(-OFFSET(BFactors,AK$8-$E21,0,1,1)*$L21),"") ->  | AL21: =IF(AND(AL$8>=$E21,$F20<=Tau,$F21>Tau),Calibration!AL21*FEXP(-OFFSET(BFactors,AL$8-$E21,0,1,1)*$L21),"") ->  | AM21: =IF(AND(AM$8>=$E21,$F20<=Tau,$F21>Tau),Calibration!AM21*FEXP(-OFFSET(BFactors,AM$8-$E21,0,1,1)*$L21),"") ->  | AN21: =IF(AND(AN$8>=$E21,$F20<=Tau,$F21>Tau),Calibration!AN21*FEXP(-OFFSET(BFactors,AN$8-$E21,0,1,1)*$L21),"") ->  | AO21: =IF(AND(AO$8>=$E21,$F20<=Tau,$F21>Tau),Calibration!AO21*FEXP(-OFFSET(BFactors,AO$8-$E21,0,1,1)*$L21),"") ->  | AP21: =IF(AND(AP$8>=$E21,$F20<=Tau,$F21>Tau),Calibration!AP21*FEXP(-OFFSET(BFactors,AP$8-$E21,0,1,1)*$L21),"") ->  | AQ21: =IF(AND(AQ$8>=$E21,$F20<=Tau,$F21>Tau),Calibration!AQ21*FEXP(-OFFSET(BFactors,AQ$8-$E21,0,1,1)*$L21),"") ->  | AR21: =IF(AND(AR$8>=$E21,$F20<=Tau,$F21>Tau),Calibration!AR21*FEXP(-OFFSET(BFactors,AR$8-$E21,0,1,1)*$L21),"") ->  | AS21: =IF(AND(AS$8>=$E21,$F20<=Tau,$F21>Tau),Calibration!AS21*FEXP(-OFFSET(BFactors,AS$8-$E21,0,1,1)*$L21),"") ->  | AT21: =IF(AND(AT$8>=$E21,$F20<=Tau,$F21>Tau),Calibration!AT21*FEXP(-OFFSET(BFactors,AT$8-$E21,0,1,1)*$L21),"") ->  | AU21: =IF(AND(AU$8>=$E21,$F20<=Tau,$F21>Tau),Calibration!AU21*FEXP(-OFFSET(BFactors,AU$8-$E21,0,1,1)*$L21),"") ->  | AV21: =IF(AND(AV$8>=$E21,$F20<=Tau,$F21>Tau),Calibration!AV21*FEXP(-OFFSET(BFactors,AV$8-$E21,0,1,1)*$L21),"") ->  | AW21: =IF(AND(AW$8>=$E21,$F20<=Tau,$F21>Tau),Calibration!AW21*FEXP(-OFFSET(BFactors,AW$8-$E21,0,1,1)*$L21),"") ->  | AX21: =IF(AND(AX$8>=$E21,$F20<=Tau,$F21>Tau),Calibration!AX21*FEXP(-OFFSET(BFactors,AX$8-$E21,0,1,1)*$L21),"") ->  | AY21: =IF(AND(AY$8>=$E21,$F20<=Tau,$F21>Tau),Calibration!AY21*FEXP(-OFFSET(BFactors,AY$8-$E21,0,1,1)*$L21),"") ->  | AZ21: =IF(AND(AZ$8>=$E21,$F20<=Tau,$F21>Tau),Calibration!AZ21*FEXP(-OFFSET(BFactors,AZ$8-$E21,0,1,1)*$L21),"") ->  | BA21: =IF(AND(BA$8>=$E21,$F20<=Tau,$F21>Tau),Calibration!BA21*FEXP(-OFFSET(BFactors,BA$8-$E21,0,1,1)*$L21),"") ->  | BB21: =IF(AND(BB$8>=$E21,$F20<=Tau,$F21>Tau),Calibration!BB21*FEXP(-OFFSET(BFactors,BB$8-$E21,0,1,1)*$L21),"") ->  | BC21: =IF(AND(BC$8>=$E21,$F20<=Tau,$F21>Tau),Calibration!BC21*FEXP(-OFFSET(BFactors,BC$8-$E21,0,1,1)*$L21),"") -> 
B22: CVA Payer (bps) | C22: -43.38076239 | E22: 13 | F22: 3.25 | G22: 0.005021885259 | H22: 0.04025532946 | I22: 0.05251617875 | J22: -0.01226084929 | K22: 1.2755443 | L22: =IF(F21<Tau,L21*Param1+K22*IRVol*Param2+Calibration!J22-Calibration!J21*Param1,NA()) ->  | AB22: =IF(AND(AB$8>=$E22,$F21<=Tau,$F22>Tau),Calibration!AB22*FEXP(-OFFSET(BFactors,AB$8-$E22,0,1,1)*$L22),"") ->  | AC22: =IF(AND(AC$8>=$E22,$F21<=Tau,$F22>Tau),Calibration!AC22*FEXP(-OFFSET(BFactors,AC$8-$E22,0,1,1)*$L22),"") ->  | AD22: =IF(AND(AD$8>=$E22,$F21<=Tau,$F22>Tau),Calibration!AD22*FEXP(-OFFSET(BFactors,AD$8-$E22,0,1,1)*$L22),"") ->  | AE22: =IF(AND(AE$8>=$E22,$F21<=Tau,$F22>Tau),Calibration!AE22*FEXP(-OFFSET(BFactors,AE$8-$E22,0,1,1)*$L22),"") ->  | AF22: =IF(AND(AF$8>=$E22,$F21<=Tau,$F22>Tau),Calibration!AF22*FEXP(-OFFSET(BFactors,AF$8-$E22,0,1,1)*$L22),"") ->  | AG22: =IF(AND(AG$8>=$E22,$F21<=Tau,$F22>Tau),Calibration!AG22*FEXP(-OFFSET(BFactors,AG$8-$E22,0,1,1)*$L22),"") ->  | AH22: =IF(AND(AH$8>=$E22,$F21<=Tau,$F22>Tau),Calibration!AH22*FEXP(-OFFSET(BFactors,AH$8-$E22,0,1,1)*$L22),"") ->  | AI22: =IF(AND(AI$8>=$E22,$F21<=Tau,$F22>Tau),Calibration!AI22*FEXP(-OFFSET(BFactors,AI$8-$E22,0,1,1)*$L22),"") ->  | AJ22: =IF(AND(AJ$8>=$E22,$F21<=Tau,$F22>Tau),Calibration!AJ22*FEXP(-OFFSET(BFactors,AJ$8-$E22,0,1,1)*$L22),"") ->  | AK22: =IF(AND(AK$8>=$E22,$F21<=Tau,$F22>Tau),Calibration!AK22*FEXP(-OFFSET(BFactors,AK$8-$E22,0,1,1)*$L22),"") ->  | AL22: =IF(AND(AL$8>=$E22,$F21<=Tau,$F22>Tau),Calibration!AL22*FEXP(-OFFSET(BFactors,AL$8-$E22,0,1,1)*$L22),"") ->  | AM22: =IF(AND(AM$8>=$E22,$F21<=Tau,$F22>Tau),Calibration!AM22*FEXP(-OFFSET(BFactors,AM$8-$E22,0,1,1)*$L22),"") ->  | AN22: =IF(AND(AN$8>=$E22,$F21<=Tau,$F22>Tau),Calibration!AN22*FEXP(-OFFSET(BFactors,AN$8-$E22,0,1,1)*$L22),"") ->  | AO22: =IF(AND(AO$8>=$E22,$F21<=Tau,$F22>Tau),Calibration!AO22*FEXP(-OFFSET(BFactors,AO$8-$E22,0,1,1)*$L22),"") ->  | AP22: =IF(AND(AP$8>=$E22,$F21<=Tau,$F22>Tau),Calibration!AP22*FEXP(-OFFSET(BFactors,AP$8-$E22,0,1,1)*$L22),"") ->  | AQ22: =IF(AND(AQ$8>=$E22,$F21<=Tau,$F22>Tau),Calibration!AQ22*FEXP(-OFFSET(BFactors,AQ$8-$E22,0,1,1)*$L22),"") ->  | AR22: =IF(AND(AR$8>=$E22,$F21<=Tau,$F22>Tau),Calibration!AR22*FEXP(-OFFSET(BFactors,AR$8-$E22,0,1,1)*$L22),"") ->  | AS22: =IF(AND(AS$8>=$E22,$F21<=Tau,$F22>Tau),Calibration!AS22*FEXP(-OFFSET(BFactors,AS$8-$E22,0,1,1)*$L22),"") ->  | AT22: =IF(AND(AT$8>=$E22,$F21<=Tau,$F22>Tau),Calibration!AT22*FEXP(-OFFSET(BFactors,AT$8-$E22,0,1,1)*$L22),"") ->  | AU22: =IF(AND(AU$8>=$E22,$F21<=Tau,$F22>Tau),Calibration!AU22*FEXP(-OFFSET(BFactors,AU$8-$E22,0,1,1)*$L22),"") ->  | AV22: =IF(AND(AV$8>=$E22,$F21<=Tau,$F22>Tau),Calibration!AV22*FEXP(-OFFSET(BFactors,AV$8-$E22,0,1,1)*$L22),"") ->  | AW22: =IF(AND(AW$8>=$E22,$F21<=Tau,$F22>Tau),Calibration!AW22*FEXP(-OFFSET(BFactors,AW$8-$E22,0,1,1)*$L22),"") ->  | AX22: =IF(AND(AX$8>=$E22,$F21<=Tau,$F22>Tau),Calibration!AX22*FEXP(-OFFSET(BFactors,AX$8-$E22,0,1,1)*$L22),"") ->  | AY22: =IF(AND(AY$8>=$E22,$F21<=Tau,$F22>Tau),Calibration!AY22*FEXP(-OFFSET(BFactors,AY$8-$E22,0,1,1)*$L22),"") ->  | AZ22: =IF(AND(AZ$8>=$E22,$F21<=Tau,$F22>Tau),Calibration!AZ22*FEXP(-OFFSET(BFactors,AZ$8-$E22,0,1,1)*$L22),"") ->  | BA22: =IF(AND(BA$8>=$E22,$F21<=Tau,$F22>Tau),Calibration!BA22*FEXP(-OFFSET(BFactors,BA$8-$E22,0,1,1)*$L22),"") ->  | BB22: =IF(AND(BB$8>=$E22,$F21<=Tau,$F22>Tau),Calibration!BB22*FEXP(-OFFSET(BFactors,BB$8-$E22,0,1,1)*$L22),"") ->  | BC22: =IF(AND(BC$8>=$E22,$F21<=Tau,$F22>Tau),Calibration!BC22*FEXP(-OFFSET(BFactors,BC$8-$E22,0,1,1)*$L22),"") -> 
B23: CVA Receiver (bps) | C23: -8.582016757 | E23: 14 | F23: 3.5 | G23: 0.00451383461 | H23: 0.03862530534 | I23: 0.05180014529 | J23: -0.01317483995 | K23: 0.3722336888 | L23: =IF(F22<Tau,L22*Param1+K23*IRVol*Param2+Calibration!J23-Calibration!J22*Param1,NA()) ->  | AC23: =IF(AND(AC$8>=$E23,$F22<=Tau,$F23>Tau),Calibration!AC23*FEXP(-OFFSET(BFactors,AC$8-$E23,0,1,1)*$L23),"") ->  | AD23: =IF(AND(AD$8>=$E23,$F22<=Tau,$F23>Tau),Calibration!AD23*FEXP(-OFFSET(BFactors,AD$8-$E23,0,1,1)*$L23),"") ->  | AE23: =IF(AND(AE$8>=$E23,$F22<=Tau,$F23>Tau),Calibration!AE23*FEXP(-OFFSET(BFactors,AE$8-$E23,0,1,1)*$L23),"") ->  | AF23: =IF(AND(AF$8>=$E23,$F22<=Tau,$F23>Tau),Calibration!AF23*FEXP(-OFFSET(BFactors,AF$8-$E23,0,1,1)*$L23),"") ->  | AG23: =IF(AND(AG$8>=$E23,$F22<=Tau,$F23>Tau),Calibration!AG23*FEXP(-OFFSET(BFactors,AG$8-$E23,0,1,1)*$L23),"") ->  | AH23: =IF(AND(AH$8>=$E23,$F22<=Tau,$F23>Tau),Calibration!AH23*FEXP(-OFFSET(BFactors,AH$8-$E23,0,1,1)*$L23),"") ->  | AI23: =IF(AND(AI$8>=$E23,$F22<=Tau,$F23>Tau),Calibration!AI23*FEXP(-OFFSET(BFactors,AI$8-$E23,0,1,1)*$L23),"") ->  | AJ23: =IF(AND(AJ$8>=$E23,$F22<=Tau,$F23>Tau),Calibration!AJ23*FEXP(-OFFSET(BFactors,AJ$8-$E23,0,1,1)*$L23),"") ->  | AK23: =IF(AND(AK$8>=$E23,$F22<=Tau,$F23>Tau),Calibration!AK23*FEXP(-OFFSET(BFactors,AK$8-$E23,0,1,1)*$L23),"") ->  | AL23: =IF(AND(AL$8>=$E23,$F22<=Tau,$F23>Tau),Calibration!AL23*FEXP(-OFFSET(BFactors,AL$8-$E23,0,1,1)*$L23),"") ->  | AM23: =IF(AND(AM$8>=$E23,$F22<=Tau,$F23>Tau),Calibration!AM23*FEXP(-OFFSET(BFactors,AM$8-$E23,0,1,1)*$L23),"") ->  | AN23: =IF(AND(AN$8>=$E23,$F22<=Tau,$F23>Tau),Calibration!AN23*FEXP(-OFFSET(BFactors,AN$8-$E23,0,1,1)*$L23),"") ->  | AO23: =IF(AND(AO$8>=$E23,$F22<=Tau,$F23>Tau),Calibration!AO23*FEXP(-OFFSET(BFactors,AO$8-$E23,0,1,1)*$L23),"") ->  | AP23: =IF(AND(AP$8>=$E23,$F22<=Tau,$F23>Tau),Calibration!AP23*FEXP(-OFFSET(BFactors,AP$8-$E23,0,1,1)*$L23),"") ->  | AQ23: =IF(AND(AQ$8>=$E23,$F22<=Tau,$F23>Tau),Calibration!AQ23*FEXP(-OFFSET(BFactors,AQ$8-$E23,0,1,1)*$L23),"") ->  | AR23: =IF(AND(AR$8>=$E23,$F22<=Tau,$F23>Tau),Calibration!AR23*FEXP(-OFFSET(BFactors,AR$8-$E23,0,1,1)*$L23),"") ->  | AS23: =IF(AND(AS$8>=$E23,$F22<=Tau,$F23>Tau),Calibration!AS23*FEXP(-OFFSET(BFactors,AS$8-$E23,0,1,1)*$L23),"") ->  | AT23: =IF(AND(AT$8>=$E23,$F22<=Tau,$F23>Tau),Calibration!AT23*FEXP(-OFFSET(BFactors,AT$8-$E23,0,1,1)*$L23),"") ->  | AU23: =IF(AND(AU$8>=$E23,$F22<=Tau,$F23>Tau),Calibration!AU23*FEXP(-OFFSET(BFactors,AU$8-$E23,0,1,1)*$L23),"") ->  | AV23: =IF(AND(AV$8>=$E23,$F22<=Tau,$F23>Tau),Calibration!AV23*FEXP(-OFFSET(BFactors,AV$8-$E23,0,1,1)*$L23),"") ->  | AW23: =IF(AND(AW$8>=$E23,$F22<=Tau,$F23>Tau),Calibration!AW23*FEXP(-OFFSET(BFactors,AW$8-$E23,0,1,1)*$L23),"") ->  | AX23: =IF(AND(AX$8>=$E23,$F22<=Tau,$F23>Tau),Calibration!AX23*FEXP(-OFFSET(BFactors,AX$8-$E23,0,1,1)*$L23),"") ->  | AY23: =IF(AND(AY$8>=$E23,$F22<=Tau,$F23>Tau),Calibration!AY23*FEXP(-OFFSET(BFactors,AY$8-$E23,0,1,1)*$L23),"") ->  | AZ23: =IF(AND(AZ$8>=$E23,$F22<=Tau,$F23>Tau),Calibration!AZ23*FEXP(-OFFSET(BFactors,AZ$8-$E23,0,1,1)*$L23),"") ->  | BA23: =IF(AND(BA$8>=$E23,$F22<=Tau,$F23>Tau),Calibration!BA23*FEXP(-OFFSET(BFactors,BA$8-$E23,0,1,1)*$L23),"") ->  | BB23: =IF(AND(BB$8>=$E23,$F22<=Tau,$F23>Tau),Calibration!BB23*FEXP(-OFFSET(BFactors,BB$8-$E23,0,1,1)*$L23),"") ->  | BC23: =IF(AND(BC$8>=$E23,$F22<=Tau,$F23>Tau),Calibration!BC23*FEXP(-OFFSET(BFactors,BC$8-$E23,0,1,1)*$L23),"") -> 
E24: 15 | F24: 3.75 | G24: 0.004670157887 | H24: 0.04274491474 | I24: 0.05177586899 | J24: -0.009030954248 | K24: 0.02945660793 | L24: =IF(F23<Tau,L23*Param1+K24*IRVol*Param2+Calibration!J24-Calibration!J23*Param1,NA()) ->  | AD24: =IF(AND(AD$8>=$E24,$F23<=Tau,$F24>Tau),Calibration!AD24*FEXP(-OFFSET(BFactors,AD$8-$E24,0,1,1)*$L24),"") ->  | AE24: =IF(AND(AE$8>=$E24,$F23<=Tau,$F24>Tau),Calibration!AE24*FEXP(-OFFSET(BFactors,AE$8-$E24,0,1,1)*$L24),"") ->  | AF24: =IF(AND(AF$8>=$E24,$F23<=Tau,$F24>Tau),Calibration!AF24*FEXP(-OFFSET(BFactors,AF$8-$E24,0,1,1)*$L24),"") ->  | AG24: =IF(AND(AG$8>=$E24,$F23<=Tau,$F24>Tau),Calibration!AG24*FEXP(-OFFSET(BFactors,AG$8-$E24,0,1,1)*$L24),"") ->  | AH24: =IF(AND(AH$8>=$E24,$F23<=Tau,$F24>Tau),Calibration!AH24*FEXP(-OFFSET(BFactors,AH$8-$E24,0,1,1)*$L24),"") ->  | AI24: =IF(AND(AI$8>=$E24,$F23<=Tau,$F24>Tau),Calibration!AI24*FEXP(-OFFSET(BFactors,AI$8-$E24,0,1,1)*$L24),"") ->  | AJ24: =IF(AND(AJ$8>=$E24,$F23<=Tau,$F24>Tau),Calibration!AJ24*FEXP(-OFFSET(BFactors,AJ$8-$E24,0,1,1)*$L24),"") ->  | AK24: =IF(AND(AK$8>=$E24,$F23<=Tau,$F24>Tau),Calibration!AK24*FEXP(-OFFSET(BFactors,AK$8-$E24,0,1,1)*$L24),"") ->  | AL24: =IF(AND(AL$8>=$E24,$F23<=Tau,$F24>Tau),Calibration!AL24*FEXP(-OFFSET(BFactors,AL$8-$E24,0,1,1)*$L24),"") ->  | AM24: =IF(AND(AM$8>=$E24,$F23<=Tau,$F24>Tau),Calibration!AM24*FEXP(-OFFSET(BFactors,AM$8-$E24,0,1,1)*$L24),"") ->  | AN24: =IF(AND(AN$8>=$E24,$F23<=Tau,$F24>Tau),Calibration!AN24*FEXP(-OFFSET(BFactors,AN$8-$E24,0,1,1)*$L24),"") ->  | AO24: =IF(AND(AO$8>=$E24,$F23<=Tau,$F24>Tau),Calibration!AO24*FEXP(-OFFSET(BFactors,AO$8-$E24,0,1,1)*$L24),"") ->  | AP24: =IF(AND(AP$8>=$E24,$F23<=Tau,$F24>Tau),Calibration!AP24*FEXP(-OFFSET(BFactors,AP$8-$E24,0,1,1)*$L24),"") ->  | AQ24: =IF(AND(AQ$8>=$E24,$F23<=Tau,$F24>Tau),Calibration!AQ24*FEXP(-OFFSET(BFactors,AQ$8-$E24,0,1,1)*$L24),"") ->  | AR24: =IF(AND(AR$8>=$E24,$F23<=Tau,$F24>Tau),Calibration!AR24*FEXP(-OFFSET(BFactors,AR$8-$E24,0,1,1)*$L24),"") ->  | AS24: =IF(AND(AS$8>=$E24,$F23<=Tau,$F24>Tau),Calibration!AS24*FEXP(-OFFSET(BFactors,AS$8-$E24,0,1,1)*$L24),"") ->  | AT24: =IF(AND(AT$8>=$E24,$F23<=Tau,$F24>Tau),Calibration!AT24*FEXP(-OFFSET(BFactors,AT$8-$E24,0,1,1)*$L24),"") ->  | AU24: =IF(AND(AU$8>=$E24,$F23<=Tau,$F24>Tau),Calibration!AU24*FEXP(-OFFSET(BFactors,AU$8-$E24,0,1,1)*$L24),"") ->  | AV24: =IF(AND(AV$8>=$E24,$F23<=Tau,$F24>Tau),Calibration!AV24*FEXP(-OFFSET(BFactors,AV$8-$E24,0,1,1)*$L24),"") ->  | AW24: =IF(AND(AW$8>=$E24,$F23<=Tau,$F24>Tau),Calibration!AW24*FEXP(-OFFSET(BFactors,AW$8-$E24,0,1,1)*$L24),"") ->  | AX24: =IF(AND(AX$8>=$E24,$F23<=Tau,$F24>Tau),Calibration!AX24*FEXP(-OFFSET(BFactors,AX$8-$E24,0,1,1)*$L24),"") ->  | AY24: =IF(AND(AY$8>=$E24,$F23<=Tau,$F24>Tau),Calibration!AY24*FEXP(-OFFSET(BFactors,AY$8-$E24,0,1,1)*$L24),"") ->  | AZ24: =IF(AND(AZ$8>=$E24,$F23<=Tau,$F24>Tau),Calibration!AZ24*FEXP(-OFFSET(BFactors,AZ$8-$E24,0,1,1)*$L24),"") ->  | BA24: =IF(AND(BA$8>=$E24,$F23<=Tau,$F24>Tau),Calibration!BA24*FEXP(-OFFSET(BFactors,BA$8-$E24,0,1,1)*$L24),"") ->  | BB24: =IF(AND(BB$8>=$E24,$F23<=Tau,$F24>Tau),Calibration!BB24*FEXP(-OFFSET(BFactors,BB$8-$E24,0,1,1)*$L24),"") ->  | BC24: =IF(AND(BC$8>=$E24,$F23<=Tau,$F24>Tau),Calibration!BC24*FEXP(-OFFSET(BFactors,BC$8-$E24,0,1,1)*$L24),"") -> 
E25: 16 | F25: 4 | G25: 0.004787400344 | H25: 0.04759362694 | I25: 0.0554620839 | J25: -0.007868456959 | K25: 0.03804736242 | L25: =IF(F24<Tau,L24*Param1+K25*IRVol*Param2+Calibration!J25-Calibration!J24*Param1,NA()) ->  | AE25: =IF(AND(AE$8>=$E25,$F24<=Tau,$F25>Tau),Calibration!AE25*FEXP(-OFFSET(BFactors,AE$8-$E25,0,1,1)*$L25),"") ->  | AF25: =IF(AND(AF$8>=$E25,$F24<=Tau,$F25>Tau),Calibration!AF25*FEXP(-OFFSET(BFactors,AF$8-$E25,0,1,1)*$L25),"") ->  | AG25: =IF(AND(AG$8>=$E25,$F24<=Tau,$F25>Tau),Calibration!AG25*FEXP(-OFFSET(BFactors,AG$8-$E25,0,1,1)*$L25),"") ->  | AH25: =IF(AND(AH$8>=$E25,$F24<=Tau,$F25>Tau),Calibration!AH25*FEXP(-OFFSET(BFactors,AH$8-$E25,0,1,1)*$L25),"") ->  | AI25: =IF(AND(AI$8>=$E25,$F24<=Tau,$F25>Tau),Calibration!AI25*FEXP(-OFFSET(BFactors,AI$8-$E25,0,1,1)*$L25),"") ->  | AJ25: =IF(AND(AJ$8>=$E25,$F24<=Tau,$F25>Tau),Calibration!AJ25*FEXP(-OFFSET(BFactors,AJ$8-$E25,0,1,1)*$L25),"") ->  | AK25: =IF(AND(AK$8>=$E25,$F24<=Tau,$F25>Tau),Calibration!AK25*FEXP(-OFFSET(BFactors,AK$8-$E25,0,1,1)*$L25),"") ->  | AL25: =IF(AND(AL$8>=$E25,$F24<=Tau,$F25>Tau),Calibration!AL25*FEXP(-OFFSET(BFactors,AL$8-$E25,0,1,1)*$L25),"") ->  | AM25: =IF(AND(AM$8>=$E25,$F24<=Tau,$F25>Tau),Calibration!AM25*FEXP(-OFFSET(BFactors,AM$8-$E25,0,1,1)*$L25),"") ->  | AN25: =IF(AND(AN$8>=$E25,$F24<=Tau,$F25>Tau),Calibration!AN25*FEXP(-OFFSET(BFactors,AN$8-$E25,0,1,1)*$L25),"") ->  | AO25: =IF(AND(AO$8>=$E25,$F24<=Tau,$F25>Tau),Calibration!AO25*FEXP(-OFFSET(BFactors,AO$8-$E25,0,1,1)*$L25),"") ->  | AP25: =IF(AND(AP$8>=$E25,$F24<=Tau,$F25>Tau),Calibration!AP25*FEXP(-OFFSET(BFactors,AP$8-$E25,0,1,1)*$L25),"") ->  | AQ25: =IF(AND(AQ$8>=$E25,$F24<=Tau,$F25>Tau),Calibration!AQ25*FEXP(-OFFSET(BFactors,AQ$8-$E25,0,1,1)*$L25),"") ->  | AR25: =IF(AND(AR$8>=$E25,$F24<=Tau,$F25>Tau),Calibration!AR25*FEXP(-OFFSET(BFactors,AR$8-$E25,0,1,1)*$L25),"") ->  | AS25: =IF(AND(AS$8>=$E25,$F24<=Tau,$F25>Tau),Calibration!AS25*FEXP(-OFFSET(BFactors,AS$8-$E25,0,1,1)*$L25),"") ->  | AT25: =IF(AND(AT$8>=$E25,$F24<=Tau,$F25>Tau),Calibration!AT25*FEXP(-OFFSET(BFactors,AT$8-$E25,0,1,1)*$L25),"") ->  | AU25: =IF(AND(AU$8>=$E25,$F24<=Tau,$F25>Tau),Calibration!AU25*FEXP(-OFFSET(BFactors,AU$8-$E25,0,1,1)*$L25),"") ->  | AV25: =IF(AND(AV$8>=$E25,$F24<=Tau,$F25>Tau),Calibration!AV25*FEXP(-OFFSET(BFactors,AV$8-$E25,0,1,1)*$L25),"") ->  | AW25: =IF(AND(AW$8>=$E25,$F24<=Tau,$F25>Tau),Calibration!AW25*FEXP(-OFFSET(BFactors,AW$8-$E25,0,1,1)*$L25),"") ->  | AX25: =IF(AND(AX$8>=$E25,$F24<=Tau,$F25>Tau),Calibration!AX25*FEXP(-OFFSET(BFactors,AX$8-$E25,0,1,1)*$L25),"") ->  | AY25: =IF(AND(AY$8>=$E25,$F24<=Tau,$F25>Tau),Calibration!AY25*FEXP(-OFFSET(BFactors,AY$8-$E25,0,1,1)*$L25),"") ->  | AZ25: =IF(AND(AZ$8>=$E25,$F24<=Tau,$F25>Tau),Calibration!AZ25*FEXP(-OFFSET(BFactors,AZ$8-$E25,0,1,1)*$L25),"") ->  | BA25: =IF(AND(BA$8>=$E25,$F24<=Tau,$F25>Tau),Calibration!BA25*FEXP(-OFFSET(BFactors,BA$8-$E25,0,1,1)*$L25),"") ->  | BB25: =IF(AND(BB$8>=$E25,$F24<=Tau,$F25>Tau),Calibration!BB25*FEXP(-OFFSET(BFactors,BB$8-$E25,0,1,1)*$L25),"") ->  | BC25: =IF(AND(BC$8>=$E25,$F24<=Tau,$F25>Tau),Calibration!BC25*FEXP(-OFFSET(BFactors,BC$8-$E25,0,1,1)*$L25),"") -> 
E26: 17 | F26: 4.25 | G26: 0.005041425668 | H26: 0.04745457022 | I26: 0.05635403646 | J26: -0.008899466243 | K26: -0.7057331593 | L26: =IF(F25<Tau,L25*Param1+K26*IRVol*Param2+Calibration!J26-Calibration!J25*Param1,NA()) ->  | AF26: =IF(AND(AF$8>=$E26,$F25<=Tau,$F26>Tau),Calibration!AF26*FEXP(-OFFSET(BFactors,AF$8-$E26,0,1,1)*$L26),"") ->  | AG26: =IF(AND(AG$8>=$E26,$F25<=Tau,$F26>Tau),Calibration!AG26*FEXP(-OFFSET(BFactors,AG$8-$E26,0,1,1)*$L26),"") ->  | AH26: =IF(AND(AH$8>=$E26,$F25<=Tau,$F26>Tau),Calibration!AH26*FEXP(-OFFSET(BFactors,AH$8-$E26,0,1,1)*$L26),"") ->  | AI26: =IF(AND(AI$8>=$E26,$F25<=Tau,$F26>Tau),Calibration!AI26*FEXP(-OFFSET(BFactors,AI$8-$E26,0,1,1)*$L26),"") ->  | AJ26: =IF(AND(AJ$8>=$E26,$F25<=Tau,$F26>Tau),Calibration!AJ26*FEXP(-OFFSET(BFactors,AJ$8-$E26,0,1,1)*$L26),"") ->  | AK26: =IF(AND(AK$8>=$E26,$F25<=Tau,$F26>Tau),Calibration!AK26*FEXP(-OFFSET(BFactors,AK$8-$E26,0,1,1)*$L26),"") ->  | AL26: =IF(AND(AL$8>=$E26,$F25<=Tau,$F26>Tau),Calibration!AL26*FEXP(-OFFSET(BFactors,AL$8-$E26,0,1,1)*$L26),"") ->  | AM26: =IF(AND(AM$8>=$E26,$F25<=Tau,$F26>Tau),Calibration!AM26*FEXP(-OFFSET(BFactors,AM$8-$E26,0,1,1)*$L26),"") ->  | AN26: =IF(AND(AN$8>=$E26,$F25<=Tau,$F26>Tau),Calibration!AN26*FEXP(-OFFSET(BFactors,AN$8-$E26,0,1,1)*$L26),"") ->  | AO26: =IF(AND(AO$8>=$E26,$F25<=Tau,$F26>Tau),Calibration!AO26*FEXP(-OFFSET(BFactors,AO$8-$E26,0,1,1)*$L26),"") ->  | AP26: =IF(AND(AP$8>=$E26,$F25<=Tau,$F26>Tau),Calibration!AP26*FEXP(-OFFSET(BFactors,AP$8-$E26,0,1,1)*$L26),"") ->  | AQ26: =IF(AND(AQ$8>=$E26,$F25<=Tau,$F26>Tau),Calibration!AQ26*FEXP(-OFFSET(BFactors,AQ$8-$E26,0,1,1)*$L26),"") ->  | AR26: =IF(AND(AR$8>=$E26,$F25<=Tau,$F26>Tau),Calibration!AR26*FEXP(-OFFSET(BFactors,AR$8-$E26,0,1,1)*$L26),"") ->  | AS26: =IF(AND(AS$8>=$E26,$F25<=Tau,$F26>Tau),Calibration!AS26*FEXP(-OFFSET(BFactors,AS$8-$E26,0,1,1)*$L26),"") ->  | AT26: =IF(AND(AT$8>=$E26,$F25<=Tau,$F26>Tau),Calibration!AT26*FEXP(-OFFSET(BFactors,AT$8-$E26,0,1,1)*$L26),"") ->  | AU26: =IF(AND(AU$8>=$E26,$F25<=Tau,$F26>Tau),Calibration!AU26*FEXP(-OFFSET(BFactors,AU$8-$E26,0,1,1)*$L26),"") ->  | AV26: =IF(AND(AV$8>=$E26,$F25<=Tau,$F26>Tau),Calibration!AV26*FEXP(-OFFSET(BFactors,AV$8-$E26,0,1,1)*$L26),"") ->  | AW26: =IF(AND(AW$8>=$E26,$F25<=Tau,$F26>Tau),Calibration!AW26*FEXP(-OFFSET(BFactors,AW$8-$E26,0,1,1)*$L26),"") ->  | AX26: =IF(AND(AX$8>=$E26,$F25<=Tau,$F26>Tau),Calibration!AX26*FEXP(-OFFSET(BFactors,AX$8-$E26,0,1,1)*$L26),"") ->  | AY26: =IF(AND(AY$8>=$E26,$F25<=Tau,$F26>Tau),Calibration!AY26*FEXP(-OFFSET(BFactors,AY$8-$E26,0,1,1)*$L26),"") ->  | AZ26: =IF(AND(AZ$8>=$E26,$F25<=Tau,$F26>Tau),Calibration!AZ26*FEXP(-OFFSET(BFactors,AZ$8-$E26,0,1,1)*$L26),"") ->  | BA26: =IF(AND(BA$8>=$E26,$F25<=Tau,$F26>Tau),Calibration!BA26*FEXP(-OFFSET(BFactors,BA$8-$E26,0,1,1)*$L26),"") ->  | BB26: =IF(AND(BB$8>=$E26,$F25<=Tau,$F26>Tau),Calibration!BB26*FEXP(-OFFSET(BFactors,BB$8-$E26,0,1,1)*$L26),"") ->  | BC26: =IF(AND(BC$8>=$E26,$F25<=Tau,$F26>Tau),Calibration!BC26*FEXP(-OFFSET(BFactors,BC$8-$E26,0,1,1)*$L26),"") -> 
E27: 18 | F27: 4.5 | G27: 0.005608097546 | H27: 0.04707391597 | I27: 0.05688831669 | J27: -0.00981440071 | K27: -0.2605365313 | L27: =IF(F26<Tau,L26*Param1+K27*IRVol*Param2+Calibration!J27-Calibration!J26*Param1,NA()) ->  | AG27: =IF(AND(AG$8>=$E27,$F26<=Tau,$F27>Tau),Calibration!AG27*FEXP(-OFFSET(BFactors,AG$8-$E27,0,1,1)*$L27),"") ->  | AH27: =IF(AND(AH$8>=$E27,$F26<=Tau,$F27>Tau),Calibration!AH27*FEXP(-OFFSET(BFactors,AH$8-$E27,0,1,1)*$L27),"") ->  | AI27: =IF(AND(AI$8>=$E27,$F26<=Tau,$F27>Tau),Calibration!AI27*FEXP(-OFFSET(BFactors,AI$8-$E27,0,1,1)*$L27),"") ->  | AJ27: =IF(AND(AJ$8>=$E27,$F26<=Tau,$F27>Tau),Calibration!AJ27*FEXP(-OFFSET(BFactors,AJ$8-$E27,0,1,1)*$L27),"") ->  | AK27: =IF(AND(AK$8>=$E27,$F26<=Tau,$F27>Tau),Calibration!AK27*FEXP(-OFFSET(BFactors,AK$8-$E27,0,1,1)*$L27),"") ->  | AL27: =IF(AND(AL$8>=$E27,$F26<=Tau,$F27>Tau),Calibration!AL27*FEXP(-OFFSET(BFactors,AL$8-$E27,0,1,1)*$L27),"") ->  | AM27: =IF(AND(AM$8>=$E27,$F26<=Tau,$F27>Tau),Calibration!AM27*FEXP(-OFFSET(BFactors,AM$8-$E27,0,1,1)*$L27),"") ->  | AN27: =IF(AND(AN$8>=$E27,$F26<=Tau,$F27>Tau),Calibration!AN27*FEXP(-OFFSET(BFactors,AN$8-$E27,0,1,1)*$L27),"") ->  | AO27: =IF(AND(AO$8>=$E27,$F26<=Tau,$F27>Tau),Calibration!AO27*FEXP(-OFFSET(BFactors,AO$8-$E27,0,1,1)*$L27),"") ->  | AP27: =IF(AND(AP$8>=$E27,$F26<=Tau,$F27>Tau),Calibration!AP27*FEXP(-OFFSET(BFactors,AP$8-$E27,0,1,1)*$L27),"") ->  | AQ27: =IF(AND(AQ$8>=$E27,$F26<=Tau,$F27>Tau),Calibration!AQ27*FEXP(-OFFSET(BFactors,AQ$8-$E27,0,1,1)*$L27),"") ->  | AR27: =IF(AND(AR$8>=$E27,$F26<=Tau,$F27>Tau),Calibration!AR27*FEXP(-OFFSET(BFactors,AR$8-$E27,0,1,1)*$L27),"") ->  | AS27: =IF(AND(AS$8>=$E27,$F26<=Tau,$F27>Tau),Calibration!AS27*FEXP(-OFFSET(BFactors,AS$8-$E27,0,1,1)*$L27),"") ->  | AT27: =IF(AND(AT$8>=$E27,$F26<=Tau,$F27>Tau),Calibration!AT27*FEXP(-OFFSET(BFactors,AT$8-$E27,0,1,1)*$L27),"") ->  | AU27: =IF(AND(AU$8>=$E27,$F26<=Tau,$F27>Tau),Calibration!AU27*FEXP(-OFFSET(BFactors,AU$8-$E27,0,1,1)*$L27),"") ->  | AV27: =IF(AND(AV$8>=$E27,$F26<=Tau,$F27>Tau),Calibration!AV27*FEXP(-OFFSET(BFactors,AV$8-$E27,0,1,1)*$L27),"") ->  | AW27: =IF(AND(AW$8>=$E27,$F26<=Tau,$F27>Tau),Calibration!AW27*FEXP(-OFFSET(BFactors,AW$8-$E27,0,1,1)*$L27),"") ->  | AX27: =IF(AND(AX$8>=$E27,$F26<=Tau,$F27>Tau),Calibration!AX27*FEXP(-OFFSET(BFactors,AX$8-$E27,0,1,1)*$L27),"") ->  | AY27: =IF(AND(AY$8>=$E27,$F26<=Tau,$F27>Tau),Calibration!AY27*FEXP(-OFFSET(BFactors,AY$8-$E27,0,1,1)*$L27),"") ->  | AZ27: =IF(AND(AZ$8>=$E27,$F26<=Tau,$F27>Tau),Calibration!AZ27*FEXP(-OFFSET(BFactors,AZ$8-$E27,0,1,1)*$L27),"") ->  | BA27: =IF(AND(BA$8>=$E27,$F26<=Tau,$F27>Tau),Calibration!BA27*FEXP(-OFFSET(BFactors,BA$8-$E27,0,1,1)*$L27),"") ->  | BB27: =IF(AND(BB$8>=$E27,$F26<=Tau,$F27>Tau),Calibration!BB27*FEXP(-OFFSET(BFactors,BB$8-$E27,0,1,1)*$L27),"") ->  | BC27: =IF(AND(BC$8>=$E27,$F26<=Tau,$F27>Tau),Calibration!BC27*FEXP(-OFFSET(BFactors,BC$8-$E27,0,1,1)*$L27),"") -> 
E28: 19 | F28: 4.75 | G28: 0.004650617477 | H28: 0.04608298348 | I28: 0.05458998962 | J28: -0.008507006137 | K28: -0.2890269748 | L28: =IF(F27<Tau,L27*Param1+K28*IRVol*Param2+Calibration!J28-Calibration!J27*Param1,NA()) ->  | AH28: =IF(AND(AH$8>=$E28,$F27<=Tau,$F28>Tau),Calibration!AH28*FEXP(-OFFSET(BFactors,AH$8-$E28,0,1,1)*$L28),"") ->  | AI28: =IF(AND(AI$8>=$E28,$F27<=Tau,$F28>Tau),Calibration!AI28*FEXP(-OFFSET(BFactors,AI$8-$E28,0,1,1)*$L28),"") ->  | AJ28: =IF(AND(AJ$8>=$E28,$F27<=Tau,$F28>Tau),Calibration!AJ28*FEXP(-OFFSET(BFactors,AJ$8-$E28,0,1,1)*$L28),"") ->  | AK28: =IF(AND(AK$8>=$E28,$F27<=Tau,$F28>Tau),Calibration!AK28*FEXP(-OFFSET(BFactors,AK$8-$E28,0,1,1)*$L28),"") ->  | AL28: =IF(AND(AL$8>=$E28,$F27<=Tau,$F28>Tau),Calibration!AL28*FEXP(-OFFSET(BFactors,AL$8-$E28,0,1,1)*$L28),"") ->  | AM28: =IF(AND(AM$8>=$E28,$F27<=Tau,$F28>Tau),Calibration!AM28*FEXP(-OFFSET(BFactors,AM$8-$E28,0,1,1)*$L28),"") ->  | AN28: =IF(AND(AN$8>=$E28,$F27<=Tau,$F28>Tau),Calibration!AN28*FEXP(-OFFSET(BFactors,AN$8-$E28,0,1,1)*$L28),"") ->  | AO28: =IF(AND(AO$8>=$E28,$F27<=Tau,$F28>Tau),Calibration!AO28*FEXP(-OFFSET(BFactors,AO$8-$E28,0,1,1)*$L28),"") ->  | AP28: =IF(AND(AP$8>=$E28,$F27<=Tau,$F28>Tau),Calibration!AP28*FEXP(-OFFSET(BFactors,AP$8-$E28,0,1,1)*$L28),"") ->  | AQ28: =IF(AND(AQ$8>=$E28,$F27<=Tau,$F28>Tau),Calibration!AQ28*FEXP(-OFFSET(BFactors,AQ$8-$E28,0,1,1)*$L28),"") ->  | AR28: =IF(AND(AR$8>=$E28,$F27<=Tau,$F28>Tau),Calibration!AR28*FEXP(-OFFSET(BFactors,AR$8-$E28,0,1,1)*$L28),"") ->  | AS28: =IF(AND(AS$8>=$E28,$F27<=Tau,$F28>Tau),Calibration!AS28*FEXP(-OFFSET(BFactors,AS$8-$E28,0,1,1)*$L28),"") ->  | AT28: =IF(AND(AT$8>=$E28,$F27<=Tau,$F28>Tau),Calibration!AT28*FEXP(-OFFSET(BFactors,AT$8-$E28,0,1,1)*$L28),"") ->  | AU28: =IF(AND(AU$8>=$E28,$F27<=Tau,$F28>Tau),Calibration!AU28*FEXP(-OFFSET(BFactors,AU$8-$E28,0,1,1)*$L28),"") ->  | AV28: =IF(AND(AV$8>=$E28,$F27<=Tau,$F28>Tau),Calibration!AV28*FEXP(-OFFSET(BFactors,AV$8-$E28,0,1,1)*$L28),"") ->  | AW28: =IF(AND(AW$8>=$E28,$F27<=Tau,$F28>Tau),Calibration!AW28*FEXP(-OFFSET(BFactors,AW$8-$E28,0,1,1)*$L28),"") ->  | AX28: =IF(AND(AX$8>=$E28,$F27<=Tau,$F28>Tau),Calibration!AX28*FEXP(-OFFSET(BFactors,AX$8-$E28,0,1,1)*$L28),"") ->  | AY28: =IF(AND(AY$8>=$E28,$F27<=Tau,$F28>Tau),Calibration!AY28*FEXP(-OFFSET(BFactors,AY$8-$E28,0,1,1)*$L28),"") ->  | AZ28: =IF(AND(AZ$8>=$E28,$F27<=Tau,$F28>Tau),Calibration!AZ28*FEXP(-OFFSET(BFactors,AZ$8-$E28,0,1,1)*$L28),"") ->  | BA28: =IF(AND(BA$8>=$E28,$F27<=Tau,$F28>Tau),Calibration!BA28*FEXP(-OFFSET(BFactors,BA$8-$E28,0,1,1)*$L28),"") ->  | BB28: =IF(AND(BB$8>=$E28,$F27<=Tau,$F28>Tau),Calibration!BB28*FEXP(-OFFSET(BFactors,BB$8-$E28,0,1,1)*$L28),"") ->  | BC28: =IF(AND(BC$8>=$E28,$F27<=Tau,$F28>Tau),Calibration!BC28*FEXP(-OFFSET(BFactors,BC$8-$E28,0,1,1)*$L28),"") -> 
E29: 20 | F29: 5 | G29: 0.004826481163 | H29: 0.04186866981 | I29: 0.05079994296 | J29: -0.008931273147 | K29: 0.4676298637 | L29: =IF(F28<Tau,L28*Param1+K29*IRVol*Param2+Calibration!J29-Calibration!J28*Param1,NA()) ->  | AI29: =IF(AND(AI$8>=$E29,$F28<=Tau,$F29>Tau),Calibration!AI29*FEXP(-OFFSET(BFactors,AI$8-$E29,0,1,1)*$L29),"") ->  | AJ29: =IF(AND(AJ$8>=$E29,$F28<=Tau,$F29>Tau),Calibration!AJ29*FEXP(-OFFSET(BFactors,AJ$8-$E29,0,1,1)*$L29),"") ->  | AK29: =IF(AND(AK$8>=$E29,$F28<=Tau,$F29>Tau),Calibration!AK29*FEXP(-OFFSET(BFactors,AK$8-$E29,0,1,1)*$L29),"") ->  | AL29: =IF(AND(AL$8>=$E29,$F28<=Tau,$F29>Tau),Calibration!AL29*FEXP(-OFFSET(BFactors,AL$8-$E29,0,1,1)*$L29),"") ->  | AM29: =IF(AND(AM$8>=$E29,$F28<=Tau,$F29>Tau),Calibration!AM29*FEXP(-OFFSET(BFactors,AM$8-$E29,0,1,1)*$L29),"") ->  | AN29: =IF(AND(AN$8>=$E29,$F28<=Tau,$F29>Tau),Calibration!AN29*FEXP(-OFFSET(BFactors,AN$8-$E29,0,1,1)*$L29),"") ->  | AO29: =IF(AND(AO$8>=$E29,$F28<=Tau,$F29>Tau),Calibration!AO29*FEXP(-OFFSET(BFactors,AO$8-$E29,0,1,1)*$L29),"") ->  | AP29: =IF(AND(AP$8>=$E29,$F28<=Tau,$F29>Tau),Calibration!AP29*FEXP(-OFFSET(BFactors,AP$8-$E29,0,1,1)*$L29),"") ->  | AQ29: =IF(AND(AQ$8>=$E29,$F28<=Tau,$F29>Tau),Calibration!AQ29*FEXP(-OFFSET(BFactors,AQ$8-$E29,0,1,1)*$L29),"") ->  | AR29: =IF(AND(AR$8>=$E29,$F28<=Tau,$F29>Tau),Calibration!AR29*FEXP(-OFFSET(BFactors,AR$8-$E29,0,1,1)*$L29),"") ->  | AS29: =IF(AND(AS$8>=$E29,$F28<=Tau,$F29>Tau),Calibration!AS29*FEXP(-OFFSET(BFactors,AS$8-$E29,0,1,1)*$L29),"") ->  | AT29: =IF(AND(AT$8>=$E29,$F28<=Tau,$F29>Tau),Calibration!AT29*FEXP(-OFFSET(BFactors,AT$8-$E29,0,1,1)*$L29),"") ->  | AU29: =IF(AND(AU$8>=$E29,$F28<=Tau,$F29>Tau),Calibration!AU29*FEXP(-OFFSET(BFactors,AU$8-$E29,0,1,1)*$L29),"") ->  | AV29: =IF(AND(AV$8>=$E29,$F28<=Tau,$F29>Tau),Calibration!AV29*FEXP(-OFFSET(BFactors,AV$8-$E29,0,1,1)*$L29),"") ->  | AW29: =IF(AND(AW$8>=$E29,$F28<=Tau,$F29>Tau),Calibration!AW29*FEXP(-OFFSET(BFactors,AW$8-$E29,0,1,1)*$L29),"") ->  | AX29: =IF(AND(AX$8>=$E29,$F28<=Tau,$F29>Tau),Calibration!AX29*FEXP(-OFFSET(BFactors,AX$8-$E29,0,1,1)*$L29),"") ->  | AY29: =IF(AND(AY$8>=$E29,$F28<=Tau,$F29>Tau),Calibration!AY29*FEXP(-OFFSET(BFactors,AY$8-$E29,0,1,1)*$L29),"") ->  | AZ29: =IF(AND(AZ$8>=$E29,$F28<=Tau,$F29>Tau),Calibration!AZ29*FEXP(-OFFSET(BFactors,AZ$8-$E29,0,1,1)*$L29),"") ->  | BA29: =IF(AND(BA$8>=$E29,$F28<=Tau,$F29>Tau),Calibration!BA29*FEXP(-OFFSET(BFactors,BA$8-$E29,0,1,1)*$L29),"") ->  | BB29: =IF(AND(BB$8>=$E29,$F28<=Tau,$F29>Tau),Calibration!BB29*FEXP(-OFFSET(BFactors,BB$8-$E29,0,1,1)*$L29),"") ->  | BC29: =IF(AND(BC$8>=$E29,$F28<=Tau,$F29>Tau),Calibration!BC29*FEXP(-OFFSET(BFactors,BC$8-$E29,0,1,1)*$L29),"") -> 
E30: 21 | F30: 5.25 | G30: 0.005100046897 | H30: 0.0427090264 | I30: 0.05155210209 | J30: -0.008843075689 | K30: -1.166348439 | L30: =IF(F29<Tau,L29*Param1+K30*IRVol*Param2+Calibration!J30-Calibration!J29*Param1,NA()) ->  | AJ30: =IF(AND(AJ$8>=$E30,$F29<=Tau,$F30>Tau),Calibration!AJ30*FEXP(-OFFSET(BFactors,AJ$8-$E30,0,1,1)*$L30),"") ->  | AK30: =IF(AND(AK$8>=$E30,$F29<=Tau,$F30>Tau),Calibration!AK30*FEXP(-OFFSET(BFactors,AK$8-$E30,0,1,1)*$L30),"") ->  | AL30: =IF(AND(AL$8>=$E30,$F29<=Tau,$F30>Tau),Calibration!AL30*FEXP(-OFFSET(BFactors,AL$8-$E30,0,1,1)*$L30),"") ->  | AM30: =IF(AND(AM$8>=$E30,$F29<=Tau,$F30>Tau),Calibration!AM30*FEXP(-OFFSET(BFactors,AM$8-$E30,0,1,1)*$L30),"") ->  | AN30: =IF(AND(AN$8>=$E30,$F29<=Tau,$F30>Tau),Calibration!AN30*FEXP(-OFFSET(BFactors,AN$8-$E30,0,1,1)*$L30),"") ->  | AO30: =IF(AND(AO$8>=$E30,$F29<=Tau,$F30>Tau),Calibration!AO30*FEXP(-OFFSET(BFactors,AO$8-$E30,0,1,1)*$L30),"") ->  | AP30: =IF(AND(AP$8>=$E30,$F29<=Tau,$F30>Tau),Calibration!AP30*FEXP(-OFFSET(BFactors,AP$8-$E30,0,1,1)*$L30),"") ->  | AQ30: =IF(AND(AQ$8>=$E30,$F29<=Tau,$F30>Tau),Calibration!AQ30*FEXP(-OFFSET(BFactors,AQ$8-$E30,0,1,1)*$L30),"") ->  | AR30: =IF(AND(AR$8>=$E30,$F29<=Tau,$F30>Tau),Calibration!AR30*FEXP(-OFFSET(BFactors,AR$8-$E30,0,1,1)*$L30),"") ->  | AS30: =IF(AND(AS$8>=$E30,$F29<=Tau,$F30>Tau),Calibration!AS30*FEXP(-OFFSET(BFactors,AS$8-$E30,0,1,1)*$L30),"") ->  | AT30: =IF(AND(AT$8>=$E30,$F29<=Tau,$F30>Tau),Calibration!AT30*FEXP(-OFFSET(BFactors,AT$8-$E30,0,1,1)*$L30),"") ->  | AU30: =IF(AND(AU$8>=$E30,$F29<=Tau,$F30>Tau),Calibration!AU30*FEXP(-OFFSET(BFactors,AU$8-$E30,0,1,1)*$L30),"") ->  | AV30: =IF(AND(AV$8>=$E30,$F29<=Tau,$F30>Tau),Calibration!AV30*FEXP(-OFFSET(BFactors,AV$8-$E30,0,1,1)*$L30),"") ->  | AW30: =IF(AND(AW$8>=$E30,$F29<=Tau,$F30>Tau),Calibration!AW30*FEXP(-OFFSET(BFactors,AW$8-$E30,0,1,1)*$L30),"") ->  | AX30: =IF(AND(AX$8>=$E30,$F29<=Tau,$F30>Tau),Calibration!AX30*FEXP(-OFFSET(BFactors,AX$8-$E30,0,1,1)*$L30),"") ->  | AY30: =IF(AND(AY$8>=$E30,$F29<=Tau,$F30>Tau),Calibration!AY30*FEXP(-OFFSET(BFactors,AY$8-$E30,0,1,1)*$L30),"") ->  | AZ30: =IF(AND(AZ$8>=$E30,$F29<=Tau,$F30>Tau),Calibration!AZ30*FEXP(-OFFSET(BFactors,AZ$8-$E30,0,1,1)*$L30),"") ->  | BA30: =IF(AND(BA$8>=$E30,$F29<=Tau,$F30>Tau),Calibration!BA30*FEXP(-OFFSET(BFactors,BA$8-$E30,0,1,1)*$L30),"") ->  | BB30: =IF(AND(BB$8>=$E30,$F29<=Tau,$F30>Tau),Calibration!BB30*FEXP(-OFFSET(BFactors,BB$8-$E30,0,1,1)*$L30),"") ->  | BC30: =IF(AND(BC$8>=$E30,$F29<=Tau,$F30>Tau),Calibration!BC30*FEXP(-OFFSET(BFactors,BC$8-$E30,0,1,1)*$L30),"") -> 
E31: 22 | F31: 5.5 | G31: 0.005236829764 | H31: 0.04736208306 | I31: 0.05235707821 | J31: -0.004994995151 | K31: 0.9301415751 | L31: =IF(F30<Tau,L30*Param1+K31*IRVol*Param2+Calibration!J31-Calibration!J30*Param1,NA()) ->  | AK31: =IF(AND(AK$8>=$E31,$F30<=Tau,$F31>Tau),Calibration!AK31*FEXP(-OFFSET(BFactors,AK$8-$E31,0,1,1)*$L31),"") ->  | AL31: =IF(AND(AL$8>=$E31,$F30<=Tau,$F31>Tau),Calibration!AL31*FEXP(-OFFSET(BFactors,AL$8-$E31,0,1,1)*$L31),"") ->  | AM31: =IF(AND(AM$8>=$E31,$F30<=Tau,$F31>Tau),Calibration!AM31*FEXP(-OFFSET(BFactors,AM$8-$E31,0,1,1)*$L31),"") ->  | AN31: =IF(AND(AN$8>=$E31,$F30<=Tau,$F31>Tau),Calibration!AN31*FEXP(-OFFSET(BFactors,AN$8-$E31,0,1,1)*$L31),"") ->  | AO31: =IF(AND(AO$8>=$E31,$F30<=Tau,$F31>Tau),Calibration!AO31*FEXP(-OFFSET(BFactors,AO$8-$E31,0,1,1)*$L31),"") ->  | AP31: =IF(AND(AP$8>=$E31,$F30<=Tau,$F31>Tau),Calibration!AP31*FEXP(-OFFSET(BFactors,AP$8-$E31,0,1,1)*$L31),"") ->  | AQ31: =IF(AND(AQ$8>=$E31,$F30<=Tau,$F31>Tau),Calibration!AQ31*FEXP(-OFFSET(BFactors,AQ$8-$E31,0,1,1)*$L31),"") ->  | AR31: =IF(AND(AR$8>=$E31,$F30<=Tau,$F31>Tau),Calibration!AR31*FEXP(-OFFSET(BFactors,AR$8-$E31,0,1,1)*$L31),"") ->  | AS31: =IF(AND(AS$8>=$E31,$F30<=Tau,$F31>Tau),Calibration!AS31*FEXP(-OFFSET(BFactors,AS$8-$E31,0,1,1)*$L31),"") ->  | AT31: =IF(AND(AT$8>=$E31,$F30<=Tau,$F31>Tau),Calibration!AT31*FEXP(-OFFSET(BFactors,AT$8-$E31,0,1,1)*$L31),"") ->  | AU31: =IF(AND(AU$8>=$E31,$F30<=Tau,$F31>Tau),Calibration!AU31*FEXP(-OFFSET(BFactors,AU$8-$E31,0,1,1)*$L31),"") ->  | AV31: =IF(AND(AV$8>=$E31,$F30<=Tau,$F31>Tau),Calibration!AV31*FEXP(-OFFSET(BFactors,AV$8-$E31,0,1,1)*$L31),"") ->  | AW31: =IF(AND(AW$8>=$E31,$F30<=Tau,$F31>Tau),Calibration!AW31*FEXP(-OFFSET(BFactors,AW$8-$E31,0,1,1)*$L31),"") ->  | AX31: =IF(AND(AX$8>=$E31,$F30<=Tau,$F31>Tau),Calibration!AX31*FEXP(-OFFSET(BFactors,AX$8-$E31,0,1,1)*$L31),"") ->  | AY31: =IF(AND(AY$8>=$E31,$F30<=Tau,$F31>Tau),Calibration!AY31*FEXP(-OFFSET(BFactors,AY$8-$E31,0,1,1)*$L31),"") ->  | AZ31: =IF(AND(AZ$8>=$E31,$F30<=Tau,$F31>Tau),Calibration!AZ31*FEXP(-OFFSET(BFactors,AZ$8-$E31,0,1,1)*$L31),"") ->  | BA31: =IF(AND(BA$8>=$E31,$F30<=Tau,$F31>Tau),Calibration!BA31*FEXP(-OFFSET(BFactors,BA$8-$E31,0,1,1)*$L31),"") ->  | BB31: =IF(AND(BB$8>=$E31,$F30<=Tau,$F31>Tau),Calibration!BB31*FEXP(-OFFSET(BFactors,BB$8-$E31,0,1,1)*$L31),"") ->  | BC31: =IF(AND(BC$8>=$E31,$F30<=Tau,$F31>Tau),Calibration!BC31*FEXP(-OFFSET(BFactors,BC$8-$E31,0,1,1)*$L31),"") -> 
E32: 23 | F32: 5.75 | G32: 0.005549476317 | H32: 0.04177544536 | I32: 0.04969204527 | J32: -0.007916599912 | K32: -1.373574092 | L32: =IF(F31<Tau,L31*Param1+K32*IRVol*Param2+Calibration!J32-Calibration!J31*Param1,NA()) ->  | AL32: =IF(AND(AL$8>=$E32,$F31<=Tau,$F32>Tau),Calibration!AL32*FEXP(-OFFSET(BFactors,AL$8-$E32,0,1,1)*$L32),"") ->  | AM32: =IF(AND(AM$8>=$E32,$F31<=Tau,$F32>Tau),Calibration!AM32*FEXP(-OFFSET(BFactors,AM$8-$E32,0,1,1)*$L32),"") ->  | AN32: =IF(AND(AN$8>=$E32,$F31<=Tau,$F32>Tau),Calibration!AN32*FEXP(-OFFSET(BFactors,AN$8-$E32,0,1,1)*$L32),"") ->  | AO32: =IF(AND(AO$8>=$E32,$F31<=Tau,$F32>Tau),Calibration!AO32*FEXP(-OFFSET(BFactors,AO$8-$E32,0,1,1)*$L32),"") ->  | AP32: =IF(AND(AP$8>=$E32,$F31<=Tau,$F32>Tau),Calibration!AP32*FEXP(-OFFSET(BFactors,AP$8-$E32,0,1,1)*$L32),"") ->  | AQ32: =IF(AND(AQ$8>=$E32,$F31<=Tau,$F32>Tau),Calibration!AQ32*FEXP(-OFFSET(BFactors,AQ$8-$E32,0,1,1)*$L32),"") ->  | AR32: =IF(AND(AR$8>=$E32,$F31<=Tau,$F32>Tau),Calibration!AR32*FEXP(-OFFSET(BFactors,AR$8-$E32,0,1,1)*$L32),"") ->  | AS32: =IF(AND(AS$8>=$E32,$F31<=Tau,$F32>Tau),Calibration!AS32*FEXP(-OFFSET(BFactors,AS$8-$E32,0,1,1)*$L32),"") ->  | AT32: =IF(AND(AT$8>=$E32,$F31<=Tau,$F32>Tau),Calibration!AT32*FEXP(-OFFSET(BFactors,AT$8-$E32,0,1,1)*$L32),"") ->  | AU32: =IF(AND(AU$8>=$E32,$F31<=Tau,$F32>Tau),Calibration!AU32*FEXP(-OFFSET(BFactors,AU$8-$E32,0,1,1)*$L32),"") ->  | AV32: =IF(AND(AV$8>=$E32,$F31<=Tau,$F32>Tau),Calibration!AV32*FEXP(-OFFSET(BFactors,AV$8-$E32,0,1,1)*$L32),"") ->  | AW32: =IF(AND(AW$8>=$E32,$F31<=Tau,$F32>Tau),Calibration!AW32*FEXP(-OFFSET(BFactors,AW$8-$E32,0,1,1)*$L32),"") ->  | AX32: =IF(AND(AX$8>=$E32,$F31<=Tau,$F32>Tau),Calibration!AX32*FEXP(-OFFSET(BFactors,AX$8-$E32,0,1,1)*$L32),"") ->  | AY32: =IF(AND(AY$8>=$E32,$F31<=Tau,$F32>Tau),Calibration!AY32*FEXP(-OFFSET(BFactors,AY$8-$E32,0,1,1)*$L32),"") ->  | AZ32: =IF(AND(AZ$8>=$E32,$F31<=Tau,$F32>Tau),Calibration!AZ32*FEXP(-OFFSET(BFactors,AZ$8-$E32,0,1,1)*$L32),"") ->  | BA32: =IF(AND(BA$8>=$E32,$F31<=Tau,$F32>Tau),Calibration!BA32*FEXP(-OFFSET(BFactors,BA$8-$E32,0,1,1)*$L32),"") ->  | BB32: =IF(AND(BB$8>=$E32,$F31<=Tau,$F32>Tau),Calibration!BB32*FEXP(-OFFSET(BFactors,BB$8-$E32,0,1,1)*$L32),"") ->  | BC32: =IF(AND(BC$8>=$E32,$F31<=Tau,$F32>Tau),Calibration!BC32*FEXP(-OFFSET(BFactors,BC$8-$E32,0,1,1)*$L32),"") -> 
E33: 24 | F33: 6 | G33: 0.006057526966 | H33: 0.03753099525 | I33: 0.04507026858 | J33: -0.007539273335 | K33: -0.1868526164 | L33: =IF(F32<Tau,L32*Param1+K33*IRVol*Param2+Calibration!J33-Calibration!J32*Param1,NA()) ->  | AM33: =IF(AND(AM$8>=$E33,$F32<=Tau,$F33>Tau),Calibration!AM33*FEXP(-OFFSET(BFactors,AM$8-$E33,0,1,1)*$L33),"") ->  | AN33: =IF(AND(AN$8>=$E33,$F32<=Tau,$F33>Tau),Calibration!AN33*FEXP(-OFFSET(BFactors,AN$8-$E33,0,1,1)*$L33),"") ->  | AO33: =IF(AND(AO$8>=$E33,$F32<=Tau,$F33>Tau),Calibration!AO33*FEXP(-OFFSET(BFactors,AO$8-$E33,0,1,1)*$L33),"") ->  | AP33: =IF(AND(AP$8>=$E33,$F32<=Tau,$F33>Tau),Calibration!AP33*FEXP(-OFFSET(BFactors,AP$8-$E33,0,1,1)*$L33),"") ->  | AQ33: =IF(AND(AQ$8>=$E33,$F32<=Tau,$F33>Tau),Calibration!AQ33*FEXP(-OFFSET(BFactors,AQ$8-$E33,0,1,1)*$L33),"") ->  | AR33: =IF(AND(AR$8>=$E33,$F32<=Tau,$F33>Tau),Calibration!AR33*FEXP(-OFFSET(BFactors,AR$8-$E33,0,1,1)*$L33),"") ->  | AS33: =IF(AND(AS$8>=$E33,$F32<=Tau,$F33>Tau),Calibration!AS33*FEXP(-OFFSET(BFactors,AS$8-$E33,0,1,1)*$L33),"") ->  | AT33: =IF(AND(AT$8>=$E33,$F32<=Tau,$F33>Tau),Calibration!AT33*FEXP(-OFFSET(BFactors,AT$8-$E33,0,1,1)*$L33),"") ->  | AU33: =IF(AND(AU$8>=$E33,$F32<=Tau,$F33>Tau),Calibration!AU33*FEXP(-OFFSET(BFactors,AU$8-$E33,0,1,1)*$L33),"") ->  | AV33: =IF(AND(AV$8>=$E33,$F32<=Tau,$F33>Tau),Calibration!AV33*FEXP(-OFFSET(BFactors,AV$8-$E33,0,1,1)*$L33),"") ->  | AW33: =IF(AND(AW$8>=$E33,$F32<=Tau,$F33>Tau),Calibration!AW33*FEXP(-OFFSET(BFactors,AW$8-$E33,0,1,1)*$L33),"") ->  | AX33: =IF(AND(AX$8>=$E33,$F32<=Tau,$F33>Tau),Calibration!AX33*FEXP(-OFFSET(BFactors,AX$8-$E33,0,1,1)*$L33),"") ->  | AY33: =IF(AND(AY$8>=$E33,$F32<=Tau,$F33>Tau),Calibration!AY33*FEXP(-OFFSET(BFactors,AY$8-$E33,0,1,1)*$L33),"") ->  | AZ33: =IF(AND(AZ$8>=$E33,$F32<=Tau,$F33>Tau),Calibration!AZ33*FEXP(-OFFSET(BFactors,AZ$8-$E33,0,1,1)*$L33),"") ->  | BA33: =IF(AND(BA$8>=$E33,$F32<=Tau,$F33>Tau),Calibration!BA33*FEXP(-OFFSET(BFactors,BA$8-$E33,0,1,1)*$L33),"") ->  | BB33: =IF(AND(BB$8>=$E33,$F32<=Tau,$F33>Tau),Calibration!BB33*FEXP(-OFFSET(BFactors,BB$8-$E33,0,1,1)*$L33),"") ->  | BC33: =IF(AND(BC$8>=$E33,$F32<=Tau,$F33>Tau),Calibration!BC33*FEXP(-OFFSET(BFactors,BC$8-$E33,0,1,1)*$L33),"") -> 
E34: 25 | F34: 6.25 | G34: 0.005178208535 | H34: 0.03417689507 | I34: 0.04188333185 | J34: -0.007706436782 | K34: 0.9797179371 | L34: =IF(F33<Tau,L33*Param1+K34*IRVol*Param2+Calibration!J34-Calibration!J33*Param1,NA()) ->  | AN34: =IF(AND(AN$8>=$E34,$F33<=Tau,$F34>Tau),Calibration!AN34*FEXP(-OFFSET(BFactors,AN$8-$E34,0,1,1)*$L34),"") ->  | AO34: =IF(AND(AO$8>=$E34,$F33<=Tau,$F34>Tau),Calibration!AO34*FEXP(-OFFSET(BFactors,AO$8-$E34,0,1,1)*$L34),"") ->  | AP34: =IF(AND(AP$8>=$E34,$F33<=Tau,$F34>Tau),Calibration!AP34*FEXP(-OFFSET(BFactors,AP$8-$E34,0,1,1)*$L34),"") ->  | AQ34: =IF(AND(AQ$8>=$E34,$F33<=Tau,$F34>Tau),Calibration!AQ34*FEXP(-OFFSET(BFactors,AQ$8-$E34,0,1,1)*$L34),"") ->  | AR34: =IF(AND(AR$8>=$E34,$F33<=Tau,$F34>Tau),Calibration!AR34*FEXP(-OFFSET(BFactors,AR$8-$E34,0,1,1)*$L34),"") ->  | AS34: =IF(AND(AS$8>=$E34,$F33<=Tau,$F34>Tau),Calibration!AS34*FEXP(-OFFSET(BFactors,AS$8-$E34,0,1,1)*$L34),"") ->  | AT34: =IF(AND(AT$8>=$E34,$F33<=Tau,$F34>Tau),Calibration!AT34*FEXP(-OFFSET(BFactors,AT$8-$E34,0,1,1)*$L34),"") ->  | AU34: =IF(AND(AU$8>=$E34,$F33<=Tau,$F34>Tau),Calibration!AU34*FEXP(-OFFSET(BFactors,AU$8-$E34,0,1,1)*$L34),"") ->  | AV34: =IF(AND(AV$8>=$E34,$F33<=Tau,$F34>Tau),Calibration!AV34*FEXP(-OFFSET(BFactors,AV$8-$E34,0,1,1)*$L34),"") ->  | AW34: =IF(AND(AW$8>=$E34,$F33<=Tau,$F34>Tau),Calibration!AW34*FEXP(-OFFSET(BFactors,AW$8-$E34,0,1,1)*$L34),"") ->  | AX34: =IF(AND(AX$8>=$E34,$F33<=Tau,$F34>Tau),Calibration!AX34*FEXP(-OFFSET(BFactors,AX$8-$E34,0,1,1)*$L34),"") ->  | AY34: =IF(AND(AY$8>=$E34,$F33<=Tau,$F34>Tau),Calibration!AY34*FEXP(-OFFSET(BFactors,AY$8-$E34,0,1,1)*$L34),"") ->  | AZ34: =IF(AND(AZ$8>=$E34,$F33<=Tau,$F34>Tau),Calibration!AZ34*FEXP(-OFFSET(BFactors,AZ$8-$E34,0,1,1)*$L34),"") ->  | BA34: =IF(AND(BA$8>=$E34,$F33<=Tau,$F34>Tau),Calibration!BA34*FEXP(-OFFSET(BFactors,BA$8-$E34,0,1,1)*$L34),"") ->  | BB34: =IF(AND(BB$8>=$E34,$F33<=Tau,$F34>Tau),Calibration!BB34*FEXP(-OFFSET(BFactors,BB$8-$E34,0,1,1)*$L34),"") ->  | BC34: =IF(AND(BC$8>=$E34,$F33<=Tau,$F34>Tau),Calibration!BC34*FEXP(-OFFSET(BFactors,BC$8-$E34,0,1,1)*$L34),"") -> 
E35: 26 | F35: 6.5 | G35: 0.005490855088 | H35: 0.04020945367 | I35: 0.04390297645 | J35: -0.003693522779 | K35: -0.5961277858 | L35: =IF(F34<Tau,L34*Param1+K35*IRVol*Param2+Calibration!J35-Calibration!J34*Param1,NA()) ->  | AO35: =IF(AND(AO$8>=$E35,$F34<=Tau,$F35>Tau),Calibration!AO35*FEXP(-OFFSET(BFactors,AO$8-$E35,0,1,1)*$L35),"") ->  | AP35: =IF(AND(AP$8>=$E35,$F34<=Tau,$F35>Tau),Calibration!AP35*FEXP(-OFFSET(BFactors,AP$8-$E35,0,1,1)*$L35),"") ->  | AQ35: =IF(AND(AQ$8>=$E35,$F34<=Tau,$F35>Tau),Calibration!AQ35*FEXP(-OFFSET(BFactors,AQ$8-$E35,0,1,1)*$L35),"") ->  | AR35: =IF(AND(AR$8>=$E35,$F34<=Tau,$F35>Tau),Calibration!AR35*FEXP(-OFFSET(BFactors,AR$8-$E35,0,1,1)*$L35),"") ->  | AS35: =IF(AND(AS$8>=$E35,$F34<=Tau,$F35>Tau),Calibration!AS35*FEXP(-OFFSET(BFactors,AS$8-$E35,0,1,1)*$L35),"") ->  | AT35: =IF(AND(AT$8>=$E35,$F34<=Tau,$F35>Tau),Calibration!AT35*FEXP(-OFFSET(BFactors,AT$8-$E35,0,1,1)*$L35),"") ->  | AU35: =IF(AND(AU$8>=$E35,$F34<=Tau,$F35>Tau),Calibration!AU35*FEXP(-OFFSET(BFactors,AU$8-$E35,0,1,1)*$L35),"") ->  | AV35: =IF(AND(AV$8>=$E35,$F34<=Tau,$F35>Tau),Calibration!AV35*FEXP(-OFFSET(BFactors,AV$8-$E35,0,1,1)*$L35),"") ->  | AW35: =IF(AND(AW$8>=$E35,$F34<=Tau,$F35>Tau),Calibration!AW35*FEXP(-OFFSET(BFactors,AW$8-$E35,0,1,1)*$L35),"") ->  | AX35: =IF(AND(AX$8>=$E35,$F34<=Tau,$F35>Tau),Calibration!AX35*FEXP(-OFFSET(BFactors,AX$8-$E35,0,1,1)*$L35),"") ->  | AY35: =IF(AND(AY$8>=$E35,$F34<=Tau,$F35>Tau),Calibration!AY35*FEXP(-OFFSET(BFactors,AY$8-$E35,0,1,1)*$L35),"") ->  | AZ35: =IF(AND(AZ$8>=$E35,$F34<=Tau,$F35>Tau),Calibration!AZ35*FEXP(-OFFSET(BFactors,AZ$8-$E35,0,1,1)*$L35),"") ->  | BA35: =IF(AND(BA$8>=$E35,$F34<=Tau,$F35>Tau),Calibration!BA35*FEXP(-OFFSET(BFactors,BA$8-$E35,0,1,1)*$L35),"") ->  | BB35: =IF(AND(BB$8>=$E35,$F34<=Tau,$F35>Tau),Calibration!BB35*FEXP(-OFFSET(BFactors,BB$8-$E35,0,1,1)*$L35),"") ->  | BC35: =IF(AND(BC$8>=$E35,$F34<=Tau,$F35>Tau),Calibration!BC35*FEXP(-OFFSET(BFactors,BC$8-$E35,0,1,1)*$L35),"") -> 
E36: 27 | F36: 6.75 | G36: 0.00543223386 | H36: 0.03737646772 | I36: 0.04202477848 | J36: -0.004648310766 | K36: -2.020108468 | L36: =IF(F35<Tau,L35*Param1+K36*IRVol*Param2+Calibration!J36-Calibration!J35*Param1,NA()) ->  | AP36: =IF(AND(AP$8>=$E36,$F35<=Tau,$F36>Tau),Calibration!AP36*FEXP(-OFFSET(BFactors,AP$8-$E36,0,1,1)*$L36),"") ->  | AQ36: =IF(AND(AQ$8>=$E36,$F35<=Tau,$F36>Tau),Calibration!AQ36*FEXP(-OFFSET(BFactors,AQ$8-$E36,0,1,1)*$L36),"") ->  | AR36: =IF(AND(AR$8>=$E36,$F35<=Tau,$F36>Tau),Calibration!AR36*FEXP(-OFFSET(BFactors,AR$8-$E36,0,1,1)*$L36),"") ->  | AS36: =IF(AND(AS$8>=$E36,$F35<=Tau,$F36>Tau),Calibration!AS36*FEXP(-OFFSET(BFactors,AS$8-$E36,0,1,1)*$L36),"") ->  | AT36: =IF(AND(AT$8>=$E36,$F35<=Tau,$F36>Tau),Calibration!AT36*FEXP(-OFFSET(BFactors,AT$8-$E36,0,1,1)*$L36),"") ->  | AU36: =IF(AND(AU$8>=$E36,$F35<=Tau,$F36>Tau),Calibration!AU36*FEXP(-OFFSET(BFactors,AU$8-$E36,0,1,1)*$L36),"") ->  | AV36: =IF(AND(AV$8>=$E36,$F35<=Tau,$F36>Tau),Calibration!AV36*FEXP(-OFFSET(BFactors,AV$8-$E36,0,1,1)*$L36),"") ->  | AW36: =IF(AND(AW$8>=$E36,$F35<=Tau,$F36>Tau),Calibration!AW36*FEXP(-OFFSET(BFactors,AW$8-$E36,0,1,1)*$L36),"") ->  | AX36: =IF(AND(AX$8>=$E36,$F35<=Tau,$F36>Tau),Calibration!AX36*FEXP(-OFFSET(BFactors,AX$8-$E36,0,1,1)*$L36),"") ->  | AY36: =IF(AND(AY$8>=$E36,$F35<=Tau,$F36>Tau),Calibration!AY36*FEXP(-OFFSET(BFactors,AY$8-$E36,0,1,1)*$L36),"") ->  | AZ36: =IF(AND(AZ$8>=$E36,$F35<=Tau,$F36>Tau),Calibration!AZ36*FEXP(-OFFSET(BFactors,AZ$8-$E36,0,1,1)*$L36),"") ->  | BA36: =IF(AND(BA$8>=$E36,$F35<=Tau,$F36>Tau),Calibration!BA36*FEXP(-OFFSET(BFactors,BA$8-$E36,0,1,1)*$L36),"") ->  | BB36: =IF(AND(BB$8>=$E36,$F35<=Tau,$F36>Tau),Calibration!BB36*FEXP(-OFFSET(BFactors,BB$8-$E36,0,1,1)*$L36),"") ->  | BC36: =IF(AND(BC$8>=$E36,$F35<=Tau,$F36>Tau),Calibration!BC36*FEXP(-OFFSET(BFactors,BC$8-$E36,0,1,1)*$L36),"") -> 
E37: 28 | F37: 7 | G37: 0.004748319525 | H37: 0.03594350755 | I37: 0.03974352379 | J37: -0.003800016241 | K37: 0.8893313837 | L37: =IF(F36<Tau,L36*Param1+K37*IRVol*Param2+Calibration!J37-Calibration!J36*Param1,NA()) ->  | AQ37: =IF(AND(AQ$8>=$E37,$F36<=Tau,$F37>Tau),Calibration!AQ37*FEXP(-OFFSET(BFactors,AQ$8-$E37,0,1,1)*$L37),"") ->  | AR37: =IF(AND(AR$8>=$E37,$F36<=Tau,$F37>Tau),Calibration!AR37*FEXP(-OFFSET(BFactors,AR$8-$E37,0,1,1)*$L37),"") ->  | AS37: =IF(AND(AS$8>=$E37,$F36<=Tau,$F37>Tau),Calibration!AS37*FEXP(-OFFSET(BFactors,AS$8-$E37,0,1,1)*$L37),"") ->  | AT37: =IF(AND(AT$8>=$E37,$F36<=Tau,$F37>Tau),Calibration!AT37*FEXP(-OFFSET(BFactors,AT$8-$E37,0,1,1)*$L37),"") ->  | AU37: =IF(AND(AU$8>=$E37,$F36<=Tau,$F37>Tau),Calibration!AU37*FEXP(-OFFSET(BFactors,AU$8-$E37,0,1,1)*$L37),"") ->  | AV37: =IF(AND(AV$8>=$E37,$F36<=Tau,$F37>Tau),Calibration!AV37*FEXP(-OFFSET(BFactors,AV$8-$E37,0,1,1)*$L37),"") ->  | AW37: =IF(AND(AW$8>=$E37,$F36<=Tau,$F37>Tau),Calibration!AW37*FEXP(-OFFSET(BFactors,AW$8-$E37,0,1,1)*$L37),"") ->  | AX37: =IF(AND(AX$8>=$E37,$F36<=Tau,$F37>Tau),Calibration!AX37*FEXP(-OFFSET(BFactors,AX$8-$E37,0,1,1)*$L37),"") ->  | AY37: =IF(AND(AY$8>=$E37,$F36<=Tau,$F37>Tau),Calibration!AY37*FEXP(-OFFSET(BFactors,AY$8-$E37,0,1,1)*$L37),"") ->  | AZ37: =IF(AND(AZ$8>=$E37,$F36<=Tau,$F37>Tau),Calibration!AZ37*FEXP(-OFFSET(BFactors,AZ$8-$E37,0,1,1)*$L37),"") ->  | BA37: =IF(AND(BA$8>=$E37,$F36<=Tau,$F37>Tau),Calibration!BA37*FEXP(-OFFSET(BFactors,BA$8-$E37,0,1,1)*$L37),"") ->  | BB37: =IF(AND(BB$8>=$E37,$F36<=Tau,$F37>Tau),Calibration!BB37*FEXP(-OFFSET(BFactors,BB$8-$E37,0,1,1)*$L37),"") ->  | BC37: =IF(AND(BC$8>=$E37,$F36<=Tau,$F37>Tau),Calibration!BC37*FEXP(-OFFSET(BFactors,BC$8-$E37,0,1,1)*$L37),"") -> 
E38: 29 | F38: 7.25 | G38: 0.004709238706 | H38: 0.03023165472 | I38: 0.03456891121 | J38: -0.004337256492 | K38: -0.1310012032 | L38: =IF(F37<Tau,L37*Param1+K38*IRVol*Param2+Calibration!J38-Calibration!J37*Param1,NA()) ->  | AR38: =IF(AND(AR$8>=$E38,$F37<=Tau,$F38>Tau),Calibration!AR38*FEXP(-OFFSET(BFactors,AR$8-$E38,0,1,1)*$L38),"") ->  | AS38: =IF(AND(AS$8>=$E38,$F37<=Tau,$F38>Tau),Calibration!AS38*FEXP(-OFFSET(BFactors,AS$8-$E38,0,1,1)*$L38),"") ->  | AT38: =IF(AND(AT$8>=$E38,$F37<=Tau,$F38>Tau),Calibration!AT38*FEXP(-OFFSET(BFactors,AT$8-$E38,0,1,1)*$L38),"") ->  | AU38: =IF(AND(AU$8>=$E38,$F37<=Tau,$F38>Tau),Calibration!AU38*FEXP(-OFFSET(BFactors,AU$8-$E38,0,1,1)*$L38),"") ->  | AV38: =IF(AND(AV$8>=$E38,$F37<=Tau,$F38>Tau),Calibration!AV38*FEXP(-OFFSET(BFactors,AV$8-$E38,0,1,1)*$L38),"") ->  | AW38: =IF(AND(AW$8>=$E38,$F37<=Tau,$F38>Tau),Calibration!AW38*FEXP(-OFFSET(BFactors,AW$8-$E38,0,1,1)*$L38),"") ->  | AX38: =IF(AND(AX$8>=$E38,$F37<=Tau,$F38>Tau),Calibration!AX38*FEXP(-OFFSET(BFactors,AX$8-$E38,0,1,1)*$L38),"") ->  | AY38: =IF(AND(AY$8>=$E38,$F37<=Tau,$F38>Tau),Calibration!AY38*FEXP(-OFFSET(BFactors,AY$8-$E38,0,1,1)*$L38),"") ->  | AZ38: =IF(AND(AZ$8>=$E38,$F37<=Tau,$F38>Tau),Calibration!AZ38*FEXP(-OFFSET(BFactors,AZ$8-$E38,0,1,1)*$L38),"") ->  | BA38: =IF(AND(BA$8>=$E38,$F37<=Tau,$F38>Tau),Calibration!BA38*FEXP(-OFFSET(BFactors,BA$8-$E38,0,1,1)*$L38),"") ->  | BB38: =IF(AND(BB$8>=$E38,$F37<=Tau,$F38>Tau),Calibration!BB38*FEXP(-OFFSET(BFactors,BB$8-$E38,0,1,1)*$L38),"") ->  | BC38: =IF(AND(BC$8>=$E38,$F37<=Tau,$F38>Tau),Calibration!BC38*FEXP(-OFFSET(BFactors,BC$8-$E38,0,1,1)*$L38),"") -> 
E39: 30 | F39: 7.5 | G39: 0.005080506487 | H39: 0.02899438361 | I39: 0.03358902778 | J39: -0.004594644176 | K39: -2.075007401 | L39: =IF(F38<Tau,L38*Param1+K39*IRVol*Param2+Calibration!J39-Calibration!J38*Param1,NA()) ->  | AS39: =IF(AND(AS$8>=$E39,$F38<=Tau,$F39>Tau),Calibration!AS39*FEXP(-OFFSET(BFactors,AS$8-$E39,0,1,1)*$L39),"") ->  | AT39: =IF(AND(AT$8>=$E39,$F38<=Tau,$F39>Tau),Calibration!AT39*FEXP(-OFFSET(BFactors,AT$8-$E39,0,1,1)*$L39),"") ->  | AU39: =IF(AND(AU$8>=$E39,$F38<=Tau,$F39>Tau),Calibration!AU39*FEXP(-OFFSET(BFactors,AU$8-$E39,0,1,1)*$L39),"") ->  | AV39: =IF(AND(AV$8>=$E39,$F38<=Tau,$F39>Tau),Calibration!AV39*FEXP(-OFFSET(BFactors,AV$8-$E39,0,1,1)*$L39),"") ->  | AW39: =IF(AND(AW$8>=$E39,$F38<=Tau,$F39>Tau),Calibration!AW39*FEXP(-OFFSET(BFactors,AW$8-$E39,0,1,1)*$L39),"") ->  | AX39: =IF(AND(AX$8>=$E39,$F38<=Tau,$F39>Tau),Calibration!AX39*FEXP(-OFFSET(BFactors,AX$8-$E39,0,1,1)*$L39),"") ->  | AY39: =IF(AND(AY$8>=$E39,$F38<=Tau,$F39>Tau),Calibration!AY39*FEXP(-OFFSET(BFactors,AY$8-$E39,0,1,1)*$L39),"") ->  | AZ39: =IF(AND(AZ$8>=$E39,$F38<=Tau,$F39>Tau),Calibration!AZ39*FEXP(-OFFSET(BFactors,AZ$8-$E39,0,1,1)*$L39),"") ->  | BA39: =IF(AND(BA$8>=$E39,$F38<=Tau,$F39>Tau),Calibration!BA39*FEXP(-OFFSET(BFactors,BA$8-$E39,0,1,1)*$L39),"") ->  | BB39: =IF(AND(BB$8>=$E39,$F38<=Tau,$F39>Tau),Calibration!BB39*FEXP(-OFFSET(BFactors,BB$8-$E39,0,1,1)*$L39),"") ->  | BC39: =IF(AND(BC$8>=$E39,$F38<=Tau,$F39>Tau),Calibration!BC39*FEXP(-OFFSET(BFactors,BC$8-$E39,0,1,1)*$L39),"") -> 
E40: 31 | F40: 7.75 | G40: 0.004259809286 | H40: 0.02674849937 | I40: 0.03001668391 | J40: -0.003268184531 | K40: 1.215468786 | L40: =IF(F39<Tau,L39*Param1+K40*IRVol*Param2+Calibration!J40-Calibration!J39*Param1,NA()) ->  | AT40: =IF(AND(AT$8>=$E40,$F39<=Tau,$F40>Tau),Calibration!AT40*FEXP(-OFFSET(BFactors,AT$8-$E40,0,1,1)*$L40),"") ->  | AU40: =IF(AND(AU$8>=$E40,$F39<=Tau,$F40>Tau),Calibration!AU40*FEXP(-OFFSET(BFactors,AU$8-$E40,0,1,1)*$L40),"") ->  | AV40: =IF(AND(AV$8>=$E40,$F39<=Tau,$F40>Tau),Calibration!AV40*FEXP(-OFFSET(BFactors,AV$8-$E40,0,1,1)*$L40),"") ->  | AW40: =IF(AND(AW$8>=$E40,$F39<=Tau,$F40>Tau),Calibration!AW40*FEXP(-OFFSET(BFactors,AW$8-$E40,0,1,1)*$L40),"") ->  | AX40: =IF(AND(AX$8>=$E40,$F39<=Tau,$F40>Tau),Calibration!AX40*FEXP(-OFFSET(BFactors,AX$8-$E40,0,1,1)*$L40),"") ->  | AY40: =IF(AND(AY$8>=$E40,$F39<=Tau,$F40>Tau),Calibration!AY40*FEXP(-OFFSET(BFactors,AY$8-$E40,0,1,1)*$L40),"") ->  | AZ40: =IF(AND(AZ$8>=$E40,$F39<=Tau,$F40>Tau),Calibration!AZ40*FEXP(-OFFSET(BFactors,AZ$8-$E40,0,1,1)*$L40),"") ->  | BA40: =IF(AND(BA$8>=$E40,$F39<=Tau,$F40>Tau),Calibration!BA40*FEXP(-OFFSET(BFactors,BA$8-$E40,0,1,1)*$L40),"") ->  | BB40: =IF(AND(BB$8>=$E40,$F39<=Tau,$F40>Tau),Calibration!BB40*FEXP(-OFFSET(BFactors,BB$8-$E40,0,1,1)*$L40),"") ->  | BC40: =IF(AND(BC$8>=$E40,$F39<=Tau,$F40>Tau),Calibration!BC40*FEXP(-OFFSET(BFactors,BC$8-$E40,0,1,1)*$L40),"") -> 
E41: 32 | F41: 8 | G41: 0.004709238706 | H41: 0.02381027433 | I41: 0.02767089623 | J41: -0.00386062191 | K41: -0.4477519852 | L41: =IF(F40<Tau,L40*Param1+K41*IRVol*Param2+Calibration!J41-Calibration!J40*Param1,NA()) ->  | AU41: =IF(AND(AU$8>=$E41,$F40<=Tau,$F41>Tau),Calibration!AU41*FEXP(-OFFSET(BFactors,AU$8-$E41,0,1,1)*$L41),"") ->  | AV41: =IF(AND(AV$8>=$E41,$F40<=Tau,$F41>Tau),Calibration!AV41*FEXP(-OFFSET(BFactors,AV$8-$E41,0,1,1)*$L41),"") ->  | AW41: =IF(AND(AW$8>=$E41,$F40<=Tau,$F41>Tau),Calibration!AW41*FEXP(-OFFSET(BFactors,AW$8-$E41,0,1,1)*$L41),"") ->  | AX41: =IF(AND(AX$8>=$E41,$F40<=Tau,$F41>Tau),Calibration!AX41*FEXP(-OFFSET(BFactors,AX$8-$E41,0,1,1)*$L41),"") ->  | AY41: =IF(AND(AY$8>=$E41,$F40<=Tau,$F41>Tau),Calibration!AY41*FEXP(-OFFSET(BFactors,AY$8-$E41,0,1,1)*$L41),"") ->  | AZ41: =IF(AND(AZ$8>=$E41,$F40<=Tau,$F41>Tau),Calibration!AZ41*FEXP(-OFFSET(BFactors,AZ$8-$E41,0,1,1)*$L41),"") ->  | BA41: =IF(AND(BA$8>=$E41,$F40<=Tau,$F41>Tau),Calibration!BA41*FEXP(-OFFSET(BFactors,BA$8-$E41,0,1,1)*$L41),"") ->  | BB41: =IF(AND(BB$8>=$E41,$F40<=Tau,$F41>Tau),Calibration!BB41*FEXP(-OFFSET(BFactors,BB$8-$E41,0,1,1)*$L41),"") ->  | BC41: =IF(AND(BC$8>=$E41,$F40<=Tau,$F41>Tau),Calibration!BC41*FEXP(-OFFSET(BFactors,BC$8-$E41,0,1,1)*$L41),"") -> 
E42: 33 | F42: 8.25 | G42: 0.004885102392 | H42: 0.02279343321 | I42: 0.02537195462 | J42: -0.002578521409 | K42: 0.3782623717 | L42: =IF(F41<Tau,L41*Param1+K42*IRVol*Param2+Calibration!J42-Calibration!J41*Param1,NA()) ->  | AV42: =IF(AND(AV$8>=$E42,$F41<=Tau,$F42>Tau),Calibration!AV42*FEXP(-OFFSET(BFactors,AV$8-$E42,0,1,1)*$L42),"") ->  | AW42: =IF(AND(AW$8>=$E42,$F41<=Tau,$F42>Tau),Calibration!AW42*FEXP(-OFFSET(BFactors,AW$8-$E42,0,1,1)*$L42),"") ->  | AX42: =IF(AND(AX$8>=$E42,$F41<=Tau,$F42>Tau),Calibration!AX42*FEXP(-OFFSET(BFactors,AX$8-$E42,0,1,1)*$L42),"") ->  | AY42: =IF(AND(AY$8>=$E42,$F41<=Tau,$F42>Tau),Calibration!AY42*FEXP(-OFFSET(BFactors,AY$8-$E42,0,1,1)*$L42),"") ->  | AZ42: =IF(AND(AZ$8>=$E42,$F41<=Tau,$F42>Tau),Calibration!AZ42*FEXP(-OFFSET(BFactors,AZ$8-$E42,0,1,1)*$L42),"") ->  | BA42: =IF(AND(BA$8>=$E42,$F41<=Tau,$F42>Tau),Calibration!BA42*FEXP(-OFFSET(BFactors,BA$8-$E42,0,1,1)*$L42),"") ->  | BB42: =IF(AND(BB$8>=$E42,$F41<=Tau,$F42>Tau),Calibration!BB42*FEXP(-OFFSET(BFactors,BB$8-$E42,0,1,1)*$L42),"") ->  | BC42: =IF(AND(BC$8>=$E42,$F41<=Tau,$F42>Tau),Calibration!BC42*FEXP(-OFFSET(BFactors,BC$8-$E42,0,1,1)*$L42),"") -> 
E43: 34 | F43: 8.5 | G43: 0.005041425668 | H43: 0.02142153214 | I43: 0.02396814664 | J43: -0.0025466145 | K43: 0.5822205387 | L43: =IF(F42<Tau,L42*Param1+K43*IRVol*Param2+Calibration!J43-Calibration!J42*Param1,NA()) ->  | AW43: =IF(AND(AW$8>=$E43,$F42<=Tau,$F43>Tau),Calibration!AW43*FEXP(-OFFSET(BFactors,AW$8-$E43,0,1,1)*$L43),"") ->  | AX43: =IF(AND(AX$8>=$E43,$F42<=Tau,$F43>Tau),Calibration!AX43*FEXP(-OFFSET(BFactors,AX$8-$E43,0,1,1)*$L43),"") ->  | AY43: =IF(AND(AY$8>=$E43,$F42<=Tau,$F43>Tau),Calibration!AY43*FEXP(-OFFSET(BFactors,AY$8-$E43,0,1,1)*$L43),"") ->  | AZ43: =IF(AND(AZ$8>=$E43,$F42<=Tau,$F43>Tau),Calibration!AZ43*FEXP(-OFFSET(BFactors,AZ$8-$E43,0,1,1)*$L43),"") ->  | BA43: =IF(AND(BA$8>=$E43,$F42<=Tau,$F43>Tau),Calibration!BA43*FEXP(-OFFSET(BFactors,BA$8-$E43,0,1,1)*$L43),"") ->  | BB43: =IF(AND(BB$8>=$E43,$F42<=Tau,$F43>Tau),Calibration!BB43*FEXP(-OFFSET(BFactors,BB$8-$E43,0,1,1)*$L43),"") ->  | BC43: =IF(AND(BC$8>=$E43,$F42<=Tau,$F43>Tau),Calibration!BC43*FEXP(-OFFSET(BFactors,BC$8-$E43,0,1,1)*$L43),"") -> 
E44: 35 | F44: 8.75 | G44: 0.005256370174 | H44: 0.01517565996 | I44: 0.01778733257 | J44: -0.002611672614 | K44: 0.9404650389 | L44: =IF(F43<Tau,L43*Param1+K44*IRVol*Param2+Calibration!J44-Calibration!J43*Param1,NA()) ->  | AX44: =IF(AND(AX$8>=$E44,$F43<=Tau,$F44>Tau),Calibration!AX44*FEXP(-OFFSET(BFactors,AX$8-$E44,0,1,1)*$L44),"") ->  | AY44: =IF(AND(AY$8>=$E44,$F43<=Tau,$F44>Tau),Calibration!AY44*FEXP(-OFFSET(BFactors,AY$8-$E44,0,1,1)*$L44),"") ->  | AZ44: =IF(AND(AZ$8>=$E44,$F43<=Tau,$F44>Tau),Calibration!AZ44*FEXP(-OFFSET(BFactors,AZ$8-$E44,0,1,1)*$L44),"") ->  | BA44: =IF(AND(BA$8>=$E44,$F43<=Tau,$F44>Tau),Calibration!BA44*FEXP(-OFFSET(BFactors,BA$8-$E44,0,1,1)*$L44),"") ->  | BB44: =IF(AND(BB$8>=$E44,$F43<=Tau,$F44>Tau),Calibration!BB44*FEXP(-OFFSET(BFactors,BB$8-$E44,0,1,1)*$L44),"") ->  | BC44: =IF(AND(BC$8>=$E44,$F43<=Tau,$F44>Tau),Calibration!BC44*FEXP(-OFFSET(BFactors,BC$8-$E44,0,1,1)*$L44),"") -> 
E45: 36 | F45: 9 | G45: 0.005647178365 | H45: 0.01267507296 | I45: 0.01466792891 | J45: -0.001992855945 | K45: 0.810323577 | L45: =IF(F44<Tau,L44*Param1+K45*IRVol*Param2+Calibration!J45-Calibration!J44*Param1,NA()) ->  | AY45: =IF(AND(AY$8>=$E45,$F44<=Tau,$F45>Tau),Calibration!AY45*FEXP(-OFFSET(BFactors,AY$8-$E45,0,1,1)*$L45),"") ->  | AZ45: =IF(AND(AZ$8>=$E45,$F44<=Tau,$F45>Tau),Calibration!AZ45*FEXP(-OFFSET(BFactors,AZ$8-$E45,0,1,1)*$L45),"") ->  | BA45: =IF(AND(BA$8>=$E45,$F44<=Tau,$F45>Tau),Calibration!BA45*FEXP(-OFFSET(BFactors,BA$8-$E45,0,1,1)*$L45),"") ->  | BB45: =IF(AND(BB$8>=$E45,$F44<=Tau,$F45>Tau),Calibration!BB45*FEXP(-OFFSET(BFactors,BB$8-$E45,0,1,1)*$L45),"") ->  | BC45: =IF(AND(BC$8>=$E45,$F44<=Tau,$F45>Tau),Calibration!BC45*FEXP(-OFFSET(BFactors,BC$8-$E45,0,1,1)*$L45),"") -> 
E46: 37 | F46: 9.25 | G46: 0.005314991402 | H46: 0.01036931863 | I46: 0.01155512829 | J46: -0.00118580966 | K46: 0.9741793071 | L46: =IF(F45<Tau,L45*Param1+K46*IRVol*Param2+Calibration!J46-Calibration!J45*Param1,NA()) ->  | AZ46: =IF(AND(AZ$8>=$E46,$F45<=Tau,$F46>Tau),Calibration!AZ46*FEXP(-OFFSET(BFactors,AZ$8-$E46,0,1,1)*$L46),"") ->  | BA46: =IF(AND(BA$8>=$E46,$F45<=Tau,$F46>Tau),Calibration!BA46*FEXP(-OFFSET(BFactors,BA$8-$E46,0,1,1)*$L46),"") ->  | BB46: =IF(AND(BB$8>=$E46,$F45<=Tau,$F46>Tau),Calibration!BB46*FEXP(-OFFSET(BFactors,BB$8-$E46,0,1,1)*$L46),"") ->  | BC46: =IF(AND(BC$8>=$E46,$F45<=Tau,$F46>Tau),Calibration!BC46*FEXP(-OFFSET(BFactors,BC$8-$E46,0,1,1)*$L46),"") -> 
E47: 38 | F47: 9.5 | G47: 0.004787400344 | H47: 0.006283915896 | I47: 0.00753665084 | J47: -0.001252734944 | K47: -0.08264866214 | L47: =IF(F46<Tau,L46*Param1+K47*IRVol*Param2+Calibration!J47-Calibration!J46*Param1,NA()) ->  | BA47: =IF(AND(BA$8>=$E47,$F46<=Tau,$F47>Tau),Calibration!BA47*FEXP(-OFFSET(BFactors,BA$8-$E47,0,1,1)*$L47),"") ->  | BB47: =IF(AND(BB$8>=$E47,$F46<=Tau,$F47>Tau),Calibration!BB47*FEXP(-OFFSET(BFactors,BB$8-$E47,0,1,1)*$L47),"") ->  | BC47: =IF(AND(BC$8>=$E47,$F46<=Tau,$F47>Tau),Calibration!BC47*FEXP(-OFFSET(BFactors,BC$8-$E47,0,1,1)*$L47),"") -> 
E48: 39 | F48: 9.75 | G48: 0.005041425668 | H48: 0.003199602239 | I48: 0.003716620815 | J48: -0.0005170185763 | K48: 0.6023907748 | L48: =IF(F47<Tau,L47*Param1+K48*IRVol*Param2+Calibration!J48-Calibration!J47*Param1,NA()) ->  | BB48: =IF(AND(BB$8>=$E48,$F47<=Tau,$F48>Tau),Calibration!BB48*FEXP(-OFFSET(BFactors,BB$8-$E48,0,1,1)*$L48),"") ->  | BC48: =IF(AND(BC$8>=$E48,$F47<=Tau,$F48>Tau),Calibration!BC48*FEXP(-OFFSET(BFactors,BC$8-$E48,0,1,1)*$L48),"") -> 
E49: 40 | F49: 10 | G49: 0.004748319525 | H49: 0 | I49: 0 | J49: 0 | K49: -0.9303919878 | L49: =IF(F48<Tau,L48*Param1+K49*IRVol*Param2+Calibration!J49-Calibration!J48*Param1,NA()) ->  | N49: 0 | BC49: =IF(AND(BC$8>=$E49,$F48<=Tau,$F49>Tau),Calibration!BC49*FEXP(-OFFSET(BFactors,BC$8-$E49,0,1,1)*$L49),"") -> 
... 1 more rows

Sheet 17.8
B9: Inputs
B10: Spread | C10: 0.01
B11: LGD | C11: 0.6
B12: Correlation | C12: 0.5
C14: 0 | D14: =C14+0.25 -> 0.25 | E14: =D14+0.25 -> 0.5 | F14: 0.75 | G14: 1 | H14: 1.25 | I14: 1.5 | J14: 1.75 | K14: 2 | L14: 2.25 | M14: 2.5 | N14: 2.75 | O14: 3 | P14: 3.25 | Q14: 3.5 | R14: 3.75 | S14: 4 | T14: 4.25 | U14: 4.5 | V14: 4.75 | W14: 5 | X14: 5.25 | Y14: 5.5 | Z14: 5.75 | AA14: 6 | AB14: 6.25 | AC14: 6.5 | AD14: 6.75 | AE14: 7 | AF14: 7.25 | AG14: 7.5 | AH14: 7.75 | AI14: 8 | AJ14: 8.25 | AK14: 8.5 | AL14: 8.75 | AM14: 9 | AN14: 9.25 | AO14: 9.5 | AP14: 9.75 | AQ14: 10
B15: Survival | C15: =EXP(-C14*Spread/LGD) -> 1 | D15: 0.9958420018 | E15: 0.9917012926 | F15: 0.9875778005 | G15: 0.9834714538 | H15: 0.9793821813 | I15: 0.975309912 | J15: 0.9712545752 | K15: 0.9672161005 | L15: 0.9631944177 | M15: 0.9591894571 | N15: 0.9552011491 | O15: 0.9512294245 | P15: 0.9472742143 | Q15: 0.9433354499 | R15: 0.9394130628 | S15: 0.935506985 | T15: 0.9316171487 | U15: 0.9277434863 | V15: 0.9238859306 | W15: 0.9200444146 | X15: 0.9162188717 | Y15: 0.9124092353 | Z15: 0.9086154394 | AA15: 0.904837418 | AB15: 0.9010751057 | AC15: 0.8973284371 | AD15: 0.8935973471 | AE15: 0.889881771 | AF15: 0.8861816442 | AG15: 0.8824969026 | AH15: 0.8788274821 | AI15: 0.875173319 | AJ15: 0.87153435 | AK15: 0.8679105118 | AL15: 0.8643017415 | AM15: 0.8607079764 | AN15: 0.8571291542 | AO15: 0.8535652128 | AP15: 0.8500160902 | AQ15: 0.8464817249
B16: EPE (no WWR) | C16: =SUMIF(C22:C1021,">0")/1000 -> 3.968129313e-06 | D16: =SUMIF(D22:D1021,">0")/1000 -> 0.01246418606 | E16: =SUMIF(E22:E1021,">0")/1000 -> 0.01931975744 | F16: 0.02220936328 | G16: 0.02539962926 | H16: 0.02762073157 | I16: 0.02985929437 | J16: 0.03134209694 | K16: 0.03308169687 | L16: 0.03338188989 | M16: 0.03439859304 | N16: 0.03405279903 | O16: 0.03441863379 | P16: 0.03461249552 | Q16: 0.03516555326 | R16: 0.03524699639 | S16: 0.03501099198 | T16: 0.03451337813 | U16: 0.03427858726 | V16: 0.03385857821 | W16: 0.03339535559 | X16: 0.03211061561 | Y16: 0.03118288821 | Z16: 0.03007436133 | AA16: 0.02907626047 | AB16: 0.02821121464 | AC16: 0.02673839427 | AD16: 0.02521923787 | AE16: 0.02366033236 | AF16: 0.02175752717 | AG16: 0.01980353612 | AH16: 0.01776975385 | AI16: 0.0159346027 | AJ16: 0.01435824109 | AK16: 0.01264623167 | AL16: 0.01070688472 | AM16: 0.008566153842 | AN16: 0.006421259322 | AO16: 0.004380776629 | AP16: 0.002182429908 | AQ16: 0
B17: EPE (WWR) | C17: =SUMIF(C19:C19,">0")/1000 -> 0 | D17: =SUMPRODUCT(--(D22:D1021>0),D22:D1021,D2024:D3023) -> 0.03982572901 | E17: =SUMPRODUCT(--(E22:E1021>0),E22:E1021,E2024:E3023) -> 0.05438075838 | F17: =SUMPRODUCT(--(F22:F1021>0),F22:F1021,F2024:F3023) -> 0.06010670624 | G17: =SUMPRODUCT(--(G22:G1021>0),G22:G1021,G2024:G3023) -> 0.06495385798 | H17: =SUMPRODUCT(--(H22:H1021>0),H22:H1021,H2024:H3023) -> 0.06792833994 | I17: =SUMPRODUCT(--(I22:I1021>0),I22:I1021,I2024:I3023) -> 0.06993779145 | J17: =SUMPRODUCT(--(J22:J1021>0),J22:J1021,J2024:J3023) -> 0.07082227233 | K17: =SUMPRODUCT(--(K22:K1021>0),K22:K1021,K2024:K3023) -> 0.07237683931 | L17: =SUMPRODUCT(--(L22:L1021>0),L22:L1021,L2024:L3023) -> 0.07165810864 | M17: =SUMPRODUCT(--(M22:M1021>0),M22:M1021,M2024:M3023) -> 0.0720850515 | N17: =SUMPRODUCT(--(N22:N1021>0),N22:N1021,N2024:N3023) -> 0.07068320315 | O17: =SUMPRODUCT(--(O22:O1021>0),O22:O1021,O2024:O3023) -> 0.07002489534 | P17: =SUMPRODUCT(--(P22:P1021>0),P22:P1021,P2024:P3023) -> 0.06928338213 | Q17: =SUMPRODUCT(--(Q22:Q1021>0),Q22:Q1021,Q2024:Q3023) -> 0.06927777078 | R17: =SUMPRODUCT(--(R22:R1021>0),R22:R1021,R2024:R3023) -> 0.06771942443 | S17: =SUMPRODUCT(--(S22:S1021>0),S22:S1021,S2024:S3023) -> 0.06648941744 | T17: =SUMPRODUCT(--(T22:T1021>0),T22:T1021,T2024:T3023) -> 0.06455519759 | U17: =SUMPRODUCT(--(U22:U1021>0),U22:U1021,U2024:U3023) -> 0.06343579335 | V17: =SUMPRODUCT(--(V22:V1021>0),V22:V1021,V2024:V3023) -> 0.06202684303 | W17: =SUMPRODUCT(--(W22:W1021>0),W22:W1021,W2024:W3023) -> 0.06008933382 | X17: =SUMPRODUCT(--(X22:X1021>0),X22:X1021,X2024:X3023) -> 0.05725980563 | Y17: =SUMPRODUCT(--(Y22:Y1021>0),Y22:Y1021,Y2024:Y3023) -> 0.05513508341 | Z17: =SUMPRODUCT(--(Z22:Z1021>0),Z22:Z1021,Z2024:Z3023) -> 0.05248800737 | AA17: =SUMPRODUCT(--(AA22:AA1021>0),AA22:AA1021,AA2024:AA3023) -> 0.0502969809 | AB17: =SUMPRODUCT(--(AB22:AB1021>0),AB22:AB1021,AB2024:AB3023) -> 0.04838810517 | AC17: =SUMPRODUCT(--(AC22:AC1021>0),AC22:AC1021,AC2024:AC3023) -> 0.0455748184 | AD17: =SUMPRODUCT(--(AD22:AD1021>0),AD22:AD1021,AD2024:AD3023) -> 0.04268311897 | AE17: =SUMPRODUCT(--(AE22:AE1021>0),AE22:AE1021,AE2024:AE3023) -> 0.03986674418 | AF17: =SUMPRODUCT(--(AF22:AF1021>0),AF22:AF1021,AF2024:AF3023) -> 0.03626063549 | AG17: =SUMPRODUCT(--(AG22:AG1021>0),AG22:AG1021,AG2024:AG3023) -> 0.03295713639 | AH17: =SUMPRODUCT(--(AH22:AH1021>0),AH22:AH1021,AH2024:AH3023) -> 0.02946143803 | AI17: =SUMPRODUCT(--(AI22:AI1021>0),AI22:AI1021,AI2024:AI3023) -> 0.02615280163 | AJ17: =SUMPRODUCT(--(AJ22:AJ1021>0),AJ22:AJ1021,AJ2024:AJ3023) -> 0.02326912482 | AK17: =SUMPRODUCT(--(AK22:AK1021>0),AK22:AK1021,AK2024:AK3023) -> 0.02034346623 | AL17: =SUMPRODUCT(--(AL22:AL1021>0),AL22:AL1021,AL2024:AL3023) -> 0.01710156659 | AM17: =SUMPRODUCT(--(AM22:AM1021>0),AM22:AM1021,AM2024:AM3023) -> 0.01362345477 | AN17: =SUMPRODUCT(--(AN22:AN1021>0),AN22:AN1021,AN2024:AN3023) -> 0.01016810376 | AO17: =SUMPRODUCT(--(AO22:AO1021>0),AO22:AO1021,AO2024:AO3023) -> 0.006875964812 | AP17: =SUMPRODUCT(--(AP22:AP1021>0),AP22:AP1021,AP2024:AP3023) -> 0.003422143338 | AQ17: =SUMPRODUCT(--(AQ22:AQ1021>0),AQ22:AQ1021,AQ2024:AQ3023) -> 0
C20: =SQRT(1-Correlation^2) -> 0.8660254038
C21: Simulation are sorted
B22: 1 | C22: 3.968129313e-06 | D22: -0.1031710136 | E22: -0.1173859012 | F22: -0.1539087963 | G22: -0.1603797166 | H22: -0.1888470727 | I22: -0.207921651 | J22: -0.2044483243 | K22: -0.1970334592 | L22: -0.215300643 | M22: -0.2310724977 | N22: -0.2579302867 | O22: -0.2523722262 | P22: -0.2934670483 | Q22: -0.2870482793 | R22: -0.2920159866 | S22: -0.3048750773 | T22: -0.3042874623 | U22: -0.3249677684 | V22: -0.3225095296 | W22: -0.2609650922 | X22: -0.2114776024 | Y22: -0.2029527071 | Z22: -0.1964705185 | AA22: -0.1811357527 | AB22: -0.1964936916 | AC22: -0.198252066 | AD22: -0.208687639 | AE22: -0.2068791464 | AF22: -0.2094730082 | AG22: -0.17475199 | AH22: -0.1361301397 | AI22: -0.1178792349 | AJ22: -0.1075504699 | AK22: -0.08312053757 | AL22: -0.06886377046 | AM22: -0.06358440409 | AN22: -0.04538587402 | AO22: -0.03357369615 | AP22: -0.01685039827 | AQ22: 0
B23: =B22+1 -> 2 | C23: 3.968129313e-06 | D23: -0.08957322669 | E23: -0.11276076 | F23: -0.1529526253 | G23: -0.1581941664 | H23: -0.1884725672 | I23: -0.1895333967 | J23: -0.1938268076 | K23: -0.1924155002 | L23: -0.2073761583 | M23: -0.2243545457 | N23: -0.2332799408 | O23: -0.2345672884 | P23: -0.2589032437 | Q23: -0.2593076191 | R23: -0.2653973059 | S23: -0.2458817838 | T23: -0.288280932 | U23: -0.2229002484 | V23: -0.2255899084 | W23: -0.1949764931 | X23: -0.1897412107 | Y23: -0.1927790162 | Z23: -0.194389973 | AA23: -0.168645382 | AB23: -0.1808171289 | AC23: -0.1727424207 | AD23: -0.1955180591 | AE23: -0.1815846042 | AF23: -0.1598743058 | AG23: -0.1405145121 | AH23: -0.1175079184 | AI23: -0.1126716992 | AJ23: -0.09492313469 | AK23: -0.07919400263 | AL23: -0.06843999446 | AM23: -0.06256749511 | AN23: -0.04527970413 | AO23: -0.02812484217 | AP23: -0.01366764792 | AQ23: 0
B24: =B23+1 -> 3 | C24: 3.968129313e-06 | D24: -0.08554714878 | E24: -0.105061779 | F24: -0.1386781623 | G24: -0.1512166754 | H24: -0.1762446127 | I24: -0.1747094746 | J24: -0.1896416004 | K24: -0.1794259824 | L24: -0.1919898839 | M24: -0.1991888363 | N24: -0.2306549642 | O24: -0.2260242466 | P24: -0.2453222102 | Q24: -0.2466396247 | R24: -0.2526470099 | S24: -0.2334858897 | T24: -0.2138814782 | U24: -0.2216170084 | V24: -0.2087702748 | W24: -0.1883430411 | X24: -0.1854563078 | Y24: -0.1798803632 | Z24: -0.1827739346 | AA24: -0.1623197345 | AB24: -0.1499241213 | AC24: -0.1444561577 | AD24: -0.1418668965 | AE24: -0.1236787006 | AF24: -0.1376206084 | AG24: -0.1335088987 | AH24: -0.11191476 | AI24: -0.09445706172 | AJ24: -0.07555549815 | AK24: -0.07628702 | AL24: -0.06350411566 | AM24: -0.05505907452 | AN24: -0.04092436058 | AO24: -0.02541017824 | AP24: -0.0135039013 | AQ24: 0
B25: 4 | C25: 3.968129313e-06 | D25: -0.08276291055 | E25: -0.1048732868 | F25: -0.13316524 | G25: -0.1465544538 | H25: -0.168041883 | I25: -0.1726939783 | J25: -0.1796862632 | K25: -0.173313254 | L25: -0.1834581058 | M25: -0.1962042628 | N25: -0.2200773825 | O25: -0.2176202778 | P25: -0.2445472358 | Q25: -0.2284987107 | R25: -0.2226207771 | S25: -0.2292353406 | T25: -0.1998548261 | U25: -0.2212329978 | V25: -0.2066413895 | W25: -0.1837356156 | X25: -0.1797042863 | Y25: -0.1772462042 | Z25: -0.157500598 | AA25: -0.1449296667 | AB25: -0.1478806527 | AC25: -0.1406373042 | AD25: -0.1325354156 | AE25: -0.1236535875 | AF25: -0.116196507 | AG25: -0.1166868078 | AH25: -0.1086120561 | AI25: -0.08963508536 | AJ25: -0.07271942377 | AK25: -0.07542390824 | AL25: -0.06341124015 | AM25: -0.05185274025 | AN25: -0.04029970477 | AO25: -0.02510332232 | AP25: -0.01324240307 | AQ25: 0
B26: 5 | C26: 3.968129313e-06 | D26: -0.07900860523 | E26: -0.103303192 | F26: -0.128435953 | G26: -0.140484837 | H26: -0.1539262265 | I26: -0.168247777 | J26: -0.1758840916 | K26: -0.165458348 | L26: -0.166093219 | M26: -0.1899738745 | N26: -0.2038915615 | O26: -0.2081391216 | P26: -0.1968975747 | Q26: -0.2112925381 | R26: -0.2196185329 | S26: -0.205631406 | T26: -0.1988355761 | U26: -0.1892734629 | V26: -0.1992569323 | W26: -0.180141926 | X26: -0.1712309129 | Y26: -0.1708065813 | Z26: -0.1573877404 | AA26: -0.1444817667 | AB26: -0.1422952258 | AC26: -0.1362874438 | AD26: -0.1268609386 | AE26: -0.1227599654 | AF26: -0.1085666099 | AG26: -0.113292198 | AH26: -0.1072711534 | AI26: -0.0829241355 | AJ26: -0.07177452093 | AK26: -0.07264952592 | AL26: -0.06050542955 | AM26: -0.05052406419 | AN26: -0.03974098361 | AO26: -0.02478954535 | AP26: -0.01206111227 | AQ26: 0
B27: 6 | C27: 3.968129313e-06 | D27: -0.07732402085 | E27: -0.1022134738 | F27: -0.1226268604 | G27: -0.1399504899 | H27: -0.1494919284 | I27: -0.1639297226 | J27: -0.1643515797 | K27: -0.1644262294 | L27: -0.161343702 | M27: -0.1842361479 | N27: -0.1904054714 | O27: -0.2032907348 | P27: -0.1942139821 | Q27: -0.2025095261 | R27: -0.210793149 | S27: -0.2007913001 | T27: -0.192512426 | U27: -0.1884181676 | V27: -0.1982409634 | W27: -0.1682992431 | X27: -0.1598858376 | Y27: -0.1653093798 | Z27: -0.1553869883 | AA27: -0.1394225723 | AB27: -0.1395720119 | AC27: -0.1223925492 | AD27: -0.1164259972 | AE27: -0.1191540075 | AF27: -0.09768680242 | AG27: -0.112555483 | AH27: -0.1030846188 | AI27: -0.0827758578 | AJ27: -0.06995783307 | AK27: -0.06951771277 | AL27: -0.0604579266 | AM27: -0.0454400423 | AN27: -0.03549733516 | AO27: -0.02463970208 | AP27: -0.01142969503 | AQ27: 0
B28: 7 | C28: 3.968129313e-06 | D28: -0.07189204923 | E28: -0.09734628848 | F28: -0.1225569171 | G28: -0.1385008768 | H28: -0.1479007363 | I28: -0.1618673536 | J28: -0.1633264663 | K28: -0.1595894012 | L28: -0.1552129477 | M28: -0.1823412845 | N28: -0.1897635129 | O28: -0.2021693673 | P28: -0.1897765801 | Q28: -0.1763599589 | R28: -0.1868021677 | S28: -0.1963898383 | T28: -0.1770217581 | U28: -0.1757939129 | V28: -0.1816719555 | W28: -0.1657066313 | X28: -0.157184819 | Y28: -0.1636178065 | Z28: -0.1490852737 | AA28: -0.1362241434 | AB28: -0.1319182564 | AC28: -0.120519154 | AD28: -0.1124761668 | AE28: -0.1113900537 | AF28: -0.09685971434 | AG28: -0.1081340839 | AH28: -0.08816417319 | AI28: -0.08068687244 | AJ28: -0.0652332972 | AK28: -0.06406613557 | AL28: -0.05744616919 | AM28: -0.04536903365 | AN28: -0.03345462023 | AO28: -0.02430372604 | AP28: -0.01136478859 | AQ28: 0
B29: 8 | C29: 3.968129313e-06 | D29: -0.07101951336 | E29: -0.09632363779 | F29: -0.1218210776 | G29: -0.1381827466 | H29: -0.1468951637 | I29: -0.1617182436 | J29: -0.1573229665 | K29: -0.1588121134 | L29: -0.151029122 | M29: -0.1822003631 | N29: -0.1891677353 | O29: -0.194383839 | P29: -0.1763276321 | Q29: -0.1668120918 | R29: -0.1795106664 | S29: -0.1696609419 | T29: -0.1751139746 | U29: -0.1727552176 | V29: -0.1734163519 | W29: -0.1635903686 | X29: -0.1529505892 | Y29: -0.1612755804 | Z29: -0.1445987085 | AA29: -0.1329533319 | AB29: -0.1221352731 | AC29: -0.118401001 | AD29: -0.1097021464 | AE29: -0.1109930768 | AF29: -0.09643921488 | AG29: -0.1054708078 | AH29: -0.08782704175 | AI29: -0.07872664495 | AJ29: -0.06501859173 | AK29: -0.0596373278 | AL29: -0.05077103097 | AM29: -0.04476204581 | AN29: -0.03333734316 | AO29: -0.0233397823 | AP29: -0.01088279935 | AQ29: 0
B30: 9 | C30: 3.968129313e-06 | D30: -0.07047187156 | E30: -0.09622664835 | F30: -0.1155449584 | G30: -0.1380703322 | H30: -0.1458205503 | I30: -0.1580376343 | J30: -0.1569529634 | K30: -0.1568401532 | L30: -0.1490623168 | M30: -0.1782093981 | N30: -0.1763958256 | O30: -0.1875346014 | P30: -0.1757757581 | Q30: -0.1655515581 | R30: -0.173466978 | S30: -0.1661135664 | T30: -0.1729631538 | U30: -0.1721571094 | V30: -0.168420685 | W30: -0.1607162616 | X30: -0.1524239785 | Y30: -0.1582375186 | Z30: -0.1441874039 | AA30: -0.125110612 | AB30: -0.1177823994 | AC30: -0.1164152303 | AD30: -0.1071487471 | AE30: -0.1041014211 | AF30: -0.09489077824 | AG30: -0.09995548082 | AH30: -0.08612471706 | AI30: -0.07420224641 | AJ30: -0.06362314181 | AK30: -0.05823952036 | AL30: -0.04857366353 | AM30: -0.04391199209 | AN30: -0.03293349575 | AO30: -0.02165675105 | AP30: -0.01084040582 | AQ30: 0
B31: 10 | C31: 3.968129313e-06 | D31: -0.07004407668 | E31: -0.09547857347 | F31: -0.1142229819 | G31: -0.1326060826 | H31: -0.1448244412 | I31: -0.1548280129 | J31: -0.1567290458 | K31: -0.1544938652 | L31: -0.1486126993 | M31: -0.1778797199 | N31: -0.1696132398 | O31: -0.18508896 | P31: -0.1705350868 | Q31: -0.1516952248 | R31: -0.1703081925 | S31: -0.1660728803 | T31: -0.1682989375 | U31: -0.1606108951 | V31: -0.1646603506 | W31: -0.1597461248 | X31: -0.1507715964 | Y31: -0.1527675619 | Z31: -0.1424873848 | AA31: -0.1247423851 | AB31: -0.1173168428 | AC31: -0.1128251458 | AD31: -0.1069879757 | AE31: -0.1000223605 | AF31: -0.09367638352 | AG31: -0.09747551785 | AH31: -0.08215829694 | AI31: -0.07352485847 | AJ31: -0.06280908402 | AK31: -0.05741478573 | AL31: -0.04855218832 | AM31: -0.0428780015 | AN31: -0.03274568561 | AO31: -0.02061878683 | AP31: -0.01071420032 | AQ31: 0
B32: 11 | C32: 3.968129313e-06 | D32: -0.06988608309 | E32: -0.09260481624 | F32: -0.1125938517 | G32: -0.1316298277 | H32: -0.1435678293 | I32: -0.1481832982 | J32: -0.1552441568 | K32: -0.1507598028 | L32: -0.1445379984 | M32: -0.1744898225 | N32: -0.1670865985 | O32: -0.1800240621 | P32: -0.163815455 | Q32: -0.1493537474 | R32: -0.1643405583 | S32: -0.1655924492 | T32: -0.1654071308 | U32: -0.1602022192 | V32: -0.1645272089 | W32: -0.1511212692 | X32: -0.1484810338 | Y32: -0.1455752054 | Z32: -0.1392564141 | AA32: -0.1234350013 | AB32: -0.1162249328 | AC32: -0.1074796706 | AD32: -0.1068502465 | AE32: -0.09698855173 | AF32: -0.09351988894 | AG32: -0.09223112619 | AH32: -0.07908453531 | AI32: -0.07195929526 | AJ32: -0.06002060949 | AK32: -0.05679330953 | AL32: -0.04826249527 | AM32: -0.04287564936 | AN32: -0.03074491327 | AO32: -0.0204073901 | AP32: -0.01062857931 | AQ32: 0
B33: 12 | C33: 3.968129313e-06 | D33: -0.06972751218 | E33: -0.09127177969 | F33: -0.1050259229 | G33: -0.1315433543 | H33: -0.1430812956 | I33: -0.1436612633 | J33: -0.1521827738 | K33: -0.1501313695 | L33: -0.1420363848 | M33: -0.1642921184 | N33: -0.1642674403 | O33: -0.1619652267 | P33: -0.1604072107 | Q33: -0.1433678069 | R33: -0.1641881344 | S33: -0.1627260207 | T33: -0.1577625897 | U33: -0.1600773252 | V33: -0.1554952053 | W33: -0.1488953384 | X33: -0.1477114147 | Y33: -0.1408514665 | Z33: -0.1378755451 | AA33: -0.1219741461 | AB33: -0.1150082991 | AC33: -0.1055787987 | AD33: -0.1032661901 | AE33: -0.09432909625 | AF33: -0.0914573122 | AG33: -0.09071474574 | AH33: -0.07903095329 | AI33: -0.07070389333 | AJ33: -0.059999509 | AK33: -0.05573012711 | AL33: -0.0445010523 | AM33: -0.04150433014 | AN33: -0.02971380891 | AO33: -0.01997932666 | AP33: -0.01006109155 | AQ33: 0
B34: 13 | C34: 3.968129313e-06 | D34: -0.0672968801 | E34: -0.09045981226 | F34: -0.1025752351 | G34: -0.1261982346 | H34: -0.1399771529 | I34: -0.1405807911 | J34: -0.1497448122 | K34: -0.1495529633 | L34: -0.1411149461 | M34: -0.1633590345 | N34: -0.1586143708 | O34: -0.1521316169 | P34: -0.159433677 | Q34: -0.1391071705 | R34: -0.1640610186 | S34: -0.161584617 | T34: -0.1540494654 | U34: -0.1545135561 | V34: -0.1552701603 | W34: -0.1479877102 | X34: -0.146877332 | Y34: -0.1400764358 | Z34: -0.1275505652 | AA34: -0.1210940236 | AB34: -0.1137209795 | AC34: -0.1033762895 | AD34: -0.1003432908 | AE34: -0.09346299707 | AF34: -0.08967694512 | AG34: -0.08814242644 | AH34: -0.07848345607 | AI34: -0.07053745769 | AJ34: -0.05992806411 | AK34: -0.05546544585 | AL34: -0.04397008012 | AM34: -0.04129160366 | AN34: -0.02932052787 | AO34: -0.01974776895 | AP34: -0.009830771397 | AQ34: 0
B35: 14 | C35: 3.968129313e-06 | D35: -0.06410327993 | E35: -0.09003000039 | F35: -0.1000905706 | G35: -0.1237036014 | H35: -0.1372321349 | I35: -0.1390891874 | J35: -0.1479975656 | K35: -0.1493108861 | L35: -0.1379013917 | M35: -0.161760723 | N35: -0.152684702 | O35: -0.1487070273 | P35: -0.156615599 | Q35: -0.1378706483 | R35: -0.1572318756 | S35: -0.1594929104 | T35: -0.1486567134 | U35: -0.153889563 | V35: -0.1522789198 | W35: -0.1474291727 | X35: -0.1464318347 | Y35: -0.14005447 | Z35: -0.1267084796 | AA35: -0.1187126759 | AB35: -0.113461876 | AC35: -0.1030071651 | AD35: -0.1000803367 | AE35: -0.09029260984 | AF35: -0.08802075713 | AG35: -0.08666781038 | AH35: -0.07449286743 | AI35: -0.06832807152 | AJ35: -0.05950903098 | AK35: -0.05451031445 | AL35: -0.04355466596 | AM35: -0.03977973896 | AN35: -0.0289668433 | AO35: -0.01968631087 | AP35: -0.009734212929 | AQ35: 0
B36: 15 | C36: 3.968129313e-06 | D36: -0.06364109676 | E36: -0.0897028275 | F36: -0.09765032858 | G36: -0.1199394641 | H36: -0.1345543831 | I36: -0.1322322738 | J36: -0.1447796362 | K36: -0.1450061212 | L36: -0.1374885714 | M36: -0.1605824055 | N36: -0.152172518 | O36: -0.1477830085 | P36: -0.1483208919 | Q36: -0.1366845276 | R36: -0.1506748623 | S36: -0.1527132036 | T36: -0.1485277704 | U36: -0.1459941193 | V36: -0.1517575784 | W36: -0.1471985803 | X36: -0.1443585905 | Y36: -0.1385985535 | Z36: -0.124798065 | AA36: -0.1164157859 | AB36: -0.1128905429 | AC36: -0.1008254457 | AD36: -0.0993617332 | AE36: -0.08759667964 | AF36: -0.08664594158 | AG36: -0.07898542396 | AH36: -0.07368734819 | AI36: -0.06744383693 | AJ36: -0.05912604945 | AK36: -0.05340807931 | AL36: -0.04323016639 | AM36: -0.03855026763 | AN36: -0.02858143285 | AO36: -0.01931865803 | AP36: -0.009700346937 | AQ36: 0
